Workbook

Sheet _Esperanzas
B1: TABLA AL 50% | W1: TABLA AL 60%
B3: Edad | C3: Hombres | E3: Mujeres | H3: Edad | I3: Hombres | L3: Mujeres | W3: Edad | X3: Hombres | Z3: Mujeres | AC3: Edad | AD3: Hombres | AG3: Mujeres
C4: ∑ Vida | D4: Edad | E4: ∑ Vida | F4: Edad | I4: ∑ Vida | J4: Meses | K4: Edad | L4: ∑ Vida | M4: Meses | N4: Edad | P4: Redondeo Decimales | X4: ∑ Vida | Y4: Edad | Z4: ∑ Vida | AA4: Edad | AD4: ∑ Vida | AE4: Meses | AF4: Edad | AG4: ∑ Vida | AH4: Meses | AI4: Edad
B5: =B6-1 -> 60 | C5: =C6+1 -> 29.16666603 | D5: =C5+B5 -> 89.16666603 | E5: 32.5 | F5: =E5+B5 -> 92.5 | H5: 60 | I5: =VLOOKUP($H5,$B$5:$F$55,2,0) -> 29.16666603 | J5: =IFERROR(ROUND((ROUNDDOWN(I5,0)*12)+IFERROR(VLOOKUP(ROUND(I5-(ROUNDDOWN(I5,0)),1),_Esperanzas!$R$5:$S$18,2,TRUE),0),0),12) -> 350 | K5: =I5+H5 -> 89.16666603 | L5: =VLOOKUP($H5,$B$5:$F$55,4,0) -> 32.5 | M5: =IFERROR(ROUND((ROUNDDOWN(L5,0)*12)+IFERROR(VLOOKUP(ROUND(L5-(ROUNDDOWN(L5,0)),1),_Esperanzas!$R$5:$S$18,2,TRUE),0),0),12) -> 390 | N5: =L5+H5 -> 92.5 | P5: 1 | Q5: =1/12 -> 0.08333333333 | R5: =Q5 -> 0.08333333333 | S5: =P5 -> 1 | T5: =-S5 -> -1 | W5: =W6-1 -> 60 | X5: =X6+1 -> 27.08333397 | Y5: =X5+W5 -> 87.08333397 | Z5: 30.41666603 | AA5: =Z5+W5 -> 90.41666603 | AC5: 60 | AD5: =VLOOKUP($AC5,$W$5:$AA$55,2,0) -> 27.08333397 | AE5: =IFERROR(ROUND((ROUNDDOWN(AD5,0)*12)+IFERROR(VLOOKUP(ROUND(AD5-(ROUNDDOWN(AD5,0)),1),_Esperanzas!$R$5:$S$18,2,TRUE),0),0),12) -> 325 | AF5: =AD5+AC5 -> 87.08333397 | AG5: =VLOOKUP($AC5,$W$5:$AA$55,4,0) -> 30.41666603 | AH5: =IFERROR(ROUND((ROUNDDOWN(AG5,0)*12)+IFERROR(VLOOKUP(ROUND(AG5-(ROUNDDOWN(AG5,0)),1),_Esperanzas!$R$5:$S$18,2,TRUE),0),0),12) -> 364 | AI5: =AG5+AC5 -> 90.41666603
B6: 61 | C6: 28.16666603 | D6: 89.16666603 | E6: 31.5 | F6: 92.5 | H6: =ROUND(H5+0.1,1) -> 60.1 | I6: =I5+(I15-I5)/10 -> 29.06666603 | J6: =IFERROR(ROUND((ROUNDDOWN(I6,0)*12)+IFERROR(VLOOKUP(ROUND(I6-(ROUNDDOWN(I6,0)),1),_Esperanzas!$R$5:$S$18,2,TRUE),0),0),12) -> 349 | K6: =I6+H6 -> 89.16666603 | L6: =L5+(L15-L5)/10 -> 32.4 | M6: =IFERROR(ROUND((ROUNDDOWN(L6,0)*12)+IFERROR(VLOOKUP(ROUND(L6-(ROUNDDOWN(L6,0)),1),_Esperanzas!$R$5:$S$18,2,TRUE),0),0),12) -> 388 | N6: =L6+H6 -> 92.5 | P6: =P5+1 -> 2 | Q6: 0.08333333333 | R6: =Q6+R5 -> 0.1666666667 | S6: 2 | T6: -2 | W6: 61 | X6: 26.08333397 | Y6: 87.08333397 | Z6: 29.41666603 | AA6: 90.41666603 | AC6: =ROUND(AC5+0.1,1) -> 60.1 | AD6: =AD5+(AD15-AD5)/10 -> 26.98333397 | AE6: =IFERROR(ROUND((ROUNDDOWN(AD6,0)*12)+IFERROR(VLOOKUP(ROUND(AD6-(ROUNDDOWN(AD6,0)),1),_Esperanzas!$R$5:$S$18,2,TRUE),0),0),12) -> 324 | AF6: =AD6+AC6 -> 87.08333397 | AG6: =AG5+(AG15-AG5)/10 -> 30.31666603 | AH6: =IFERROR(ROUND((ROUNDDOWN(AG6,0)*12)+IFERROR(VLOOKUP(ROUND(AG6-(ROUNDDOWN(AG6,0)),1),_Esperanzas!$R$5:$S$18,2,TRUE),0),0),12) -> 363 | AI6: =AG6+AC6 -> 90.41666603
B7: 62 | C7: 27.16666603 | D7: 89.16666603 | E7: 30.5 | F7: 92.5 | H7: =ROUND(H6+0.1,1) -> 60.2 | I7: =I6+(I15-I5)/10 -> 28.96666603 | J7: =IFERROR(ROUND((ROUNDDOWN(I7,0)*12)+IFERROR(VLOOKUP(ROUND(I7-(ROUNDDOWN(I7,0)),1),_Esperanzas!$R$5:$S$18,2,TRUE),0),0),12) -> 348 | K7: =I7+H7 -> 89.16666603 | L7: =L6+(L15-L5)/10 -> 32.3 | M7: =IFERROR(ROUND((ROUNDDOWN(L7,0)*12)+IFERROR(VLOOKUP(ROUND(L7-(ROUNDDOWN(L7,0)),1),_Esperanzas!$R$5:$S$18,2,TRUE),0),0),12) -> 387 | N7: =L7+H7 -> 92.5 | P7: 3 | Q7: 0.08333333333 | R7: 0.25 | S7: 3 | T7: -3 | W7: 62 | X7: 25.08333397 | Y7: 87.08333397 | Z7: 28.41666603 | AA7: 90.41666603 | AC7: =ROUND(AC6+0.1,1) -> 60.2 | AD7: =AD6+(AD15-AD5)/10 -> 26.88333397 | AE7: =IFERROR(ROUND((ROUNDDOWN(AD7,0)*12)+IFERROR(VLOOKUP(ROUND(AD7-(ROUNDDOWN(AD7,0)),1),_Esperanzas!$R$5:$S$18,2,TRUE),0),0),12) -> 322 | AF7: =AD7+AC7 -> 87.08333397 | AG7: =AG6+(AG15-AG5)/10 -> 30.21666603 | AH7: =IFERROR(ROUND((ROUNDDOWN(AG7,0)*12)+IFERROR(VLOOKUP(ROUND(AG7-(ROUNDDOWN(AG7,0)),1),_Esperanzas!$R$5:$S$18,2,TRUE),0),0),12) -> 362 | AI7: =AG7+AC7 -> 90.41666603
B8: 63 | C8: 26.16666603 | D8: 89.16666603 | E8: 29.5 | F8: 92.5 | H8: 60.3 | I8: =I7+(I15-I5)/10 -> 28.86666603 | J8: =IFERROR(ROUND((ROUNDDOWN(I8,0)*12)+IFERROR(VLOOKUP(ROUND(I8-(ROUNDDOWN(I8,0)),1),_Esperanzas!$R$5:$S$18,2,TRUE),0),0),12) -> 346 | K8: =I8+H8 -> 89.16666603 | L8: =L7+(L15-L5)/10 -> 32.2 | M8: =IFERROR(ROUND((ROUNDDOWN(L8,0)*12)+IFERROR(VLOOKUP(ROUND(L8-(ROUNDDOWN(L8,0)),1),_Esperanzas!$R$5:$S$18,2,TRUE),0),0),12) -> 386 | N8: =L8+H8 -> 92.5 | P8: 4 | Q8: 0.08333333333 | R8: 0.3333333333 | S8: 4 | T8: -4 | W8: 63 | X8: 24.08333397 | Y8: 87.08333397 | Z8: 27.41666603 | AA8: 90.41666603 | AC8: 60.3 | AD8: =AD7+(AD15-AD5)/10 -> 26.78333397 | AE8: =IFERROR(ROUND((ROUNDDOWN(AD8,0)*12)+IFERROR(VLOOKUP(ROUND(AD8-(ROUNDDOWN(AD8,0)),1),_Esperanzas!$R$5:$S$18,2,TRUE),0),0),12) -> 321 | AF8: =AD8+AC8 -> 87.08333397 | AG8: =AG7+(AG15-AG5)/10 -> 30.11666603 | AH8: =IFERROR(ROUND((ROUNDDOWN(AG8,0)*12)+IFERROR(VLOOKUP(ROUND(AG8-(ROUNDDOWN(AG8,0)),1),_Esperanzas!$R$5:$S$18,2,TRUE),0),0),12) -> 361 | AI8: =AG8+AC8 -> 90.41666603
B9: 64 | C9: 25.16666603 | D9: 89.16666603 | E9: 28.5 | F9: 92.5 | H9: 60.4 | I9: =I8+(I15-I5)/10 -> 28.76666603 | J9: =IFERROR(ROUND((ROUNDDOWN(I9,0)*12)+IFERROR(VLOOKUP(ROUND(I9-(ROUNDDOWN(I9,0)),1),_Esperanzas!$R$5:$S$18,2,TRUE),0),0),12) -> 345 | K9: =I9+H9 -> 89.16666603 | L9: =L8+(L15-L5)/10 -> 32.1 | M9: =IFERROR(ROUND((ROUNDDOWN(L9,0)*12)+IFERROR(VLOOKUP(ROUND(L9-(ROUNDDOWN(L9,0)),1),_Esperanzas!$R$5:$S$18,2,TRUE),0),0),12) -> 385 | N9: =L9+H9 -> 92.5 | P9: 5 | Q9: 0.08333333333 | R9: 0.4166666667 | S9: 5 | T9: -5 | W9: 64 | X9: 23.08333397 | Y9: 87.08333397 | Z9: 26.41666603 | AA9: 90.41666603 | AC9: 60.4 | AD9: =AD8+(AD15-AD5)/10 -> 26.68333397 | AE9: =IFERROR(ROUND((ROUNDDOWN(AD9,0)*12)+IFERROR(VLOOKUP(ROUND(AD9-(ROUNDDOWN(AD9,0)),1),_Esperanzas!$R$5:$S$18,2,TRUE),0),0),12) -> 320 | AF9: =AD9+AC9 -> 87.08333397 | AG9: =AG8+(AG15-AG5)/10 -> 30.01666603 | AH9: =IFERROR(ROUND((ROUNDDOWN(AG9,0)*12)+IFERROR(VLOOKUP(ROUND(AG9-(ROUNDDOWN(AG9,0)),1),_Esperanzas!$R$5:$S$18,2,TRUE),0),0),12) -> 360 | AI9: =AG9+AC9 -> 90.41666603
B10: 65 | C10: 24.16666603 | D10: 89.16666603 | E10: 27.5 | F10: 92.5 | H10: 60.5 | I10: =I9+(I15-I5)/10 -> 28.66666603 | J10: =IFERROR(ROUND((ROUNDDOWN(I10,0)*12)+IFERROR(VLOOKUP(ROUND(I10-(ROUNDDOWN(I10,0)),1),_Esperanzas!$R$5:$S$18,2,TRUE),0),0),12) -> 344 | K10: 89.16666603 | L10: =L9+(L15-L5)/10 -> 32 | M10: =IFERROR(ROUND((ROUNDDOWN(L10,0)*12)+IFERROR(VLOOKUP(ROUND(L10-(ROUNDDOWN(L10,0)),1),_Esperanzas!$R$5:$S$18,2,TRUE),0),0),12) -> 384 | N10: 92.5 | P10: 6 | Q10: 0.08333333333 | R10: 0.5 | S10: 6 | T10: -6 | W10: 65 | X10: 22.08333397 | Y10: 87.08333397 | Z10: 25.41666603 | AA10: 90.41666603 | AC10: 60.5 | AD10: =AD9+(AD15-AD5)/10 -> 26.58333397 | AE10: =IFERROR(ROUND((ROUNDDOWN(AD10,0)*12)+IFERROR(VLOOKUP(ROUND(AD10-(ROUNDDOWN(AD10,0)),1),_Esperanzas!$R$5:$S$18,2,TRUE),0),0),12) -> 319 | AF10: 87.08333397 | AG10: =AG9+(AG15-AG5)/10 -> 29.91666603 | AH10: =IFERROR(ROUND((ROUNDDOWN(AG10,0)*12)+IFERROR(VLOOKUP(ROUND(AG10-(ROUNDDOWN(AG10,0)),1),_Esperanzas!$R$5:$S$18,2,TRUE),0),0),12) -> 358 | AI10: 90.41666603
B11: 66 | C11: 23.16666603 | D11: 89.16666603 | E11: 26.5 | F11: 92.5 | H11: 60.6 | I11: =I10+(I15-I5)/10 -> 28.56666603 | J11: =IFERROR(ROUND((ROUNDDOWN(I11,0)*12)+IFERROR(VLOOKUP(ROUND(I11-(ROUNDDOWN(I11,0)),1),_Esperanzas!$R$5:$S$18,2,TRUE),0),0),12) -> 343 | K11: 89.16666603 | L11: =L10+(L15-L5)/10 -> 31.9 | M11: =IFERROR(ROUND((ROUNDDOWN(L11,0)*12)+IFERROR(VLOOKUP(ROUND(L11-(ROUNDDOWN(L11,0)),1),_Esperanzas!$R$5:$S$18,2,TRUE),0),0),12) -> 382 | N11: 92.5 | P11: 7 | Q11: 0.08333333333 | R11: 0.5833333333 | S11: 7 | T11: -7 | W11: 66 | X11: 21.08333397 | Y11: 87.08333397 | Z11: 24.41666603 | AA11: 90.41666603 | AC11: 60.6 | AD11: =AD10+(AD15-AD5)/10 -> 26.48333397 | AE11: =IFERROR(ROUND((ROUNDDOWN(AD11,0)*12)+IFERROR(VLOOKUP(ROUND(AD11-(ROUNDDOWN(AD11,0)),1),_Esperanzas!$R$5:$S$18,2,TRUE),0),0),12) -> 318 | AF11: 87.08333397 | AG11: =AG10+(AG15-AG5)/10 -> 29.81666603 | AH11: =IFERROR(ROUND((ROUNDDOWN(AG11,0)*12)+IFERROR(VLOOKUP(ROUND(AG11-(ROUNDDOWN(AG11,0)),1),_Esperanzas!$R$5:$S$18,2,TRUE),0),0),12) -> 357 | AI11: 90.41666603
B12: 67 | C12: 22.16666603 | D12: 89.16666603 | E12: 25.5 | F12: 92.5 | H12: 60.7 | I12: =I11+(I15-I5)/10 -> 28.46666603 | J12: =IFERROR(ROUND((ROUNDDOWN(I12,0)*12)+IFERROR(VLOOKUP(ROUND(I12-(ROUNDDOWN(I12,0)),1),_Esperanzas!$R$5:$S$18,2,TRUE),0),0),12) -> 342 | K12: 89.16666603 | L12: =L11+(L15-L5)/10 -> 31.8 | M12: =IFERROR(ROUND((ROUNDDOWN(L12,0)*12)+IFERROR(VLOOKUP(ROUND(L12-(ROUNDDOWN(L12,0)),1),_Esperanzas!$R$5:$S$18,2,TRUE),0),0),12) -> 381 | N12: 92.5 | P12: 8 | Q12: 0.08333333333 | R12: 0.6666666667 | S12: 8 | T12: -8 | W12: 67 | X12: 20.08333397 | Y12: 87.08333397 | Z12: 23.41666603 | AA12: 90.41666603 | AC12: 60.7 | AD12: =AD11+(AD15-AD5)/10 -> 26.38333397 | AE12: =IFERROR(ROUND((ROUNDDOWN(AD12,0)*12)+IFERROR(VLOOKUP(ROUND(AD12-(ROUNDDOWN(AD12,0)),1),_Esperanzas!$R$5:$S$18,2,TRUE),0),0),12) -> 316 | AF12: 87.08333397 | AG12: =AG11+(AG15-AG5)/10 -> 29.71666603 | AH12: =IFERROR(ROUND((ROUNDDOWN(AG12,0)*12)+IFERROR(VLOOKUP(ROUND(AG12-(ROUNDDOWN(AG12,0)),1),_Esperanzas!$R$5:$S$18,2,TRUE),0),0),12) -> 356 | AI12: 90.41666603
B13: 68 | C13: 21.16666603 | D13: 89.16666603 | E13: 24.5 | F13: 92.5 | H13: 60.8 | I13: =I12+(I15-I5)/10 -> 28.36666603 | J13: =IFERROR(ROUND((ROUNDDOWN(I13,0)*12)+IFERROR(VLOOKUP(ROUND(I13-(ROUNDDOWN(I13,0)),1),_Esperanzas!$R$5:$S$18,2,TRUE),0),0),12) -> 340 | K13: 89.16666603 | L13: =L12+(L15-L5)/10 -> 31.7 | M13: =IFERROR(ROUND((ROUNDDOWN(L13,0)*12)+IFERROR(VLOOKUP(ROUND(L13-(ROUNDDOWN(L13,0)),1),_Esperanzas!$R$5:$S$18,2,TRUE),0),0),12) -> 380 | N13: 92.5 | P13: 9 | Q13: 0.08333333333 | R13: 0.75 | S13: 9 | T13: -9 | W13: 68 | X13: 19.08333397 | Y13: 87.08333397 | Z13: 22.41666603 | AA13: 90.41666603 | AC13: 60.8 | AD13: =AD12+(AD15-AD5)/10 -> 26.28333397 | AE13: =IFERROR(ROUND((ROUNDDOWN(AD13,0)*12)+IFERROR(VLOOKUP(ROUND(AD13-(ROUNDDOWN(AD13,0)),1),_Esperanzas!$R$5:$S$18,2,TRUE),0),0),12) -> 315 | AF13: 87.08333397 | AG13: =AG12+(AG15-AG5)/10 -> 29.61666603 | AH13: =IFERROR(ROUND((ROUNDDOWN(AG13,0)*12)+IFERROR(VLOOKUP(ROUND(AG13-(ROUNDDOWN(AG13,0)),1),_Esperanzas!$R$5:$S$18,2,TRUE),0),0),12) -> 355 | AI13: 90.41666603
B14: =B15-1 -> 69 | C14: =C15+1 -> 20.16666603 | D14: 89.16666603 | E14: =E15+1 -> 23.5 | F14: 92.5 | H14: 60.9 | I14: =I13+(I15-I5)/10 -> 28.26666603 | J14: =IFERROR(ROUND((ROUNDDOWN(I14,0)*12)+IFERROR(VLOOKUP(ROUND(I14-(ROUNDDOWN(I14,0)),1),_Esperanzas!$R$5:$S$18,2,TRUE),0),0),12) -> 339 | K14: 89.16666603 | L14: =L13+(L15-L5)/10 -> 31.6 | M14: =IFERROR(ROUND((ROUNDDOWN(L14,0)*12)+IFERROR(VLOOKUP(ROUND(L14-(ROUNDDOWN(L14,0)),1),_Esperanzas!$R$5:$S$18,2,TRUE),0),0),12) -> 379 | N14: 92.5 | P14: =P13+1 -> 10 | Q14: =1/12 -> 0.08333333333 | R14: =Q14+R13 -> 0.8333333333 | S14: =P14 -> 10 | T14: =-S14 -> -10 | W14: =W15-1 -> 69 | X14: =X15+1 -> 18.08333397 | Y14: 87.08333397 | Z14: =Z15+1 -> 21.41666603 | AA14: 90.41666603 | AC14: 60.9 | AD14: =AD13+(AD15-AD5)/10 -> 26.18333397 | AE14: =IFERROR(ROUND((ROUNDDOWN(AD14,0)*12)+IFERROR(VLOOKUP(ROUND(AD14-(ROUNDDOWN(AD14,0)),1),_Esperanzas!$R$5:$S$18,2,TRUE),0),0),12) -> 314 | AF14: 87.08333397 | AG14: =AG13+(AG15-AG5)/10 -> 29.51666603 | AH14: =IFERROR(ROUND((ROUNDDOWN(AG14,0)*12)+IFERROR(VLOOKUP(ROUND(AG14-(ROUNDDOWN(AG14,0)),1),_Esperanzas!$R$5:$S$18,2,TRUE),0),0),12) -> 354 | AI14: 90.41666603
B15: 70 | C15: 19.16666603 | D15: 89.16666603 | E15: 22.5 | F15: 92.5 | H15: 61 | I15: =VLOOKUP($H15,$B$5:$F$55,2,0) -> 28.16666603 | J15: =IFERROR(ROUND((ROUNDDOWN(I15,0)*12)+IFERROR(VLOOKUP(ROUND(I15-(ROUNDDOWN(I15,0)),1),_Esperanzas!$R$5:$S$18,2,TRUE),0),0),12) -> 338 | K15: 89.16666603 | L15: =VLOOKUP($H15,$B$5:$F$55,4,0) -> 31.5 | M15: =IFERROR(ROUND((ROUNDDOWN(L15,0)*12)+IFERROR(VLOOKUP(ROUND(L15-(ROUNDDOWN(L15,0)),1),_Esperanzas!$R$5:$S$18,2,TRUE),0),0),12) -> 378 | N15: 92.5 | P15: =P14+1 -> 11 | Q15: =1/12 -> 0.08333333333 | R15: =Q15+R14 -> 0.9166666667 | S15: =P15 -> 11 | T15: =-S15 -> -11 | W15: 70 | X15: 17.08333397 | Y15: 87.08333397 | Z15: 20.41666603 | AA15: 90.41666603 | AC15: 61 | AD15: =VLOOKUP($AC15,$W$5:$AA$55,2,0) -> 26.08333397 | AE15: =IFERROR(ROUND((ROUNDDOWN(AD15,0)*12)+IFERROR(VLOOKUP(ROUND(AD15-(ROUNDDOWN(AD15,0)),1),_Esperanzas!$R$5:$S$18,2,TRUE),0),0),12) -> 313 | AF15: 87.08333397 | AG15: =VLOOKUP($AC15,$W$5:$AA$55,4,0) -> 29.41666603 | AH15: =IFERROR(ROUND((ROUNDDOWN(AG15,0)*12)+IFERROR(VLOOKUP(ROUND(AG15-(ROUNDDOWN(AG15,0)),1),_Esperanzas!$R$5:$S$18,2,TRUE),0),0),12) -> 352 | AI15: 90.41666603
B16: 71 | C16: 18.25 | D16: 89.25 | E16: 21.58333397 | F16: 92.58333397 | H16: 61.1 | I16: =I15+(I25-I15)/10 -> 28.06666603 | J16: =IFERROR(ROUND((ROUNDDOWN(I16,0)*12)+IFERROR(VLOOKUP(ROUND(I16-(ROUNDDOWN(I16,0)),1),_Esperanzas!$R$5:$S$18,2,TRUE),0),0),12) -> 337 | K16: 89.16666603 | L16: =L15+(L25-L15)/10 -> 31.4 | M16: =IFERROR(ROUND((ROUNDDOWN(L16,0)*12)+IFERROR(VLOOKUP(ROUND(L16-(ROUNDDOWN(L16,0)),1),_Esperanzas!$R$5:$S$18,2,TRUE),0),0),12) -> 376 | N16: 92.5 | P16: =P15+1 -> 12 | Q16: =1/12 -> 0.08333333333 | R16: =Q16+R15 -> 1 | S16: =P16 -> 12 | T16: =-S16 -> -12 | W16: 71 | X16: 16.16666603 | Y16: 87.16666603 | Z16: 19.5 | AA16: 90.5 | AC16: 61.1 | AD16: =AD15+(AD25-AD15)/10 -> 25.98333397 | AE16: =IFERROR(ROUND((ROUNDDOWN(AD16,0)*12)+IFERROR(VLOOKUP(ROUND(AD16-(ROUNDDOWN(AD16,0)),1),_Esperanzas!$R$5:$S$18,2,TRUE),0),0),12) -> 312 | AF16: 87.08333397 | AG16: =AG15+(AG25-AG15)/10 -> 29.31666603 | AH16: =IFERROR(ROUND((ROUNDDOWN(AG16,0)*12)+IFERROR(VLOOKUP(ROUND(AG16-(ROUNDDOWN(AG16,0)),1),_Esperanzas!$R$5:$S$18,2,TRUE),0),0),12) -> 351 | AI16: 90.41666603
B17: 72 | C17: 17.33333397 | D17: 89.33333397 | E17: 20.58333397 | F17: 92.58333397 | H17: 61.2 | I17: =I16+(I25-I15)/10 -> 27.96666603 | J17: =IFERROR(ROUND((ROUNDDOWN(I17,0)*12)+IFERROR(VLOOKUP(ROUND(I17-(ROUNDDOWN(I17,0)),1),_Esperanzas!$R$5:$S$18,2,TRUE),0),0),12) -> 336 | K17: 89.16666603 | L17: =L16+(L25-L15)/10 -> 31.3 | M17: =IFERROR(ROUND((ROUNDDOWN(L17,0)*12)+IFERROR(VLOOKUP(ROUND(L17-(ROUNDDOWN(L17,0)),1),_Esperanzas!$R$5:$S$18,2,TRUE),0),0),12) -> 375 | N17: 92.5 | P17: 0 | Q17: 0 | R17: 0 | S17: 0 | T17: 0 | W17: 72 | X17: 15.25 | Y17: 87.25 | Z17: 18.58333397 | AA17: 90.58333397 | AC17: 61.2 | AD17: =AD16+(AD25-AD15)/10 -> 25.88333397 | AE17: =IFERROR(ROUND((ROUNDDOWN(AD17,0)*12)+IFERROR(VLOOKUP(ROUND(AD17-(ROUNDDOWN(AD17,0)),1),_Esperanzas!$R$5:$S$18,2,TRUE),0),0),12) -> 310 | AF17: 87.08333397 | AG17: =AG16+(AG25-AG15)/10 -> 29.21666603 | AH17: =IFERROR(ROUND((ROUNDDOWN(AG17,0)*12)+IFERROR(VLOOKUP(ROUND(AG17-(ROUNDDOWN(AG17,0)),1),_Esperanzas!$R$5:$S$18,2,TRUE),0),0),12) -> 350 | AI17: 90.41666603
B18: 73 | C18: 16.5 | D18: 89.5 | E18: 19.66666603 | F18: 92.66666603 | H18: 61.3 | I18: =I17+(I25-I15)/10 -> 27.86666603 | J18: =IFERROR(ROUND((ROUNDDOWN(I18,0)*12)+IFERROR(VLOOKUP(ROUND(I18-(ROUNDDOWN(I18,0)),1),_Esperanzas!$R$5:$S$18,2,TRUE),0),0),12) -> 334 | K18: 89.16666603 | L18: =L17+(L25-L15)/10 -> 31.2 | M18: =IFERROR(ROUND((ROUNDDOWN(L18,0)*12)+IFERROR(VLOOKUP(ROUND(L18-(ROUNDDOWN(L18,0)),1),_Esperanzas!$R$5:$S$18,2,TRUE),0),0),12) -> 374 | N18: 92.5 | P18: 1 | Q18: 0 | R18: 1 | S18: 12 | T18: 0 | W18: 73 | X18: 14.41666698 | Y18: 87.41666698 | Z18: 17.58333397 | AA18: 90.58333397 | AC18: 61.3 | AD18: =AD17+(AD25-AD15)/10 -> 25.78333397 | AE18: =IFERROR(ROUND((ROUNDDOWN(AD18,0)*12)+IFERROR(VLOOKUP(ROUND(AD18-(ROUNDDOWN(AD18,0)),1),_Esperanzas!$R$5:$S$18,2,TRUE),0),0),12) -> 309 | AF18: 87.08333397 | AG18: =AG17+(AG25-AG15)/10 -> 29.11666603 | AH18: =IFERROR(ROUND((ROUNDDOWN(AG18,0)*12)+IFERROR(VLOOKUP(ROUND(AG18-(ROUNDDOWN(AG18,0)),1),_Esperanzas!$R$5:$S$18,2,TRUE),0),0),12) -> 349 | AI18: 90.41666603
B19: 74 | C19: 15.58333302 | D19: 89.58333302 | E19: 18.75 | F19: 92.75 | H19: 61.4 | I19: =I18+(I25-I15)/10 -> 27.76666603 | J19: =IFERROR(ROUND((ROUNDDOWN(I19,0)*12)+IFERROR(VLOOKUP(ROUND(I19-(ROUNDDOWN(I19,0)),1),_Esperanzas!$R$5:$S$18,2,TRUE),0),0),12) -> 333 | K19: =I19+H19 -> 89.16666603 | L19: =L18+(L25-L15)/10 -> 31.1 | M19: =IFERROR(ROUND((ROUNDDOWN(L19,0)*12)+IFERROR(VLOOKUP(ROUND(L19-(ROUNDDOWN(L19,0)),1),_Esperanzas!$R$5:$S$18,2,TRUE),0),0),12) -> 373 | N19: 92.5 | W19: 74 | X19: 13.58333302 | Y19: 87.58333302 | Z19: 16.66666603 | AA19: 90.66666603 | AC19: 61.4 | AD19: =AD18+(AD25-AD15)/10 -> 25.68333397 | AE19: =IFERROR(ROUND((ROUNDDOWN(AD19,0)*12)+IFERROR(VLOOKUP(ROUND(AD19-(ROUNDDOWN(AD19,0)),1),_Esperanzas!$R$5:$S$18,2,TRUE),0),0),12) -> 308 | AF19: =AD19+AC19 -> 87.08333397 | AG19: =AG18+(AG25-AG15)/10 -> 29.01666603 | AH19: =IFERROR(ROUND((ROUNDDOWN(AG19,0)*12)+IFERROR(VLOOKUP(ROUND(AG19-(ROUNDDOWN(AG19,0)),1),_Esperanzas!$R$5:$S$18,2,TRUE),0),0),12) -> 348 | AI19: =AG19+AC19 -> 90.41666603
B20: 75 | C20: 14.75 | D20: 89.75 | E20: 17.83333397 | F20: 92.83333397 | H20: 61.5 | I20: =I19+(I25-I15)/10 -> 27.66666603 | J20: =IFERROR(ROUND((ROUNDDOWN(I20,0)*12)+IFERROR(VLOOKUP(ROUND(I20-(ROUNDDOWN(I20,0)),1),_Esperanzas!$R$5:$S$18,2,TRUE),0),0),12) -> 332 | K20: 89.16666603 | L20: =L19+(L25-L15)/10 -> 31 | M20: =IFERROR(ROUND((ROUNDDOWN(L20,0)*12)+IFERROR(VLOOKUP(ROUND(L20-(ROUNDDOWN(L20,0)),1),_Esperanzas!$R$5:$S$18,2,TRUE),0),0),12) -> 372 | N20: 92.5 | W20: 75 | X20: 12.75 | Y20: 87.75 | Z20: 15.83333302 | AA20: 90.83333302 | AC20: 61.5 | AD20: =AD19+(AD25-AD15)/10 -> 25.58333397 | AE20: =IFERROR(ROUND((ROUNDDOWN(AD20,0)*12)+IFERROR(VLOOKUP(ROUND(AD20-(ROUNDDOWN(AD20,0)),1),_Esperanzas!$R$5:$S$18,2,TRUE),0),0),12) -> 307 | AF20: 87.08333397 | AG20: =AG19+(AG25-AG15)/10 -> 28.91666603 | AH20: =IFERROR(ROUND((ROUNDDOWN(AG20,0)*12)+IFERROR(VLOOKUP(ROUND(AG20-(ROUNDDOWN(AG20,0)),1),_Esperanzas!$R$5:$S$18,2,TRUE),0),0),12) -> 346 | AI20: 90.41666603
B21: 76 | C21: 13.91666698 | D21: 89.91666698 | E21: 16.91666603 | F21: 92.91666603 | H21: 61.6 | I21: =I20+(I25-I15)/10 -> 27.56666603 | J21: =IFERROR(ROUND((ROUNDDOWN(I21,0)*12)+IFERROR(VLOOKUP(ROUND(I21-(ROUNDDOWN(I21,0)),1),_Esperanzas!$R$5:$S$18,2,TRUE),0),0),12) -> 331 | K21: 89.16666603 | L21: =L20+(L25-L15)/10 -> 30.9 | M21: =IFERROR(ROUND((ROUNDDOWN(L21,0)*12)+IFERROR(VLOOKUP(ROUND(L21-(ROUNDDOWN(L21,0)),1),_Esperanzas!$R$5:$S$18,2,TRUE),0),0),12) -> 370 | N21: 92.5 | W21: 76 | X21: 11.91666698 | Y21: 87.91666698 | Z21: 14.91666698 | AA21: 90.91666698 | AC21: 61.6 | AD21: =AD20+(AD25-AD15)/10 -> 25.48333397 | AE21: =IFERROR(ROUND((ROUNDDOWN(AD21,0)*12)+IFERROR(VLOOKUP(ROUND(AD21-(ROUNDDOWN(AD21,0)),1),_Esperanzas!$R$5:$S$18,2,TRUE),0),0),12) -> 306 | AF21: 87.08333397 | AG21: =AG20+(AG25-AG15)/10 -> 28.81666603 | AH21: =IFERROR(ROUND((ROUNDDOWN(AG21,0)*12)+IFERROR(VLOOKUP(ROUND(AG21-(ROUNDDOWN(AG21,0)),1),_Esperanzas!$R$5:$S$18,2,TRUE),0),0),12) -> 345 | AI21: 90.41666603
B22: 77 | C22: 13.08333302 | D22: 90.08333302 | E22: 16 | F22: 93 | H22: 61.7 | I22: =I21+(I25-I15)/10 -> 27.46666603 | J22: =IFERROR(ROUND((ROUNDDOWN(I22,0)*12)+IFERROR(VLOOKUP(ROUND(I22-(ROUNDDOWN(I22,0)),1),_Esperanzas!$R$5:$S$18,2,TRUE),0),0),12) -> 330 | K22: 89.16666603 | L22: =L21+(L25-L15)/10 -> 30.8 | M22: =IFERROR(ROUND((ROUNDDOWN(L22,0)*12)+IFERROR(VLOOKUP(ROUND(L22-(ROUNDDOWN(L22,0)),1),_Esperanzas!$R$5:$S$18,2,TRUE),0),0),12) -> 369 | N22: 92.5 | P22: EDAD | W22: 77 | X22: 11.16666698 | Y22: 88.16666698 | Z22: 14 | AA22: 91 | AC22: 61.7 | AD22: =AD21+(AD25-AD15)/10 -> 25.38333397 | AE22: =IFERROR(ROUND((ROUNDDOWN(AD22,0)*12)+IFERROR(VLOOKUP(ROUND(AD22-(ROUNDDOWN(AD22,0)),1),_Esperanzas!$R$5:$S$18,2,TRUE),0),0),12) -> 304 | AF22: 87.08333397 | AG22: =AG21+(AG25-AG15)/10 -> 28.71666603 | AH22: =IFERROR(ROUND((ROUNDDOWN(AG22,0)*12)+IFERROR(VLOOKUP(ROUND(AG22-(ROUNDDOWN(AG22,0)),1),_Esperanzas!$R$5:$S$18,2,TRUE),0),0),12) -> 344 | AI22: 90.41666603
B23: 78 | C23: 12.25 | D23: 90.25 | E23: 15.08333302 | F23: 93.08333302 | H23: 61.8 | I23: =I22+(I25-I15)/10 -> 27.36666603 | J23: =IFERROR(ROUND((ROUNDDOWN(I23,0)*12)+IFERROR(VLOOKUP(ROUND(I23-(ROUNDDOWN(I23,0)),1),_Esperanzas!$R$5:$S$18,2,TRUE),0),0),12) -> 328 | K23: 89.16666603 | L23: =L22+(L25-L15)/10 -> 30.7 | M23: =IFERROR(ROUND((ROUNDDOWN(L23,0)*12)+IFERROR(VLOOKUP(ROUND(L23-(ROUNDDOWN(L23,0)),1),_Esperanzas!$R$5:$S$18,2,TRUE),0),0),12) -> 368 | N23: 92.5 | P23: PRECIO DE COMRPA | R23: 0 | S23: 80 | W23: 78 | X23: 10.33333302 | Y23: 88.33333302 | Z23: 13.16666698 | AA23: 91.16666698 | AC23: 61.8 | AD23: =AD22+(AD25-AD15)/10 -> 25.28333397 | AE23: =IFERROR(ROUND((ROUNDDOWN(AD23,0)*12)+IFERROR(VLOOKUP(ROUND(AD23-(ROUNDDOWN(AD23,0)),1),_Esperanzas!$R$5:$S$18,2,TRUE),0),0),12) -> 303 | AF23: 87.08333397 | AG23: =AG22+(AG25-AG15)/10 -> 28.61666603 | AH23: =IFERROR(ROUND((ROUNDDOWN(AG23,0)*12)+IFERROR(VLOOKUP(ROUND(AG23-(ROUNDDOWN(AG23,0)),1),_Esperanzas!$R$5:$S$18,2,TRUE),0),0),12) -> 343 | AI23: 90.41666603
B24: 79 | C24: 11.5 | D24: 90.5 | E24: 14.16666698 | F24: 93.16666698 | H24: 61.9 | I24: =I23+(I25-I15)/10 -> 27.26666603 | J24: =IFERROR(ROUND((ROUNDDOWN(I24,0)*12)+IFERROR(VLOOKUP(ROUND(I24-(ROUNDDOWN(I24,0)),1),_Esperanzas!$R$5:$S$18,2,TRUE),0),0),12) -> 327 | K24: 89.16666603 | L24: =L23+(L25-L15)/10 -> 30.6 | M24: =IFERROR(ROUND((ROUNDDOWN(L24,0)*12)+IFERROR(VLOOKUP(ROUND(L24-(ROUNDDOWN(L24,0)),1),_Esperanzas!$R$5:$S$18,2,TRUE),0),0),12) -> 367 | N24: 92.5 | Q24: 0 | R24: _Esperanzas!$AC$5:$AI$505 | S24: _Esperanzas!$AC$5:$AI$505 | W24: 79 | X24: 9.583333015 | Y24: 88.58333302 | Z24: 12.33333302 | AA24: 91.33333302 | AC24: 61.9 | AD24: =AD23+(AD25-AD15)/10 -> 25.18333397 | AE24: =IFERROR(ROUND((ROUNDDOWN(AD24,0)*12)+IFERROR(VLOOKUP(ROUND(AD24-(ROUNDDOWN(AD24,0)),1),_Esperanzas!$R$5:$S$18,2,TRUE),0),0),12) -> 302 | AF24: 87.08333397 | AG24: =AG23+(AG25-AG15)/10 -> 28.51666603 | AH24: =IFERROR(ROUND((ROUNDDOWN(AG24,0)*12)+IFERROR(VLOOKUP(ROUND(AG24-(ROUNDDOWN(AG24,0)),1),_Esperanzas!$R$5:$S$18,2,TRUE),0),0),12) -> 342 | AI24: 90.41666603
B25: 80 | C25: 10.75 | D25: 90.75 | E25: 13.33333302 | F25: 93.33333302 | H25: 62 | I25: =VLOOKUP($H25,$B$5:$F$55,2,0) -> 27.16666603 | J25: =IFERROR(ROUND((ROUNDDOWN(I25,0)*12)+IFERROR(VLOOKUP(ROUND(I25-(ROUNDDOWN(I25,0)),1),_Esperanzas!$R$5:$S$18,2,TRUE),0),0),12) -> 326 | K25: 89.16666603 | L25: =VLOOKUP($H25,$B$5:$F$55,4,0) -> 30.5 | M25: =IFERROR(ROUND((ROUNDDOWN(L25,0)*12)+IFERROR(VLOOKUP(ROUND(L25-(ROUNDDOWN(L25,0)),1),_Esperanzas!$R$5:$S$18,2,TRUE),0),0),12) -> 366 | N25: 92.5 | Q25: 500000 | R25: _Esperanzas!$AC$5:$AI$505 | S25: _Esperanzas!$H$5:$N$505 | W25: 80 | X25: 8.916666985 | Y25: 88.91666698 | Z25: 11.5 | AA25: 91.5 | AC25: 62 | AD25: =VLOOKUP($AC25,$W$5:$AA$55,2,0) -> 25.08333397 | AE25: =IFERROR(ROUND((ROUNDDOWN(AD25,0)*12)+IFERROR(VLOOKUP(ROUND(AD25-(ROUNDDOWN(AD25,0)),1),_Esperanzas!$R$5:$S$18,2,TRUE),0),0),12) -> 301 | AF25: 87.08333397 | AG25: =VLOOKUP($AC25,$W$5:$AA$55,4,0) -> 28.41666603 | AH25: =IFERROR(ROUND((ROUNDDOWN(AG25,0)*12)+IFERROR(VLOOKUP(ROUND(AG25-(ROUNDDOWN(AG25,0)),1),_Esperanzas!$R$5:$S$18,2,TRUE),0),0),12) -> 340 | AI25: 90.41666603
B26: 81 | C26: 10 | D26: 91 | E26: 12.5 | F26: 93.5 | H26: 62.1 | I26: =I25+(I35-I25)/10 -> 27.06666603 | J26: =IFERROR(ROUND((ROUNDDOWN(I26,0)*12)+IFERROR(VLOOKUP(ROUND(I26-(ROUNDDOWN(I26,0)),1),_Esperanzas!$R$5:$S$18,2,TRUE),0),0),12) -> 325 | K26: 89.16666603 | L26: =L25+(L35-L25)/10 -> 30.4 | M26: =IFERROR(ROUND((ROUNDDOWN(L26,0)*12)+IFERROR(VLOOKUP(ROUND(L26-(ROUNDDOWN(L26,0)),1),_Esperanzas!$R$5:$S$18,2,TRUE),0),0),12) -> 364 | N26: 92.5 | W26: 81 | X26: 8.25 | Y26: 89.25 | Z26: 10.66666698 | AA26: 91.66666698 | AC26: 62.1 | AD26: =AD25+(AD35-AD25)/10 -> 24.98333397 | AE26: =IFERROR(ROUND((ROUNDDOWN(AD26,0)*12)+IFERROR(VLOOKUP(ROUND(AD26-(ROUNDDOWN(AD26,0)),1),_Esperanzas!$R$5:$S$18,2,TRUE),0),0),12) -> 300 | AF26: 87.08333397 | AG26: =AG25+(AG35-AG25)/10 -> 28.31666603 | AH26: =IFERROR(ROUND((ROUNDDOWN(AG26,0)*12)+IFERROR(VLOOKUP(ROUND(AG26-(ROUNDDOWN(AG26,0)),1),_Esperanzas!$R$5:$S$18,2,TRUE),0),0),12) -> 339 | AI26: 90.41666603
B27: 82 | C27: 9.333333015 | D27: 91.33333302 | E27: 11.66666698 | F27: 93.66666698 | H27: 62.2 | I27: =I26+(I35-I25)/10 -> 26.96666603 | J27: =IFERROR(ROUND((ROUNDDOWN(I27,0)*12)+IFERROR(VLOOKUP(ROUND(I27-(ROUNDDOWN(I27,0)),1),_Esperanzas!$R$5:$S$18,2,TRUE),0),0),12) -> 324 | K27: 89.16666603 | L27: =L26+(L35-L25)/10 -> 30.3 | M27: =IFERROR(ROUND((ROUNDDOWN(L27,0)*12)+IFERROR(VLOOKUP(ROUND(L27-(ROUNDDOWN(L27,0)),1),_Esperanzas!$R$5:$S$18,2,TRUE),0),0),12) -> 363 | N27: 92.5 | R27: _Esperanzas!$H$5:$N$505 | S27: tabla al 50% | W27: 82 | X27: 7.666666508 | Y27: 89.66666651 | Z27: 9.916666985 | AA27: 91.91666698 | AC27: 62.2 | AD27: =AD26+(AD35-AD25)/10 -> 24.88333397 | AE27: =IFERROR(ROUND((ROUNDDOWN(AD27,0)*12)+IFERROR(VLOOKUP(ROUND(AD27-(ROUNDDOWN(AD27,0)),1),_Esperanzas!$R$5:$S$18,2,TRUE),0),0),12) -> 298 | AF27: 87.08333397 | AG27: =AG26+(AG35-AG25)/10 -> 28.21666603 | AH27: =IFERROR(ROUND((ROUNDDOWN(AG27,0)*12)+IFERROR(VLOOKUP(ROUND(AG27-(ROUNDDOWN(AG27,0)),1),_Esperanzas!$R$5:$S$18,2,TRUE),0),0),12) -> 338 | AI27: 90.41666603
B28: 83 | C28: 8.666666985 | D28: 91.66666698 | E28: 10.91666698 | F28: 93.91666698 | H28: 62.3 | I28: =I27+(I35-I25)/10 -> 26.86666603 | J28: =IFERROR(ROUND((ROUNDDOWN(I28,0)*12)+IFERROR(VLOOKUP(ROUND(I28-(ROUNDDOWN(I28,0)),1),_Esperanzas!$R$5:$S$18,2,TRUE),0),0),12) -> 322 | K28: 89.16666603 | L28: =L27+(L35-L25)/10 -> 30.2 | M28: =IFERROR(ROUND((ROUNDDOWN(L28,0)*12)+IFERROR(VLOOKUP(ROUND(L28-(ROUNDDOWN(L28,0)),1),_Esperanzas!$R$5:$S$18,2,TRUE),0),0),12) -> 362 | N28: 92.5 | R28: _Esperanzas!$AC$5:$AI$505 | S28: tabla al 60% | W28: 83 | X28: 7.083333492 | Y28: 90.08333349 | Z28: 9.166666985 | AA28: 92.16666698 | AC28: 62.3 | AD28: =AD27+(AD35-AD25)/10 -> 24.78333397 | AE28: =IFERROR(ROUND((ROUNDDOWN(AD28,0)*12)+IFERROR(VLOOKUP(ROUND(AD28-(ROUNDDOWN(AD28,0)),1),_Esperanzas!$R$5:$S$18,2,TRUE),0),0),12) -> 297 | AF28: 87.08333397 | AG28: =AG27+(AG35-AG25)/10 -> 28.11666603 | AH28: =IFERROR(ROUND((ROUNDDOWN(AG28,0)*12)+IFERROR(VLOOKUP(ROUND(AG28-(ROUNDDOWN(AG28,0)),1),_Esperanzas!$R$5:$S$18,2,TRUE),0),0),12) -> 337 | AI28: 90.41666603
B29: 84 | C29: 8.083333015 | D29: 92.08333302 | E29: 10.16666698 | F29: 94.16666698 | H29: 62.4 | I29: =I28+(I35-I25)/10 -> 26.76666603 | J29: =IFERROR(ROUND((ROUNDDOWN(I29,0)*12)+IFERROR(VLOOKUP(ROUND(I29-(ROUNDDOWN(I29,0)),1),_Esperanzas!$R$5:$S$18,2,TRUE),0),0),12) -> 321 | K29: 89.16666603 | L29: =L28+(L35-L25)/10 -> 30.1 | M29: =IFERROR(ROUND((ROUNDDOWN(L29,0)*12)+IFERROR(VLOOKUP(ROUND(L29-(ROUNDDOWN(L29,0)),1),_Esperanzas!$R$5:$S$18,2,TRUE),0),0),12) -> 361 | N29: 92.5 | W29: 84 | X29: 6.5 | Y29: 90.5 | Z29: 8.416666985 | AA29: 92.41666698 | AC29: 62.4 | AD29: =AD28+(AD35-AD25)/10 -> 24.68333397 | AE29: =IFERROR(ROUND((ROUNDDOWN(AD29,0)*12)+IFERROR(VLOOKUP(ROUND(AD29-(ROUNDDOWN(AD29,0)),1),_Esperanzas!$R$5:$S$18,2,TRUE),0),0),12) -> 296 | AF29: 87.08333397 | AG29: =AG28+(AG35-AG25)/10 -> 28.01666603 | AH29: =IFERROR(ROUND((ROUNDDOWN(AG29,0)*12)+IFERROR(VLOOKUP(ROUND(AG29-(ROUNDDOWN(AG29,0)),1),_Esperanzas!$R$5:$S$18,2,TRUE),0),0),12) -> 336 | AI29: 90.41666603
B30: 85 | C30: 7.583333492 | D30: 92.58333349 | E30: 9.416666985 | F30: 94.41666698 | H30: 62.5 | I30: =I29+(I35-I25)/10 -> 26.66666603 | J30: =IFERROR(ROUND((ROUNDDOWN(I30,0)*12)+IFERROR(VLOOKUP(ROUND(I30-(ROUNDDOWN(I30,0)),1),_Esperanzas!$R$5:$S$18,2,TRUE),0),0),12) -> 320 | K30: 89.16666603 | L30: =L29+(L35-L25)/10 -> 30 | M30: =IFERROR(ROUND((ROUNDDOWN(L30,0)*12)+IFERROR(VLOOKUP(ROUND(L30-(ROUNDDOWN(L30,0)),1),_Esperanzas!$R$5:$S$18,2,TRUE),0),0),12) -> 360 | N30: 92.5 | W30: 85 | X30: 6 | Y30: 91 | Z30: 7.833333492 | AA30: 92.83333349 | AC30: 62.5 | AD30: =AD29+(AD35-AD25)/10 -> 24.58333397 | AE30: =IFERROR(ROUND((ROUNDDOWN(AD30,0)*12)+IFERROR(VLOOKUP(ROUND(AD30-(ROUNDDOWN(AD30,0)),1),_Esperanzas!$R$5:$S$18,2,TRUE),0),0),12) -> 295 | AF30: 87.08333397 | AG30: =AG29+(AG35-AG25)/10 -> 27.91666603 | AH30: =IFERROR(ROUND((ROUNDDOWN(AG30,0)*12)+IFERROR(VLOOKUP(ROUND(AG30-(ROUNDDOWN(AG30,0)),1),_Esperanzas!$R$5:$S$18,2,TRUE),0),0),12) -> 334 | AI30: 90.41666603
B31: 86 | C31: 7.083333492 | D31: 93.08333349 | E31: 8.75 | F31: 94.75 | H31: 62.6 | I31: =I30+(I35-I25)/10 -> 26.56666603 | J31: =IFERROR(ROUND((ROUNDDOWN(I31,0)*12)+IFERROR(VLOOKUP(ROUND(I31-(ROUNDDOWN(I31,0)),1),_Esperanzas!$R$5:$S$18,2,TRUE),0),0),12) -> 319 | K31: 89.16666603 | L31: =L30+(L35-L25)/10 -> 29.9 | M31: =IFERROR(ROUND((ROUNDDOWN(L31,0)*12)+IFERROR(VLOOKUP(ROUND(L31-(ROUNDDOWN(L31,0)),1),_Esperanzas!$R$5:$S$18,2,TRUE),0),0),12) -> 358 | N31: 92.5 | W31: 86 | X31: 5.583333492 | Y31: 91.58333349 | Z31: 7.166666508 | AA31: 93.16666651 | AC31: 62.6 | AD31: =AD30+(AD35-AD25)/10 -> 24.48333397 | AE31: =IFERROR(ROUND((ROUNDDOWN(AD31,0)*12)+IFERROR(VLOOKUP(ROUND(AD31-(ROUNDDOWN(AD31,0)),1),_Esperanzas!$R$5:$S$18,2,TRUE),0),0),12) -> 294 | AF31: 87.08333397 | AG31: =AG30+(AG35-AG25)/10 -> 27.81666603 | AH31: =IFERROR(ROUND((ROUNDDOWN(AG31,0)*12)+IFERROR(VLOOKUP(ROUND(AG31-(ROUNDDOWN(AG31,0)),1),_Esperanzas!$R$5:$S$18,2,TRUE),0),0),12) -> 333 | AI31: 90.41666603
B32: 87 | C32: 6.583333492 | D32: 93.58333349 | E32: 8.166666985 | F32: 95.16666698 | H32: 62.7 | I32: =I31+(I35-I25)/10 -> 26.46666603 | J32: =IFERROR(ROUND((ROUNDDOWN(I32,0)*12)+IFERROR(VLOOKUP(ROUND(I32-(ROUNDDOWN(I32,0)),1),_Esperanzas!$R$5:$S$18,2,TRUE),0),0),12) -> 318 | K32: 89.16666603 | L32: =L31+(L35-L25)/10 -> 29.8 | M32: =IFERROR(ROUND((ROUNDDOWN(L32,0)*12)+IFERROR(VLOOKUP(ROUND(L32-(ROUNDDOWN(L32,0)),1),_Esperanzas!$R$5:$S$18,2,TRUE),0),0),12) -> 357 | N32: 92.5 | W32: 87 | X32: 5.166666508 | Y32: 92.16666651 | Z32: 6.583333492 | AA32: 93.58333349 | AC32: 62.7 | AD32: =AD31+(AD35-AD25)/10 -> 24.38333397 | AE32: =IFERROR(ROUND((ROUNDDOWN(AD32,0)*12)+IFERROR(VLOOKUP(ROUND(AD32-(ROUNDDOWN(AD32,0)),1),_Esperanzas!$R$5:$S$18,2,TRUE),0),0),12) -> 292 | AF32: 87.08333397 | AG32: =AG31+(AG35-AG25)/10 -> 27.71666603 | AH32: =IFERROR(ROUND((ROUNDDOWN(AG32,0)*12)+IFERROR(VLOOKUP(ROUND(AG32-(ROUNDDOWN(AG32,0)),1),_Esperanzas!$R$5:$S$18,2,TRUE),0),0),12) -> 332 | AI32: 90.41666603
B33: 88 | C33: 6.166666508 | D33: 94.16666651 | E33: 7.5 | F33: 95.5 | H33: 62.8 | I33: =I32+(I35-I25)/10 -> 26.36666603 | J33: =IFERROR(ROUND((ROUNDDOWN(I33,0)*12)+IFERROR(VLOOKUP(ROUND(I33-(ROUNDDOWN(I33,0)),1),_Esperanzas!$R$5:$S$18,2,TRUE),0),0),12) -> 316 | K33: 89.16666603 | L33: =L32+(L35-L25)/10 -> 29.7 | M33: =IFERROR(ROUND((ROUNDDOWN(L33,0)*12)+IFERROR(VLOOKUP(ROUND(L33-(ROUNDDOWN(L33,0)),1),_Esperanzas!$R$5:$S$18,2,TRUE),0),0),12) -> 356 | N33: 92.5 | W33: 88 | X33: 4.833333492 | Y33: 92.83333349 | Z33: 6.083333492 | AA33: 94.08333349 | AC33: 62.8 | AD33: =AD32+(AD35-AD25)/10 -> 24.28333397 | AE33: =IFERROR(ROUND((ROUNDDOWN(AD33,0)*12)+IFERROR(VLOOKUP(ROUND(AD33-(ROUNDDOWN(AD33,0)),1),_Esperanzas!$R$5:$S$18,2,TRUE),0),0),12) -> 291 | AF33: 87.08333397 | AG33: =AG32+(AG35-AG25)/10 -> 27.61666603 | AH33: =IFERROR(ROUND((ROUNDDOWN(AG33,0)*12)+IFERROR(VLOOKUP(ROUND(AG33-(ROUNDDOWN(AG33,0)),1),_Esperanzas!$R$5:$S$18,2,TRUE),0),0),12) -> 331 | AI33: 90.41666603
B34: 89 | C34: 5.75 | D34: 94.75 | E34: 7 | F34: 96 | H34: 62.9 | I34: =I33+(I35-I25)/10 -> 26.26666603 | J34: =IFERROR(ROUND((ROUNDDOWN(I34,0)*12)+IFERROR(VLOOKUP(ROUND(I34-(ROUNDDOWN(I34,0)),1),_Esperanzas!$R$5:$S$18,2,TRUE),0),0),12) -> 315 | K34: 89.16666603 | L34: =L33+(L35-L25)/10 -> 29.6 | M34: =IFERROR(ROUND((ROUNDDOWN(L34,0)*12)+IFERROR(VLOOKUP(ROUND(L34-(ROUNDDOWN(L34,0)),1),_Esperanzas!$R$5:$S$18,2,TRUE),0),0),12) -> 355 | N34: 92.5 | W34: 89 | X34: 4.5 | Y34: 93.5 | Z34: 5.583333492 | AA34: 94.58333349 | AC34: 62.9 | AD34: =AD33+(AD35-AD25)/10 -> 24.18333397 | AE34: =IFERROR(ROUND((ROUNDDOWN(AD34,0)*12)+IFERROR(VLOOKUP(ROUND(AD34-(ROUNDDOWN(AD34,0)),1),_Esperanzas!$R$5:$S$18,2,TRUE),0),0),12) -> 290 | AF34: 87.08333397 | AG34: =AG33+(AG35-AG25)/10 -> 27.51666603 | AH34: =IFERROR(ROUND((ROUNDDOWN(AG34,0)*12)+IFERROR(VLOOKUP(ROUND(AG34-(ROUNDDOWN(AG34,0)),1),_Esperanzas!$R$5:$S$18,2,TRUE),0),0),12) -> 330 | AI34: 90.41666603
B35: 90 | C35: 5.333333492 | D35: 95.33333349 | E35: 6.416666508 | F35: 96.41666651 | H35: 63 | I35: =VLOOKUP($H35,$B$5:$F$55,2,0) -> 26.16666603 | J35: =IFERROR(ROUND((ROUNDDOWN(I35,0)*12)+IFERROR(VLOOKUP(ROUND(I35-(ROUNDDOWN(I35,0)),1),_Esperanzas!$R$5:$S$18,2,TRUE),0),0),12) -> 314 | K35: 89.16666603 | L35: =VLOOKUP($H35,$B$5:$F$55,4,0) -> 29.5 | M35: =IFERROR(ROUND((ROUNDDOWN(L35,0)*12)+IFERROR(VLOOKUP(ROUND(L35-(ROUNDDOWN(L35,0)),1),_Esperanzas!$R$5:$S$18,2,TRUE),0),0),12) -> 354 | N35: 92.5 | W35: 90 | X35: 4.166666508 | Y35: 94.16666651 | Z35: 5.166666508 | AA35: 95.16666651 | AC35: 63 | AD35: =VLOOKUP($AC35,$W$5:$AA$55,2,0) -> 24.08333397 | AE35: =IFERROR(ROUND((ROUNDDOWN(AD35,0)*12)+IFERROR(VLOOKUP(ROUND(AD35-(ROUNDDOWN(AD35,0)),1),_Esperanzas!$R$5:$S$18,2,TRUE),0),0),12) -> 289 | AF35: 87.08333397 | AG35: =VLOOKUP($AC35,$W$5:$AA$55,4,0) -> 27.41666603 | AH35: =IFERROR(ROUND((ROUNDDOWN(AG35,0)*12)+IFERROR(VLOOKUP(ROUND(AG35-(ROUNDDOWN(AG35,0)),1),_Esperanzas!$R$5:$S$18,2,TRUE),0),0),12) -> 328 | AI35: 90.41666603
B36: =B35+1 -> 91 | C36: 5 | D36: 96 | E36: 6 | F36: =E36+B36 -> 97 | H36: 63.1 | I36: =I35+(I45-I35)/10 -> 26.06666603 | J36: =IFERROR(ROUND((ROUNDDOWN(I36,0)*12)+IFERROR(VLOOKUP(ROUND(I36-(ROUNDDOWN(I36,0)),1),_Esperanzas!$R$5:$S$18,2,TRUE),0),0),12) -> 313 | K36: 89.16666603 | L36: =L35+(L45-L35)/10 -> 29.4 | M36: =IFERROR(ROUND((ROUNDDOWN(L36,0)*12)+IFERROR(VLOOKUP(ROUND(L36-(ROUNDDOWN(L36,0)),1),_Esperanzas!$R$5:$S$18,2,TRUE),0),0),12) -> 352 | N36: 92.5 | W36: =W35+1 -> 91 | X36: 3.916666746 | Y36: 94.91666675 | Z36: 4.75 | AA36: 95.75 | AC36: 63.1 | AD36: =AD35+(AD45-AD35)/10 -> 23.98333397 | AE36: =IFERROR(ROUND((ROUNDDOWN(AD36,0)*12)+IFERROR(VLOOKUP(ROUND(AD36-(ROUNDDOWN(AD36,0)),1),_Esperanzas!$R$5:$S$18,2,TRUE),0),0),12) -> 288 | AF36: 87.08333397 | AG36: =AG35+(AG45-AG35)/10 -> 27.31666603 | AH36: =IFERROR(ROUND((ROUNDDOWN(AG36,0)*12)+IFERROR(VLOOKUP(ROUND(AG36-(ROUNDDOWN(AG36,0)),1),_Esperanzas!$R$5:$S$18,2,TRUE),0),0),12) -> 327 | AI36: 90.41666603
B37: =B36+1 -> 92 | C37: 4.583333492 | D37: 96.58333349 | E37: 5.5 | F37: =E37+B37 -> 97.5 | H37: 63.2 | I37: =I36+(I45-I35)/10 -> 25.96666603 | J37: =IFERROR(ROUND((ROUNDDOWN(I37,0)*12)+IFERROR(VLOOKUP(ROUND(I37-(ROUNDDOWN(I37,0)),1),_Esperanzas!$R$5:$S$18,2,TRUE),0),0),12) -> 312 | K37: 89.16666603 | L37: =L36+(L45-L35)/10 -> 29.3 | M37: =IFERROR(ROUND((ROUNDDOWN(L37,0)*12)+IFERROR(VLOOKUP(ROUND(L37-(ROUNDDOWN(L37,0)),1),_Esperanzas!$R$5:$S$18,2,TRUE),0),0),12) -> 351 | N37: 92.5 | W37: =W36+1 -> 92 | X37: 3.583333254 | Y37: 95.58333325 | Z37: 4.333333492 | AA37: 96.33333349 | AC37: 63.2 | AD37: =AD36+(AD45-AD35)/10 -> 23.88333397 | AE37: =IFERROR(ROUND((ROUNDDOWN(AD37,0)*12)+IFERROR(VLOOKUP(ROUND(AD37-(ROUNDDOWN(AD37,0)),1),_Esperanzas!$R$5:$S$18,2,TRUE),0),0),12) -> 286 | AF37: 87.08333397 | AG37: =AG36+(AG45-AG35)/10 -> 27.21666603 | AH37: =IFERROR(ROUND((ROUNDDOWN(AG37,0)*12)+IFERROR(VLOOKUP(ROUND(AG37-(ROUNDDOWN(AG37,0)),1),_Esperanzas!$R$5:$S$18,2,TRUE),0),0),12) -> 326 | AI37: 90.41666603
B38: 93 | C38: 4.25 | D38: 97.25 | E38: 5.083333492 | F38: 98.08333349 | H38: 63.3 | I38: =I37+(I45-I35)/10 -> 25.86666603 | J38: =IFERROR(ROUND((ROUNDDOWN(I38,0)*12)+IFERROR(VLOOKUP(ROUND(I38-(ROUNDDOWN(I38,0)),1),_Esperanzas!$R$5:$S$18,2,TRUE),0),0),12) -> 310 | K38: 89.16666603 | L38: =L37+(L45-L35)/10 -> 29.2 | M38: =IFERROR(ROUND((ROUNDDOWN(L38,0)*12)+IFERROR(VLOOKUP(ROUND(L38-(ROUNDDOWN(L38,0)),1),_Esperanzas!$R$5:$S$18,2,TRUE),0),0),12) -> 350 | N38: 92.5 | W38: 93 | X38: 3.333333254 | Y38: 96.33333325 | Z38: 4 | AA38: 97 | AC38: 63.3 | AD38: =AD37+(AD45-AD35)/10 -> 23.78333397 | AE38: =IFERROR(ROUND((ROUNDDOWN(AD38,0)*12)+IFERROR(VLOOKUP(ROUND(AD38-(ROUNDDOWN(AD38,0)),1),_Esperanzas!$R$5:$S$18,2,TRUE),0),0),12) -> 285 | AF38: 87.08333397 | AG38: =AG37+(AG45-AG35)/10 -> 27.11666603 | AH38: =IFERROR(ROUND((ROUNDDOWN(AG38,0)*12)+IFERROR(VLOOKUP(ROUND(AG38-(ROUNDDOWN(AG38,0)),1),_Esperanzas!$R$5:$S$18,2,TRUE),0),0),12) -> 325 | AI38: 90.41666603
B39: 94 | C39: 3.916666746 | D39: 97.91666675 | E39: 4.666666508 | F39: 98.66666651 | H39: 63.4 | I39: =I38+(I45-I35)/10 -> 25.76666603 | J39: =IFERROR(ROUND((ROUNDDOWN(I39,0)*12)+IFERROR(VLOOKUP(ROUND(I39-(ROUNDDOWN(I39,0)),1),_Esperanzas!$R$5:$S$18,2,TRUE),0),0),12) -> 309 | K39: 89.16666603 | L39: =L38+(L45-L35)/10 -> 29.1 | M39: =IFERROR(ROUND((ROUNDDOWN(L39,0)*12)+IFERROR(VLOOKUP(ROUND(L39-(ROUNDDOWN(L39,0)),1),_Esperanzas!$R$5:$S$18,2,TRUE),0),0),12) -> 349 | N39: 92.5 | W39: 94 | X39: 3.083333254 | Y39: 97.08333325 | Z39: 3.666666746 | AA39: 97.66666675 | AC39: 63.4 | AD39: =AD38+(AD45-AD35)/10 -> 23.68333397 | AE39: =IFERROR(ROUND((ROUNDDOWN(AD39,0)*12)+IFERROR(VLOOKUP(ROUND(AD39-(ROUNDDOWN(AD39,0)),1),_Esperanzas!$R$5:$S$18,2,TRUE),0),0),12) -> 284 | AF39: 87.08333397 | AG39: =AG38+(AG45-AG35)/10 -> 27.01666603 | AH39: =IFERROR(ROUND((ROUNDDOWN(AG39,0)*12)+IFERROR(VLOOKUP(ROUND(AG39-(ROUNDDOWN(AG39,0)),1),_Esperanzas!$R$5:$S$18,2,TRUE),0),0),12) -> 324 | AI39: 90.41666603
B40: 95 | C40: 3.666666746 | D40: 98.66666675 | E40: 4.333333492 | F40: 99.33333349 | H40: 63.5 | I40: =I39+(I45-I35)/10 -> 25.66666603 | J40: =IFERROR(ROUND((ROUNDDOWN(I40,0)*12)+IFERROR(VLOOKUP(ROUND(I40-(ROUNDDOWN(I40,0)),1),_Esperanzas!$R$5:$S$18,2,TRUE),0),0),12) -> 308 | K40: 89.16666603 | L40: =L39+(L45-L35)/10 -> 29 | M40: =IFERROR(ROUND((ROUNDDOWN(L40,0)*12)+IFERROR(VLOOKUP(ROUND(L40-(ROUNDDOWN(L40,0)),1),_Esperanzas!$R$5:$S$18,2,TRUE),0),0),12) -> 348 | N40: 92.5 | W40: 95 | X40: 2.833333254 | Y40: 97.83333325 | Z40: 3.333333254 | AA40: 98.33333325 | AC40: 63.5 | AD40: =AD39+(AD45-AD35)/10 -> 23.58333397 | AE40: =IFERROR(ROUND((ROUNDDOWN(AD40,0)*12)+IFERROR(VLOOKUP(ROUND(AD40-(ROUNDDOWN(AD40,0)),1),_Esperanzas!$R$5:$S$18,2,TRUE),0),0),12) -> 283 | AF40: 87.08333397 | AG40: =AG39+(AG45-AG35)/10 -> 26.91666603 | AH40: =IFERROR(ROUND((ROUNDDOWN(AG40,0)*12)+IFERROR(VLOOKUP(ROUND(AG40-(ROUNDDOWN(AG40,0)),1),_Esperanzas!$R$5:$S$18,2,TRUE),0),0),12) -> 322 | AI40: 90.41666603
B41: 96 | C41: 3.416666746 | D41: 99.41666675 | E41: 4 | F41: 100 | H41: 63.6 | I41: =I40+(I45-I35)/10 -> 25.56666603 | J41: =IFERROR(ROUND((ROUNDDOWN(I41,0)*12)+IFERROR(VLOOKUP(ROUND(I41-(ROUNDDOWN(I41,0)),1),_Esperanzas!$R$5:$S$18,2,TRUE),0),0),12) -> 307 | K41: 89.16666603 | L41: =L40+(L45-L35)/10 -> 28.9 | M41: =IFERROR(ROUND((ROUNDDOWN(L41,0)*12)+IFERROR(VLOOKUP(ROUND(L41-(ROUNDDOWN(L41,0)),1),_Esperanzas!$R$5:$S$18,2,TRUE),0),0),12) -> 346 | N41: 92.5 | W41: 96 | X41: 2.583333254 | Y41: 98.58333325 | Z41: 3.083333254 | AA41: 99.08333325 | AC41: 63.6 | AD41: =AD40+(AD45-AD35)/10 -> 23.48333397 | AE41: =IFERROR(ROUND((ROUNDDOWN(AD41,0)*12)+IFERROR(VLOOKUP(ROUND(AD41-(ROUNDDOWN(AD41,0)),1),_Esperanzas!$R$5:$S$18,2,TRUE),0),0),12) -> 282 | AF41: 87.08333397 | AG41: =AG40+(AG45-AG35)/10 -> 26.81666603 | AH41: =IFERROR(ROUND((ROUNDDOWN(AG41,0)*12)+IFERROR(VLOOKUP(ROUND(AG41-(ROUNDDOWN(AG41,0)),1),_Esperanzas!$R$5:$S$18,2,TRUE),0),0),12) -> 321 | AI41: 90.41666603
B42: 97 | C42: 3.166666746 | D42: 100.1666667 | E42: 3.666666746 | F42: 100.6666667 | H42: 63.7 | I42: =I41+(I45-I35)/10 -> 25.46666603 | J42: =IFERROR(ROUND((ROUNDDOWN(I42,0)*12)+IFERROR(VLOOKUP(ROUND(I42-(ROUNDDOWN(I42,0)),1),_Esperanzas!$R$5:$S$18,2,TRUE),0),0),12) -> 306 | K42: 89.16666603 | L42: =L41+(L45-L35)/10 -> 28.8 | M42: =IFERROR(ROUND((ROUNDDOWN(L42,0)*12)+IFERROR(VLOOKUP(ROUND(L42-(ROUNDDOWN(L42,0)),1),_Esperanzas!$R$5:$S$18,2,TRUE),0),0),12) -> 345 | N42: 92.5 | W42: 97 | X42: 2.416666746 | Y42: 99.41666675 | Z42: 2.833333254 | AA42: 99.83333325 | AC42: 63.7 | AD42: =AD41+(AD45-AD35)/10 -> 23.38333397 | AE42: =IFERROR(ROUND((ROUNDDOWN(AD42,0)*12)+IFERROR(VLOOKUP(ROUND(AD42-(ROUNDDOWN(AD42,0)),1),_Esperanzas!$R$5:$S$18,2,TRUE),0),0),12) -> 280 | AF42: 87.08333397 | AG42: =AG41+(AG45-AG35)/10 -> 26.71666603 | AH42: =IFERROR(ROUND((ROUNDDOWN(AG42,0)*12)+IFERROR(VLOOKUP(ROUND(AG42-(ROUNDDOWN(AG42,0)),1),_Esperanzas!$R$5:$S$18,2,TRUE),0),0),12) -> 320 | AI42: 90.41666603
B43: 98 | C43: 2.916666746 | D43: 100.9166667 | E43: 3.416666746 | F43: 101.4166667 | H43: 63.8 | I43: =I42+(I45-I35)/10 -> 25.36666603 | J43: =IFERROR(ROUND((ROUNDDOWN(I43,0)*12)+IFERROR(VLOOKUP(ROUND(I43-(ROUNDDOWN(I43,0)),1),_Esperanzas!$R$5:$S$18,2,TRUE),0),0),12) -> 304 | K43: 89.16666603 | L43: =L42+(L45-L35)/10 -> 28.7 | M43: =IFERROR(ROUND((ROUNDDOWN(L43,0)*12)+IFERROR(VLOOKUP(ROUND(L43-(ROUNDDOWN(L43,0)),1),_Esperanzas!$R$5:$S$18,2,TRUE),0),0),12) -> 344 | N43: 92.5 | W43: 98 | X43: 2.25 | Y43: 100.25 | Z43: 2.583333254 | AA43: 100.5833333 | AC43: 63.8 | AD43: =AD42+(AD45-AD35)/10 -> 23.28333397 | AE43: =IFERROR(ROUND((ROUNDDOWN(AD43,0)*12)+IFERROR(VLOOKUP(ROUND(AD43-(ROUNDDOWN(AD43,0)),1),_Esperanzas!$R$5:$S$18,2,TRUE),0),0),12) -> 279 | AF43: 87.08333397 | AG43: =AG42+(AG45-AG35)/10 -> 26.61666603 | AH43: =IFERROR(ROUND((ROUNDDOWN(AG43,0)*12)+IFERROR(VLOOKUP(ROUND(AG43-(ROUNDDOWN(AG43,0)),1),_Esperanzas!$R$5:$S$18,2,TRUE),0),0),12) -> 319 | AI43: 90.41666603
B44: 99 | C44: 2.666666746 | D44: 101.6666667 | E44: 3.166666746 | F44: 102.1666667 | H44: 63.9 | I44: =I43+(I45-I35)/10 -> 25.26666603 | J44: =IFERROR(ROUND((ROUNDDOWN(I44,0)*12)+IFERROR(VLOOKUP(ROUND(I44-(ROUNDDOWN(I44,0)),1),_Esperanzas!$R$5:$S$18,2,TRUE),0),0),12) -> 303 | K44: 89.16666603 | L44: =L43+(L45-L35)/10 -> 28.6 | M44: =IFERROR(ROUND((ROUNDDOWN(L44,0)*12)+IFERROR(VLOOKUP(ROUND(L44-(ROUNDDOWN(L44,0)),1),_Esperanzas!$R$5:$S$18,2,TRUE),0),0),12) -> 343 | N44: 92.5 | W44: 99 | X44: 2.083333254 | Y44: 101.0833333 | Z44: 2.416666746 | AA44: 101.4166667 | AC44: 63.9 | AD44: =AD43+(AD45-AD35)/10 -> 23.18333397 | AE44: =IFERROR(ROUND((ROUNDDOWN(AD44,0)*12)+IFERROR(VLOOKUP(ROUND(AD44-(ROUNDDOWN(AD44,0)),1),_Esperanzas!$R$5:$S$18,2,TRUE),0),0),12) -> 278 | AF44: 87.08333397 | AG44: =AG43+(AG45-AG35)/10 -> 26.51666603 | AH44: =IFERROR(ROUND((ROUNDDOWN(AG44,0)*12)+IFERROR(VLOOKUP(ROUND(AG44-(ROUNDDOWN(AG44,0)),1),_Esperanzas!$R$5:$S$18,2,TRUE),0),0),12) -> 318 | AI44: 90.41666603
B45: 100 | C45: 2.5 | D45: 102.5 | E45: 2.916666746 | F45: 102.9166667 | H45: 64 | I45: =VLOOKUP($H45,$B$5:$F$55,2,0) -> 25.16666603 | J45: =IFERROR(ROUND((ROUNDDOWN(I45,0)*12)+IFERROR(VLOOKUP(ROUND(I45-(ROUNDDOWN(I45,0)),1),_Esperanzas!$R$5:$S$18,2,TRUE),0),0),12) -> 302 | K45: 89.16666603 | L45: =VLOOKUP($H45,$B$5:$F$55,4,0) -> 28.5 | M45: =IFERROR(ROUND((ROUNDDOWN(L45,0)*12)+IFERROR(VLOOKUP(ROUND(L45-(ROUNDDOWN(L45,0)),1),_Esperanzas!$R$5:$S$18,2,TRUE),0),0),12) -> 342 | N45: 92.5 | W45: 100 | X45: 1.916666627 | Y45: 101.9166666 | Z45: 2.166666746 | AA45: 102.1666667 | AC45: 64 | AD45: =VLOOKUP($AC45,$W$5:$AA$55,2,0) -> 23.08333397 | AE45: =IFERROR(ROUND((ROUNDDOWN(AD45,0)*12)+IFERROR(VLOOKUP(ROUND(AD45-(ROUNDDOWN(AD45,0)),1),_Esperanzas!$R$5:$S$18,2,TRUE),0),0),12) -> 277 | AF45: 87.08333397 | AG45: =VLOOKUP($AC45,$W$5:$AA$55,4,0) -> 26.41666603 | AH45: =IFERROR(ROUND((ROUNDDOWN(AG45,0)*12)+IFERROR(VLOOKUP(ROUND(AG45-(ROUNDDOWN(AG45,0)),1),_Esperanzas!$R$5:$S$18,2,TRUE),0),0),12) -> 316 | AI45: 90.41666603
B46: 101 | C46: 2.25 | D46: 103.25 | E46: 2.666666746 | F46: 103.6666667 | H46: 64.1 | I46: =I45+(I55-I45)/10 -> 25.06666603 | J46: =IFERROR(ROUND((ROUNDDOWN(I46,0)*12)+IFERROR(VLOOKUP(ROUND(I46-(ROUNDDOWN(I46,0)),1),_Esperanzas!$R$5:$S$18,2,TRUE),0),0),12) -> 301 | K46: 89.16666603 | L46: =L45+(L55-L45)/10 -> 28.4 | M46: =IFERROR(ROUND((ROUNDDOWN(L46,0)*12)+IFERROR(VLOOKUP(ROUND(L46-(ROUNDDOWN(L46,0)),1),_Esperanzas!$R$5:$S$18,2,TRUE),0),0),12) -> 340 | N46: 92.5 | W46: 101 | X46: 1.75 | Y46: 102.75 | Z46: 2 | AA46: 103 | AC46: 64.1 | AD46: =AD45+(AD55-AD45)/10 -> 22.98333397 | AE46: =IFERROR(ROUND((ROUNDDOWN(AD46,0)*12)+IFERROR(VLOOKUP(ROUND(AD46-(ROUNDDOWN(AD46,0)),1),_Esperanzas!$R$5:$S$18,2,TRUE),0),0),12) -> 276 | AF46: 87.08333397 | AG46: =AG45+(AG55-AG45)/10 -> 26.31666603 | AH46: =IFERROR(ROUND((ROUNDDOWN(AG46,0)*12)+IFERROR(VLOOKUP(ROUND(AG46-(ROUNDDOWN(AG46,0)),1),_Esperanzas!$R$5:$S$18,2,TRUE),0),0),12) -> 315 | AI46: 90.41666603
B47: 102 | C47: 2.083333254 | D47: 104.0833333 | E47: 2.416666746 | F47: 104.4166667 | H47: 64.2 | I47: =I46+(I55-I45)/10 -> 24.96666603 | J47: =IFERROR(ROUND((ROUNDDOWN(I47,0)*12)+IFERROR(VLOOKUP(ROUND(I47-(ROUNDDOWN(I47,0)),1),_Esperanzas!$R$5:$S$18,2,TRUE),0),0),12) -> 300 | K47: 89.16666603 | L47: =L46+(L55-L45)/10 -> 28.3 | M47: =IFERROR(ROUND((ROUNDDOWN(L47,0)*12)+IFERROR(VLOOKUP(ROUND(L47-(ROUNDDOWN(L47,0)),1),_Esperanzas!$R$5:$S$18,2,TRUE),0),0),12) -> 339 | N47: 92.5 | W47: 102 | X47: 1.583333373 | Y47: 103.5833334 | Z47: 1.833333373 | AA47: 103.8333334 | AC47: 64.2 | AD47: =AD46+(AD55-AD45)/10 -> 22.88333397 | AE47: =IFERROR(ROUND((ROUNDDOWN(AD47,0)*12)+IFERROR(VLOOKUP(ROUND(AD47-(ROUNDDOWN(AD47,0)),1),_Esperanzas!$R$5:$S$18,2,TRUE),0),0),12) -> 274 | AF47: 87.08333397 | AG47: =AG46+(AG55-AG45)/10 -> 26.21666603 | AH47: =IFERROR(ROUND((ROUNDDOWN(AG47,0)*12)+IFERROR(VLOOKUP(ROUND(AG47-(ROUNDDOWN(AG47,0)),1),_Esperanzas!$R$5:$S$18,2,TRUE),0),0),12) -> 314 | AI47: 90.41666603
B48: 103 | C48: 1.916666627 | D48: 104.9166666 | E48: 2.25 | F48: 105.25 | H48: 64.3 | I48: =I47+(I55-I45)/10 -> 24.86666603 | J48: =IFERROR(ROUND((ROUNDDOWN(I48,0)*12)+IFERROR(VLOOKUP(ROUND(I48-(ROUNDDOWN(I48,0)),1),_Esperanzas!$R$5:$S$18,2,TRUE),0),0),12) -> 298 | K48: 89.16666603 | L48: =L47+(L55-L45)/10 -> 28.2 | M48: =IFERROR(ROUND((ROUNDDOWN(L48,0)*12)+IFERROR(VLOOKUP(ROUND(L48-(ROUNDDOWN(L48,0)),1),_Esperanzas!$R$5:$S$18,2,TRUE),0),0),12) -> 338 | N48: 92.5 | W48: 103 | X48: 1.5 | Y48: 104.5 | Z48: 1.666666627 | AA48: 104.6666666 | AC48: 64.3 | AD48: =AD47+(AD55-AD45)/10 -> 22.78333397 | AE48: =IFERROR(ROUND((ROUNDDOWN(AD48,0)*12)+IFERROR(VLOOKUP(ROUND(AD48-(ROUNDDOWN(AD48,0)),1),_Esperanzas!$R$5:$S$18,2,TRUE),0),0),12) -> 273 | AF48: 87.08333397 | AG48: =AG47+(AG55-AG45)/10 -> 26.11666603 | AH48: =IFERROR(ROUND((ROUNDDOWN(AG48,0)*12)+IFERROR(VLOOKUP(ROUND(AG48-(ROUNDDOWN(AG48,0)),1),_Esperanzas!$R$5:$S$18,2,TRUE),0),0),12) -> 313 | AI48: 90.41666603
B49: 104 | C49: 1.75 | D49: 105.75 | E49: 2.083333254 | F49: 106.0833333 | H49: 64.4 | I49: =I48+(I55-I45)/10 -> 24.76666603 | J49: =IFERROR(ROUND((ROUNDDOWN(I49,0)*12)+IFERROR(VLOOKUP(ROUND(I49-(ROUNDDOWN(I49,0)),1),_Esperanzas!$R$5:$S$18,2,TRUE),0),0),12) -> 297 | K49: 89.16666603 | L49: =L48+(L55-L45)/10 -> 28.1 | M49: =IFERROR(ROUND((ROUNDDOWN(L49,0)*12)+IFERROR(VLOOKUP(ROUND(L49-(ROUNDDOWN(L49,0)),1),_Esperanzas!$R$5:$S$18,2,TRUE),0),0),12) -> 337 | N49: 92.5 | W49: 104 | X49: 1.333333373 | Y49: 105.3333334 | Z49: 1.583333373 | AA49: 105.5833334 | AC49: 64.4 | AD49: =AD48+(AD55-AD45)/10 -> 22.68333397 | AE49: =IFERROR(ROUND((ROUNDDOWN(AD49,0)*12)+IFERROR(VLOOKUP(ROUND(AD49-(ROUNDDOWN(AD49,0)),1),_Esperanzas!$R$5:$S$18,2,TRUE),0),0),12) -> 272 | AF49: 87.08333397 | AG49: =AG48+(AG55-AG45)/10 -> 26.01666603 | AH49: =IFERROR(ROUND((ROUNDDOWN(AG49,0)*12)+IFERROR(VLOOKUP(ROUND(AG49-(ROUNDDOWN(AG49,0)),1),_Esperanzas!$R$5:$S$18,2,TRUE),0),0),12) -> 312 | AI49: 90.41666603
B50: 105 | C50: 1.583333373 | D50: 106.5833334 | E50: 1.916666627 | F50: 106.9166666 | H50: 64.5 | I50: =I49+(I55-I45)/10 -> 24.66666603 | J50: =IFERROR(ROUND((ROUNDDOWN(I50,0)*12)+IFERROR(VLOOKUP(ROUND(I50-(ROUNDDOWN(I50,0)),1),_Esperanzas!$R$5:$S$18,2,TRUE),0),0),12) -> 296 | K50: 89.16666603 | L50: =L49+(L55-L45)/10 -> 28 | M50: =IFERROR(ROUND((ROUNDDOWN(L50,0)*12)+IFERROR(VLOOKUP(ROUND(L50-(ROUNDDOWN(L50,0)),1),_Esperanzas!$R$5:$S$18,2,TRUE),0),0),12) -> 336 | N50: 92.5 | W50: 105 | X50: 1.25 | Y50: 106.25 | Z50: 1.416666627 | AA50: 106.4166666 | AC50: 64.5 | AD50: =AD49+(AD55-AD45)/10 -> 22.58333397 | AE50: =IFERROR(ROUND((ROUNDDOWN(AD50,0)*12)+IFERROR(VLOOKUP(ROUND(AD50-(ROUNDDOWN(AD50,0)),1),_Esperanzas!$R$5:$S$18,2,TRUE),0),0),12) -> 271 | AF50: 87.08333397 | AG50: =AG49+(AG55-AG45)/10 -> 25.91666603 | AH50: =IFERROR(ROUND((ROUNDDOWN(AG50,0)*12)+IFERROR(VLOOKUP(ROUND(AG50-(ROUNDDOWN(AG50,0)),1),_Esperanzas!$R$5:$S$18,2,TRUE),0),0),12) -> 310 | AI50: 90.41666603
B51: 106 | C51: 1.416666627 | D51: 107.4166666 | E51: 1.666666627 | F51: 107.6666666 | H51: 64.6 | I51: =I50+(I55-I45)/10 -> 24.56666603 | J51: =IFERROR(ROUND((ROUNDDOWN(I51,0)*12)+IFERROR(VLOOKUP(ROUND(I51-(ROUNDDOWN(I51,0)),1),_Esperanzas!$R$5:$S$18,2,TRUE),0),0),12) -> 295 | K51: 89.16666603 | L51: =L50+(L55-L45)/10 -> 27.9 | M51: =IFERROR(ROUND((ROUNDDOWN(L51,0)*12)+IFERROR(VLOOKUP(ROUND(L51-(ROUNDDOWN(L51,0)),1),_Esperanzas!$R$5:$S$18,2,TRUE),0),0),12) -> 334 | N51: 92.5 | W51: 106 | X51: 1.083333373 | Y51: 107.0833334 | Z51: 1.333333373 | AA51: 107.3333334 | AC51: 64.6 | AD51: =AD50+(AD55-AD45)/10 -> 22.48333397 | AE51: =IFERROR(ROUND((ROUNDDOWN(AD51,0)*12)+IFERROR(VLOOKUP(ROUND(AD51-(ROUNDDOWN(AD51,0)),1),_Esperanzas!$R$5:$S$18,2,TRUE),0),0),12) -> 270 | AF51: 87.08333397 | AG51: =AG50+(AG55-AG45)/10 -> 25.81666603 | AH51: =IFERROR(ROUND((ROUNDDOWN(AG51,0)*12)+IFERROR(VLOOKUP(ROUND(AG51-(ROUNDDOWN(AG51,0)),1),_Esperanzas!$R$5:$S$18,2,TRUE),0),0),12) -> 309 | AI51: 90.41666603
B52: 107 | C52: 1.333333373 | D52: 108.3333334 | E52: 1.5 | F52: 108.5 | H52: 64.7 | I52: =I51+(I55-I45)/10 -> 24.46666603 | J52: =IFERROR(ROUND((ROUNDDOWN(I52,0)*12)+IFERROR(VLOOKUP(ROUND(I52-(ROUNDDOWN(I52,0)),1),_Esperanzas!$R$5:$S$18,2,TRUE),0),0),12) -> 294 | K52: 89.16666603 | L52: =L51+(L55-L45)/10 -> 27.8 | M52: =IFERROR(ROUND((ROUNDDOWN(L52,0)*12)+IFERROR(VLOOKUP(ROUND(L52-(ROUNDDOWN(L52,0)),1),_Esperanzas!$R$5:$S$18,2,TRUE),0),0),12) -> 333 | N52: 92.5 | W52: 107 | X52: 1 | Y52: 108 | Z52: 1.166666627 | AA52: 108.1666666 | AC52: 64.7 | AD52: =AD51+(AD55-AD45)/10 -> 22.38333397 | AE52: =IFERROR(ROUND((ROUNDDOWN(AD52,0)*12)+IFERROR(VLOOKUP(ROUND(AD52-(ROUNDDOWN(AD52,0)),1),_Esperanzas!$R$5:$S$18,2,TRUE),0),0),12) -> 268 | AF52: 87.08333397 | AG52: =AG51+(AG55-AG45)/10 -> 25.71666603 | AH52: =IFERROR(ROUND((ROUNDDOWN(AG52,0)*12)+IFERROR(VLOOKUP(ROUND(AG52-(ROUNDDOWN(AG52,0)),1),_Esperanzas!$R$5:$S$18,2,TRUE),0),0),12) -> 308 | AI52: 90.41666603
B53: 108 | C53: 1.166666627 | D53: 109.1666666 | E53: 1.416666627 | F53: 109.4166666 | H53: 64.8 | I53: =I52+(I55-I45)/10 -> 24.36666603 | J53: =IFERROR(ROUND((ROUNDDOWN(I53,0)*12)+IFERROR(VLOOKUP(ROUND(I53-(ROUNDDOWN(I53,0)),1),_Esperanzas!$R$5:$S$18,2,TRUE),0),0),12) -> 292 | K53: 89.16666603 | L53: =L52+(L55-L45)/10 -> 27.7 | M53: =IFERROR(ROUND((ROUNDDOWN(L53,0)*12)+IFERROR(VLOOKUP(ROUND(L53-(ROUNDDOWN(L53,0)),1),_Esperanzas!$R$5:$S$18,2,TRUE),0),0),12) -> 332 | N53: 92.5 | W53: 108 | X53: 0.9166666865 | Y53: 108.9166667 | Z53: 1.083333373 | AA53: 109.0833334 | AC53: 64.8 | AD53: =AD52+(AD55-AD45)/10 -> 22.28333397 | AE53: =IFERROR(ROUND((ROUNDDOWN(AD53,0)*12)+IFERROR(VLOOKUP(ROUND(AD53-(ROUNDDOWN(AD53,0)),1),_Esperanzas!$R$5:$S$18,2,TRUE),0),0),12) -> 267 | AF53: 87.08333397 | AG53: =AG52+(AG55-AG45)/10 -> 25.61666603 | AH53: =IFERROR(ROUND((ROUNDDOWN(AG53,0)*12)+IFERROR(VLOOKUP(ROUND(AG53-(ROUNDDOWN(AG53,0)),1),_Esperanzas!$R$5:$S$18,2,TRUE),0),0),12) -> 307 | AI53: 90.41666603
B54: 109 | C54: 1.083333373 | D54: 110.0833334 | E54: 1.25 | F54: 110.25 | H54: 64.9 | I54: =I53+(I55-I45)/10 -> 24.26666603 | J54: =IFERROR(ROUND((ROUNDDOWN(I54,0)*12)+IFERROR(VLOOKUP(ROUND(I54-(ROUNDDOWN(I54,0)),1),_Esperanzas!$R$5:$S$18,2,TRUE),0),0),12) -> 291 | K54: 89.16666603 | L54: =L53+(L55-L45)/10 -> 27.6 | M54: =IFERROR(ROUND((ROUNDDOWN(L54,0)*12)+IFERROR(VLOOKUP(ROUND(L54-(ROUNDDOWN(L54,0)),1),_Esperanzas!$R$5:$S$18,2,TRUE),0),0),12) -> 331 | N54: 92.5 | W54: 109 | X54: 0.8333333135 | Y54: 109.8333333 | Z54: 0.9166666865 | AA54: 109.9166667 | AC54: 64.9 | AD54: =AD53+(AD55-AD45)/10 -> 22.18333397 | AE54: =IFERROR(ROUND((ROUNDDOWN(AD54,0)*12)+IFERROR(VLOOKUP(ROUND(AD54-(ROUNDDOWN(AD54,0)),1),_Esperanzas!$R$5:$S$18,2,TRUE),0),0),12) -> 266 | AF54: 87.08333397 | AG54: =AG53+(AG55-AG45)/10 -> 25.51666603 | AH54: =IFERROR(ROUND((ROUNDDOWN(AG54,0)*12)+IFERROR(VLOOKUP(ROUND(AG54-(ROUNDDOWN(AG54,0)),1),_Esperanzas!$R$5:$S$18,2,TRUE),0),0),12) -> 306 | AI54: 90.41666603
B55: 110 | C55: 1 | D55: 111 | E55: 1.166666627 | F55: 111.1666666 | H55: 65 | I55: =VLOOKUP($H55,$B$5:$F$55,2,0) -> 24.16666603 | J55: =IFERROR(ROUND((ROUNDDOWN(I55,0)*12)+IFERROR(VLOOKUP(ROUND(I55-(ROUNDDOWN(I55,0)),1),_Esperanzas!$R$5:$S$18,2,TRUE),0),0),12) -> 290 | K55: 89.16666603 | L55: =VLOOKUP($H55,$B$5:$F$55,4,0) -> 27.5 | M55: =IFERROR(ROUND((ROUNDDOWN(L55,0)*12)+IFERROR(VLOOKUP(ROUND(L55-(ROUNDDOWN(L55,0)),1),_Esperanzas!$R$5:$S$18,2,TRUE),0),0),12) -> 330 | N55: 92.5 | W55: 110 | X55: 0.75 | Y55: 110.75 | Z55: 0.8333333135 | AA55: 110.8333333 | AC55: 65 | AD55: =VLOOKUP($AC55,$W$5:$AA$55,2,0) -> 22.08333397 | AE55: =IFERROR(ROUND((ROUNDDOWN(AD55,0)*12)+IFERROR(VLOOKUP(ROUND(AD55-(ROUNDDOWN(AD55,0)),1),_Esperanzas!$R$5:$S$18,2,TRUE),0),0),12) -> 265 | AF55: 87.08333397 | AG55: =VLOOKUP($AC55,$W$5:$AA$55,4,0) -> 25.41666603 | AH55: =IFERROR(ROUND((ROUNDDOWN(AG55,0)*12)+IFERROR(VLOOKUP(ROUND(AG55-(ROUNDDOWN(AG55,0)),1),_Esperanzas!$R$5:$S$18,2,TRUE),0),0),12) -> 304 | AI55: 90.41666603
H56: 65.1 | I56: =I55+(I65-I55)/10 -> 24.06666603 | J56: =IFERROR(ROUND((ROUNDDOWN(I56,0)*12)+IFERROR(VLOOKUP(ROUND(I56-(ROUNDDOWN(I56,0)),1),_Esperanzas!$R$5:$S$18,2,TRUE),0),0),12) -> 289 | K56: 89.16666603 | L56: =L55+(L65-L55)/10 -> 27.4 | M56: =IFERROR(ROUND((ROUNDDOWN(L56,0)*12)+IFERROR(VLOOKUP(ROUND(L56-(ROUNDDOWN(L56,0)),1),_Esperanzas!$R$5:$S$18,2,TRUE),0),0),12) -> 328 | N56: 92.5 | AC56: 65.1 | AD56: =AD55+(AD65-AD55)/10 -> 21.98333397 | AE56: =IFERROR(ROUND((ROUNDDOWN(AD56,0)*12)+IFERROR(VLOOKUP(ROUND(AD56-(ROUNDDOWN(AD56,0)),1),_Esperanzas!$R$5:$S$18,2,TRUE),0),0),12) -> 264 | AF56: 87.08333397 | AG56: =AG55+(AG65-AG55)/10 -> 25.31666603 | AH56: =IFERROR(ROUND((ROUNDDOWN(AG56,0)*12)+IFERROR(VLOOKUP(ROUND(AG56-(ROUNDDOWN(AG56,0)),1),_Esperanzas!$R$5:$S$18,2,TRUE),0),0),12) -> 303 | AI56: 90.41666603
H57: 65.2 | I57: =I56+(I65-I55)/10 -> 23.96666603 | J57: =IFERROR(ROUND((ROUNDDOWN(I57,0)*12)+IFERROR(VLOOKUP(ROUND(I57-(ROUNDDOWN(I57,0)),1),_Esperanzas!$R$5:$S$18,2,TRUE),0),0),12) -> 288 | K57: 89.16666603 | L57: =L56+(L65-L55)/10 -> 27.3 | M57: =IFERROR(ROUND((ROUNDDOWN(L57,0)*12)+IFERROR(VLOOKUP(ROUND(L57-(ROUNDDOWN(L57,0)),1),_Esperanzas!$R$5:$S$18,2,TRUE),0),0),12) -> 327 | N57: 92.5 | AC57: 65.2 | AD57: =AD56+(AD65-AD55)/10 -> 21.88333397 | AE57: =IFERROR(ROUND((ROUNDDOWN(AD57,0)*12)+IFERROR(VLOOKUP(ROUND(AD57-(ROUNDDOWN(AD57,0)),1),_Esperanzas!$R$5:$S$18,2,TRUE),0),0),12) -> 262 | AF57: 87.08333397 | AG57: =AG56+(AG65-AG55)/10 -> 25.21666603 | AH57: =IFERROR(ROUND((ROUNDDOWN(AG57,0)*12)+IFERROR(VLOOKUP(ROUND(AG57-(ROUNDDOWN(AG57,0)),1),_Esperanzas!$R$5:$S$18,2,TRUE),0),0),12) -> 302 | AI57: 90.41666603
H58: 65.3 | I58: =I57+(I65-I55)/10 -> 23.86666603 | J58: =IFERROR(ROUND((ROUNDDOWN(I58,0)*12)+IFERROR(VLOOKUP(ROUND(I58-(ROUNDDOWN(I58,0)),1),_Esperanzas!$R$5:$S$18,2,TRUE),0),0),12) -> 286 | K58: 89.16666603 | L58: =L57+(L65-L55)/10 -> 27.2 | M58: =IFERROR(ROUND((ROUNDDOWN(L58,0)*12)+IFERROR(VLOOKUP(ROUND(L58-(ROUNDDOWN(L58,0)),1),_Esperanzas!$R$5:$S$18,2,TRUE),0),0),12) -> 326 | N58: 92.5 | AC58: 65.3 | AD58: =AD57+(AD65-AD55)/10 -> 21.78333397 | AE58: =IFERROR(ROUND((ROUNDDOWN(AD58,0)*12)+IFERROR(VLOOKUP(ROUND(AD58-(ROUNDDOWN(AD58,0)),1),_Esperanzas!$R$5:$S$18,2,TRUE),0),0),12) -> 261 | AF58: 87.08333397 | AG58: =AG57+(AG65-AG55)/10 -> 25.11666603 | AH58: =IFERROR(ROUND((ROUNDDOWN(AG58,0)*12)+IFERROR(VLOOKUP(ROUND(AG58-(ROUNDDOWN(AG58,0)),1),_Esperanzas!$R$5:$S$18,2,TRUE),0),0),12) -> 301 | AI58: 90.41666603
H59: 65.4 | I59: =I58+(I65-I55)/10 -> 23.76666603 | J59: =IFERROR(ROUND((ROUNDDOWN(I59,0)*12)+IFERROR(VLOOKUP(ROUND(I59-(ROUNDDOWN(I59,0)),1),_Esperanzas!$R$5:$S$18,2,TRUE),0),0),12) -> 285 | K59: 89.16666603 | L59: =L58+(L65-L55)/10 -> 27.1 | M59: =IFERROR(ROUND((ROUNDDOWN(L59,0)*12)+IFERROR(VLOOKUP(ROUND(L59-(ROUNDDOWN(L59,0)),1),_Esperanzas!$R$5:$S$18,2,TRUE),0),0),12) -> 325 | N59: 92.5 | AC59: 65.4 | AD59: =AD58+(AD65-AD55)/10 -> 21.68333397 | AE59: =IFERROR(ROUND((ROUNDDOWN(AD59,0)*12)+IFERROR(VLOOKUP(ROUND(AD59-(ROUNDDOWN(AD59,0)),1),_Esperanzas!$R$5:$S$18,2,TRUE),0),0),12) -> 260 | AF59: 87.08333397 | AG59: =AG58+(AG65-AG55)/10 -> 25.01666603 | AH59: =IFERROR(ROUND((ROUNDDOWN(AG59,0)*12)+IFERROR(VLOOKUP(ROUND(AG59-(ROUNDDOWN(AG59,0)),1),_Esperanzas!$R$5:$S$18,2,TRUE),0),0),12) -> 300 | AI59: 90.41666603
H60: 65.5 | I60: =I59+(I65-I55)/10 -> 23.66666603 | J60: =IFERROR(ROUND((ROUNDDOWN(I60,0)*12)+IFERROR(VLOOKUP(ROUND(I60-(ROUNDDOWN(I60,0)),1),_Esperanzas!$R$5:$S$18,2,TRUE),0),0),12) -> 284 | K60: 89.16666603 | L60: =L59+(L65-L55)/10 -> 27 | M60: =IFERROR(ROUND((ROUNDDOWN(L60,0)*12)+IFERROR(VLOOKUP(ROUND(L60-(ROUNDDOWN(L60,0)),1),_Esperanzas!$R$5:$S$18,2,TRUE),0),0),12) -> 324 | N60: 92.5 | AC60: 65.5 | AD60: =AD59+(AD65-AD55)/10 -> 21.58333397 | AE60: =IFERROR(ROUND((ROUNDDOWN(AD60,0)*12)+IFERROR(VLOOKUP(ROUND(AD60-(ROUNDDOWN(AD60,0)),1),_Esperanzas!$R$5:$S$18,2,TRUE),0),0),12) -> 259 | AF60: 87.08333397 | AG60: =AG59+(AG65-AG55)/10 -> 24.91666603 | AH60: =IFERROR(ROUND((ROUNDDOWN(AG60,0)*12)+IFERROR(VLOOKUP(ROUND(AG60-(ROUNDDOWN(AG60,0)),1),_Esperanzas!$R$5:$S$18,2,TRUE),0),0),12) -> 298 | AI60: 90.41666603
H61: 65.6 | I61: =I60+(I65-I55)/10 -> 23.56666603 | J61: =IFERROR(ROUND((ROUNDDOWN(I61,0)*12)+IFERROR(VLOOKUP(ROUND(I61-(ROUNDDOWN(I61,0)),1),_Esperanzas!$R$5:$S$18,2,TRUE),0),0),12) -> 283 | K61: 89.16666603 | L61: =L60+(L65-L55)/10 -> 26.9 | M61: =IFERROR(ROUND((ROUNDDOWN(L61,0)*12)+IFERROR(VLOOKUP(ROUND(L61-(ROUNDDOWN(L61,0)),1),_Esperanzas!$R$5:$S$18,2,TRUE),0),0),12) -> 322 | N61: 92.5 | AC61: 65.6 | AD61: =AD60+(AD65-AD55)/10 -> 21.48333397 | AE61: =IFERROR(ROUND((ROUNDDOWN(AD61,0)*12)+IFERROR(VLOOKUP(ROUND(AD61-(ROUNDDOWN(AD61,0)),1),_Esperanzas!$R$5:$S$18,2,TRUE),0),0),12) -> 258 | AF61: 87.08333397 | AG61: =AG60+(AG65-AG55)/10 -> 24.81666603 | AH61: =IFERROR(ROUND((ROUNDDOWN(AG61,0)*12)+IFERROR(VLOOKUP(ROUND(AG61-(ROUNDDOWN(AG61,0)),1),_Esperanzas!$R$5:$S$18,2,TRUE),0),0),12) -> 297 | AI61: 90.41666603
H62: 65.7 | I62: =I61+(I65-I55)/10 -> 23.46666603 | J62: =IFERROR(ROUND((ROUNDDOWN(I62,0)*12)+IFERROR(VLOOKUP(ROUND(I62-(ROUNDDOWN(I62,0)),1),_Esperanzas!$R$5:$S$18,2,TRUE),0),0),12) -> 282 | K62: 89.16666603 | L62: =L61+(L65-L55)/10 -> 26.8 | M62: =IFERROR(ROUND((ROUNDDOWN(L62,0)*12)+IFERROR(VLOOKUP(ROUND(L62-(ROUNDDOWN(L62,0)),1),_Esperanzas!$R$5:$S$18,2,TRUE),0),0),12) -> 321 | N62: 92.5 | AC62: 65.7 | AD62: =AD61+(AD65-AD55)/10 -> 21.38333397 | AE62: =IFERROR(ROUND((ROUNDDOWN(AD62,0)*12)+IFERROR(VLOOKUP(ROUND(AD62-(ROUNDDOWN(AD62,0)),1),_Esperanzas!$R$5:$S$18,2,TRUE),0),0),12) -> 256 | AF62: 87.08333397 | AG62: =AG61+(AG65-AG55)/10 -> 24.71666603 | AH62: =IFERROR(ROUND((ROUNDDOWN(AG62,0)*12)+IFERROR(VLOOKUP(ROUND(AG62-(ROUNDDOWN(AG62,0)),1),_Esperanzas!$R$5:$S$18,2,TRUE),0),0),12) -> 296 | AI62: 90.41666603
H63: 65.8 | I63: =I62+(I65-I55)/10 -> 23.36666603 | J63: =IFERROR(ROUND((ROUNDDOWN(I63,0)*12)+IFERROR(VLOOKUP(ROUND(I63-(ROUNDDOWN(I63,0)),1),_Esperanzas!$R$5:$S$18,2,TRUE),0),0),12) -> 280 | K63: 89.16666603 | L63: =L62+(L65-L55)/10 -> 26.7 | M63: =IFERROR(ROUND((ROUNDDOWN(L63,0)*12)+IFERROR(VLOOKUP(ROUND(L63-(ROUNDDOWN(L63,0)),1),_Esperanzas!$R$5:$S$18,2,TRUE),0),0),12) -> 320 | N63: 92.5 | AC63: 65.8 | AD63: =AD62+(AD65-AD55)/10 -> 21.28333397 | AE63: =IFERROR(ROUND((ROUNDDOWN(AD63,0)*12)+IFERROR(VLOOKUP(ROUND(AD63-(ROUNDDOWN(AD63,0)),1),_Esperanzas!$R$5:$S$18,2,TRUE),0),0),12) -> 255 | AF63: 87.08333397 | AG63: =AG62+(AG65-AG55)/10 -> 24.61666603 | AH63: =IFERROR(ROUND((ROUNDDOWN(AG63,0)*12)+IFERROR(VLOOKUP(ROUND(AG63-(ROUNDDOWN(AG63,0)),1),_Esperanzas!$R$5:$S$18,2,TRUE),0),0),12) -> 295 | AI63: 90.41666603
H64: 65.9 | I64: =I63+(I65-I55)/10 -> 23.26666603 | J64: =IFERROR(ROUND((ROUNDDOWN(I64,0)*12)+IFERROR(VLOOKUP(ROUND(I64-(ROUNDDOWN(I64,0)),1),_Esperanzas!$R$5:$S$18,2,TRUE),0),0),12) -> 279 | K64: 89.16666603 | L64: =L63+(L65-L55)/10 -> 26.6 | M64: =IFERROR(ROUND((ROUNDDOWN(L64,0)*12)+IFERROR(VLOOKUP(ROUND(L64-(ROUNDDOWN(L64,0)),1),_Esperanzas!$R$5:$S$18,2,TRUE),0),0),12) -> 319 | N64: 92.5 | AC64: 65.9 | AD64: =AD63+(AD65-AD55)/10 -> 21.18333397 | AE64: =IFERROR(ROUND((ROUNDDOWN(AD64,0)*12)+IFERROR(VLOOKUP(ROUND(AD64-(ROUNDDOWN(AD64,0)),1),_Esperanzas!$R$5:$S$18,2,TRUE),0),0),12) -> 254 | AF64: 87.08333397 | AG64: =AG63+(AG65-AG55)/10 -> 24.51666603 | AH64: =IFERROR(ROUND((ROUNDDOWN(AG64,0)*12)+IFERROR(VLOOKUP(ROUND(AG64-(ROUNDDOWN(AG64,0)),1),_Esperanzas!$R$5:$S$18,2,TRUE),0),0),12) -> 294 | AI64: 90.41666603
H65: 66 | I65: =VLOOKUP($H65,$B$5:$F$55,2,0) -> 23.16666603 | J65: =IFERROR(ROUND((ROUNDDOWN(I65,0)*12)+IFERROR(VLOOKUP(ROUND(I65-(ROUNDDOWN(I65,0)),1),_Esperanzas!$R$5:$S$18,2,TRUE),0),0),12) -> 278 | K65: 89.16666603 | L65: =VLOOKUP($H65,$B$5:$F$55,4,0) -> 26.5 | M65: =IFERROR(ROUND((ROUNDDOWN(L65,0)*12)+IFERROR(VLOOKUP(ROUND(L65-(ROUNDDOWN(L65,0)),1),_Esperanzas!$R$5:$S$18,2,TRUE),0),0),12) -> 318 | N65: 92.5 | AC65: 66 | AD65: =VLOOKUP($AC65,$W$5:$AA$55,2,0) -> 21.08333397 | AE65: =IFERROR(ROUND((ROUNDDOWN(AD65,0)*12)+IFERROR(VLOOKUP(ROUND(AD65-(ROUNDDOWN(AD65,0)),1),_Esperanzas!$R$5:$S$18,2,TRUE),0),0),12) -> 253 | AF65: 87.08333397 | AG65: =VLOOKUP($AC65,$W$5:$AA$55,4,0) -> 24.41666603 | AH65: =IFERROR(ROUND((ROUNDDOWN(AG65,0)*12)+IFERROR(VLOOKUP(ROUND(AG65-(ROUNDDOWN(AG65,0)),1),_Esperanzas!$R$5:$S$18,2,TRUE),0),0),12) -> 292 | AI65: 90.41666603
H66: 66.1 | I66: =I65+(I75-I65)/10 -> 23.06666603 | J66: =IFERROR(ROUND((ROUNDDOWN(I66,0)*12)+IFERROR(VLOOKUP(ROUND(I66-(ROUNDDOWN(I66,0)),1),_Esperanzas!$R$5:$S$18,2,TRUE),0),0),12) -> 277 | K66: 89.16666603 | L66: =L65+(L75-L65)/10 -> 26.4 | M66: =IFERROR(ROUND((ROUNDDOWN(L66,0)*12)+IFERROR(VLOOKUP(ROUND(L66-(ROUNDDOWN(L66,0)),1),_Esperanzas!$R$5:$S$18,2,TRUE),0),0),12) -> 316 | N66: 92.5 | AC66: 66.1 | AD66: =AD65+(AD75-AD65)/10 -> 20.98333397 | AE66: =IFERROR(ROUND((ROUNDDOWN(AD66,0)*12)+IFERROR(VLOOKUP(ROUND(AD66-(ROUNDDOWN(AD66,0)),1),_Esperanzas!$R$5:$S$18,2,TRUE),0),0),12) -> 252 | AF66: 87.08333397 | AG66: =AG65+(AG75-AG65)/10 -> 24.31666603 | AH66: =IFERROR(ROUND((ROUNDDOWN(AG66,0)*12)+IFERROR(VLOOKUP(ROUND(AG66-(ROUNDDOWN(AG66,0)),1),_Esperanzas!$R$5:$S$18,2,TRUE),0),0),12) -> 291 | AI66: 90.41666603
H67: 66.2 | I67: =I66+(I75-I65)/10 -> 22.96666603 | J67: =IFERROR(ROUND((ROUNDDOWN(I67,0)*12)+IFERROR(VLOOKUP(ROUND(I67-(ROUNDDOWN(I67,0)),1),_Esperanzas!$R$5:$S$18,2,TRUE),0),0),12) -> 276 | K67: 89.16666603 | L67: =L66+(L75-L65)/10 -> 26.3 | M67: =IFERROR(ROUND((ROUNDDOWN(L67,0)*12)+IFERROR(VLOOKUP(ROUND(L67-(ROUNDDOWN(L67,0)),1),_Esperanzas!$R$5:$S$18,2,TRUE),0),0),12) -> 315 | N67: 92.5 | AC67: 66.2 | AD67: =AD66+(AD75-AD65)/10 -> 20.88333397 | AE67: =IFERROR(ROUND((ROUNDDOWN(AD67,0)*12)+IFERROR(VLOOKUP(ROUND(AD67-(ROUNDDOWN(AD67,0)),1),_Esperanzas!$R$5:$S$18,2,TRUE),0),0),12) -> 250 | AF67: 87.08333397 | AG67: =AG66+(AG75-AG65)/10 -> 24.21666603 | AH67: =IFERROR(ROUND((ROUNDDOWN(AG67,0)*12)+IFERROR(VLOOKUP(ROUND(AG67-(ROUNDDOWN(AG67,0)),1),_Esperanzas!$R$5:$S$18,2,TRUE),0),0),12) -> 290 | AI67: 90.41666603
H68: 66.3 | I68: =I67+(I75-I65)/10 -> 22.86666603 | J68: =IFERROR(ROUND((ROUNDDOWN(I68,0)*12)+IFERROR(VLOOKUP(ROUND(I68-(ROUNDDOWN(I68,0)),1),_Esperanzas!$R$5:$S$18,2,TRUE),0),0),12) -> 274 | K68: 89.16666603 | L68: =L67+(L75-L65)/10 -> 26.2 | M68: =IFERROR(ROUND((ROUNDDOWN(L68,0)*12)+IFERROR(VLOOKUP(ROUND(L68-(ROUNDDOWN(L68,0)),1),_Esperanzas!$R$5:$S$18,2,TRUE),0),0),12) -> 314 | N68: 92.5 | AC68: 66.3 | AD68: =AD67+(AD75-AD65)/10 -> 20.78333397 | AE68: =IFERROR(ROUND((ROUNDDOWN(AD68,0)*12)+IFERROR(VLOOKUP(ROUND(AD68-(ROUNDDOWN(AD68,0)),1),_Esperanzas!$R$5:$S$18,2,TRUE),0),0),12) -> 249 | AF68: 87.08333397 | AG68: =AG67+(AG75-AG65)/10 -> 24.11666603 | AH68: =IFERROR(ROUND((ROUNDDOWN(AG68,0)*12)+IFERROR(VLOOKUP(ROUND(AG68-(ROUNDDOWN(AG68,0)),1),_Esperanzas!$R$5:$S$18,2,TRUE),0),0),12) -> 289 | AI68: 90.41666603
H69: 66.4 | I69: =I68+(I75-I65)/10 -> 22.76666603 | J69: =IFERROR(ROUND((ROUNDDOWN(I69,0)*12)+IFERROR(VLOOKUP(ROUND(I69-(ROUNDDOWN(I69,0)),1),_Esperanzas!$R$5:$S$18,2,TRUE),0),0),12) -> 273 | K69: 89.16666603 | L69: =L68+(L75-L65)/10 -> 26.1 | M69: =IFERROR(ROUND((ROUNDDOWN(L69,0)*12)+IFERROR(VLOOKUP(ROUND(L69-(ROUNDDOWN(L69,0)),1),_Esperanzas!$R$5:$S$18,2,TRUE),0),0),12) -> 313 | N69: 92.5 | AC69: 66.4 | AD69: =AD68+(AD75-AD65)/10 -> 20.68333397 | AE69: =IFERROR(ROUND((ROUNDDOWN(AD69,0)*12)+IFERROR(VLOOKUP(ROUND(AD69-(ROUNDDOWN(AD69,0)),1),_Esperanzas!$R$5:$S$18,2,TRUE),0),0),12) -> 248 | AF69: 87.08333397 | AG69: =AG68+(AG75-AG65)/10 -> 24.01666603 | AH69: =IFERROR(ROUND((ROUNDDOWN(AG69,0)*12)+IFERROR(VLOOKUP(ROUND(AG69-(ROUNDDOWN(AG69,0)),1),_Esperanzas!$R$5:$S$18,2,TRUE),0),0),12) -> 288 | AI69: 90.41666603
H70: 66.5 | I70: =I69+(I75-I65)/10 -> 22.66666603 | J70: =IFERROR(ROUND((ROUNDDOWN(I70,0)*12)+IFERROR(VLOOKUP(ROUND(I70-(ROUNDDOWN(I70,0)),1),_Esperanzas!$R$5:$S$18,2,TRUE),0),0),12) -> 272 | K70: 89.16666603 | L70: =L69+(L75-L65)/10 -> 26 | M70: =IFERROR(ROUND((ROUNDDOWN(L70,0)*12)+IFERROR(VLOOKUP(ROUND(L70-(ROUNDDOWN(L70,0)),1),_Esperanzas!$R$5:$S$18,2,TRUE),0),0),12) -> 312 | N70: 92.5 | AC70: 66.5 | AD70: =AD69+(AD75-AD65)/10 -> 20.58333397 | AE70: =IFERROR(ROUND((ROUNDDOWN(AD70,0)*12)+IFERROR(VLOOKUP(ROUND(AD70-(ROUNDDOWN(AD70,0)),1),_Esperanzas!$R$5:$S$18,2,TRUE),0),0),12) -> 247 | AF70: 87.08333397 | AG70: =AG69+(AG75-AG65)/10 -> 23.91666603 | AH70: =IFERROR(ROUND((ROUNDDOWN(AG70,0)*12)+IFERROR(VLOOKUP(ROUND(AG70-(ROUNDDOWN(AG70,0)),1),_Esperanzas!$R$5:$S$18,2,TRUE),0),0),12) -> 286 | AI70: 90.41666603
H71: =ROUND(H70+0.1,1) -> 66.6 | I71: =I70+(I75-I65)/10 -> 22.56666603 | J71: =IFERROR(ROUND((ROUNDDOWN(I71,0)*12)+IFERROR(VLOOKUP(ROUND(I71-(ROUNDDOWN(I71,0)),1),_Esperanzas!$R$5:$S$18,2,TRUE),0),0),12) -> 271 | K71: 89.16666603 | L71: =L70+(L75-L65)/10 -> 25.9 | M71: =IFERROR(ROUND((ROUNDDOWN(L71,0)*12)+IFERROR(VLOOKUP(ROUND(L71-(ROUNDDOWN(L71,0)),1),_Esperanzas!$R$5:$S$18,2,TRUE),0),0),12) -> 310 | N71: 92.5 | AC71: =ROUND(AC70+0.1,1) -> 66.6 | AD71: =AD70+(AD75-AD65)/10 -> 20.48333397 | AE71: =IFERROR(ROUND((ROUNDDOWN(AD71,0)*12)+IFERROR(VLOOKUP(ROUND(AD71-(ROUNDDOWN(AD71,0)),1),_Esperanzas!$R$5:$S$18,2,TRUE),0),0),12) -> 246 | AF71: 87.08333397 | AG71: =AG70+(AG75-AG65)/10 -> 23.81666603 | AH71: =IFERROR(ROUND((ROUNDDOWN(AG71,0)*12)+IFERROR(VLOOKUP(ROUND(AG71-(ROUNDDOWN(AG71,0)),1),_Esperanzas!$R$5:$S$18,2,TRUE),0),0),12) -> 285 | AI71: 90.41666603
H72: 66.7 | I72: =I71+(I75-I65)/10 -> 22.46666603 | J72: =IFERROR(ROUND((ROUNDDOWN(I72,0)*12)+IFERROR(VLOOKUP(ROUND(I72-(ROUNDDOWN(I72,0)),1),_Esperanzas!$R$5:$S$18,2,TRUE),0),0),12) -> 270 | K72: 89.16666603 | L72: =L71+(L75-L65)/10 -> 25.8 | M72: =IFERROR(ROUND((ROUNDDOWN(L72,0)*12)+IFERROR(VLOOKUP(ROUND(L72-(ROUNDDOWN(L72,0)),1),_Esperanzas!$R$5:$S$18,2,TRUE),0),0),12) -> 309 | N72: 92.5 | AC72: 66.7 | AD72: =AD71+(AD75-AD65)/10 -> 20.38333397 | AE72: =IFERROR(ROUND((ROUNDDOWN(AD72,0)*12)+IFERROR(VLOOKUP(ROUND(AD72-(ROUNDDOWN(AD72,0)),1),_Esperanzas!$R$5:$S$18,2,TRUE),0),0),12) -> 244 | AF72: 87.08333397 | AG72: =AG71+(AG75-AG65)/10 -> 23.71666603 | AH72: =IFERROR(ROUND((ROUNDDOWN(AG72,0)*12)+IFERROR(VLOOKUP(ROUND(AG72-(ROUNDDOWN(AG72,0)),1),_Esperanzas!$R$5:$S$18,2,TRUE),0),0),12) -> 284 | AI72: 90.41666603
H73: 66.8 | I73: =I72+(I75-I65)/10 -> 22.36666603 | J73: =IFERROR(ROUND((ROUNDDOWN(I73,0)*12)+IFERROR(VLOOKUP(ROUND(I73-(ROUNDDOWN(I73,0)),1),_Esperanzas!$R$5:$S$18,2,TRUE),0),0),12) -> 268 | K73: 89.16666603 | L73: =L72+(L75-L65)/10 -> 25.7 | M73: =IFERROR(ROUND((ROUNDDOWN(L73,0)*12)+IFERROR(VLOOKUP(ROUND(L73-(ROUNDDOWN(L73,0)),1),_Esperanzas!$R$5:$S$18,2,TRUE),0),0),12) -> 308 | N73: =L73+H73 -> 92.5 | AC73: 66.8 | AD73: =AD72+(AD75-AD65)/10 -> 20.28333397 | AE73: =IFERROR(ROUND((ROUNDDOWN(AD73,0)*12)+IFERROR(VLOOKUP(ROUND(AD73-(ROUNDDOWN(AD73,0)),1),_Esperanzas!$R$5:$S$18,2,TRUE),0),0),12) -> 243 | AF73: 87.08333397 | AG73: =AG72+(AG75-AG65)/10 -> 23.61666603 | AH73: =IFERROR(ROUND((ROUNDDOWN(AG73,0)*12)+IFERROR(VLOOKUP(ROUND(AG73-(ROUNDDOWN(AG73,0)),1),_Esperanzas!$R$5:$S$18,2,TRUE),0),0),12) -> 283 | AI73: 90.41666603
H74: 66.9 | I74: =I73+(I75-I65)/10 -> 22.26666603 | J74: =IFERROR(ROUND((ROUNDDOWN(I74,0)*12)+IFERROR(VLOOKUP(ROUND(I74-(ROUNDDOWN(I74,0)),1),_Esperanzas!$R$5:$S$18,2,TRUE),0),0),12) -> 267 | K74: 89.16666603 | L74: =L73+(L75-L65)/10 -> 25.6 | M74: =IFERROR(ROUND((ROUNDDOWN(L74,0)*12)+IFERROR(VLOOKUP(ROUND(L74-(ROUNDDOWN(L74,0)),1),_Esperanzas!$R$5:$S$18,2,TRUE),0),0),12) -> 307 | N74: 92.5 | AC74: 66.9 | AD74: =AD73+(AD75-AD65)/10 -> 20.18333397 | AE74: =IFERROR(ROUND((ROUNDDOWN(AD74,0)*12)+IFERROR(VLOOKUP(ROUND(AD74-(ROUNDDOWN(AD74,0)),1),_Esperanzas!$R$5:$S$18,2,TRUE),0),0),12) -> 242 | AF74: 87.08333397 | AG74: =AG73+(AG75-AG65)/10 -> 23.51666603 | AH74: =IFERROR(ROUND((ROUNDDOWN(AG74,0)*12)+IFERROR(VLOOKUP(ROUND(AG74-(ROUNDDOWN(AG74,0)),1),_Esperanzas!$R$5:$S$18,2,TRUE),0),0),12) -> 282 | AI74: 90.41666603
H75: 67 | I75: =VLOOKUP($H75,$B$5:$F$55,2,0) -> 22.16666603 | J75: =IFERROR(ROUND((ROUNDDOWN(I75,0)*12)+IFERROR(VLOOKUP(ROUND(I75-(ROUNDDOWN(I75,0)),1),_Esperanzas!$R$5:$S$18,2,TRUE),0),0),12) -> 266 | K75: 89.16666603 | L75: =VLOOKUP($H75,$B$5:$F$55,4,0) -> 25.5 | M75: =IFERROR(ROUND((ROUNDDOWN(L75,0)*12)+IFERROR(VLOOKUP(ROUND(L75-(ROUNDDOWN(L75,0)),1),_Esperanzas!$R$5:$S$18,2,TRUE),0),0),12) -> 306 | N75: 92.5 | AC75: 67 | AD75: =VLOOKUP($AC75,$W$5:$AA$55,2,0) -> 20.08333397 | AE75: =IFERROR(ROUND((ROUNDDOWN(AD75,0)*12)+IFERROR(VLOOKUP(ROUND(AD75-(ROUNDDOWN(AD75,0)),1),_Esperanzas!$R$5:$S$18,2,TRUE),0),0),12) -> 241 | AF75: 87.08333397 | AG75: =VLOOKUP($AC75,$W$5:$AA$55,4,0) -> 23.41666603 | AH75: =IFERROR(ROUND((ROUNDDOWN(AG75,0)*12)+IFERROR(VLOOKUP(ROUND(AG75-(ROUNDDOWN(AG75,0)),1),_Esperanzas!$R$5:$S$18,2,TRUE),0),0),12) -> 280 | AI75: 90.41666603
H76: 67.1 | I76: =I75+(I85-I75)/10 -> 22.06666603 | J76: =IFERROR(ROUND((ROUNDDOWN(I76,0)*12)+IFERROR(VLOOKUP(ROUND(I76-(ROUNDDOWN(I76,0)),1),_Esperanzas!$R$5:$S$18,2,TRUE),0),0),12) -> 265 | K76: 89.16666603 | L76: =L75+(L85-L75)/10 -> 25.4 | M76: =IFERROR(ROUND((ROUNDDOWN(L76,0)*12)+IFERROR(VLOOKUP(ROUND(L76-(ROUNDDOWN(L76,0)),1),_Esperanzas!$R$5:$S$18,2,TRUE),0),0),12) -> 304 | N76: 92.5 | AC76: 67.1 | AD76: =AD75+(AD85-AD75)/10 -> 19.98333397 | AE76: =IFERROR(ROUND((ROUNDDOWN(AD76,0)*12)+IFERROR(VLOOKUP(ROUND(AD76-(ROUNDDOWN(AD76,0)),1),_Esperanzas!$R$5:$S$18,2,TRUE),0),0),12) -> 240 | AF76: 87.08333397 | AG76: =AG75+(AG85-AG75)/10 -> 23.31666603 | AH76: =IFERROR(ROUND((ROUNDDOWN(AG76,0)*12)+IFERROR(VLOOKUP(ROUND(AG76-(ROUNDDOWN(AG76,0)),1),_Esperanzas!$R$5:$S$18,2,TRUE),0),0),12) -> 279 | AI76: 90.41666603
H77: 67.2 | I77: =I76+(I85-I75)/10 -> 21.96666603 | J77: =IFERROR(ROUND((ROUNDDOWN(I77,0)*12)+IFERROR(VLOOKUP(ROUND(I77-(ROUNDDOWN(I77,0)),1),_Esperanzas!$R$5:$S$18,2,TRUE),0),0),12) -> 264 | K77: 89.16666603 | L77: =L76+(L85-L75)/10 -> 25.3 | M77: =IFERROR(ROUND((ROUNDDOWN(L77,0)*12)+IFERROR(VLOOKUP(ROUND(L77-(ROUNDDOWN(L77,0)),1),_Esperanzas!$R$5:$S$18,2,TRUE),0),0),12) -> 303 | N77: 92.5 | AC77: 67.2 | AD77: =AD76+(AD85-AD75)/10 -> 19.88333397 | AE77: =IFERROR(ROUND((ROUNDDOWN(AD77,0)*12)+IFERROR(VLOOKUP(ROUND(AD77-(ROUNDDOWN(AD77,0)),1),_Esperanzas!$R$5:$S$18,2,TRUE),0),0),12) -> 238 | AF77: 87.08333397 | AG77: =AG76+(AG85-AG75)/10 -> 23.21666603 | AH77: =IFERROR(ROUND((ROUNDDOWN(AG77,0)*12)+IFERROR(VLOOKUP(ROUND(AG77-(ROUNDDOWN(AG77,0)),1),_Esperanzas!$R$5:$S$18,2,TRUE),0),0),12) -> 278 | AI77: 90.41666603
H78: 67.3 | I78: =I77+(I85-I75)/10 -> 21.86666603 | J78: =IFERROR(ROUND((ROUNDDOWN(I78,0)*12)+IFERROR(VLOOKUP(ROUND(I78-(ROUNDDOWN(I78,0)),1),_Esperanzas!$R$5:$S$18,2,TRUE),0),0),12) -> 262 | K78: 89.16666603 | L78: =L77+(L85-L75)/10 -> 25.2 | M78: =IFERROR(ROUND((ROUNDDOWN(L78,0)*12)+IFERROR(VLOOKUP(ROUND(L78-(ROUNDDOWN(L78,0)),1),_Esperanzas!$R$5:$S$18,2,TRUE),0),0),12) -> 302 | N78: 92.5 | AC78: 67.3 | AD78: =AD77+(AD85-AD75)/10 -> 19.78333397 | AE78: =IFERROR(ROUND((ROUNDDOWN(AD78,0)*12)+IFERROR(VLOOKUP(ROUND(AD78-(ROUNDDOWN(AD78,0)),1),_Esperanzas!$R$5:$S$18,2,TRUE),0),0),12) -> 237 | AF78: 87.08333397 | AG78: =AG77+(AG85-AG75)/10 -> 23.11666603 | AH78: =IFERROR(ROUND((ROUNDDOWN(AG78,0)*12)+IFERROR(VLOOKUP(ROUND(AG78-(ROUNDDOWN(AG78,0)),1),_Esperanzas!$R$5:$S$18,2,TRUE),0),0),12) -> 277 | AI78: 90.41666603
H79: 67.4 | I79: =I78+(I85-I75)/10 -> 21.76666603 | J79: =IFERROR(ROUND((ROUNDDOWN(I79,0)*12)+IFERROR(VLOOKUP(ROUND(I79-(ROUNDDOWN(I79,0)),1),_Esperanzas!$R$5:$S$18,2,TRUE),0),0),12) -> 261 | K79: 89.16666603 | L79: =L78+(L85-L75)/10 -> 25.1 | M79: =IFERROR(ROUND((ROUNDDOWN(L79,0)*12)+IFERROR(VLOOKUP(ROUND(L79-(ROUNDDOWN(L79,0)),1),_Esperanzas!$R$5:$S$18,2,TRUE),0),0),12) -> 301 | N79: 92.5 | AC79: 67.4 | AD79: =AD78+(AD85-AD75)/10 -> 19.68333397 | AE79: =IFERROR(ROUND((ROUNDDOWN(AD79,0)*12)+IFERROR(VLOOKUP(ROUND(AD79-(ROUNDDOWN(AD79,0)),1),_Esperanzas!$R$5:$S$18,2,TRUE),0),0),12) -> 236 | AF79: 87.08333397 | AG79: =AG78+(AG85-AG75)/10 -> 23.01666603 | AH79: =IFERROR(ROUND((ROUNDDOWN(AG79,0)*12)+IFERROR(VLOOKUP(ROUND(AG79-(ROUNDDOWN(AG79,0)),1),_Esperanzas!$R$5:$S$18,2,TRUE),0),0),12) -> 276 | AI79: 90.41666603
H80: 67.5 | I80: =I79+(I85-I75)/10 -> 21.66666603 | J80: =IFERROR(ROUND((ROUNDDOWN(I80,0)*12)+IFERROR(VLOOKUP(ROUND(I80-(ROUNDDOWN(I80,0)),1),_Esperanzas!$R$5:$S$18,2,TRUE),0),0),12) -> 260 | K80: 89.16666603 | L80: =L79+(L85-L75)/10 -> 25 | M80: =IFERROR(ROUND((ROUNDDOWN(L80,0)*12)+IFERROR(VLOOKUP(ROUND(L80-(ROUNDDOWN(L80,0)),1),_Esperanzas!$R$5:$S$18,2,TRUE),0),0),12) -> 300 | N80: 92.5 | AC80: 67.5 | AD80: =AD79+(AD85-AD75)/10 -> 19.58333397 | AE80: =IFERROR(ROUND((ROUNDDOWN(AD80,0)*12)+IFERROR(VLOOKUP(ROUND(AD80-(ROUNDDOWN(AD80,0)),1),_Esperanzas!$R$5:$S$18,2,TRUE),0),0),12) -> 235 | AF80: 87.08333397 | AG80: =AG79+(AG85-AG75)/10 -> 22.91666603 | AH80: =IFERROR(ROUND((ROUNDDOWN(AG80,0)*12)+IFERROR(VLOOKUP(ROUND(AG80-(ROUNDDOWN(AG80,0)),1),_Esperanzas!$R$5:$S$18,2,TRUE),0),0),12) -> 274 | AI80: 90.41666603
H81: 67.6 | I81: =I80+(I85-I75)/10 -> 21.56666603 | J81: =IFERROR(ROUND((ROUNDDOWN(I81,0)*12)+IFERROR(VLOOKUP(ROUND(I81-(ROUNDDOWN(I81,0)),1),_Esperanzas!$R$5:$S$18,2,TRUE),0),0),12) -> 259 | K81: 89.16666603 | L81: =L80+(L85-L75)/10 -> 24.9 | M81: =IFERROR(ROUND((ROUNDDOWN(L81,0)*12)+IFERROR(VLOOKUP(ROUND(L81-(ROUNDDOWN(L81,0)),1),_Esperanzas!$R$5:$S$18,2,TRUE),0),0),12) -> 298 | N81: 92.5 | AC81: 67.6 | AD81: =AD80+(AD85-AD75)/10 -> 19.48333397 | AE81: =IFERROR(ROUND((ROUNDDOWN(AD81,0)*12)+IFERROR(VLOOKUP(ROUND(AD81-(ROUNDDOWN(AD81,0)),1),_Esperanzas!$R$5:$S$18,2,TRUE),0),0),12) -> 234 | AF81: 87.08333397 | AG81: =AG80+(AG85-AG75)/10 -> 22.81666603 | AH81: =IFERROR(ROUND((ROUNDDOWN(AG81,0)*12)+IFERROR(VLOOKUP(ROUND(AG81-(ROUNDDOWN(AG81,0)),1),_Esperanzas!$R$5:$S$18,2,TRUE),0),0),12) -> 273 | AI81: 90.41666603
H82: 67.7 | I82: =I81+(I85-I75)/10 -> 21.46666603 | J82: =IFERROR(ROUND((ROUNDDOWN(I82,0)*12)+IFERROR(VLOOKUP(ROUND(I82-(ROUNDDOWN(I82,0)),1),_Esperanzas!$R$5:$S$18,2,TRUE),0),0),12) -> 258 | K82: 89.16666603 | L82: =L81+(L85-L75)/10 -> 24.8 | M82: =IFERROR(ROUND((ROUNDDOWN(L82,0)*12)+IFERROR(VLOOKUP(ROUND(L82-(ROUNDDOWN(L82,0)),1),_Esperanzas!$R$5:$S$18,2,TRUE),0),0),12) -> 297 | N82: 92.5 | AC82: 67.7 | AD82: =AD81+(AD85-AD75)/10 -> 19.38333397 | AE82: =IFERROR(ROUND((ROUNDDOWN(AD82,0)*12)+IFERROR(VLOOKUP(ROUND(AD82-(ROUNDDOWN(AD82,0)),1),_Esperanzas!$R$5:$S$18,2,TRUE),0),0),12) -> 232 | AF82: 87.08333397 | AG82: =AG81+(AG85-AG75)/10 -> 22.71666603 | AH82: =IFERROR(ROUND((ROUNDDOWN(AG82,0)*12)+IFERROR(VLOOKUP(ROUND(AG82-(ROUNDDOWN(AG82,0)),1),_Esperanzas!$R$5:$S$18,2,TRUE),0),0),12) -> 272 | AI82: 90.41666603
H83: 67.8 | I83: =I82+(I85-I75)/10 -> 21.36666603 | J83: =IFERROR(ROUND((ROUNDDOWN(I83,0)*12)+IFERROR(VLOOKUP(ROUND(I83-(ROUNDDOWN(I83,0)),1),_Esperanzas!$R$5:$S$18,2,TRUE),0),0),12) -> 256 | K83: =I83+H83 -> 89.16666603 | L83: =L82+(L85-L75)/10 -> 24.7 | M83: =IFERROR(ROUND((ROUNDDOWN(L83,0)*12)+IFERROR(VLOOKUP(ROUND(L83-(ROUNDDOWN(L83,0)),1),_Esperanzas!$R$5:$S$18,2,TRUE),0),0),12) -> 296 | N83: 92.5 | AC83: 67.8 | AD83: =AD82+(AD85-AD75)/10 -> 19.28333397 | AE83: =IFERROR(ROUND((ROUNDDOWN(AD83,0)*12)+IFERROR(VLOOKUP(ROUND(AD83-(ROUNDDOWN(AD83,0)),1),_Esperanzas!$R$5:$S$18,2,TRUE),0),0),12) -> 231 | AF83: =AD83+AC83 -> 87.08333397 | AG83: =AG82+(AG85-AG75)/10 -> 22.61666603 | AH83: =IFERROR(ROUND((ROUNDDOWN(AG83,0)*12)+IFERROR(VLOOKUP(ROUND(AG83-(ROUNDDOWN(AG83,0)),1),_Esperanzas!$R$5:$S$18,2,TRUE),0),0),12) -> 271 | AI83: =AG83+AC83 -> 90.41666603
H84: 67.9 | I84: =I83+(I85-I75)/10 -> 21.26666603 | J84: =IFERROR(ROUND((ROUNDDOWN(I84,0)*12)+IFERROR(VLOOKUP(ROUND(I84-(ROUNDDOWN(I84,0)),1),_Esperanzas!$R$5:$S$18,2,TRUE),0),0),12) -> 255 | K84: 89.16666603 | L84: =L83+(L85-L75)/10 -> 24.6 | M84: =IFERROR(ROUND((ROUNDDOWN(L84,0)*12)+IFERROR(VLOOKUP(ROUND(L84-(ROUNDDOWN(L84,0)),1),_Esperanzas!$R$5:$S$18,2,TRUE),0),0),12) -> 295 | N84: 92.5 | AC84: 67.9 | AD84: =AD83+(AD85-AD75)/10 -> 19.18333397 | AE84: =IFERROR(ROUND((ROUNDDOWN(AD84,0)*12)+IFERROR(VLOOKUP(ROUND(AD84-(ROUNDDOWN(AD84,0)),1),_Esperanzas!$R$5:$S$18,2,TRUE),0),0),12) -> 230 | AF84: 87.08333397 | AG84: =AG83+(AG85-AG75)/10 -> 22.51666603 | AH84: =IFERROR(ROUND((ROUNDDOWN(AG84,0)*12)+IFERROR(VLOOKUP(ROUND(AG84-(ROUNDDOWN(AG84,0)),1),_Esperanzas!$R$5:$S$18,2,TRUE),0),0),12) -> 270 | AI84: 90.41666603
H85: 68 | I85: =VLOOKUP($H85,$B$5:$F$55,2,0) -> 21.16666603 | J85: =IFERROR(ROUND((ROUNDDOWN(I85,0)*12)+IFERROR(VLOOKUP(ROUND(I85-(ROUNDDOWN(I85,0)),1),_Esperanzas!$R$5:$S$18,2,TRUE),0),0),12) -> 254 | K85: 89.16666603 | L85: =VLOOKUP($H85,$B$5:$F$55,4,0) -> 24.5 | M85: =IFERROR(ROUND((ROUNDDOWN(L85,0)*12)+IFERROR(VLOOKUP(ROUND(L85-(ROUNDDOWN(L85,0)),1),_Esperanzas!$R$5:$S$18,2,TRUE),0),0),12) -> 294 | N85: 92.5 | AC85: 68 | AD85: =VLOOKUP($AC85,$W$5:$AA$55,2,0) -> 19.08333397 | AE85: =IFERROR(ROUND((ROUNDDOWN(AD85,0)*12)+IFERROR(VLOOKUP(ROUND(AD85-(ROUNDDOWN(AD85,0)),1),_Esperanzas!$R$5:$S$18,2,TRUE),0),0),12) -> 229 | AF85: 87.08333397 | AG85: =VLOOKUP($AC85,$W$5:$AA$55,4,0) -> 22.41666603 | AH85: =IFERROR(ROUND((ROUNDDOWN(AG85,0)*12)+IFERROR(VLOOKUP(ROUND(AG85-(ROUNDDOWN(AG85,0)),1),_Esperanzas!$R$5:$S$18,2,TRUE),0),0),12) -> 268 | AI85: 90.41666603
H86: 68.1 | I86: =I85+(I95-I85)/10 -> 21.06666603 | J86: =IFERROR(ROUND((ROUNDDOWN(I86,0)*12)+IFERROR(VLOOKUP(ROUND(I86-(ROUNDDOWN(I86,0)),1),_Esperanzas!$R$5:$S$18,2,TRUE),0),0),12) -> 253 | K86: 89.16666603 | L86: =L85+(L95-L85)/10 -> 24.4 | M86: =IFERROR(ROUND((ROUNDDOWN(L86,0)*12)+IFERROR(VLOOKUP(ROUND(L86-(ROUNDDOWN(L86,0)),1),_Esperanzas!$R$5:$S$18,2,TRUE),0),0),12) -> 292 | N86: 92.5 | AC86: 68.1 | AD86: =AD85+(AD95-AD85)/10 -> 18.98333397 | AE86: =IFERROR(ROUND((ROUNDDOWN(AD86,0)*12)+IFERROR(VLOOKUP(ROUND(AD86-(ROUNDDOWN(AD86,0)),1),_Esperanzas!$R$5:$S$18,2,TRUE),0),0),12) -> 228 | AF86: 87.08333397 | AG86: =AG85+(AG95-AG85)/10 -> 22.31666603 | AH86: =IFERROR(ROUND((ROUNDDOWN(AG86,0)*12)+IFERROR(VLOOKUP(ROUND(AG86-(ROUNDDOWN(AG86,0)),1),_Esperanzas!$R$5:$S$18,2,TRUE),0),0),12) -> 267 | AI86: 90.41666603
H87: 68.2 | I87: =I86+(I95-I85)/10 -> 20.96666603 | J87: =IFERROR(ROUND((ROUNDDOWN(I87,0)*12)+IFERROR(VLOOKUP(ROUND(I87-(ROUNDDOWN(I87,0)),1),_Esperanzas!$R$5:$S$18,2,TRUE),0),0),12) -> 252 | K87: 89.16666603 | L87: =L86+(L95-L85)/10 -> 24.3 | M87: =IFERROR(ROUND((ROUNDDOWN(L87,0)*12)+IFERROR(VLOOKUP(ROUND(L87-(ROUNDDOWN(L87,0)),1),_Esperanzas!$R$5:$S$18,2,TRUE),0),0),12) -> 291 | N87: 92.5 | AC87: 68.2 | AD87: =AD86+(AD95-AD85)/10 -> 18.88333397 | AE87: =IFERROR(ROUND((ROUNDDOWN(AD87,0)*12)+IFERROR(VLOOKUP(ROUND(AD87-(ROUNDDOWN(AD87,0)),1),_Esperanzas!$R$5:$S$18,2,TRUE),0),0),12) -> 226 | AF87: 87.08333397 | AG87: =AG86+(AG95-AG85)/10 -> 22.21666603 | AH87: =IFERROR(ROUND((ROUNDDOWN(AG87,0)*12)+IFERROR(VLOOKUP(ROUND(AG87-(ROUNDDOWN(AG87,0)),1),_Esperanzas!$R$5:$S$18,2,TRUE),0),0),12) -> 266 | AI87: 90.41666603
H88: 68.3 | I88: =I87+(I95-I85)/10 -> 20.86666603 | J88: =IFERROR(ROUND((ROUNDDOWN(I88,0)*12)+IFERROR(VLOOKUP(ROUND(I88-(ROUNDDOWN(I88,0)),1),_Esperanzas!$R$5:$S$18,2,TRUE),0),0),12) -> 250 | K88: 89.16666603 | L88: =L87+(L95-L85)/10 -> 24.2 | M88: =IFERROR(ROUND((ROUNDDOWN(L88,0)*12)+IFERROR(VLOOKUP(ROUND(L88-(ROUNDDOWN(L88,0)),1),_Esperanzas!$R$5:$S$18,2,TRUE),0),0),12) -> 290 | N88: 92.5 | AC88: 68.3 | AD88: =AD87+(AD95-AD85)/10 -> 18.78333397 | AE88: =IFERROR(ROUND((ROUNDDOWN(AD88,0)*12)+IFERROR(VLOOKUP(ROUND(AD88-(ROUNDDOWN(AD88,0)),1),_Esperanzas!$R$5:$S$18,2,TRUE),0),0),12) -> 225 | AF88: 87.08333397 | AG88: =AG87+(AG95-AG85)/10 -> 22.11666603 | AH88: =IFERROR(ROUND((ROUNDDOWN(AG88,0)*12)+IFERROR(VLOOKUP(ROUND(AG88-(ROUNDDOWN(AG88,0)),1),_Esperanzas!$R$5:$S$18,2,TRUE),0),0),12) -> 265 | AI88: 90.41666603
H89: 68.4 | I89: =I88+(I95-I85)/10 -> 20.76666603 | J89: =IFERROR(ROUND((ROUNDDOWN(I89,0)*12)+IFERROR(VLOOKUP(ROUND(I89-(ROUNDDOWN(I89,0)),1),_Esperanzas!$R$5:$S$18,2,TRUE),0),0),12) -> 249 | K89: 89.16666603 | L89: =L88+(L95-L85)/10 -> 24.1 | M89: =IFERROR(ROUND((ROUNDDOWN(L89,0)*12)+IFERROR(VLOOKUP(ROUND(L89-(ROUNDDOWN(L89,0)),1),_Esperanzas!$R$5:$S$18,2,TRUE),0),0),12) -> 289 | N89: 92.5 | AC89: 68.4 | AD89: =AD88+(AD95-AD85)/10 -> 18.68333397 | AE89: =IFERROR(ROUND((ROUNDDOWN(AD89,0)*12)+IFERROR(VLOOKUP(ROUND(AD89-(ROUNDDOWN(AD89,0)),1),_Esperanzas!$R$5:$S$18,2,TRUE),0),0),12) -> 224 | AF89: 87.08333397 | AG89: =AG88+(AG95-AG85)/10 -> 22.01666603 | AH89: =IFERROR(ROUND((ROUNDDOWN(AG89,0)*12)+IFERROR(VLOOKUP(ROUND(AG89-(ROUNDDOWN(AG89,0)),1),_Esperanzas!$R$5:$S$18,2,TRUE),0),0),12) -> 264 | AI89: 90.41666603
H90: 68.5 | I90: =I89+(I95-I85)/10 -> 20.66666603 | J90: =IFERROR(ROUND((ROUNDDOWN(I90,0)*12)+IFERROR(VLOOKUP(ROUND(I90-(ROUNDDOWN(I90,0)),1),_Esperanzas!$R$5:$S$18,2,TRUE),0),0),12) -> 248 | K90: 89.16666603 | L90: =L89+(L95-L85)/10 -> 24 | M90: =IFERROR(ROUND((ROUNDDOWN(L90,0)*12)+IFERROR(VLOOKUP(ROUND(L90-(ROUNDDOWN(L90,0)),1),_Esperanzas!$R$5:$S$18,2,TRUE),0),0),12) -> 288 | N90: 92.5 | AC90: 68.5 | AD90: =AD89+(AD95-AD85)/10 -> 18.58333397 | AE90: =IFERROR(ROUND((ROUNDDOWN(AD90,0)*12)+IFERROR(VLOOKUP(ROUND(AD90-(ROUNDDOWN(AD90,0)),1),_Esperanzas!$R$5:$S$18,2,TRUE),0),0),12) -> 223 | AF90: 87.08333397 | AG90: =AG89+(AG95-AG85)/10 -> 21.91666603 | AH90: =IFERROR(ROUND((ROUNDDOWN(AG90,0)*12)+IFERROR(VLOOKUP(ROUND(AG90-(ROUNDDOWN(AG90,0)),1),_Esperanzas!$R$5:$S$18,2,TRUE),0),0),12) -> 262 | AI90: 90.41666603
H91: 68.6 | I91: =I90+(I95-I85)/10 -> 20.56666603 | J91: =IFERROR(ROUND((ROUNDDOWN(I91,0)*12)+IFERROR(VLOOKUP(ROUND(I91-(ROUNDDOWN(I91,0)),1),_Esperanzas!$R$5:$S$18,2,TRUE),0),0),12) -> 247 | K91: 89.16666603 | L91: =L90+(L95-L85)/10 -> 23.9 | M91: =IFERROR(ROUND((ROUNDDOWN(L91,0)*12)+IFERROR(VLOOKUP(ROUND(L91-(ROUNDDOWN(L91,0)),1),_Esperanzas!$R$5:$S$18,2,TRUE),0),0),12) -> 286 | N91: 92.5 | AC91: 68.6 | AD91: =AD90+(AD95-AD85)/10 -> 18.48333397 | AE91: =IFERROR(ROUND((ROUNDDOWN(AD91,0)*12)+IFERROR(VLOOKUP(ROUND(AD91-(ROUNDDOWN(AD91,0)),1),_Esperanzas!$R$5:$S$18,2,TRUE),0),0),12) -> 222 | AF91: 87.08333397 | AG91: =AG90+(AG95-AG85)/10 -> 21.81666603 | AH91: =IFERROR(ROUND((ROUNDDOWN(AG91,0)*12)+IFERROR(VLOOKUP(ROUND(AG91-(ROUNDDOWN(AG91,0)),1),_Esperanzas!$R$5:$S$18,2,TRUE),0),0),12) -> 261 | AI91: 90.41666603
H92: 68.7 | I92: =I91+(I95-I85)/10 -> 20.46666603 | J92: =IFERROR(ROUND((ROUNDDOWN(I92,0)*12)+IFERROR(VLOOKUP(ROUND(I92-(ROUNDDOWN(I92,0)),1),_Esperanzas!$R$5:$S$18,2,TRUE),0),0),12) -> 246 | K92: 89.16666603 | L92: =L91+(L95-L85)/10 -> 23.8 | M92: =IFERROR(ROUND((ROUNDDOWN(L92,0)*12)+IFERROR(VLOOKUP(ROUND(L92-(ROUNDDOWN(L92,0)),1),_Esperanzas!$R$5:$S$18,2,TRUE),0),0),12) -> 285 | N92: 92.5 | AC92: 68.7 | AD92: =AD91+(AD95-AD85)/10 -> 18.38333397 | AE92: =IFERROR(ROUND((ROUNDDOWN(AD92,0)*12)+IFERROR(VLOOKUP(ROUND(AD92-(ROUNDDOWN(AD92,0)),1),_Esperanzas!$R$5:$S$18,2,TRUE),0),0),12) -> 220 | AF92: 87.08333397 | AG92: =AG91+(AG95-AG85)/10 -> 21.71666603 | AH92: =IFERROR(ROUND((ROUNDDOWN(AG92,0)*12)+IFERROR(VLOOKUP(ROUND(AG92-(ROUNDDOWN(AG92,0)),1),_Esperanzas!$R$5:$S$18,2,TRUE),0),0),12) -> 260 | AI92: 90.41666603
H93: 68.8 | I93: =I92+(I95-I85)/10 -> 20.36666603 | J93: =IFERROR(ROUND((ROUNDDOWN(I93,0)*12)+IFERROR(VLOOKUP(ROUND(I93-(ROUNDDOWN(I93,0)),1),_Esperanzas!$R$5:$S$18,2,TRUE),0),0),12) -> 244 | K93: 89.16666603 | L93: =L92+(L95-L85)/10 -> 23.7 | M93: =IFERROR(ROUND((ROUNDDOWN(L93,0)*12)+IFERROR(VLOOKUP(ROUND(L93-(ROUNDDOWN(L93,0)),1),_Esperanzas!$R$5:$S$18,2,TRUE),0),0),12) -> 284 | N93: 92.5 | AC93: 68.8 | AD93: =AD92+(AD95-AD85)/10 -> 18.28333397 | AE93: =IFERROR(ROUND((ROUNDDOWN(AD93,0)*12)+IFERROR(VLOOKUP(ROUND(AD93-(ROUNDDOWN(AD93,0)),1),_Esperanzas!$R$5:$S$18,2,TRUE),0),0),12) -> 219 | AF93: 87.08333397 | AG93: =AG92+(AG95-AG85)/10 -> 21.61666603 | AH93: =IFERROR(ROUND((ROUNDDOWN(AG93,0)*12)+IFERROR(VLOOKUP(ROUND(AG93-(ROUNDDOWN(AG93,0)),1),_Esperanzas!$R$5:$S$18,2,TRUE),0),0),12) -> 259 | AI93: 90.41666603
H94: 68.9 | I94: =I93+(I95-I85)/10 -> 20.26666603 | J94: =IFERROR(ROUND((ROUNDDOWN(I94,0)*12)+IFERROR(VLOOKUP(ROUND(I94-(ROUNDDOWN(I94,0)),1),_Esperanzas!$R$5:$S$18,2,TRUE),0),0),12) -> 243 | K94: 89.16666603 | L94: =L93+(L95-L85)/10 -> 23.6 | M94: =IFERROR(ROUND((ROUNDDOWN(L94,0)*12)+IFERROR(VLOOKUP(ROUND(L94-(ROUNDDOWN(L94,0)),1),_Esperanzas!$R$5:$S$18,2,TRUE),0),0),12) -> 283 | N94: 92.5 | AC94: 68.9 | AD94: =AD93+(AD95-AD85)/10 -> 18.18333397 | AE94: =IFERROR(ROUND((ROUNDDOWN(AD94,0)*12)+IFERROR(VLOOKUP(ROUND(AD94-(ROUNDDOWN(AD94,0)),1),_Esperanzas!$R$5:$S$18,2,TRUE),0),0),12) -> 218 | AF94: 87.08333397 | AG94: =AG93+(AG95-AG85)/10 -> 21.51666603 | AH94: =IFERROR(ROUND((ROUNDDOWN(AG94,0)*12)+IFERROR(VLOOKUP(ROUND(AG94-(ROUNDDOWN(AG94,0)),1),_Esperanzas!$R$5:$S$18,2,TRUE),0),0),12) -> 258 | AI94: 90.41666603
H95: 69 | I95: =VLOOKUP($H95,$B$5:$F$55,2,0) -> 20.16666603 | J95: =IFERROR(ROUND((ROUNDDOWN(I95,0)*12)+IFERROR(VLOOKUP(ROUND(I95-(ROUNDDOWN(I95,0)),1),_Esperanzas!$R$5:$S$18,2,TRUE),0),0),12) -> 242 | K95: 89.16666603 | L95: =VLOOKUP($H95,$B$5:$F$55,4,0) -> 23.5 | M95: =IFERROR(ROUND((ROUNDDOWN(L95,0)*12)+IFERROR(VLOOKUP(ROUND(L95-(ROUNDDOWN(L95,0)),1),_Esperanzas!$R$5:$S$18,2,TRUE),0),0),12) -> 282 | N95: 92.5 | AC95: 69 | AD95: =VLOOKUP($AC95,$W$5:$AA$55,2,0) -> 18.08333397 | AE95: =IFERROR(ROUND((ROUNDDOWN(AD95,0)*12)+IFERROR(VLOOKUP(ROUND(AD95-(ROUNDDOWN(AD95,0)),1),_Esperanzas!$R$5:$S$18,2,TRUE),0),0),12) -> 217 | AF95: 87.08333397 | AG95: =VLOOKUP($AC95,$W$5:$AA$55,4,0) -> 21.41666603 | AH95: =IFERROR(ROUND((ROUNDDOWN(AG95,0)*12)+IFERROR(VLOOKUP(ROUND(AG95-(ROUNDDOWN(AG95,0)),1),_Esperanzas!$R$5:$S$18,2,TRUE),0),0),12) -> 256 | AI95: 90.41666603
H96: 69.1 | I96: =I95+(I105-I95)/10 -> 20.06666603 | J96: =IFERROR(ROUND((ROUNDDOWN(I96,0)*12)+IFERROR(VLOOKUP(ROUND(I96-(ROUNDDOWN(I96,0)),1),_Esperanzas!$R$5:$S$18,2,TRUE),0),0),12) -> 241 | K96: 89.16666603 | L96: =L95+(L105-L95)/10 -> 23.4 | M96: =IFERROR(ROUND((ROUNDDOWN(L96,0)*12)+IFERROR(VLOOKUP(ROUND(L96-(ROUNDDOWN(L96,0)),1),_Esperanzas!$R$5:$S$18,2,TRUE),0),0),12) -> 280 | N96: 92.5 | AC96: 69.1 | AD96: =AD95+(AD105-AD95)/10 -> 17.98333397 | AE96: =IFERROR(ROUND((ROUNDDOWN(AD96,0)*12)+IFERROR(VLOOKUP(ROUND(AD96-(ROUNDDOWN(AD96,0)),1),_Esperanzas!$R$5:$S$18,2,TRUE),0),0),12) -> 216 | AF96: 87.08333397 | AG96: =AG95+(AG105-AG95)/10 -> 21.31666603 | AH96: =IFERROR(ROUND((ROUNDDOWN(AG96,0)*12)+IFERROR(VLOOKUP(ROUND(AG96-(ROUNDDOWN(AG96,0)),1),_Esperanzas!$R$5:$S$18,2,TRUE),0),0),12) -> 255 | AI96: 90.41666603
H97: 69.2 | I97: =I96+(I105-I95)/10 -> 19.96666603 | J97: =IFERROR(ROUND((ROUNDDOWN(I97,0)*12)+IFERROR(VLOOKUP(ROUND(I97-(ROUNDDOWN(I97,0)),1),_Esperanzas!$R$5:$S$18,2,TRUE),0),0),12) -> 240 | K97: 89.16666603 | L97: =L96+(L105-L95)/10 -> 23.3 | M97: =IFERROR(ROUND((ROUNDDOWN(L97,0)*12)+IFERROR(VLOOKUP(ROUND(L97-(ROUNDDOWN(L97,0)),1),_Esperanzas!$R$5:$S$18,2,TRUE),0),0),12) -> 279 | N97: 92.5 | AC97: 69.2 | AD97: =AD96+(AD105-AD95)/10 -> 17.88333397 | AE97: =IFERROR(ROUND((ROUNDDOWN(AD97,0)*12)+IFERROR(VLOOKUP(ROUND(AD97-(ROUNDDOWN(AD97,0)),1),_Esperanzas!$R$5:$S$18,2,TRUE),0),0),12) -> 214 | AF97: 87.08333397 | AG97: =AG96+(AG105-AG95)/10 -> 21.21666603 | AH97: =IFERROR(ROUND((ROUNDDOWN(AG97,0)*12)+IFERROR(VLOOKUP(ROUND(AG97-(ROUNDDOWN(AG97,0)),1),_Esperanzas!$R$5:$S$18,2,TRUE),0),0),12) -> 254 | AI97: 90.41666603
H98: 69.3 | I98: =I97+(I105-I95)/10 -> 19.86666603 | J98: =IFERROR(ROUND((ROUNDDOWN(I98,0)*12)+IFERROR(VLOOKUP(ROUND(I98-(ROUNDDOWN(I98,0)),1),_Esperanzas!$R$5:$S$18,2,TRUE),0),0),12) -> 238 | K98: 89.16666603 | L98: =L97+(L105-L95)/10 -> 23.2 | M98: =IFERROR(ROUND((ROUNDDOWN(L98,0)*12)+IFERROR(VLOOKUP(ROUND(L98-(ROUNDDOWN(L98,0)),1),_Esperanzas!$R$5:$S$18,2,TRUE),0),0),12) -> 278 | N98: 92.5 | AC98: 69.3 | AD98: =AD97+(AD105-AD95)/10 -> 17.78333397 | AE98: =IFERROR(ROUND((ROUNDDOWN(AD98,0)*12)+IFERROR(VLOOKUP(ROUND(AD98-(ROUNDDOWN(AD98,0)),1),_Esperanzas!$R$5:$S$18,2,TRUE),0),0),12) -> 213 | AF98: 87.08333397 | AG98: =AG97+(AG105-AG95)/10 -> 21.11666603 | AH98: =IFERROR(ROUND((ROUNDDOWN(AG98,0)*12)+IFERROR(VLOOKUP(ROUND(AG98-(ROUNDDOWN(AG98,0)),1),_Esperanzas!$R$5:$S$18,2,TRUE),0),0),12) -> 253 | AI98: 90.41666603
H99: 69.4 | I99: =I98+(I105-I95)/10 -> 19.76666603 | J99: =IFERROR(ROUND((ROUNDDOWN(I99,0)*12)+IFERROR(VLOOKUP(ROUND(I99-(ROUNDDOWN(I99,0)),1),_Esperanzas!$R$5:$S$18,2,TRUE),0),0),12) -> 237 | K99: 89.16666603 | L99: =L98+(L105-L95)/10 -> 23.1 | M99: =IFERROR(ROUND((ROUNDDOWN(L99,0)*12)+IFERROR(VLOOKUP(ROUND(L99-(ROUNDDOWN(L99,0)),1),_Esperanzas!$R$5:$S$18,2,TRUE),0),0),12) -> 277 | N99: 92.5 | AC99: 69.4 | AD99: =AD98+(AD105-AD95)/10 -> 17.68333397 | AE99: =IFERROR(ROUND((ROUNDDOWN(AD99,0)*12)+IFERROR(VLOOKUP(ROUND(AD99-(ROUNDDOWN(AD99,0)),1),_Esperanzas!$R$5:$S$18,2,TRUE),0),0),12) -> 212 | AF99: 87.08333397 | AG99: =AG98+(AG105-AG95)/10 -> 21.01666603 | AH99: =IFERROR(ROUND((ROUNDDOWN(AG99,0)*12)+IFERROR(VLOOKUP(ROUND(AG99-(ROUNDDOWN(AG99,0)),1),_Esperanzas!$R$5:$S$18,2,TRUE),0),0),12) -> 252 | AI99: 90.41666603
H100: 69.5 | I100: =I99+(I105-I95)/10 -> 19.66666603 | J100: =IFERROR(ROUND((ROUNDDOWN(I100,0)*12)+IFERROR(VLOOKUP(ROUND(I100-(ROUNDDOWN(I100,0)),1),_Esperanzas!$R$5:$S$18,2,TRUE),0),0),12) -> 236 | K100: 89.16666603 | L100: =L99+(L105-L95)/10 -> 23 | M100: =IFERROR(ROUND((ROUNDDOWN(L100,0)*12)+IFERROR(VLOOKUP(ROUND(L100-(ROUNDDOWN(L100,0)),1),_Esperanzas!$R$5:$S$18,2,TRUE),0),0),12) -> 276 | N100: 92.5 | AC100: 69.5 | AD100: =AD99+(AD105-AD95)/10 -> 17.58333397 | AE100: =IFERROR(ROUND((ROUNDDOWN(AD100,0)*12)+IFERROR(VLOOKUP(ROUND(AD100-(ROUNDDOWN(AD100,0)),1),_Esperanzas!$R$5:$S$18,2,TRUE),0),0),12) -> 211 | AF100: 87.08333397 | AG100: =AG99+(AG105-AG95)/10 -> 20.91666603 | AH100: =IFERROR(ROUND((ROUNDDOWN(AG100,0)*12)+IFERROR(VLOOKUP(ROUND(AG100-(ROUNDDOWN(AG100,0)),1),_Esperanzas!$R$5:$S$18,2,TRUE),0),0),12) -> 250 | AI100: 90.41666603
H101: 69.6 | I101: =I100+(I105-I95)/10 -> 19.56666603 | J101: =IFERROR(ROUND((ROUNDDOWN(I101,0)*12)+IFERROR(VLOOKUP(ROUND(I101-(ROUNDDOWN(I101,0)),1),_Esperanzas!$R$5:$S$18,2,TRUE),0),0),12) -> 235 | K101: 89.16666603 | L101: =L100+(L105-L95)/10 -> 22.9 | M101: =IFERROR(ROUND((ROUNDDOWN(L101,0)*12)+IFERROR(VLOOKUP(ROUND(L101-(ROUNDDOWN(L101,0)),1),_Esperanzas!$R$5:$S$18,2,TRUE),0),0),12) -> 274 | N101: 92.5 | AC101: 69.6 | AD101: =AD100+(AD105-AD95)/10 -> 17.48333397 | AE101: =IFERROR(ROUND((ROUNDDOWN(AD101,0)*12)+IFERROR(VLOOKUP(ROUND(AD101-(ROUNDDOWN(AD101,0)),1),_Esperanzas!$R$5:$S$18,2,TRUE),0),0),12) -> 210 | AF101: 87.08333397 | AG101: =AG100+(AG105-AG95)/10 -> 20.81666603 | AH101: =IFERROR(ROUND((ROUNDDOWN(AG101,0)*12)+IFERROR(VLOOKUP(ROUND(AG101-(ROUNDDOWN(AG101,0)),1),_Esperanzas!$R$5:$S$18,2,TRUE),0),0),12) -> 249 | AI101: 90.41666603
H102: 69.7 | I102: =I101+(I105-I95)/10 -> 19.46666603 | J102: =IFERROR(ROUND((ROUNDDOWN(I102,0)*12)+IFERROR(VLOOKUP(ROUND(I102-(ROUNDDOWN(I102,0)),1),_Esperanzas!$R$5:$S$18,2,TRUE),0),0),12) -> 234 | K102: 89.16666603 | L102: =L101+(L105-L95)/10 -> 22.8 | M102: =IFERROR(ROUND((ROUNDDOWN(L102,0)*12)+IFERROR(VLOOKUP(ROUND(L102-(ROUNDDOWN(L102,0)),1),_Esperanzas!$R$5:$S$18,2,TRUE),0),0),12) -> 273 | N102: 92.5 | AC102: 69.7 | AD102: =AD101+(AD105-AD95)/10 -> 17.38333397 | AE102: =IFERROR(ROUND((ROUNDDOWN(AD102,0)*12)+IFERROR(VLOOKUP(ROUND(AD102-(ROUNDDOWN(AD102,0)),1),_Esperanzas!$R$5:$S$18,2,TRUE),0),0),12) -> 208 | AF102: 87.08333397 | AG102: =AG101+(AG105-AG95)/10 -> 20.71666603 | AH102: =IFERROR(ROUND((ROUNDDOWN(AG102,0)*12)+IFERROR(VLOOKUP(ROUND(AG102-(ROUNDDOWN(AG102,0)),1),_Esperanzas!$R$5:$S$18,2,TRUE),0),0),12) -> 248 | AI102: 90.41666603
H103: 69.8 | I103: =I102+(I105-I95)/10 -> 19.36666603 | J103: =IFERROR(ROUND((ROUNDDOWN(I103,0)*12)+IFERROR(VLOOKUP(ROUND(I103-(ROUNDDOWN(I103,0)),1),_Esperanzas!$R$5:$S$18,2,TRUE),0),0),12) -> 232 | K103: 89.16666603 | L103: =L102+(L105-L95)/10 -> 22.7 | M103: =IFERROR(ROUND((ROUNDDOWN(L103,0)*12)+IFERROR(VLOOKUP(ROUND(L103-(ROUNDDOWN(L103,0)),1),_Esperanzas!$R$5:$S$18,2,TRUE),0),0),12) -> 272 | N103: 92.5 | AC103: 69.8 | AD103: =AD102+(AD105-AD95)/10 -> 17.28333397 | AE103: =IFERROR(ROUND((ROUNDDOWN(AD103,0)*12)+IFERROR(VLOOKUP(ROUND(AD103-(ROUNDDOWN(AD103,0)),1),_Esperanzas!$R$5:$S$18,2,TRUE),0),0),12) -> 207 | AF103: 87.08333397 | AG103: =AG102+(AG105-AG95)/10 -> 20.61666603 | AH103: =IFERROR(ROUND((ROUNDDOWN(AG103,0)*12)+IFERROR(VLOOKUP(ROUND(AG103-(ROUNDDOWN(AG103,0)),1),_Esperanzas!$R$5:$S$18,2,TRUE),0),0),12) -> 247 | AI103: 90.41666603
H104: 69.9 | I104: =I103+(I105-I95)/10 -> 19.26666603 | J104: =IFERROR(ROUND((ROUNDDOWN(I104,0)*12)+IFERROR(VLOOKUP(ROUND(I104-(ROUNDDOWN(I104,0)),1),_Esperanzas!$R$5:$S$18,2,TRUE),0),0),12) -> 231 | K104: 89.16666603 | L104: =L103+(L105-L95)/10 -> 22.6 | M104: =IFERROR(ROUND((ROUNDDOWN(L104,0)*12)+IFERROR(VLOOKUP(ROUND(L104-(ROUNDDOWN(L104,0)),1),_Esperanzas!$R$5:$S$18,2,TRUE),0),0),12) -> 271 | N104: 92.5 | AC104: 69.9 | AD104: =AD103+(AD105-AD95)/10 -> 17.18333397 | AE104: =IFERROR(ROUND((ROUNDDOWN(AD104,0)*12)+IFERROR(VLOOKUP(ROUND(AD104-(ROUNDDOWN(AD104,0)),1),_Esperanzas!$R$5:$S$18,2,TRUE),0),0),12) -> 206 | AF104: 87.08333397 | AG104: =AG103+(AG105-AG95)/10 -> 20.51666603 | AH104: =IFERROR(ROUND((ROUNDDOWN(AG104,0)*12)+IFERROR(VLOOKUP(ROUND(AG104-(ROUNDDOWN(AG104,0)),1),_Esperanzas!$R$5:$S$18,2,TRUE),0),0),12) -> 246 | AI104: 90.41666603
H105: 70 | I105: =VLOOKUP($H105,$B$5:$F$55,2,0) -> 19.16666603 | J105: =IFERROR(ROUND((ROUNDDOWN(I105,0)*12)+IFERROR(VLOOKUP(ROUND(I105-(ROUNDDOWN(I105,0)),1),_Esperanzas!$R$5:$S$18,2,TRUE),0),0),12) -> 230 | K105: 89.16666603 | L105: =VLOOKUP($H105,$B$5:$F$55,4,0) -> 22.5 | M105: =IFERROR(ROUND((ROUNDDOWN(L105,0)*12)+IFERROR(VLOOKUP(ROUND(L105-(ROUNDDOWN(L105,0)),1),_Esperanzas!$R$5:$S$18,2,TRUE),0),0),12) -> 270 | N105: 92.5 | AC105: 70 | AD105: =VLOOKUP($AC105,$W$5:$AA$55,2,0) -> 17.08333397 | AE105: =IFERROR(ROUND((ROUNDDOWN(AD105,0)*12)+IFERROR(VLOOKUP(ROUND(AD105-(ROUNDDOWN(AD105,0)),1),_Esperanzas!$R$5:$S$18,2,TRUE),0),0),12) -> 205 | AF105: 87.08333397 | AG105: =VLOOKUP($AC105,$W$5:$AA$55,4,0) -> 20.41666603 | AH105: =IFERROR(ROUND((ROUNDDOWN(AG105,0)*12)+IFERROR(VLOOKUP(ROUND(AG105-(ROUNDDOWN(AG105,0)),1),_Esperanzas!$R$5:$S$18,2,TRUE),0),0),12) -> 244 | AI105: 90.41666603
H106: 70.1 | I106: =I105+(I115-I105)/10 -> 19.07499943 | J106: =IFERROR(ROUND((ROUNDDOWN(I106,0)*12)+IFERROR(VLOOKUP(ROUND(I106-(ROUNDDOWN(I106,0)),1),_Esperanzas!$R$5:$S$18,2,TRUE),0),0),12) -> 229 | K106: 89.17499943 | L106: =L105+(L115-L105)/10 -> 22.4083334 | M106: =IFERROR(ROUND((ROUNDDOWN(L106,0)*12)+IFERROR(VLOOKUP(ROUND(L106-(ROUNDDOWN(L106,0)),1),_Esperanzas!$R$5:$S$18,2,TRUE),0),0),12) -> 268 | N106: 92.5083334 | AC106: 70.1 | AD106: =AD105+(AD115-AD105)/10 -> 16.99166718 | AE106: =IFERROR(ROUND((ROUNDDOWN(AD106,0)*12)+IFERROR(VLOOKUP(ROUND(AD106-(ROUNDDOWN(AD106,0)),1),_Esperanzas!$R$5:$S$18,2,TRUE),0),0),12) -> 204 | AF106: 87.09166718 | AG106: =AG105+(AG115-AG105)/10 -> 20.32499943 | AH106: =IFERROR(ROUND((ROUNDDOWN(AG106,0)*12)+IFERROR(VLOOKUP(ROUND(AG106-(ROUNDDOWN(AG106,0)),1),_Esperanzas!$R$5:$S$18,2,TRUE),0),0),12) -> 243 | AI106: 90.42499943
H107: 70.2 | I107: =I106+(I115-I105)/10 -> 18.98333282 | J107: =IFERROR(ROUND((ROUNDDOWN(I107,0)*12)+IFERROR(VLOOKUP(ROUND(I107-(ROUNDDOWN(I107,0)),1),_Esperanzas!$R$5:$S$18,2,TRUE),0),0),12) -> 228 | K107: 89.18333282 | L107: =L106+(L115-L105)/10 -> 22.31666679 | M107: =IFERROR(ROUND((ROUNDDOWN(L107,0)*12)+IFERROR(VLOOKUP(ROUND(L107-(ROUNDDOWN(L107,0)),1),_Esperanzas!$R$5:$S$18,2,TRUE),0),0),12) -> 267 | N107: 92.51666679 | AC107: 70.2 | AD107: =AD106+(AD115-AD105)/10 -> 16.90000038 | AE107: =IFERROR(ROUND((ROUNDDOWN(AD107,0)*12)+IFERROR(VLOOKUP(ROUND(AD107-(ROUNDDOWN(AD107,0)),1),_Esperanzas!$R$5:$S$18,2,TRUE),0),0),12) -> 202 | AF107: 87.10000038 | AG107: =AG106+(AG115-AG105)/10 -> 20.23333282 | AH107: =IFERROR(ROUND((ROUNDDOWN(AG107,0)*12)+IFERROR(VLOOKUP(ROUND(AG107-(ROUNDDOWN(AG107,0)),1),_Esperanzas!$R$5:$S$18,2,TRUE),0),0),12) -> 242 | AI107: 90.43333282
H108: 70.3 | I108: =I107+(I115-I105)/10 -> 18.89166622 | J108: =IFERROR(ROUND((ROUNDDOWN(I108,0)*12)+IFERROR(VLOOKUP(ROUND(I108-(ROUNDDOWN(I108,0)),1),_Esperanzas!$R$5:$S$18,2,TRUE),0),0),12) -> 226 | K108: 89.19166622 | L108: =L107+(L115-L105)/10 -> 22.22500019 | M108: =IFERROR(ROUND((ROUNDDOWN(L108,0)*12)+IFERROR(VLOOKUP(ROUND(L108-(ROUNDDOWN(L108,0)),1),_Esperanzas!$R$5:$S$18,2,TRUE),0),0),12) -> 266 | N108: 92.52500019 | AC108: 70.3 | AD108: =AD107+(AD115-AD105)/10 -> 16.80833359 | AE108: =IFERROR(ROUND((ROUNDDOWN(AD108,0)*12)+IFERROR(VLOOKUP(ROUND(AD108-(ROUNDDOWN(AD108,0)),1),_Esperanzas!$R$5:$S$18,2,TRUE),0),0),12) -> 201 | AF108: 87.10833359 | AG108: =AG107+(AG115-AG105)/10 -> 20.14166622 | AH108: =IFERROR(ROUND((ROUNDDOWN(AG108,0)*12)+IFERROR(VLOOKUP(ROUND(AG108-(ROUNDDOWN(AG108,0)),1),_Esperanzas!$R$5:$S$18,2,TRUE),0),0),12) -> 241 | AI108: 90.44166622
H109: 70.4 | I109: =I108+(I115-I105)/10 -> 18.79999962 | J109: =IFERROR(ROUND((ROUNDDOWN(I109,0)*12)+IFERROR(VLOOKUP(ROUND(I109-(ROUNDDOWN(I109,0)),1),_Esperanzas!$R$5:$S$18,2,TRUE),0),0),12) -> 225 | K109: 89.19999962 | L109: =L108+(L115-L105)/10 -> 22.13333359 | M109: =IFERROR(ROUND((ROUNDDOWN(L109,0)*12)+IFERROR(VLOOKUP(ROUND(L109-(ROUNDDOWN(L109,0)),1),_Esperanzas!$R$5:$S$18,2,TRUE),0),0),12) -> 265 | N109: 92.53333359 | AC109: 70.4 | AD109: =AD108+(AD115-AD105)/10 -> 16.71666679 | AE109: =IFERROR(ROUND((ROUNDDOWN(AD109,0)*12)+IFERROR(VLOOKUP(ROUND(AD109-(ROUNDDOWN(AD109,0)),1),_Esperanzas!$R$5:$S$18,2,TRUE),0),0),12) -> 200 | AF109: 87.11666679 | AG109: =AG108+(AG115-AG105)/10 -> 20.04999962 | AH109: =IFERROR(ROUND((ROUNDDOWN(AG109,0)*12)+IFERROR(VLOOKUP(ROUND(AG109-(ROUNDDOWN(AG109,0)),1),_Esperanzas!$R$5:$S$18,2,TRUE),0),0),12) -> 240 | AI109: 90.44999962
H110: 70.5 | I110: =I109+(I115-I105)/10 -> 18.70833302 | J110: =IFERROR(ROUND((ROUNDDOWN(I110,0)*12)+IFERROR(VLOOKUP(ROUND(I110-(ROUNDDOWN(I110,0)),1),_Esperanzas!$R$5:$S$18,2,TRUE),0),0),12) -> 224 | K110: 89.20833302 | L110: =L109+(L115-L105)/10 -> 22.04166698 | M110: =IFERROR(ROUND((ROUNDDOWN(L110,0)*12)+IFERROR(VLOOKUP(ROUND(L110-(ROUNDDOWN(L110,0)),1),_Esperanzas!$R$5:$S$18,2,TRUE),0),0),12) -> 264 | N110: 92.54166698 | AC110: 70.5 | AD110: =AD109+(AD115-AD105)/10 -> 16.625 | AE110: =IFERROR(ROUND((ROUNDDOWN(AD110,0)*12)+IFERROR(VLOOKUP(ROUND(AD110-(ROUNDDOWN(AD110,0)),1),_Esperanzas!$R$5:$S$18,2,TRUE),0),0),12) -> 199 | AF110: 87.125 | AG110: =AG109+(AG115-AG105)/10 -> 19.95833302 | AH110: =IFERROR(ROUND((ROUNDDOWN(AG110,0)*12)+IFERROR(VLOOKUP(ROUND(AG110-(ROUNDDOWN(AG110,0)),1),_Esperanzas!$R$5:$S$18,2,TRUE),0),0),12) -> 240 | AI110: 90.45833302
H111: 70.6 | I111: =I110+(I115-I105)/10 -> 18.61666641 | J111: =IFERROR(ROUND((ROUNDDOWN(I111,0)*12)+IFERROR(VLOOKUP(ROUND(I111-(ROUNDDOWN(I111,0)),1),_Esperanzas!$R$5:$S$18,2,TRUE),0),0),12) -> 223 | K111: 89.21666641 | L111: =L110+(L115-L105)/10 -> 21.95000038 | M111: =IFERROR(ROUND((ROUNDDOWN(L111,0)*12)+IFERROR(VLOOKUP(ROUND(L111-(ROUNDDOWN(L111,0)),1),_Esperanzas!$R$5:$S$18,2,TRUE),0),0),12) -> 264 | N111: 92.55000038 | AC111: 70.6 | AD111: =AD110+(AD115-AD105)/10 -> 16.53333321 | AE111: =IFERROR(ROUND((ROUNDDOWN(AD111,0)*12)+IFERROR(VLOOKUP(ROUND(AD111-(ROUNDDOWN(AD111,0)),1),_Esperanzas!$R$5:$S$18,2,TRUE),0),0),12) -> 198 | AF111: 87.13333321 | AG111: =AG110+(AG115-AG105)/10 -> 19.86666641 | AH111: =IFERROR(ROUND((ROUNDDOWN(AG111,0)*12)+IFERROR(VLOOKUP(ROUND(AG111-(ROUNDDOWN(AG111,0)),1),_Esperanzas!$R$5:$S$18,2,TRUE),0),0),12) -> 238 | AI111: 90.46666641
H112: 70.7 | I112: =I111+(I115-I105)/10 -> 18.52499981 | J112: =IFERROR(ROUND((ROUNDDOWN(I112,0)*12)+IFERROR(VLOOKUP(ROUND(I112-(ROUNDDOWN(I112,0)),1),_Esperanzas!$R$5:$S$18,2,TRUE),0),0),12) -> 222 | K112: 89.22499981 | L112: =L111+(L115-L105)/10 -> 21.85833378 | M112: =IFERROR(ROUND((ROUNDDOWN(L112,0)*12)+IFERROR(VLOOKUP(ROUND(L112-(ROUNDDOWN(L112,0)),1),_Esperanzas!$R$5:$S$18,2,TRUE),0),0),12) -> 262 | N112: 92.55833378 | AC112: 70.7 | AD112: =AD111+(AD115-AD105)/10 -> 16.44166641 | AE112: =IFERROR(ROUND((ROUNDDOWN(AD112,0)*12)+IFERROR(VLOOKUP(ROUND(AD112-(ROUNDDOWN(AD112,0)),1),_Esperanzas!$R$5:$S$18,2,TRUE),0),0),12) -> 196 | AF112: 87.14166641 | AG112: =AG111+(AG115-AG105)/10 -> 19.77499981 | AH112: =IFERROR(ROUND((ROUNDDOWN(AG112,0)*12)+IFERROR(VLOOKUP(ROUND(AG112-(ROUNDDOWN(AG112,0)),1),_Esperanzas!$R$5:$S$18,2,TRUE),0),0),12) -> 237 | AI112: 90.47499981
H113: 70.8 | I113: =I112+(I115-I105)/10 -> 18.43333321 | J113: =IFERROR(ROUND((ROUNDDOWN(I113,0)*12)+IFERROR(VLOOKUP(ROUND(I113-(ROUNDDOWN(I113,0)),1),_Esperanzas!$R$5:$S$18,2,TRUE),0),0),12) -> 220 | K113: 89.23333321 | L113: =L112+(L115-L105)/10 -> 21.76666718 | M113: =IFERROR(ROUND((ROUNDDOWN(L113,0)*12)+IFERROR(VLOOKUP(ROUND(L113-(ROUNDDOWN(L113,0)),1),_Esperanzas!$R$5:$S$18,2,TRUE),0),0),12) -> 261 | N113: 92.56666718 | AC113: 70.8 | AD113: =AD112+(AD115-AD105)/10 -> 16.34999962 | AE113: =IFERROR(ROUND((ROUNDDOWN(AD113,0)*12)+IFERROR(VLOOKUP(ROUND(AD113-(ROUNDDOWN(AD113,0)),1),_Esperanzas!$R$5:$S$18,2,TRUE),0),0),12) -> 195 | AF113: 87.14999962 | AG113: =AG112+(AG115-AG105)/10 -> 19.68333321 | AH113: =IFERROR(ROUND((ROUNDDOWN(AG113,0)*12)+IFERROR(VLOOKUP(ROUND(AG113-(ROUNDDOWN(AG113,0)),1),_Esperanzas!$R$5:$S$18,2,TRUE),0),0),12) -> 236 | AI113: 90.48333321
H114: 70.9 | I114: =I113+(I115-I105)/10 -> 18.3416666 | J114: =IFERROR(ROUND((ROUNDDOWN(I114,0)*12)+IFERROR(VLOOKUP(ROUND(I114-(ROUNDDOWN(I114,0)),1),_Esperanzas!$R$5:$S$18,2,TRUE),0),0),12) -> 219 | K114: 89.2416666 | L114: =L113+(L115-L105)/10 -> 21.67500057 | M114: =IFERROR(ROUND((ROUNDDOWN(L114,0)*12)+IFERROR(VLOOKUP(ROUND(L114-(ROUNDDOWN(L114,0)),1),_Esperanzas!$R$5:$S$18,2,TRUE),0),0),12) -> 260 | N114: 92.57500057 | AC114: 70.9 | AD114: =AD113+(AD115-AD105)/10 -> 16.25833282 | AE114: =IFERROR(ROUND((ROUNDDOWN(AD114,0)*12)+IFERROR(VLOOKUP(ROUND(AD114-(ROUNDDOWN(AD114,0)),1),_Esperanzas!$R$5:$S$18,2,TRUE),0),0),12) -> 195 | AF114: 87.15833282 | AG114: =AG113+(AG115-AG105)/10 -> 19.5916666 | AH114: =IFERROR(ROUND((ROUNDDOWN(AG114,0)*12)+IFERROR(VLOOKUP(ROUND(AG114-(ROUNDDOWN(AG114,0)),1),_Esperanzas!$R$5:$S$18,2,TRUE),0),0),12) -> 235 | AI114: 90.4916666
H115: 71 | I115: =VLOOKUP($H115,$B$5:$F$55,2,0) -> 18.25 | J115: =IFERROR(ROUND((ROUNDDOWN(I115,0)*12)+IFERROR(VLOOKUP(ROUND(I115-(ROUNDDOWN(I115,0)),1),_Esperanzas!$R$5:$S$18,2,TRUE),0),0),12) -> 219 | K115: 89.25 | L115: =VLOOKUP($H115,$B$5:$F$55,4,0) -> 21.58333397 | M115: =IFERROR(ROUND((ROUNDDOWN(L115,0)*12)+IFERROR(VLOOKUP(ROUND(L115-(ROUNDDOWN(L115,0)),1),_Esperanzas!$R$5:$S$18,2,TRUE),0),0),12) -> 259 | N115: 92.58333397 | AC115: 71 | AD115: =VLOOKUP($AC115,$W$5:$AA$55,2,0) -> 16.16666603 | AE115: =IFERROR(ROUND((ROUNDDOWN(AD115,0)*12)+IFERROR(VLOOKUP(ROUND(AD115-(ROUNDDOWN(AD115,0)),1),_Esperanzas!$R$5:$S$18,2,TRUE),0),0),12) -> 194 | AF115: 87.16666603 | AG115: =VLOOKUP($AC115,$W$5:$AA$55,4,0) -> 19.5 | AH115: =IFERROR(ROUND((ROUNDDOWN(AG115,0)*12)+IFERROR(VLOOKUP(ROUND(AG115-(ROUNDDOWN(AG115,0)),1),_Esperanzas!$R$5:$S$18,2,TRUE),0),0),12) -> 234 | AI115: 90.5
H116: 71.1 | I116: =I115+(I125-I115)/10 -> 18.1583334 | J116: =IFERROR(ROUND((ROUNDDOWN(I116,0)*12)+IFERROR(VLOOKUP(ROUND(I116-(ROUNDDOWN(I116,0)),1),_Esperanzas!$R$5:$S$18,2,TRUE),0),0),12) -> 218 | K116: 89.2583334 | L116: =L115+(L125-L115)/10 -> 21.48333397 | M116: =IFERROR(ROUND((ROUNDDOWN(L116,0)*12)+IFERROR(VLOOKUP(ROUND(L116-(ROUNDDOWN(L116,0)),1),_Esperanzas!$R$5:$S$18,2,TRUE),0),0),12) -> 258 | N116: 92.58333397 | AC116: 71.1 | AD116: =AD115+(AD125-AD115)/10 -> 16.07499943 | AE116: =IFERROR(ROUND((ROUNDDOWN(AD116,0)*12)+IFERROR(VLOOKUP(ROUND(AD116-(ROUNDDOWN(AD116,0)),1),_Esperanzas!$R$5:$S$18,2,TRUE),0),0),12) -> 193 | AF116: 87.17499943 | AG116: =AG115+(AG125-AG115)/10 -> 19.4083334 | AH116: =IFERROR(ROUND((ROUNDDOWN(AG116,0)*12)+IFERROR(VLOOKUP(ROUND(AG116-(ROUNDDOWN(AG116,0)),1),_Esperanzas!$R$5:$S$18,2,TRUE),0),0),12) -> 232 | AI116: 90.5083334
H117: 71.2 | I117: =I116+(I125-I115)/10 -> 18.06666679 | J117: =IFERROR(ROUND((ROUNDDOWN(I117,0)*12)+IFERROR(VLOOKUP(ROUND(I117-(ROUNDDOWN(I117,0)),1),_Esperanzas!$R$5:$S$18,2,TRUE),0),0),12) -> 217 | K117: 89.26666679 | L117: =L116+(L125-L115)/10 -> 21.38333397 | M117: =IFERROR(ROUND((ROUNDDOWN(L117,0)*12)+IFERROR(VLOOKUP(ROUND(L117-(ROUNDDOWN(L117,0)),1),_Esperanzas!$R$5:$S$18,2,TRUE),0),0),12) -> 256 | N117: 92.58333397 | AC117: 71.2 | AD117: =AD116+(AD125-AD115)/10 -> 15.98333282 | AE117: =IFERROR(ROUND((ROUNDDOWN(AD117,0)*12)+IFERROR(VLOOKUP(ROUND(AD117-(ROUNDDOWN(AD117,0)),1),_Esperanzas!$R$5:$S$18,2,TRUE),0),0),12) -> 192 | AF117: 87.18333282 | AG117: =AG116+(AG125-AG115)/10 -> 19.31666679 | AH117: =IFERROR(ROUND((ROUNDDOWN(AG117,0)*12)+IFERROR(VLOOKUP(ROUND(AG117-(ROUNDDOWN(AG117,0)),1),_Esperanzas!$R$5:$S$18,2,TRUE),0),0),12) -> 231 | AI117: 90.51666679
H118: 71.3 | I118: =I117+(I125-I115)/10 -> 17.97500019 | J118: =IFERROR(ROUND((ROUNDDOWN(I118,0)*12)+IFERROR(VLOOKUP(ROUND(I118-(ROUNDDOWN(I118,0)),1),_Esperanzas!$R$5:$S$18,2,TRUE),0),0),12) -> 216 | K118: 89.27500019 | L118: =L117+(L125-L115)/10 -> 21.28333397 | M118: =IFERROR(ROUND((ROUNDDOWN(L118,0)*12)+IFERROR(VLOOKUP(ROUND(L118-(ROUNDDOWN(L118,0)),1),_Esperanzas!$R$5:$S$18,2,TRUE),0),0),12) -> 255 | N118: 92.58333397 | AC118: 71.3 | AD118: =AD117+(AD125-AD115)/10 -> 15.89166622 | AE118: =IFERROR(ROUND((ROUNDDOWN(AD118,0)*12)+IFERROR(VLOOKUP(ROUND(AD118-(ROUNDDOWN(AD118,0)),1),_Esperanzas!$R$5:$S$18,2,TRUE),0),0),12) -> 190 | AF118: 87.19166622 | AG118: =AG117+(AG125-AG115)/10 -> 19.22500019 | AH118: =IFERROR(ROUND((ROUNDDOWN(AG118,0)*12)+IFERROR(VLOOKUP(ROUND(AG118-(ROUNDDOWN(AG118,0)),1),_Esperanzas!$R$5:$S$18,2,TRUE),0),0),12) -> 230 | AI118: 90.52500019
H119: 71.4 | I119: =I118+(I125-I115)/10 -> 17.88333359 | J119: =IFERROR(ROUND((ROUNDDOWN(I119,0)*12)+IFERROR(VLOOKUP(ROUND(I119-(ROUNDDOWN(I119,0)),1),_Esperanzas!$R$5:$S$18,2,TRUE),0),0),12) -> 214 | K119: 89.28333359 | L119: =L118+(L125-L115)/10 -> 21.18333397 | M119: =IFERROR(ROUND((ROUNDDOWN(L119,0)*12)+IFERROR(VLOOKUP(ROUND(L119-(ROUNDDOWN(L119,0)),1),_Esperanzas!$R$5:$S$18,2,TRUE),0),0),12) -> 254 | N119: 92.58333397 | AC119: 71.4 | AD119: =AD118+(AD125-AD115)/10 -> 15.79999962 | AE119: =IFERROR(ROUND((ROUNDDOWN(AD119,0)*12)+IFERROR(VLOOKUP(ROUND(AD119-(ROUNDDOWN(AD119,0)),1),_Esperanzas!$R$5:$S$18,2,TRUE),0),0),12) -> 189 | AF119: 87.19999962 | AG119: =AG118+(AG125-AG115)/10 -> 19.13333359 | AH119: =IFERROR(ROUND((ROUNDDOWN(AG119,0)*12)+IFERROR(VLOOKUP(ROUND(AG119-(ROUNDDOWN(AG119,0)),1),_Esperanzas!$R$5:$S$18,2,TRUE),0),0),12) -> 229 | AI119: 90.53333359
H120: 71.5 | I120: =I119+(I125-I115)/10 -> 17.79166698 | J120: =IFERROR(ROUND((ROUNDDOWN(I120,0)*12)+IFERROR(VLOOKUP(ROUND(I120-(ROUNDDOWN(I120,0)),1),_Esperanzas!$R$5:$S$18,2,TRUE),0),0),12) -> 213 | K120: 89.29166698 | L120: =L119+(L125-L115)/10 -> 21.08333397 | M120: =IFERROR(ROUND((ROUNDDOWN(L120,0)*12)+IFERROR(VLOOKUP(ROUND(L120-(ROUNDDOWN(L120,0)),1),_Esperanzas!$R$5:$S$18,2,TRUE),0),0),12) -> 253 | N120: 92.58333397 | AC120: 71.5 | AD120: =AD119+(AD125-AD115)/10 -> 15.70833302 | AE120: =IFERROR(ROUND((ROUNDDOWN(AD120,0)*12)+IFERROR(VLOOKUP(ROUND(AD120-(ROUNDDOWN(AD120,0)),1),_Esperanzas!$R$5:$S$18,2,TRUE),0),0),12) -> 188 | AF120: 87.20833302 | AG120: =AG119+(AG125-AG115)/10 -> 19.04166698 | AH120: =IFERROR(ROUND((ROUNDDOWN(AG120,0)*12)+IFERROR(VLOOKUP(ROUND(AG120-(ROUNDDOWN(AG120,0)),1),_Esperanzas!$R$5:$S$18,2,TRUE),0),0),12) -> 228 | AI120: 90.54166698
H121: 71.6 | I121: =I120+(I125-I115)/10 -> 17.70000038 | J121: =IFERROR(ROUND((ROUNDDOWN(I121,0)*12)+IFERROR(VLOOKUP(ROUND(I121-(ROUNDDOWN(I121,0)),1),_Esperanzas!$R$5:$S$18,2,TRUE),0),0),12) -> 212 | K121: 89.30000038 | L121: =L120+(L125-L115)/10 -> 20.98333397 | M121: =IFERROR(ROUND((ROUNDDOWN(L121,0)*12)+IFERROR(VLOOKUP(ROUND(L121-(ROUNDDOWN(L121,0)),1),_Esperanzas!$R$5:$S$18,2,TRUE),0),0),12) -> 252 | N121: 92.58333397 | AC121: 71.6 | AD121: =AD120+(AD125-AD115)/10 -> 15.61666641 | AE121: =IFERROR(ROUND((ROUNDDOWN(AD121,0)*12)+IFERROR(VLOOKUP(ROUND(AD121-(ROUNDDOWN(AD121,0)),1),_Esperanzas!$R$5:$S$18,2,TRUE),0),0),12) -> 187 | AF121: 87.21666641 | AG121: =AG120+(AG125-AG115)/10 -> 18.95000038 | AH121: =IFERROR(ROUND((ROUNDDOWN(AG121,0)*12)+IFERROR(VLOOKUP(ROUND(AG121-(ROUNDDOWN(AG121,0)),1),_Esperanzas!$R$5:$S$18,2,TRUE),0),0),12) -> 228 | AI121: 90.55000038
H122: 71.7 | I122: =I121+(I125-I115)/10 -> 17.60833378 | J122: =IFERROR(ROUND((ROUNDDOWN(I122,0)*12)+IFERROR(VLOOKUP(ROUND(I122-(ROUNDDOWN(I122,0)),1),_Esperanzas!$R$5:$S$18,2,TRUE),0),0),12) -> 211 | K122: 89.30833378 | L122: =L121+(L125-L115)/10 -> 20.88333397 | M122: =IFERROR(ROUND((ROUNDDOWN(L122,0)*12)+IFERROR(VLOOKUP(ROUND(L122-(ROUNDDOWN(L122,0)),1),_Esperanzas!$R$5:$S$18,2,TRUE),0),0),12) -> 250 | N122: 92.58333397 | AC122: 71.7 | AD122: =AD121+(AD125-AD115)/10 -> 15.52499981 | AE122: =IFERROR(ROUND((ROUNDDOWN(AD122,0)*12)+IFERROR(VLOOKUP(ROUND(AD122-(ROUNDDOWN(AD122,0)),1),_Esperanzas!$R$5:$S$18,2,TRUE),0),0),12) -> 186 | AF122: 87.22499981 | AG122: =AG121+(AG125-AG115)/10 -> 18.85833378 | AH122: =IFERROR(ROUND((ROUNDDOWN(AG122,0)*12)+IFERROR(VLOOKUP(ROUND(AG122-(ROUNDDOWN(AG122,0)),1),_Esperanzas!$R$5:$S$18,2,TRUE),0),0),12) -> 226 | AI122: 90.55833378
H123: 71.8 | I123: =I122+(I125-I115)/10 -> 17.51666718 | J123: =IFERROR(ROUND((ROUNDDOWN(I123,0)*12)+IFERROR(VLOOKUP(ROUND(I123-(ROUNDDOWN(I123,0)),1),_Esperanzas!$R$5:$S$18,2,TRUE),0),0),12) -> 210 | K123: 89.31666718 | L123: =L122+(L125-L115)/10 -> 20.78333397 | M123: =IFERROR(ROUND((ROUNDDOWN(L123,0)*12)+IFERROR(VLOOKUP(ROUND(L123-(ROUNDDOWN(L123,0)),1),_Esperanzas!$R$5:$S$18,2,TRUE),0),0),12) -> 249 | N123: 92.58333397 | AC123: 71.8 | AD123: =AD122+(AD125-AD115)/10 -> 15.43333321 | AE123: =IFERROR(ROUND((ROUNDDOWN(AD123,0)*12)+IFERROR(VLOOKUP(ROUND(AD123-(ROUNDDOWN(AD123,0)),1),_Esperanzas!$R$5:$S$18,2,TRUE),0),0),12) -> 184 | AF123: 87.23333321 | AG123: =AG122+(AG125-AG115)/10 -> 18.76666718 | AH123: =IFERROR(ROUND((ROUNDDOWN(AG123,0)*12)+IFERROR(VLOOKUP(ROUND(AG123-(ROUNDDOWN(AG123,0)),1),_Esperanzas!$R$5:$S$18,2,TRUE),0),0),12) -> 225 | AI123: 90.56666718
H124: 71.9 | I124: =I123+(I125-I115)/10 -> 17.42500057 | J124: =IFERROR(ROUND((ROUNDDOWN(I124,0)*12)+IFERROR(VLOOKUP(ROUND(I124-(ROUNDDOWN(I124,0)),1),_Esperanzas!$R$5:$S$18,2,TRUE),0),0),12) -> 208 | K124: 89.32500057 | L124: =L123+(L125-L115)/10 -> 20.68333397 | M124: =IFERROR(ROUND((ROUNDDOWN(L124,0)*12)+IFERROR(VLOOKUP(ROUND(L124-(ROUNDDOWN(L124,0)),1),_Esperanzas!$R$5:$S$18,2,TRUE),0),0),12) -> 248 | N124: 92.58333397 | AC124: 71.9 | AD124: =AD123+(AD125-AD115)/10 -> 15.3416666 | AE124: =IFERROR(ROUND((ROUNDDOWN(AD124,0)*12)+IFERROR(VLOOKUP(ROUND(AD124-(ROUNDDOWN(AD124,0)),1),_Esperanzas!$R$5:$S$18,2,TRUE),0),0),12) -> 183 | AF124: 87.2416666 | AG124: =AG123+(AG125-AG115)/10 -> 18.67500057 | AH124: =IFERROR(ROUND((ROUNDDOWN(AG124,0)*12)+IFERROR(VLOOKUP(ROUND(AG124-(ROUNDDOWN(AG124,0)),1),_Esperanzas!$R$5:$S$18,2,TRUE),0),0),12) -> 224 | AI124: 90.57500057
H125: 72 | I125: =VLOOKUP($H125,$B$5:$F$55,2,0) -> 17.33333397 | J125: =IFERROR(ROUND((ROUNDDOWN(I125,0)*12)+IFERROR(VLOOKUP(ROUND(I125-(ROUNDDOWN(I125,0)),1),_Esperanzas!$R$5:$S$18,2,TRUE),0),0),12) -> 207 | K125: 89.33333397 | L125: =VLOOKUP($H125,$B$5:$F$55,4,0) -> 20.58333397 | M125: =IFERROR(ROUND((ROUNDDOWN(L125,0)*12)+IFERROR(VLOOKUP(ROUND(L125-(ROUNDDOWN(L125,0)),1),_Esperanzas!$R$5:$S$18,2,TRUE),0),0),12) -> 247 | N125: 92.58333397 | AC125: 72 | AD125: =VLOOKUP($AC125,$W$5:$AA$55,2,0) -> 15.25 | AE125: =IFERROR(ROUND((ROUNDDOWN(AD125,0)*12)+IFERROR(VLOOKUP(ROUND(AD125-(ROUNDDOWN(AD125,0)),1),_Esperanzas!$R$5:$S$18,2,TRUE),0),0),12) -> 183 | AF125: 87.25 | AG125: =VLOOKUP($AC125,$W$5:$AA$55,4,0) -> 18.58333397 | AH125: =IFERROR(ROUND((ROUNDDOWN(AG125,0)*12)+IFERROR(VLOOKUP(ROUND(AG125-(ROUNDDOWN(AG125,0)),1),_Esperanzas!$R$5:$S$18,2,TRUE),0),0),12) -> 223 | AI125: 90.58333397
H126: 72.1 | I126: =I125+(I135-I125)/10 -> 17.25000057 | J126: =IFERROR(ROUND((ROUNDDOWN(I126,0)*12)+IFERROR(VLOOKUP(ROUND(I126-(ROUNDDOWN(I126,0)),1),_Esperanzas!$R$5:$S$18,2,TRUE),0),0),12) -> 207 | K126: 89.35000057 | L126: =L125+(L135-L125)/10 -> 20.49166718 | M126: =IFERROR(ROUND((ROUNDDOWN(L126,0)*12)+IFERROR(VLOOKUP(ROUND(L126-(ROUNDDOWN(L126,0)),1),_Esperanzas!$R$5:$S$18,2,TRUE),0),0),12) -> 246 | N126: 92.59166718 | AC126: 72.1 | AD126: =AD125+(AD135-AD125)/10 -> 15.1666667 | AE126: =IFERROR(ROUND((ROUNDDOWN(AD126,0)*12)+IFERROR(VLOOKUP(ROUND(AD126-(ROUNDDOWN(AD126,0)),1),_Esperanzas!$R$5:$S$18,2,TRUE),0),0),12) -> 182 | AF126: 87.2666667 | AG126: =AG125+(AG135-AG125)/10 -> 18.48333397 | AH126: =IFERROR(ROUND((ROUNDDOWN(AG126,0)*12)+IFERROR(VLOOKUP(ROUND(AG126-(ROUNDDOWN(AG126,0)),1),_Esperanzas!$R$5:$S$18,2,TRUE),0),0),12) -> 222 | AI126: 90.58333397
H127: 72.2 | I127: =I126+(I135-I125)/10 -> 17.16666718 | J127: =IFERROR(ROUND((ROUNDDOWN(I127,0)*12)+IFERROR(VLOOKUP(ROUND(I127-(ROUNDDOWN(I127,0)),1),_Esperanzas!$R$5:$S$18,2,TRUE),0),0),12) -> 206 | K127: 89.36666718 | L127: =L126+(L135-L125)/10 -> 20.40000038 | M127: =IFERROR(ROUND((ROUNDDOWN(L127,0)*12)+IFERROR(VLOOKUP(ROUND(L127-(ROUNDDOWN(L127,0)),1),_Esperanzas!$R$5:$S$18,2,TRUE),0),0),12) -> 244 | N127: 92.60000038 | AC127: 72.2 | AD127: =AD126+(AD135-AD125)/10 -> 15.0833334 | AE127: =IFERROR(ROUND((ROUNDDOWN(AD127,0)*12)+IFERROR(VLOOKUP(ROUND(AD127-(ROUNDDOWN(AD127,0)),1),_Esperanzas!$R$5:$S$18,2,TRUE),0),0),12) -> 181 | AF127: 87.2833334 | AG127: =AG126+(AG135-AG125)/10 -> 18.38333397 | AH127: =IFERROR(ROUND((ROUNDDOWN(AG127,0)*12)+IFERROR(VLOOKUP(ROUND(AG127-(ROUNDDOWN(AG127,0)),1),_Esperanzas!$R$5:$S$18,2,TRUE),0),0),12) -> 220 | AI127: 90.58333397
H128: 72.3 | I128: =I127+(I135-I125)/10 -> 17.08333378 | J128: =IFERROR(ROUND((ROUNDDOWN(I128,0)*12)+IFERROR(VLOOKUP(ROUND(I128-(ROUNDDOWN(I128,0)),1),_Esperanzas!$R$5:$S$18,2,TRUE),0),0),12) -> 205 | K128: 89.38333378 | L128: =L127+(L135-L125)/10 -> 20.30833359 | M128: =IFERROR(ROUND((ROUNDDOWN(L128,0)*12)+IFERROR(VLOOKUP(ROUND(L128-(ROUNDDOWN(L128,0)),1),_Esperanzas!$R$5:$S$18,2,TRUE),0),0),12) -> 243 | N128: 92.60833359 | AC128: 72.3 | AD128: =AD127+(AD135-AD125)/10 -> 15.0000001 | AE128: =IFERROR(ROUND((ROUNDDOWN(AD128,0)*12)+IFERROR(VLOOKUP(ROUND(AD128-(ROUNDDOWN(AD128,0)),1),_Esperanzas!$R$5:$S$18,2,TRUE),0),0),12) -> 180 | AF128: 87.3000001 | AG128: =AG127+(AG135-AG125)/10 -> 18.28333397 | AH128: =IFERROR(ROUND((ROUNDDOWN(AG128,0)*12)+IFERROR(VLOOKUP(ROUND(AG128-(ROUNDDOWN(AG128,0)),1),_Esperanzas!$R$5:$S$18,2,TRUE),0),0),12) -> 219 | AI128: 90.58333397
H129: 72.4 | I129: =I128+(I135-I125)/10 -> 17.00000038 | J129: =IFERROR(ROUND((ROUNDDOWN(I129,0)*12)+IFERROR(VLOOKUP(ROUND(I129-(ROUNDDOWN(I129,0)),1),_Esperanzas!$R$5:$S$18,2,TRUE),0),0),12) -> 204 | K129: 89.40000038 | L129: =L128+(L135-L125)/10 -> 20.21666679 | M129: =IFERROR(ROUND((ROUNDDOWN(L129,0)*12)+IFERROR(VLOOKUP(ROUND(L129-(ROUNDDOWN(L129,0)),1),_Esperanzas!$R$5:$S$18,2,TRUE),0),0),12) -> 242 | N129: 92.61666679 | AC129: 72.4 | AD129: =AD128+(AD135-AD125)/10 -> 14.91666679 | AE129: =IFERROR(ROUND((ROUNDDOWN(AD129,0)*12)+IFERROR(VLOOKUP(ROUND(AD129-(ROUNDDOWN(AD129,0)),1),_Esperanzas!$R$5:$S$18,2,TRUE),0),0),12) -> 178 | AF129: 87.31666679 | AG129: =AG128+(AG135-AG125)/10 -> 18.18333397 | AH129: =IFERROR(ROUND((ROUNDDOWN(AG129,0)*12)+IFERROR(VLOOKUP(ROUND(AG129-(ROUNDDOWN(AG129,0)),1),_Esperanzas!$R$5:$S$18,2,TRUE),0),0),12) -> 218 | AI129: 90.58333397
H130: 72.5 | I130: =I129+(I135-I125)/10 -> 16.91666698 | J130: =IFERROR(ROUND((ROUNDDOWN(I130,0)*12)+IFERROR(VLOOKUP(ROUND(I130-(ROUNDDOWN(I130,0)),1),_Esperanzas!$R$5:$S$18,2,TRUE),0),0),12) -> 202 | K130: 89.41666698 | L130: =L129+(L135-L125)/10 -> 20.125 | M130: =IFERROR(ROUND((ROUNDDOWN(L130,0)*12)+IFERROR(VLOOKUP(ROUND(L130-(ROUNDDOWN(L130,0)),1),_Esperanzas!$R$5:$S$18,2,TRUE),0),0),12) -> 241 | N130: 92.625 | AC130: 72.5 | AD130: =AD129+(AD135-AD125)/10 -> 14.83333349 | AE130: =IFERROR(ROUND((ROUNDDOWN(AD130,0)*12)+IFERROR(VLOOKUP(ROUND(AD130-(ROUNDDOWN(AD130,0)),1),_Esperanzas!$R$5:$S$18,2,TRUE),0),0),12) -> 177 | AF130: 87.33333349 | AG130: =AG129+(AG135-AG125)/10 -> 18.08333397 | AH130: =IFERROR(ROUND((ROUNDDOWN(AG130,0)*12)+IFERROR(VLOOKUP(ROUND(AG130-(ROUNDDOWN(AG130,0)),1),_Esperanzas!$R$5:$S$18,2,TRUE),0),0),12) -> 217 | AI130: 90.58333397
H131: 72.6 | I131: =I130+(I135-I125)/10 -> 16.83333359 | J131: =IFERROR(ROUND((ROUNDDOWN(I131,0)*12)+IFERROR(VLOOKUP(ROUND(I131-(ROUNDDOWN(I131,0)),1),_Esperanzas!$R$5:$S$18,2,TRUE),0),0),12) -> 201 | K131: 89.43333359 | L131: =L130+(L135-L125)/10 -> 20.03333321 | M131: =IFERROR(ROUND((ROUNDDOWN(L131,0)*12)+IFERROR(VLOOKUP(ROUND(L131-(ROUNDDOWN(L131,0)),1),_Esperanzas!$R$5:$S$18,2,TRUE),0),0),12) -> 240 | N131: 92.63333321 | AC131: 72.6 | AD131: =AD130+(AD135-AD125)/10 -> 14.75000019 | AE131: =IFERROR(ROUND((ROUNDDOWN(AD131,0)*12)+IFERROR(VLOOKUP(ROUND(AD131-(ROUNDDOWN(AD131,0)),1),_Esperanzas!$R$5:$S$18,2,TRUE),0),0),12) -> 177 | AF131: 87.35000019 | AG131: =AG130+(AG135-AG125)/10 -> 17.98333397 | AH131: =IFERROR(ROUND((ROUNDDOWN(AG131,0)*12)+IFERROR(VLOOKUP(ROUND(AG131-(ROUNDDOWN(AG131,0)),1),_Esperanzas!$R$5:$S$18,2,TRUE),0),0),12) -> 216 | AI131: 90.58333397
H132: 72.7 | I132: =I131+(I135-I125)/10 -> 16.75000019 | J132: =IFERROR(ROUND((ROUNDDOWN(I132,0)*12)+IFERROR(VLOOKUP(ROUND(I132-(ROUNDDOWN(I132,0)),1),_Esperanzas!$R$5:$S$18,2,TRUE),0),0),12) -> 201 | K132: 89.45000019 | L132: =L131+(L135-L125)/10 -> 19.94166641 | M132: =IFERROR(ROUND((ROUNDDOWN(L132,0)*12)+IFERROR(VLOOKUP(ROUND(L132-(ROUNDDOWN(L132,0)),1),_Esperanzas!$R$5:$S$18,2,TRUE),0),0),12) -> 238 | N132: 92.64166641 | AC132: 72.7 | AD132: =AD131+(AD135-AD125)/10 -> 14.66666689 | AE132: =IFERROR(ROUND((ROUNDDOWN(AD132,0)*12)+IFERROR(VLOOKUP(ROUND(AD132-(ROUNDDOWN(AD132,0)),1),_Esperanzas!$R$5:$S$18,2,TRUE),0),0),12) -> 176 | AF132: 87.36666689 | AG132: =AG131+(AG135-AG125)/10 -> 17.88333397 | AH132: =IFERROR(ROUND((ROUNDDOWN(AG132,0)*12)+IFERROR(VLOOKUP(ROUND(AG132-(ROUNDDOWN(AG132,0)),1),_Esperanzas!$R$5:$S$18,2,TRUE),0),0),12) -> 214 | AI132: 90.58333397
H133: 72.8 | I133: =I132+(I135-I125)/10 -> 16.66666679 | J133: =IFERROR(ROUND((ROUNDDOWN(I133,0)*12)+IFERROR(VLOOKUP(ROUND(I133-(ROUNDDOWN(I133,0)),1),_Esperanzas!$R$5:$S$18,2,TRUE),0),0),12) -> 200 | K133: 89.46666679 | L133: =L132+(L135-L125)/10 -> 19.84999962 | M133: =IFERROR(ROUND((ROUNDDOWN(L133,0)*12)+IFERROR(VLOOKUP(ROUND(L133-(ROUNDDOWN(L133,0)),1),_Esperanzas!$R$5:$S$18,2,TRUE),0),0),12) -> 237 | N133: 92.64999962 | AC133: 72.8 | AD133: =AD132+(AD135-AD125)/10 -> 14.58333359 | AE133: =IFERROR(ROUND((ROUNDDOWN(AD133,0)*12)+IFERROR(VLOOKUP(ROUND(AD133-(ROUNDDOWN(AD133,0)),1),_Esperanzas!$R$5:$S$18,2,TRUE),0),0),12) -> 175 | AF133: 87.38333359 | AG133: =AG132+(AG135-AG125)/10 -> 17.78333397 | AH133: =IFERROR(ROUND((ROUNDDOWN(AG133,0)*12)+IFERROR(VLOOKUP(ROUND(AG133-(ROUNDDOWN(AG133,0)),1),_Esperanzas!$R$5:$S$18,2,TRUE),0),0),12) -> 213 | AI133: 90.58333397
H134: 72.9 | I134: =I133+(I135-I125)/10 -> 16.5833334 | J134: =IFERROR(ROUND((ROUNDDOWN(I134,0)*12)+IFERROR(VLOOKUP(ROUND(I134-(ROUNDDOWN(I134,0)),1),_Esperanzas!$R$5:$S$18,2,TRUE),0),0),12) -> 199 | K134: 89.4833334 | L134: =L133+(L135-L125)/10 -> 19.75833282 | M134: =IFERROR(ROUND((ROUNDDOWN(L134,0)*12)+IFERROR(VLOOKUP(ROUND(L134-(ROUNDDOWN(L134,0)),1),_Esperanzas!$R$5:$S$18,2,TRUE),0),0),12) -> 237 | N134: 92.65833282 | AC134: 72.9 | AD134: =AD133+(AD135-AD125)/10 -> 14.50000029 | AE134: =IFERROR(ROUND((ROUNDDOWN(AD134,0)*12)+IFERROR(VLOOKUP(ROUND(AD134-(ROUNDDOWN(AD134,0)),1),_Esperanzas!$R$5:$S$18,2,TRUE),0),0),12) -> 174 | AF134: 87.40000029 | AG134: =AG133+(AG135-AG125)/10 -> 17.68333397 | AH134: =IFERROR(ROUND((ROUNDDOWN(AG134,0)*12)+IFERROR(VLOOKUP(ROUND(AG134-(ROUNDDOWN(AG134,0)),1),_Esperanzas!$R$5:$S$18,2,TRUE),0),0),12) -> 212 | AI134: 90.58333397
H135: =ROUND(H134+0.1,1) -> 73 | I135: =VLOOKUP($H135,$B$5:$F$55,2,0) -> 16.5 | J135: =IFERROR(ROUND((ROUNDDOWN(I135,0)*12)+IFERROR(VLOOKUP(ROUND(I135-(ROUNDDOWN(I135,0)),1),_Esperanzas!$R$5:$S$18,2,TRUE),0),0),12) -> 198 | K135: 89.5 | L135: =VLOOKUP($H135,$B$5:$F$55,4,0) -> 19.66666603 | M135: =IFERROR(ROUND((ROUNDDOWN(L135,0)*12)+IFERROR(VLOOKUP(ROUND(L135-(ROUNDDOWN(L135,0)),1),_Esperanzas!$R$5:$S$18,2,TRUE),0),0),12) -> 236 | N135: 92.66666603 | AC135: =ROUND(AC134+0.1,1) -> 73 | AD135: =VLOOKUP($AC135,$W$5:$AA$55,2,0) -> 14.41666698 | AE135: =IFERROR(ROUND((ROUNDDOWN(AD135,0)*12)+IFERROR(VLOOKUP(ROUND(AD135-(ROUNDDOWN(AD135,0)),1),_Esperanzas!$R$5:$S$18,2,TRUE),0),0),12) -> 172 | AF135: 87.41666698 | AG135: =VLOOKUP($AC135,$W$5:$AA$55,4,0) -> 17.58333397 | AH135: =IFERROR(ROUND((ROUNDDOWN(AG135,0)*12)+IFERROR(VLOOKUP(ROUND(AG135-(ROUNDDOWN(AG135,0)),1),_Esperanzas!$R$5:$S$18,2,TRUE),0),0),12) -> 211 | AI135: 90.58333397
H136: 73.1 | I136: =I135+(I145-I135)/10 -> 16.4083333 | J136: =IFERROR(ROUND((ROUNDDOWN(I136,0)*12)+IFERROR(VLOOKUP(ROUND(I136-(ROUNDDOWN(I136,0)),1),_Esperanzas!$R$5:$S$18,2,TRUE),0),0),12) -> 196 | K136: 89.5083333 | L136: =L135+(L145-L135)/10 -> 19.57499943 | M136: =IFERROR(ROUND((ROUNDDOWN(L136,0)*12)+IFERROR(VLOOKUP(ROUND(L136-(ROUNDDOWN(L136,0)),1),_Esperanzas!$R$5:$S$18,2,TRUE),0),0),12) -> 235 | N136: 92.67499943 | AC136: 73.1 | AD136: =AD135+(AD145-AD135)/10 -> 14.33333359 | AE136: =IFERROR(ROUND((ROUNDDOWN(AD136,0)*12)+IFERROR(VLOOKUP(ROUND(AD136-(ROUNDDOWN(AD136,0)),1),_Esperanzas!$R$5:$S$18,2,TRUE),0),0),12) -> 171 | AF136: 87.43333359 | AG136: =AG135+(AG145-AG135)/10 -> 17.49166718 | AH136: =IFERROR(ROUND((ROUNDDOWN(AG136,0)*12)+IFERROR(VLOOKUP(ROUND(AG136-(ROUNDDOWN(AG136,0)),1),_Esperanzas!$R$5:$S$18,2,TRUE),0),0),12) -> 210 | AI136: 90.59166718
H137: 73.2 | I137: =I136+(I145-I135)/10 -> 16.3166666 | J137: =IFERROR(ROUND((ROUNDDOWN(I137,0)*12)+IFERROR(VLOOKUP(ROUND(I137-(ROUNDDOWN(I137,0)),1),_Esperanzas!$R$5:$S$18,2,TRUE),0),0),12) -> 195 | K137: 89.5166666 | L137: =L136+(L145-L135)/10 -> 19.48333282 | M137: =IFERROR(ROUND((ROUNDDOWN(L137,0)*12)+IFERROR(VLOOKUP(ROUND(L137-(ROUNDDOWN(L137,0)),1),_Esperanzas!$R$5:$S$18,2,TRUE),0),0),12) -> 234 | N137: =L137+H137 -> 92.68333282 | AC137: 73.2 | AD137: =AD136+(AD145-AD135)/10 -> 14.25000019 | AE137: =IFERROR(ROUND((ROUNDDOWN(AD137,0)*12)+IFERROR(VLOOKUP(ROUND(AD137-(ROUNDDOWN(AD137,0)),1),_Esperanzas!$R$5:$S$18,2,TRUE),0),0),12) -> 171 | AF137: 87.45000019 | AG137: =AG136+(AG145-AG135)/10 -> 17.40000038 | AH137: =IFERROR(ROUND((ROUNDDOWN(AG137,0)*12)+IFERROR(VLOOKUP(ROUND(AG137-(ROUNDDOWN(AG137,0)),1),_Esperanzas!$R$5:$S$18,2,TRUE),0),0),12) -> 208 | AI137: 90.60000038
H138: 73.3 | I138: =I137+(I145-I135)/10 -> 16.2249999 | J138: =IFERROR(ROUND((ROUNDDOWN(I138,0)*12)+IFERROR(VLOOKUP(ROUND(I138-(ROUNDDOWN(I138,0)),1),_Esperanzas!$R$5:$S$18,2,TRUE),0),0),12) -> 194 | K138: 89.5249999 | L138: =L137+(L145-L135)/10 -> 19.39166622 | M138: =IFERROR(ROUND((ROUNDDOWN(L138,0)*12)+IFERROR(VLOOKUP(ROUND(L138-(ROUNDDOWN(L138,0)),1),_Esperanzas!$R$5:$S$18,2,TRUE),0),0),12) -> 232 | N138: 92.69166622 | AC138: 73.3 | AD138: =AD137+(AD145-AD135)/10 -> 14.16666679 | AE138: =IFERROR(ROUND((ROUNDDOWN(AD138,0)*12)+IFERROR(VLOOKUP(ROUND(AD138-(ROUNDDOWN(AD138,0)),1),_Esperanzas!$R$5:$S$18,2,TRUE),0),0),12) -> 170 | AF138: 87.46666679 | AG138: =AG137+(AG145-AG135)/10 -> 17.30833359 | AH138: =IFERROR(ROUND((ROUNDDOWN(AG138,0)*12)+IFERROR(VLOOKUP(ROUND(AG138-(ROUNDDOWN(AG138,0)),1),_Esperanzas!$R$5:$S$18,2,TRUE),0),0),12) -> 207 | AI138: 90.60833359
H139: 73.4 | I139: =I138+(I145-I135)/10 -> 16.13333321 | J139: =IFERROR(ROUND((ROUNDDOWN(I139,0)*12)+IFERROR(VLOOKUP(ROUND(I139-(ROUNDDOWN(I139,0)),1),_Esperanzas!$R$5:$S$18,2,TRUE),0),0),12) -> 193 | K139: 89.53333321 | L139: =L138+(L145-L135)/10 -> 19.29999962 | M139: =IFERROR(ROUND((ROUNDDOWN(L139,0)*12)+IFERROR(VLOOKUP(ROUND(L139-(ROUNDDOWN(L139,0)),1),_Esperanzas!$R$5:$S$18,2,TRUE),0),0),12) -> 231 | N139: 92.69999962 | AC139: 73.4 | AD139: =AD138+(AD145-AD135)/10 -> 14.0833334 | AE139: =IFERROR(ROUND((ROUNDDOWN(AD139,0)*12)+IFERROR(VLOOKUP(ROUND(AD139-(ROUNDDOWN(AD139,0)),1),_Esperanzas!$R$5:$S$18,2,TRUE),0),0),12) -> 169 | AF139: 87.4833334 | AG139: =AG138+(AG145-AG135)/10 -> 17.21666679 | AH139: =IFERROR(ROUND((ROUNDDOWN(AG139,0)*12)+IFERROR(VLOOKUP(ROUND(AG139-(ROUNDDOWN(AG139,0)),1),_Esperanzas!$R$5:$S$18,2,TRUE),0),0),12) -> 206 | AI139: 90.61666679
H140: 73.5 | I140: =I139+(I145-I135)/10 -> 16.04166651 | J140: =IFERROR(ROUND((ROUNDDOWN(I140,0)*12)+IFERROR(VLOOKUP(ROUND(I140-(ROUNDDOWN(I140,0)),1),_Esperanzas!$R$5:$S$18,2,TRUE),0),0),12) -> 192 | K140: 89.54166651 | L140: =L139+(L145-L135)/10 -> 19.20833302 | M140: =IFERROR(ROUND((ROUNDDOWN(L140,0)*12)+IFERROR(VLOOKUP(ROUND(L140-(ROUNDDOWN(L140,0)),1),_Esperanzas!$R$5:$S$18,2,TRUE),0),0),12) -> 230 | N140: 92.70833302 | AC140: 73.5 | AD140: =AD139+(AD145-AD135)/10 -> 14 | AE140: =IFERROR(ROUND((ROUNDDOWN(AD140,0)*12)+IFERROR(VLOOKUP(ROUND(AD140-(ROUNDDOWN(AD140,0)),1),_Esperanzas!$R$5:$S$18,2,TRUE),0),0),12) -> 168 | AF140: 87.5 | AG140: =AG139+(AG145-AG135)/10 -> 17.125 | AH140: =IFERROR(ROUND((ROUNDDOWN(AG140,0)*12)+IFERROR(VLOOKUP(ROUND(AG140-(ROUNDDOWN(AG140,0)),1),_Esperanzas!$R$5:$S$18,2,TRUE),0),0),12) -> 205 | AI140: 90.625
H141: 73.6 | I141: =I140+(I145-I135)/10 -> 15.94999981 | J141: =IFERROR(ROUND((ROUNDDOWN(I141,0)*12)+IFERROR(VLOOKUP(ROUND(I141-(ROUNDDOWN(I141,0)),1),_Esperanzas!$R$5:$S$18,2,TRUE),0),0),12) -> 190 | K141: 89.54999981 | L141: =L140+(L145-L135)/10 -> 19.11666641 | M141: =IFERROR(ROUND((ROUNDDOWN(L141,0)*12)+IFERROR(VLOOKUP(ROUND(L141-(ROUNDDOWN(L141,0)),1),_Esperanzas!$R$5:$S$18,2,TRUE),0),0),12) -> 229 | N141: 92.71666641 | AC141: 73.6 | AD141: =AD140+(AD145-AD135)/10 -> 13.9166666 | AE141: =IFERROR(ROUND((ROUNDDOWN(AD141,0)*12)+IFERROR(VLOOKUP(ROUND(AD141-(ROUNDDOWN(AD141,0)),1),_Esperanzas!$R$5:$S$18,2,TRUE),0),0),12) -> 166 | AF141: 87.5166666 | AG141: =AG140+(AG145-AG135)/10 -> 17.03333321 | AH141: =IFERROR(ROUND((ROUNDDOWN(AG141,0)*12)+IFERROR(VLOOKUP(ROUND(AG141-(ROUNDDOWN(AG141,0)),1),_Esperanzas!$R$5:$S$18,2,TRUE),0),0),12) -> 204 | AI141: 90.63333321
H142: 73.7 | I142: =I141+(I145-I135)/10 -> 15.85833311 | J142: =IFERROR(ROUND((ROUNDDOWN(I142,0)*12)+IFERROR(VLOOKUP(ROUND(I142-(ROUNDDOWN(I142,0)),1),_Esperanzas!$R$5:$S$18,2,TRUE),0),0),12) -> 190 | K142: 89.55833311 | L142: =L141+(L145-L135)/10 -> 19.02499981 | M142: =IFERROR(ROUND((ROUNDDOWN(L142,0)*12)+IFERROR(VLOOKUP(ROUND(L142-(ROUNDDOWN(L142,0)),1),_Esperanzas!$R$5:$S$18,2,TRUE),0),0),12) -> 228 | N142: 92.72499981 | AC142: 73.7 | AD142: =AD141+(AD145-AD135)/10 -> 13.83333321 | AE142: =IFERROR(ROUND((ROUNDDOWN(AD142,0)*12)+IFERROR(VLOOKUP(ROUND(AD142-(ROUNDDOWN(AD142,0)),1),_Esperanzas!$R$5:$S$18,2,TRUE),0),0),12) -> 165 | AF142: 87.53333321 | AG142: =AG141+(AG145-AG135)/10 -> 16.94166641 | AH142: =IFERROR(ROUND((ROUNDDOWN(AG142,0)*12)+IFERROR(VLOOKUP(ROUND(AG142-(ROUNDDOWN(AG142,0)),1),_Esperanzas!$R$5:$S$18,2,TRUE),0),0),12) -> 202 | AI142: 90.64166641
H143: 73.8 | I143: =I142+(I145-I135)/10 -> 15.76666641 | J143: =IFERROR(ROUND((ROUNDDOWN(I143,0)*12)+IFERROR(VLOOKUP(ROUND(I143-(ROUNDDOWN(I143,0)),1),_Esperanzas!$R$5:$S$18,2,TRUE),0),0),12) -> 189 | K143: 89.56666641 | L143: =L142+(L145-L135)/10 -> 18.93333321 | M143: =IFERROR(ROUND((ROUNDDOWN(L143,0)*12)+IFERROR(VLOOKUP(ROUND(L143-(ROUNDDOWN(L143,0)),1),_Esperanzas!$R$5:$S$18,2,TRUE),0),0),12) -> 226 | N143: 92.73333321 | AC143: 73.8 | AD143: =AD142+(AD145-AD135)/10 -> 13.74999981 | AE143: =IFERROR(ROUND((ROUNDDOWN(AD143,0)*12)+IFERROR(VLOOKUP(ROUND(AD143-(ROUNDDOWN(AD143,0)),1),_Esperanzas!$R$5:$S$18,2,TRUE),0),0),12) -> 164 | AF143: 87.54999981 | AG143: =AG142+(AG145-AG135)/10 -> 16.84999962 | AH143: =IFERROR(ROUND((ROUNDDOWN(AG143,0)*12)+IFERROR(VLOOKUP(ROUND(AG143-(ROUNDDOWN(AG143,0)),1),_Esperanzas!$R$5:$S$18,2,TRUE),0),0),12) -> 201 | AI143: 90.64999962
H144: 73.9 | I144: =I143+(I145-I135)/10 -> 15.67499971 | J144: =IFERROR(ROUND((ROUNDDOWN(I144,0)*12)+IFERROR(VLOOKUP(ROUND(I144-(ROUNDDOWN(I144,0)),1),_Esperanzas!$R$5:$S$18,2,TRUE),0),0),12) -> 188 | K144: 89.57499971 | L144: =L143+(L145-L135)/10 -> 18.8416666 | M144: =IFERROR(ROUND((ROUNDDOWN(L144,0)*12)+IFERROR(VLOOKUP(ROUND(L144-(ROUNDDOWN(L144,0)),1),_Esperanzas!$R$5:$S$18,2,TRUE),0),0),12) -> 225 | N144: 92.7416666 | AC144: 73.9 | AD144: =AD143+(AD145-AD135)/10 -> 13.66666641 | AE144: =IFERROR(ROUND((ROUNDDOWN(AD144,0)*12)+IFERROR(VLOOKUP(ROUND(AD144-(ROUNDDOWN(AD144,0)),1),_Esperanzas!$R$5:$S$18,2,TRUE),0),0),12) -> 164 | AF144: 87.56666641 | AG144: =AG143+(AG145-AG135)/10 -> 16.75833282 | AH144: =IFERROR(ROUND((ROUNDDOWN(AG144,0)*12)+IFERROR(VLOOKUP(ROUND(AG144-(ROUNDDOWN(AG144,0)),1),_Esperanzas!$R$5:$S$18,2,TRUE),0),0),12) -> 201 | AI144: 90.65833282
H145: 74 | I145: =VLOOKUP($H145,$B$5:$F$55,2,0) -> 15.58333302 | J145: =IFERROR(ROUND((ROUNDDOWN(I145,0)*12)+IFERROR(VLOOKUP(ROUND(I145-(ROUNDDOWN(I145,0)),1),_Esperanzas!$R$5:$S$18,2,TRUE),0),0),12) -> 187 | K145: 89.58333302 | L145: =VLOOKUP($H145,$B$5:$F$55,4,0) -> 18.75 | M145: =IFERROR(ROUND((ROUNDDOWN(L145,0)*12)+IFERROR(VLOOKUP(ROUND(L145-(ROUNDDOWN(L145,0)),1),_Esperanzas!$R$5:$S$18,2,TRUE),0),0),12) -> 225 | N145: 92.75 | AC145: 74 | AD145: =VLOOKUP($AC145,$W$5:$AA$55,2,0) -> 13.58333302 | AE145: =IFERROR(ROUND((ROUNDDOWN(AD145,0)*12)+IFERROR(VLOOKUP(ROUND(AD145-(ROUNDDOWN(AD145,0)),1),_Esperanzas!$R$5:$S$18,2,TRUE),0),0),12) -> 163 | AF145: 87.58333302 | AG145: =VLOOKUP($AC145,$W$5:$AA$55,4,0) -> 16.66666603 | AH145: =IFERROR(ROUND((ROUNDDOWN(AG145,0)*12)+IFERROR(VLOOKUP(ROUND(AG145-(ROUNDDOWN(AG145,0)),1),_Esperanzas!$R$5:$S$18,2,TRUE),0),0),12) -> 200 | AI145: 90.66666603
H146: 74.1 | I146: =I145+(I155-I145)/10 -> 15.49999971 | J146: =IFERROR(ROUND((ROUNDDOWN(I146,0)*12)+IFERROR(VLOOKUP(ROUND(I146-(ROUNDDOWN(I146,0)),1),_Esperanzas!$R$5:$S$18,2,TRUE),0),0),12) -> 186 | K146: 89.59999971 | L146: =L145+(L155-L145)/10 -> 18.6583334 | M146: =IFERROR(ROUND((ROUNDDOWN(L146,0)*12)+IFERROR(VLOOKUP(ROUND(L146-(ROUNDDOWN(L146,0)),1),_Esperanzas!$R$5:$S$18,2,TRUE),0),0),12) -> 224 | N146: 92.7583334 | AC146: 74.1 | AD146: =AD145+(AD155-AD145)/10 -> 13.49999971 | AE146: =IFERROR(ROUND((ROUNDDOWN(AD146,0)*12)+IFERROR(VLOOKUP(ROUND(AD146-(ROUNDDOWN(AD146,0)),1),_Esperanzas!$R$5:$S$18,2,TRUE),0),0),12) -> 162 | AF146: 87.59999971 | AG146: =AG145+(AG155-AG145)/10 -> 16.58333273 | AH146: =IFERROR(ROUND((ROUNDDOWN(AG146,0)*12)+IFERROR(VLOOKUP(ROUND(AG146-(ROUNDDOWN(AG146,0)),1),_Esperanzas!$R$5:$S$18,2,TRUE),0),0),12) -> 199 | AI146: 90.68333273
H147: 74.2 | I147: =I146+(I155-I145)/10 -> 15.41666641 | J147: =IFERROR(ROUND((ROUNDDOWN(I147,0)*12)+IFERROR(VLOOKUP(ROUND(I147-(ROUNDDOWN(I147,0)),1),_Esperanzas!$R$5:$S$18,2,TRUE),0),0),12) -> 184 | K147: =I147+H147 -> 89.61666641 | L147: =L146+(L155-L145)/10 -> 18.56666679 | M147: =IFERROR(ROUND((ROUNDDOWN(L147,0)*12)+IFERROR(VLOOKUP(ROUND(L147-(ROUNDDOWN(L147,0)),1),_Esperanzas!$R$5:$S$18,2,TRUE),0),0),12) -> 223 | N147: 92.76666679 | AC147: 74.2 | AD147: =AD146+(AD155-AD145)/10 -> 13.41666641 | AE147: =IFERROR(ROUND((ROUNDDOWN(AD147,0)*12)+IFERROR(VLOOKUP(ROUND(AD147-(ROUNDDOWN(AD147,0)),1),_Esperanzas!$R$5:$S$18,2,TRUE),0),0),12) -> 160 | AF147: =AD147+AC147 -> 87.61666641 | AG147: =AG146+(AG155-AG145)/10 -> 16.49999943 | AH147: =IFERROR(ROUND((ROUNDDOWN(AG147,0)*12)+IFERROR(VLOOKUP(ROUND(AG147-(ROUNDDOWN(AG147,0)),1),_Esperanzas!$R$5:$S$18,2,TRUE),0),0),12) -> 198 | AI147: =AG147+AC147 -> 90.69999943
H148: 74.3 | I148: =I147+(I155-I145)/10 -> 15.33333311 | J148: =IFERROR(ROUND((ROUNDDOWN(I148,0)*12)+IFERROR(VLOOKUP(ROUND(I148-(ROUNDDOWN(I148,0)),1),_Esperanzas!$R$5:$S$18,2,TRUE),0),0),12) -> 183 | K148: 89.63333311 | L148: =L147+(L155-L145)/10 -> 18.47500019 | M148: =IFERROR(ROUND((ROUNDDOWN(L148,0)*12)+IFERROR(VLOOKUP(ROUND(L148-(ROUNDDOWN(L148,0)),1),_Esperanzas!$R$5:$S$18,2,TRUE),0),0),12) -> 222 | N148: 92.77500019 | AC148: 74.3 | AD148: =AD147+(AD155-AD145)/10 -> 13.33333311 | AE148: =IFERROR(ROUND((ROUNDDOWN(AD148,0)*12)+IFERROR(VLOOKUP(ROUND(AD148-(ROUNDDOWN(AD148,0)),1),_Esperanzas!$R$5:$S$18,2,TRUE),0),0),12) -> 159 | AF148: 87.63333311 | AG148: =AG147+(AG155-AG145)/10 -> 16.41666613 | AH148: =IFERROR(ROUND((ROUNDDOWN(AG148,0)*12)+IFERROR(VLOOKUP(ROUND(AG148-(ROUNDDOWN(AG148,0)),1),_Esperanzas!$R$5:$S$18,2,TRUE),0),0),12) -> 196 | AI148: 90.71666613
H149: 74.4 | I149: =I148+(I155-I145)/10 -> 15.24999981 | J149: =IFERROR(ROUND((ROUNDDOWN(I149,0)*12)+IFERROR(VLOOKUP(ROUND(I149-(ROUNDDOWN(I149,0)),1),_Esperanzas!$R$5:$S$18,2,TRUE),0),0),12) -> 182 | K149: 89.64999981 | L149: =L148+(L155-L145)/10 -> 18.38333359 | M149: =IFERROR(ROUND((ROUNDDOWN(L149,0)*12)+IFERROR(VLOOKUP(ROUND(L149-(ROUNDDOWN(L149,0)),1),_Esperanzas!$R$5:$S$18,2,TRUE),0),0),12) -> 220 | N149: 92.78333359 | AC149: 74.4 | AD149: =AD148+(AD155-AD145)/10 -> 13.24999981 | AE149: =IFERROR(ROUND((ROUNDDOWN(AD149,0)*12)+IFERROR(VLOOKUP(ROUND(AD149-(ROUNDDOWN(AD149,0)),1),_Esperanzas!$R$5:$S$18,2,TRUE),0),0),12) -> 158 | AF149: 87.64999981 | AG149: =AG148+(AG155-AG145)/10 -> 16.33333282 | AH149: =IFERROR(ROUND((ROUNDDOWN(AG149,0)*12)+IFERROR(VLOOKUP(ROUND(AG149-(ROUNDDOWN(AG149,0)),1),_Esperanzas!$R$5:$S$18,2,TRUE),0),0),12) -> 195 | AI149: 90.73333282
H150: 74.5 | I150: =I149+(I155-I145)/10 -> 15.16666651 | J150: =IFERROR(ROUND((ROUNDDOWN(I150,0)*12)+IFERROR(VLOOKUP(ROUND(I150-(ROUNDDOWN(I150,0)),1),_Esperanzas!$R$5:$S$18,2,TRUE),0),0),12) -> 182 | K150: 89.66666651 | L150: =L149+(L155-L145)/10 -> 18.29166698 | M150: =IFERROR(ROUND((ROUNDDOWN(L150,0)*12)+IFERROR(VLOOKUP(ROUND(L150-(ROUNDDOWN(L150,0)),1),_Esperanzas!$R$5:$S$18,2,TRUE),0),0),12) -> 219 | N150: 92.79166698 | AC150: 74.5 | AD150: =AD149+(AD155-AD145)/10 -> 13.16666651 | AE150: =IFERROR(ROUND((ROUNDDOWN(AD150,0)*12)+IFERROR(VLOOKUP(ROUND(AD150-(ROUNDDOWN(AD150,0)),1),_Esperanzas!$R$5:$S$18,2,TRUE),0),0),12) -> 158 | AF150: 87.66666651 | AG150: =AG149+(AG155-AG145)/10 -> 16.24999952 | AH150: =IFERROR(ROUND((ROUNDDOWN(AG150,0)*12)+IFERROR(VLOOKUP(ROUND(AG150-(ROUNDDOWN(AG150,0)),1),_Esperanzas!$R$5:$S$18,2,TRUE),0),0),12) -> 194 | AI150: 90.74999952
H151: 74.6 | I151: =I150+(I155-I145)/10 -> 15.08333321 | J151: =IFERROR(ROUND((ROUNDDOWN(I151,0)*12)+IFERROR(VLOOKUP(ROUND(I151-(ROUNDDOWN(I151,0)),1),_Esperanzas!$R$5:$S$18,2,TRUE),0),0),12) -> 181 | K151: 89.68333321 | L151: =L150+(L155-L145)/10 -> 18.20000038 | M151: =IFERROR(ROUND((ROUNDDOWN(L151,0)*12)+IFERROR(VLOOKUP(ROUND(L151-(ROUNDDOWN(L151,0)),1),_Esperanzas!$R$5:$S$18,2,TRUE),0),0),12) -> 218 | N151: 92.80000038 | AC151: 74.6 | AD151: =AD150+(AD155-AD145)/10 -> 13.08333321 | AE151: =IFERROR(ROUND((ROUNDDOWN(AD151,0)*12)+IFERROR(VLOOKUP(ROUND(AD151-(ROUNDDOWN(AD151,0)),1),_Esperanzas!$R$5:$S$18,2,TRUE),0),0),12) -> 157 | AF151: 87.68333321 | AG151: =AG150+(AG155-AG145)/10 -> 16.16666622 | AH151: =IFERROR(ROUND((ROUNDDOWN(AG151,0)*12)+IFERROR(VLOOKUP(ROUND(AG151-(ROUNDDOWN(AG151,0)),1),_Esperanzas!$R$5:$S$18,2,TRUE),0),0),12) -> 194 | AI151: 90.76666622
H152: 74.7 | I152: =I151+(I155-I145)/10 -> 14.9999999 | J152: =IFERROR(ROUND((ROUNDDOWN(I152,0)*12)+IFERROR(VLOOKUP(ROUND(I152-(ROUNDDOWN(I152,0)),1),_Esperanzas!$R$5:$S$18,2,TRUE),0),0),12) -> 180 | K152: 89.6999999 | L152: =L151+(L155-L145)/10 -> 18.10833378 | M152: =IFERROR(ROUND((ROUNDDOWN(L152,0)*12)+IFERROR(VLOOKUP(ROUND(L152-(ROUNDDOWN(L152,0)),1),_Esperanzas!$R$5:$S$18,2,TRUE),0),0),12) -> 217 | N152: 92.80833378 | AC152: 74.7 | AD152: =AD151+(AD155-AD145)/10 -> 12.9999999 | AE152: =IFERROR(ROUND((ROUNDDOWN(AD152,0)*12)+IFERROR(VLOOKUP(ROUND(AD152-(ROUNDDOWN(AD152,0)),1),_Esperanzas!$R$5:$S$18,2,TRUE),0),0),12) -> 156 | AF152: 87.6999999 | AG152: =AG151+(AG155-AG145)/10 -> 16.08333292 | AH152: =IFERROR(ROUND((ROUNDDOWN(AG152,0)*12)+IFERROR(VLOOKUP(ROUND(AG152-(ROUNDDOWN(AG152,0)),1),_Esperanzas!$R$5:$S$18,2,TRUE),0),0),12) -> 193 | AI152: 90.78333292
H153: 74.8 | I153: =I152+(I155-I145)/10 -> 14.9166666 | J153: =IFERROR(ROUND((ROUNDDOWN(I153,0)*12)+IFERROR(VLOOKUP(ROUND(I153-(ROUNDDOWN(I153,0)),1),_Esperanzas!$R$5:$S$18,2,TRUE),0),0),12) -> 178 | K153: 89.7166666 | L153: =L152+(L155-L145)/10 -> 18.01666718 | M153: =IFERROR(ROUND((ROUNDDOWN(L153,0)*12)+IFERROR(VLOOKUP(ROUND(L153-(ROUNDDOWN(L153,0)),1),_Esperanzas!$R$5:$S$18,2,TRUE),0),0),12) -> 216 | N153: 92.81666718 | AC153: 74.8 | AD153: =AD152+(AD155-AD145)/10 -> 12.9166666 | AE153: =IFERROR(ROUND((ROUNDDOWN(AD153,0)*12)+IFERROR(VLOOKUP(ROUND(AD153-(ROUNDDOWN(AD153,0)),1),_Esperanzas!$R$5:$S$18,2,TRUE),0),0),12) -> 154 | AF153: 87.7166666 | AG153: =AG152+(AG155-AG145)/10 -> 15.99999962 | AH153: =IFERROR(ROUND((ROUNDDOWN(AG153,0)*12)+IFERROR(VLOOKUP(ROUND(AG153-(ROUNDDOWN(AG153,0)),1),_Esperanzas!$R$5:$S$18,2,TRUE),0),0),12) -> 192 | AI153: 90.79999962
H154: 74.9 | I154: =I153+(I155-I145)/10 -> 14.8333333 | J154: =IFERROR(ROUND((ROUNDDOWN(I154,0)*12)+IFERROR(VLOOKUP(ROUND(I154-(ROUNDDOWN(I154,0)),1),_Esperanzas!$R$5:$S$18,2,TRUE),0),0),12) -> 177 | K154: 89.7333333 | L154: =L153+(L155-L145)/10 -> 17.92500057 | M154: =IFERROR(ROUND((ROUNDDOWN(L154,0)*12)+IFERROR(VLOOKUP(ROUND(L154-(ROUNDDOWN(L154,0)),1),_Esperanzas!$R$5:$S$18,2,TRUE),0),0),12) -> 214 | N154: 92.82500057 | AC154: 74.9 | AD154: =AD153+(AD155-AD145)/10 -> 12.8333333 | AE154: =IFERROR(ROUND((ROUNDDOWN(AD154,0)*12)+IFERROR(VLOOKUP(ROUND(AD154-(ROUNDDOWN(AD154,0)),1),_Esperanzas!$R$5:$S$18,2,TRUE),0),0),12) -> 153 | AF154: 87.7333333 | AG154: =AG153+(AG155-AG145)/10 -> 15.91666632 | AH154: =IFERROR(ROUND((ROUNDDOWN(AG154,0)*12)+IFERROR(VLOOKUP(ROUND(AG154-(ROUNDDOWN(AG154,0)),1),_Esperanzas!$R$5:$S$18,2,TRUE),0),0),12) -> 190 | AI154: 90.81666632
H155: 75 | I155: =VLOOKUP($H155,$B$5:$F$55,2,0) -> 14.75 | J155: =IFERROR(ROUND((ROUNDDOWN(I155,0)*12)+IFERROR(VLOOKUP(ROUND(I155-(ROUNDDOWN(I155,0)),1),_Esperanzas!$R$5:$S$18,2,TRUE),0),0),12) -> 177 | K155: 89.75 | L155: =VLOOKUP($H155,$B$5:$F$55,4,0) -> 17.83333397 | M155: =IFERROR(ROUND((ROUNDDOWN(L155,0)*12)+IFERROR(VLOOKUP(ROUND(L155-(ROUNDDOWN(L155,0)),1),_Esperanzas!$R$5:$S$18,2,TRUE),0),0),12) -> 213 | N155: 92.83333397 | AC155: 75 | AD155: =VLOOKUP($AC155,$W$5:$AA$55,2,0) -> 12.75 | AE155: =IFERROR(ROUND((ROUNDDOWN(AD155,0)*12)+IFERROR(VLOOKUP(ROUND(AD155-(ROUNDDOWN(AD155,0)),1),_Esperanzas!$R$5:$S$18,2,TRUE),0),0),12) -> 153 | AF155: 87.75 | AG155: =VLOOKUP($AC155,$W$5:$AA$55,4,0) -> 15.83333302 | AH155: =IFERROR(ROUND((ROUNDDOWN(AG155,0)*12)+IFERROR(VLOOKUP(ROUND(AG155-(ROUNDDOWN(AG155,0)),1),_Esperanzas!$R$5:$S$18,2,TRUE),0),0),12) -> 189 | AI155: 90.83333302
H156: 75.1 | I156: =I155+(I165-I155)/10 -> 14.6666667 | J156: =IFERROR(ROUND((ROUNDDOWN(I156,0)*12)+IFERROR(VLOOKUP(ROUND(I156-(ROUNDDOWN(I156,0)),1),_Esperanzas!$R$5:$S$18,2,TRUE),0),0),12) -> 176 | K156: 89.7666667 | L156: =L155+(L165-L155)/10 -> 17.74166718 | M156: =IFERROR(ROUND((ROUNDDOWN(L156,0)*12)+IFERROR(VLOOKUP(ROUND(L156-(ROUNDDOWN(L156,0)),1),_Esperanzas!$R$5:$S$18,2,TRUE),0),0),12) -> 212 | N156: 92.84166718 | AC156: 75.1 | AD156: =AD155+(AD165-AD155)/10 -> 12.6666667 | AE156: =IFERROR(ROUND((ROUNDDOWN(AD156,0)*12)+IFERROR(VLOOKUP(ROUND(AD156-(ROUNDDOWN(AD156,0)),1),_Esperanzas!$R$5:$S$18,2,TRUE),0),0),12) -> 152 | AF156: 87.7666667 | AG156: =AG155+(AG165-AG155)/10 -> 15.74166641 | AH156: =IFERROR(ROUND((ROUNDDOWN(AG156,0)*12)+IFERROR(VLOOKUP(ROUND(AG156-(ROUNDDOWN(AG156,0)),1),_Esperanzas!$R$5:$S$18,2,TRUE),0),0),12) -> 188 | AI156: 90.84166641
H157: 75.2 | I157: =I156+(I165-I155)/10 -> 14.5833334 | J157: =IFERROR(ROUND((ROUNDDOWN(I157,0)*12)+IFERROR(VLOOKUP(ROUND(I157-(ROUNDDOWN(I157,0)),1),_Esperanzas!$R$5:$S$18,2,TRUE),0),0),12) -> 175 | K157: 89.7833334 | L157: =L156+(L165-L155)/10 -> 17.65000038 | M157: =IFERROR(ROUND((ROUNDDOWN(L157,0)*12)+IFERROR(VLOOKUP(ROUND(L157-(ROUNDDOWN(L157,0)),1),_Esperanzas!$R$5:$S$18,2,TRUE),0),0),12) -> 212 | N157: 92.85000038 | AC157: 75.2 | AD157: =AD156+(AD165-AD155)/10 -> 12.5833334 | AE157: =IFERROR(ROUND((ROUNDDOWN(AD157,0)*12)+IFERROR(VLOOKUP(ROUND(AD157-(ROUNDDOWN(AD157,0)),1),_Esperanzas!$R$5:$S$18,2,TRUE),0),0),12) -> 151 | AF157: 87.7833334 | AG157: =AG156+(AG165-AG155)/10 -> 15.64999981 | AH157: =IFERROR(ROUND((ROUNDDOWN(AG157,0)*12)+IFERROR(VLOOKUP(ROUND(AG157-(ROUNDDOWN(AG157,0)),1),_Esperanzas!$R$5:$S$18,2,TRUE),0),0),12) -> 187 | AI157: 90.84999981
H158: 75.3 | I158: =I157+(I165-I155)/10 -> 14.5000001 | J158: =IFERROR(ROUND((ROUNDDOWN(I158,0)*12)+IFERROR(VLOOKUP(ROUND(I158-(ROUNDDOWN(I158,0)),1),_Esperanzas!$R$5:$S$18,2,TRUE),0),0),12) -> 174 | K158: 89.8000001 | L158: =L157+(L165-L155)/10 -> 17.55833359 | M158: =IFERROR(ROUND((ROUNDDOWN(L158,0)*12)+IFERROR(VLOOKUP(ROUND(L158-(ROUNDDOWN(L158,0)),1),_Esperanzas!$R$5:$S$18,2,TRUE),0),0),12) -> 211 | N158: 92.85833359 | AC158: 75.3 | AD158: =AD157+(AD165-AD155)/10 -> 12.5000001 | AE158: =IFERROR(ROUND((ROUNDDOWN(AD158,0)*12)+IFERROR(VLOOKUP(ROUND(AD158-(ROUNDDOWN(AD158,0)),1),_Esperanzas!$R$5:$S$18,2,TRUE),0),0),12) -> 150 | AF158: 87.8000001 | AG158: =AG157+(AG165-AG155)/10 -> 15.55833321 | AH158: =IFERROR(ROUND((ROUNDDOWN(AG158,0)*12)+IFERROR(VLOOKUP(ROUND(AG158-(ROUNDDOWN(AG158,0)),1),_Esperanzas!$R$5:$S$18,2,TRUE),0),0),12) -> 187 | AI158: 90.85833321
H159: 75.4 | I159: =I158+(I165-I155)/10 -> 14.41666679 | J159: =IFERROR(ROUND((ROUNDDOWN(I159,0)*12)+IFERROR(VLOOKUP(ROUND(I159-(ROUNDDOWN(I159,0)),1),_Esperanzas!$R$5:$S$18,2,TRUE),0),0),12) -> 172 | K159: 89.81666679 | L159: =L158+(L165-L155)/10 -> 17.46666679 | M159: =IFERROR(ROUND((ROUNDDOWN(L159,0)*12)+IFERROR(VLOOKUP(ROUND(L159-(ROUNDDOWN(L159,0)),1),_Esperanzas!$R$5:$S$18,2,TRUE),0),0),12) -> 210 | N159: 92.86666679 | AC159: 75.4 | AD159: =AD158+(AD165-AD155)/10 -> 12.41666679 | AE159: =IFERROR(ROUND((ROUNDDOWN(AD159,0)*12)+IFERROR(VLOOKUP(ROUND(AD159-(ROUNDDOWN(AD159,0)),1),_Esperanzas!$R$5:$S$18,2,TRUE),0),0),12) -> 148 | AF159: 87.81666679 | AG159: =AG158+(AG165-AG155)/10 -> 15.4666666 | AH159: =IFERROR(ROUND((ROUNDDOWN(AG159,0)*12)+IFERROR(VLOOKUP(ROUND(AG159-(ROUNDDOWN(AG159,0)),1),_Esperanzas!$R$5:$S$18,2,TRUE),0),0),12) -> 186 | AI159: 90.8666666
H160: 75.5 | I160: =I159+(I165-I155)/10 -> 14.33333349 | J160: =IFERROR(ROUND((ROUNDDOWN(I160,0)*12)+IFERROR(VLOOKUP(ROUND(I160-(ROUNDDOWN(I160,0)),1),_Esperanzas!$R$5:$S$18,2,TRUE),0),0),12) -> 171 | K160: 89.83333349 | L160: =L159+(L165-L155)/10 -> 17.375 | M160: =IFERROR(ROUND((ROUNDDOWN(L160,0)*12)+IFERROR(VLOOKUP(ROUND(L160-(ROUNDDOWN(L160,0)),1),_Esperanzas!$R$5:$S$18,2,TRUE),0),0),12) -> 208 | N160: 92.875 | AC160: 75.5 | AD160: =AD159+(AD165-AD155)/10 -> 12.33333349 | AE160: =IFERROR(ROUND((ROUNDDOWN(AD160,0)*12)+IFERROR(VLOOKUP(ROUND(AD160-(ROUNDDOWN(AD160,0)),1),_Esperanzas!$R$5:$S$18,2,TRUE),0),0),12) -> 147 | AF160: 87.83333349 | AG160: =AG159+(AG165-AG155)/10 -> 15.375 | AH160: =IFERROR(ROUND((ROUNDDOWN(AG160,0)*12)+IFERROR(VLOOKUP(ROUND(AG160-(ROUNDDOWN(AG160,0)),1),_Esperanzas!$R$5:$S$18,2,TRUE),0),0),12) -> 184 | AI160: 90.875
H161: 75.6 | I161: =I160+(I165-I155)/10 -> 14.25000019 | J161: =IFERROR(ROUND((ROUNDDOWN(I161,0)*12)+IFERROR(VLOOKUP(ROUND(I161-(ROUNDDOWN(I161,0)),1),_Esperanzas!$R$5:$S$18,2,TRUE),0),0),12) -> 171 | K161: 89.85000019 | L161: =L160+(L165-L155)/10 -> 17.28333321 | M161: =IFERROR(ROUND((ROUNDDOWN(L161,0)*12)+IFERROR(VLOOKUP(ROUND(L161-(ROUNDDOWN(L161,0)),1),_Esperanzas!$R$5:$S$18,2,TRUE),0),0),12) -> 207 | N161: 92.88333321 | AC161: 75.6 | AD161: =AD160+(AD165-AD155)/10 -> 12.25000019 | AE161: =IFERROR(ROUND((ROUNDDOWN(AD161,0)*12)+IFERROR(VLOOKUP(ROUND(AD161-(ROUNDDOWN(AD161,0)),1),_Esperanzas!$R$5:$S$18,2,TRUE),0),0),12) -> 147 | AF161: 87.85000019 | AG161: =AG160+(AG165-AG155)/10 -> 15.2833334 | AH161: =IFERROR(ROUND((ROUNDDOWN(AG161,0)*12)+IFERROR(VLOOKUP(ROUND(AG161-(ROUNDDOWN(AG161,0)),1),_Esperanzas!$R$5:$S$18,2,TRUE),0),0),12) -> 183 | AI161: 90.8833334
H162: 75.7 | I162: =I161+(I165-I155)/10 -> 14.16666689 | J162: =IFERROR(ROUND((ROUNDDOWN(I162,0)*12)+IFERROR(VLOOKUP(ROUND(I162-(ROUNDDOWN(I162,0)),1),_Esperanzas!$R$5:$S$18,2,TRUE),0),0),12) -> 170 | K162: 89.86666689 | L162: =L161+(L165-L155)/10 -> 17.19166641 | M162: =IFERROR(ROUND((ROUNDDOWN(L162,0)*12)+IFERROR(VLOOKUP(ROUND(L162-(ROUNDDOWN(L162,0)),1),_Esperanzas!$R$5:$S$18,2,TRUE),0),0),12) -> 206 | N162: 92.89166641 | AC162: 75.7 | AD162: =AD161+(AD165-AD155)/10 -> 12.16666689 | AE162: =IFERROR(ROUND((ROUNDDOWN(AD162,0)*12)+IFERROR(VLOOKUP(ROUND(AD162-(ROUNDDOWN(AD162,0)),1),_Esperanzas!$R$5:$S$18,2,TRUE),0),0),12) -> 146 | AF162: 87.86666689 | AG162: =AG161+(AG165-AG155)/10 -> 15.19166679 | AH162: =IFERROR(ROUND((ROUNDDOWN(AG162,0)*12)+IFERROR(VLOOKUP(ROUND(AG162-(ROUNDDOWN(AG162,0)),1),_Esperanzas!$R$5:$S$18,2,TRUE),0),0),12) -> 182 | AI162: 90.89166679
H163: 75.8 | I163: =I162+(I165-I155)/10 -> 14.08333359 | J163: =IFERROR(ROUND((ROUNDDOWN(I163,0)*12)+IFERROR(VLOOKUP(ROUND(I163-(ROUNDDOWN(I163,0)),1),_Esperanzas!$R$5:$S$18,2,TRUE),0),0),12) -> 169 | K163: 89.88333359 | L163: =L162+(L165-L155)/10 -> 17.09999962 | M163: =IFERROR(ROUND((ROUNDDOWN(L163,0)*12)+IFERROR(VLOOKUP(ROUND(L163-(ROUNDDOWN(L163,0)),1),_Esperanzas!$R$5:$S$18,2,TRUE),0),0),12) -> 205 | N163: 92.89999962 | AC163: 75.8 | AD163: =AD162+(AD165-AD155)/10 -> 12.08333359 | AE163: =IFERROR(ROUND((ROUNDDOWN(AD163,0)*12)+IFERROR(VLOOKUP(ROUND(AD163-(ROUNDDOWN(AD163,0)),1),_Esperanzas!$R$5:$S$18,2,TRUE),0),0),12) -> 145 | AF163: 87.88333359 | AG163: =AG162+(AG165-AG155)/10 -> 15.10000019 | AH163: =IFERROR(ROUND((ROUNDDOWN(AG163,0)*12)+IFERROR(VLOOKUP(ROUND(AG163-(ROUNDDOWN(AG163,0)),1),_Esperanzas!$R$5:$S$18,2,TRUE),0),0),12) -> 181 | AI163: 90.90000019
H164: 75.9 | I164: =I163+(I165-I155)/10 -> 14.00000029 | J164: =IFERROR(ROUND((ROUNDDOWN(I164,0)*12)+IFERROR(VLOOKUP(ROUND(I164-(ROUNDDOWN(I164,0)),1),_Esperanzas!$R$5:$S$18,2,TRUE),0),0),12) -> 168 | K164: 89.90000029 | L164: =L163+(L165-L155)/10 -> 17.00833282 | M164: =IFERROR(ROUND((ROUNDDOWN(L164,0)*12)+IFERROR(VLOOKUP(ROUND(L164-(ROUNDDOWN(L164,0)),1),_Esperanzas!$R$5:$S$18,2,TRUE),0),0),12) -> 204 | N164: 92.90833282 | AC164: 75.9 | AD164: =AD163+(AD165-AD155)/10 -> 12.00000029 | AE164: =IFERROR(ROUND((ROUNDDOWN(AD164,0)*12)+IFERROR(VLOOKUP(ROUND(AD164-(ROUNDDOWN(AD164,0)),1),_Esperanzas!$R$5:$S$18,2,TRUE),0),0),12) -> 144 | AF164: 87.90000029 | AG164: =AG163+(AG165-AG155)/10 -> 15.00833359 | AH164: =IFERROR(ROUND((ROUNDDOWN(AG164,0)*12)+IFERROR(VLOOKUP(ROUND(AG164-(ROUNDDOWN(AG164,0)),1),_Esperanzas!$R$5:$S$18,2,TRUE),0),0),12) -> 180 | AI164: 90.90833359
H165: 76 | I165: =VLOOKUP($H165,$B$5:$F$55,2,0) -> 13.91666698 | J165: =IFERROR(ROUND((ROUNDDOWN(I165,0)*12)+IFERROR(VLOOKUP(ROUND(I165-(ROUNDDOWN(I165,0)),1),_Esperanzas!$R$5:$S$18,2,TRUE),0),0),12) -> 166 | K165: 89.91666698 | L165: =VLOOKUP($H165,$B$5:$F$55,4,0) -> 16.91666603 | M165: =IFERROR(ROUND((ROUNDDOWN(L165,0)*12)+IFERROR(VLOOKUP(ROUND(L165-(ROUNDDOWN(L165,0)),1),_Esperanzas!$R$5:$S$18,2,TRUE),0),0),12) -> 202 | N165: 92.91666603 | AC165: 76 | AD165: =VLOOKUP($AC165,$W$5:$AA$55,2,0) -> 11.91666698 | AE165: =IFERROR(ROUND((ROUNDDOWN(AD165,0)*12)+IFERROR(VLOOKUP(ROUND(AD165-(ROUNDDOWN(AD165,0)),1),_Esperanzas!$R$5:$S$18,2,TRUE),0),0),12) -> 142 | AF165: 87.91666698 | AG165: =VLOOKUP($AC165,$W$5:$AA$55,4,0) -> 14.91666698 | AH165: =IFERROR(ROUND((ROUNDDOWN(AG165,0)*12)+IFERROR(VLOOKUP(ROUND(AG165-(ROUNDDOWN(AG165,0)),1),_Esperanzas!$R$5:$S$18,2,TRUE),0),0),12) -> 178 | AI165: 90.91666698
H166: 76.1 | I166: =I165+(I175-I165)/10 -> 13.83333359 | J166: =IFERROR(ROUND((ROUNDDOWN(I166,0)*12)+IFERROR(VLOOKUP(ROUND(I166-(ROUNDDOWN(I166,0)),1),_Esperanzas!$R$5:$S$18,2,TRUE),0),0),12) -> 165 | K166: 89.93333359 | L166: =L165+(L175-L165)/10 -> 16.82499943 | M166: =IFERROR(ROUND((ROUNDDOWN(L166,0)*12)+IFERROR(VLOOKUP(ROUND(L166-(ROUNDDOWN(L166,0)),1),_Esperanzas!$R$5:$S$18,2,TRUE),0),0),12) -> 201 | N166: 92.92499943 | AC166: 76.1 | AD166: =AD165+(AD175-AD165)/10 -> 11.84166698 | AE166: =IFERROR(ROUND((ROUNDDOWN(AD166,0)*12)+IFERROR(VLOOKUP(ROUND(AD166-(ROUNDDOWN(AD166,0)),1),_Esperanzas!$R$5:$S$18,2,TRUE),0),0),12) -> 141 | AF166: 87.94166698 | AG166: =AG165+(AG175-AG165)/10 -> 14.82500029 | AH166: =IFERROR(ROUND((ROUNDDOWN(AG166,0)*12)+IFERROR(VLOOKUP(ROUND(AG166-(ROUNDDOWN(AG166,0)),1),_Esperanzas!$R$5:$S$18,2,TRUE),0),0),12) -> 177 | AI166: 90.92500029
H167: 76.2 | I167: =I166+(I175-I165)/10 -> 13.75000019 | J167: =IFERROR(ROUND((ROUNDDOWN(I167,0)*12)+IFERROR(VLOOKUP(ROUND(I167-(ROUNDDOWN(I167,0)),1),_Esperanzas!$R$5:$S$18,2,TRUE),0),0),12) -> 165 | K167: 89.95000019 | L167: =L166+(L175-L165)/10 -> 16.73333282 | M167: =IFERROR(ROUND((ROUNDDOWN(L167,0)*12)+IFERROR(VLOOKUP(ROUND(L167-(ROUNDDOWN(L167,0)),1),_Esperanzas!$R$5:$S$18,2,TRUE),0),0),12) -> 200 | N167: 92.93333282 | AC167: 76.2 | AD167: =AD166+(AD175-AD165)/10 -> 11.76666698 | AE167: =IFERROR(ROUND((ROUNDDOWN(AD167,0)*12)+IFERROR(VLOOKUP(ROUND(AD167-(ROUNDDOWN(AD167,0)),1),_Esperanzas!$R$5:$S$18,2,TRUE),0),0),12) -> 141 | AF167: 87.96666698 | AG167: =AG166+(AG175-AG165)/10 -> 14.73333359 | AH167: =IFERROR(ROUND((ROUNDDOWN(AG167,0)*12)+IFERROR(VLOOKUP(ROUND(AG167-(ROUNDDOWN(AG167,0)),1),_Esperanzas!$R$5:$S$18,2,TRUE),0),0),12) -> 176 | AI167: 90.93333359
H168: 76.3 | I168: =I167+(I175-I165)/10 -> 13.66666679 | J168: =IFERROR(ROUND((ROUNDDOWN(I168,0)*12)+IFERROR(VLOOKUP(ROUND(I168-(ROUNDDOWN(I168,0)),1),_Esperanzas!$R$5:$S$18,2,TRUE),0),0),12) -> 164 | K168: 89.96666679 | L168: =L167+(L175-L165)/10 -> 16.64166622 | M168: =IFERROR(ROUND((ROUNDDOWN(L168,0)*12)+IFERROR(VLOOKUP(ROUND(L168-(ROUNDDOWN(L168,0)),1),_Esperanzas!$R$5:$S$18,2,TRUE),0),0),12) -> 199 | N168: 92.94166622 | AC168: 76.3 | AD168: =AD167+(AD175-AD165)/10 -> 11.69166698 | AE168: =IFERROR(ROUND((ROUNDDOWN(AD168,0)*12)+IFERROR(VLOOKUP(ROUND(AD168-(ROUNDDOWN(AD168,0)),1),_Esperanzas!$R$5:$S$18,2,TRUE),0),0),12) -> 140 | AF168: 87.99166698 | AG168: =AG167+(AG175-AG165)/10 -> 14.64166689 | AH168: =IFERROR(ROUND((ROUNDDOWN(AG168,0)*12)+IFERROR(VLOOKUP(ROUND(AG168-(ROUNDDOWN(AG168,0)),1),_Esperanzas!$R$5:$S$18,2,TRUE),0),0),12) -> 175 | AI168: 90.94166689
H169: 76.4 | I169: =I168+(I175-I165)/10 -> 13.5833334 | J169: =IFERROR(ROUND((ROUNDDOWN(I169,0)*12)+IFERROR(VLOOKUP(ROUND(I169-(ROUNDDOWN(I169,0)),1),_Esperanzas!$R$5:$S$18,2,TRUE),0),0),12) -> 163 | K169: 89.9833334 | L169: =L168+(L175-L165)/10 -> 16.54999962 | M169: =IFERROR(ROUND((ROUNDDOWN(L169,0)*12)+IFERROR(VLOOKUP(ROUND(L169-(ROUNDDOWN(L169,0)),1),_Esperanzas!$R$5:$S$18,2,TRUE),0),0),12) -> 198 | N169: 92.94999962 | AC169: 76.4 | AD169: =AD168+(AD175-AD165)/10 -> 11.61666698 | AE169: =IFERROR(ROUND((ROUNDDOWN(AD169,0)*12)+IFERROR(VLOOKUP(ROUND(AD169-(ROUNDDOWN(AD169,0)),1),_Esperanzas!$R$5:$S$18,2,TRUE),0),0),12) -> 139 | AF169: 88.01666698 | AG169: =AG168+(AG175-AG165)/10 -> 14.55000019 | AH169: =IFERROR(ROUND((ROUNDDOWN(AG169,0)*12)+IFERROR(VLOOKUP(ROUND(AG169-(ROUNDDOWN(AG169,0)),1),_Esperanzas!$R$5:$S$18,2,TRUE),0),0),12) -> 175 | AI169: 90.95000019
H170: 76.5 | I170: =I169+(I175-I165)/10 -> 13.5 | J170: =IFERROR(ROUND((ROUNDDOWN(I170,0)*12)+IFERROR(VLOOKUP(ROUND(I170-(ROUNDDOWN(I170,0)),1),_Esperanzas!$R$5:$S$18,2,TRUE),0),0),12) -> 162 | K170: 90 | L170: =L169+(L175-L165)/10 -> 16.45833302 | M170: =IFERROR(ROUND((ROUNDDOWN(L170,0)*12)+IFERROR(VLOOKUP(ROUND(L170-(ROUNDDOWN(L170,0)),1),_Esperanzas!$R$5:$S$18,2,TRUE),0),0),12) -> 198 | N170: 92.95833302 | AC170: 76.5 | AD170: =AD169+(AD175-AD165)/10 -> 11.54166698 | AE170: =IFERROR(ROUND((ROUNDDOWN(AD170,0)*12)+IFERROR(VLOOKUP(ROUND(AD170-(ROUNDDOWN(AD170,0)),1),_Esperanzas!$R$5:$S$18,2,TRUE),0),0),12) -> 138 | AF170: 88.04166698 | AG170: =AG169+(AG175-AG165)/10 -> 14.45833349 | AH170: =IFERROR(ROUND((ROUNDDOWN(AG170,0)*12)+IFERROR(VLOOKUP(ROUND(AG170-(ROUNDDOWN(AG170,0)),1),_Esperanzas!$R$5:$S$18,2,TRUE),0),0),12) -> 174 | AI170: 90.95833349
H171: 76.6 | I171: =I170+(I175-I165)/10 -> 13.4166666 | J171: =IFERROR(ROUND((ROUNDDOWN(I171,0)*12)+IFERROR(VLOOKUP(ROUND(I171-(ROUNDDOWN(I171,0)),1),_Esperanzas!$R$5:$S$18,2,TRUE),0),0),12) -> 160 | K171: 90.0166666 | L171: =L170+(L175-L165)/10 -> 16.36666641 | M171: =IFERROR(ROUND((ROUNDDOWN(L171,0)*12)+IFERROR(VLOOKUP(ROUND(L171-(ROUNDDOWN(L171,0)),1),_Esperanzas!$R$5:$S$18,2,TRUE),0),0),12) -> 196 | N171: 92.96666641 | AC171: 76.6 | AD171: =AD170+(AD175-AD165)/10 -> 11.46666698 | AE171: =IFERROR(ROUND((ROUNDDOWN(AD171,0)*12)+IFERROR(VLOOKUP(ROUND(AD171-(ROUNDDOWN(AD171,0)),1),_Esperanzas!$R$5:$S$18,2,TRUE),0),0),12) -> 138 | AF171: 88.06666698 | AG171: =AG170+(AG175-AG165)/10 -> 14.36666679 | AH171: =IFERROR(ROUND((ROUNDDOWN(AG171,0)*12)+IFERROR(VLOOKUP(ROUND(AG171-(ROUNDDOWN(AG171,0)),1),_Esperanzas!$R$5:$S$18,2,TRUE),0),0),12) -> 172 | AI171: 90.96666679
H172: 76.7 | I172: =I171+(I175-I165)/10 -> 13.33333321 | J172: =IFERROR(ROUND((ROUNDDOWN(I172,0)*12)+IFERROR(VLOOKUP(ROUND(I172-(ROUNDDOWN(I172,0)),1),_Esperanzas!$R$5:$S$18,2,TRUE),0),0),12) -> 159 | K172: 90.03333321 | L172: =L171+(L175-L165)/10 -> 16.27499981 | M172: =IFERROR(ROUND((ROUNDDOWN(L172,0)*12)+IFERROR(VLOOKUP(ROUND(L172-(ROUNDDOWN(L172,0)),1),_Esperanzas!$R$5:$S$18,2,TRUE),0),0),12) -> 195 | N172: 92.97499981 | AC172: 76.7 | AD172: =AD171+(AD175-AD165)/10 -> 11.39166698 | AE172: =IFERROR(ROUND((ROUNDDOWN(AD172,0)*12)+IFERROR(VLOOKUP(ROUND(AD172-(ROUNDDOWN(AD172,0)),1),_Esperanzas!$R$5:$S$18,2,TRUE),0),0),12) -> 136 | AF172: 88.09166698 | AG172: =AG171+(AG175-AG165)/10 -> 14.2750001 | AH172: =IFERROR(ROUND((ROUNDDOWN(AG172,0)*12)+IFERROR(VLOOKUP(ROUND(AG172-(ROUNDDOWN(AG172,0)),1),_Esperanzas!$R$5:$S$18,2,TRUE),0),0),12) -> 171 | AI172: 90.9750001
H173: 76.8 | I173: =I172+(I175-I165)/10 -> 13.24999981 | J173: =IFERROR(ROUND((ROUNDDOWN(I173,0)*12)+IFERROR(VLOOKUP(ROUND(I173-(ROUNDDOWN(I173,0)),1),_Esperanzas!$R$5:$S$18,2,TRUE),0),0),12) -> 158 | K173: 90.04999981 | L173: =L172+(L175-L165)/10 -> 16.18333321 | M173: =IFERROR(ROUND((ROUNDDOWN(L173,0)*12)+IFERROR(VLOOKUP(ROUND(L173-(ROUNDDOWN(L173,0)),1),_Esperanzas!$R$5:$S$18,2,TRUE),0),0),12) -> 194 | N173: 92.98333321 | AC173: 76.8 | AD173: =AD172+(AD175-AD165)/10 -> 11.31666698 | AE173: =IFERROR(ROUND((ROUNDDOWN(AD173,0)*12)+IFERROR(VLOOKUP(ROUND(AD173-(ROUNDDOWN(AD173,0)),1),_Esperanzas!$R$5:$S$18,2,TRUE),0),0),12) -> 135 | AF173: 88.11666698 | AG173: =AG172+(AG175-AG165)/10 -> 14.1833334 | AH173: =IFERROR(ROUND((ROUNDDOWN(AG173,0)*12)+IFERROR(VLOOKUP(ROUND(AG173-(ROUNDDOWN(AG173,0)),1),_Esperanzas!$R$5:$S$18,2,TRUE),0),0),12) -> 170 | AI173: 90.9833334
H174: 76.9 | I174: =I173+(I175-I165)/10 -> 13.16666641 | J174: =IFERROR(ROUND((ROUNDDOWN(I174,0)*12)+IFERROR(VLOOKUP(ROUND(I174-(ROUNDDOWN(I174,0)),1),_Esperanzas!$R$5:$S$18,2,TRUE),0),0),12) -> 158 | K174: 90.06666641 | L174: =L173+(L175-L165)/10 -> 16.0916666 | M174: =IFERROR(ROUND((ROUNDDOWN(L174,0)*12)+IFERROR(VLOOKUP(ROUND(L174-(ROUNDDOWN(L174,0)),1),_Esperanzas!$R$5:$S$18,2,TRUE),0),0),12) -> 193 | N174: 92.9916666 | AC174: 76.9 | AD174: =AD173+(AD175-AD165)/10 -> 11.24166698 | AE174: =IFERROR(ROUND((ROUNDDOWN(AD174,0)*12)+IFERROR(VLOOKUP(ROUND(AD174-(ROUNDDOWN(AD174,0)),1),_Esperanzas!$R$5:$S$18,2,TRUE),0),0),12) -> 134 | AF174: 88.14166698 | AG174: =AG173+(AG175-AG165)/10 -> 14.0916667 | AH174: =IFERROR(ROUND((ROUNDDOWN(AG174,0)*12)+IFERROR(VLOOKUP(ROUND(AG174-(ROUNDDOWN(AG174,0)),1),_Esperanzas!$R$5:$S$18,2,TRUE),0),0),12) -> 169 | AI174: 90.9916667
H175: 77 | I175: =VLOOKUP($H175,$B$5:$F$55,2,0) -> 13.08333302 | J175: =IFERROR(ROUND((ROUNDDOWN(I175,0)*12)+IFERROR(VLOOKUP(ROUND(I175-(ROUNDDOWN(I175,0)),1),_Esperanzas!$R$5:$S$18,2,TRUE),0),0),12) -> 157 | K175: 90.08333302 | L175: =VLOOKUP($H175,$B$5:$F$55,4,0) -> 16 | M175: =IFERROR(ROUND((ROUNDDOWN(L175,0)*12)+IFERROR(VLOOKUP(ROUND(L175-(ROUNDDOWN(L175,0)),1),_Esperanzas!$R$5:$S$18,2,TRUE),0),0),12) -> 192 | N175: 93 | AC175: 77 | AD175: =VLOOKUP($AC175,$W$5:$AA$55,2,0) -> 11.16666698 | AE175: =IFERROR(ROUND((ROUNDDOWN(AD175,0)*12)+IFERROR(VLOOKUP(ROUND(AD175-(ROUNDDOWN(AD175,0)),1),_Esperanzas!$R$5:$S$18,2,TRUE),0),0),12) -> 134 | AF175: 88.16666698 | AG175: =VLOOKUP($AC175,$W$5:$AA$55,4,0) -> 14 | AH175: =IFERROR(ROUND((ROUNDDOWN(AG175,0)*12)+IFERROR(VLOOKUP(ROUND(AG175-(ROUNDDOWN(AG175,0)),1),_Esperanzas!$R$5:$S$18,2,TRUE),0),0),12) -> 168 | AI175: 91
H176: 77.1 | I176: =I175+(I185-I175)/10 -> 12.99999971 | J176: =IFERROR(ROUND((ROUNDDOWN(I176,0)*12)+IFERROR(VLOOKUP(ROUND(I176-(ROUNDDOWN(I176,0)),1),_Esperanzas!$R$5:$S$18,2,TRUE),0),0),12) -> 156 | K176: 90.09999971 | L176: =L175+(L185-L175)/10 -> 15.9083333 | M176: =IFERROR(ROUND((ROUNDDOWN(L176,0)*12)+IFERROR(VLOOKUP(ROUND(L176-(ROUNDDOWN(L176,0)),1),_Esperanzas!$R$5:$S$18,2,TRUE),0),0),12) -> 190 | N176: 93.0083333 | AC176: 77.1 | AD176: =AD175+(AD185-AD175)/10 -> 11.08333359 | AE176: =IFERROR(ROUND((ROUNDDOWN(AD176,0)*12)+IFERROR(VLOOKUP(ROUND(AD176-(ROUNDDOWN(AD176,0)),1),_Esperanzas!$R$5:$S$18,2,TRUE),0),0),12) -> 133 | AF176: 88.18333359 | AG176: =AG175+(AG185-AG175)/10 -> 13.9166667 | AH176: =IFERROR(ROUND((ROUNDDOWN(AG176,0)*12)+IFERROR(VLOOKUP(ROUND(AG176-(ROUNDDOWN(AG176,0)),1),_Esperanzas!$R$5:$S$18,2,TRUE),0),0),12) -> 166 | AI176: 91.0166667
H177: 77.2 | I177: =I176+(I185-I175)/10 -> 12.91666641 | J177: =IFERROR(ROUND((ROUNDDOWN(I177,0)*12)+IFERROR(VLOOKUP(ROUND(I177-(ROUNDDOWN(I177,0)),1),_Esperanzas!$R$5:$S$18,2,TRUE),0),0),12) -> 154 | K177: 90.11666641 | L177: =L176+(L185-L175)/10 -> 15.8166666 | M177: =IFERROR(ROUND((ROUNDDOWN(L177,0)*12)+IFERROR(VLOOKUP(ROUND(L177-(ROUNDDOWN(L177,0)),1),_Esperanzas!$R$5:$S$18,2,TRUE),0),0),12) -> 189 | N177: 93.0166666 | AC177: 77.2 | AD177: =AD176+(AD185-AD175)/10 -> 11.00000019 | AE177: =IFERROR(ROUND((ROUNDDOWN(AD177,0)*12)+IFERROR(VLOOKUP(ROUND(AD177-(ROUNDDOWN(AD177,0)),1),_Esperanzas!$R$5:$S$18,2,TRUE),0),0),12) -> 132 | AF177: 88.20000019 | AG177: =AG176+(AG185-AG175)/10 -> 13.8333334 | AH177: =IFERROR(ROUND((ROUNDDOWN(AG177,0)*12)+IFERROR(VLOOKUP(ROUND(AG177-(ROUNDDOWN(AG177,0)),1),_Esperanzas!$R$5:$S$18,2,TRUE),0),0),12) -> 165 | AI177: 91.0333334
H178: 77.3 | I178: =I177+(I185-I175)/10 -> 12.83333311 | J178: =IFERROR(ROUND((ROUNDDOWN(I178,0)*12)+IFERROR(VLOOKUP(ROUND(I178-(ROUNDDOWN(I178,0)),1),_Esperanzas!$R$5:$S$18,2,TRUE),0),0),12) -> 153 | K178: 90.13333311 | L178: =L177+(L185-L175)/10 -> 15.7249999 | M178: =IFERROR(ROUND((ROUNDDOWN(L178,0)*12)+IFERROR(VLOOKUP(ROUND(L178-(ROUNDDOWN(L178,0)),1),_Esperanzas!$R$5:$S$18,2,TRUE),0),0),12) -> 188 | N178: 93.0249999 | AC178: 77.3 | AD178: =AD177+(AD185-AD175)/10 -> 10.91666679 | AE178: =IFERROR(ROUND((ROUNDDOWN(AD178,0)*12)+IFERROR(VLOOKUP(ROUND(AD178-(ROUNDDOWN(AD178,0)),1),_Esperanzas!$R$5:$S$18,2,TRUE),0),0),12) -> 130 | AF178: 88.21666679 | AG178: =AG177+(AG185-AG175)/10 -> 13.7500001 | AH178: =IFERROR(ROUND((ROUNDDOWN(AG178,0)*12)+IFERROR(VLOOKUP(ROUND(AG178-(ROUNDDOWN(AG178,0)),1),_Esperanzas!$R$5:$S$18,2,TRUE),0),0),12) -> 165 | AI178: 91.0500001
H179: 77.4 | I179: =I178+(I185-I175)/10 -> 12.74999981 | J179: =IFERROR(ROUND((ROUNDDOWN(I179,0)*12)+IFERROR(VLOOKUP(ROUND(I179-(ROUNDDOWN(I179,0)),1),_Esperanzas!$R$5:$S$18,2,TRUE),0),0),12) -> 152 | K179: 90.14999981 | L179: =L178+(L185-L175)/10 -> 15.63333321 | M179: =IFERROR(ROUND((ROUNDDOWN(L179,0)*12)+IFERROR(VLOOKUP(ROUND(L179-(ROUNDDOWN(L179,0)),1),_Esperanzas!$R$5:$S$18,2,TRUE),0),0),12) -> 187 | N179: 93.03333321 | AC179: 77.4 | AD179: =AD178+(AD185-AD175)/10 -> 10.8333334 | AE179: =IFERROR(ROUND((ROUNDDOWN(AD179,0)*12)+IFERROR(VLOOKUP(ROUND(AD179-(ROUNDDOWN(AD179,0)),1),_Esperanzas!$R$5:$S$18,2,TRUE),0),0),12) -> 129 | AF179: 88.2333334 | AG179: =AG178+(AG185-AG175)/10 -> 13.66666679 | AH179: =IFERROR(ROUND((ROUNDDOWN(AG179,0)*12)+IFERROR(VLOOKUP(ROUND(AG179-(ROUNDDOWN(AG179,0)),1),_Esperanzas!$R$5:$S$18,2,TRUE),0),0),12) -> 164 | AI179: 91.06666679
H180: 77.5 | I180: =I179+(I185-I175)/10 -> 12.66666651 | J180: =IFERROR(ROUND((ROUNDDOWN(I180,0)*12)+IFERROR(VLOOKUP(ROUND(I180-(ROUNDDOWN(I180,0)),1),_Esperanzas!$R$5:$S$18,2,TRUE),0),0),12) -> 152 | K180: 90.16666651 | L180: =L179+(L185-L175)/10 -> 15.54166651 | M180: =IFERROR(ROUND((ROUNDDOWN(L180,0)*12)+IFERROR(VLOOKUP(ROUND(L180-(ROUNDDOWN(L180,0)),1),_Esperanzas!$R$5:$S$18,2,TRUE),0),0),12) -> 186 | N180: 93.04166651 | AC180: 77.5 | AD180: =AD179+(AD185-AD175)/10 -> 10.75 | AE180: =IFERROR(ROUND((ROUNDDOWN(AD180,0)*12)+IFERROR(VLOOKUP(ROUND(AD180-(ROUNDDOWN(AD180,0)),1),_Esperanzas!$R$5:$S$18,2,TRUE),0),0),12) -> 128 | AF180: 88.25 | AG180: =AG179+(AG185-AG175)/10 -> 13.58333349 | AH180: =IFERROR(ROUND((ROUNDDOWN(AG180,0)*12)+IFERROR(VLOOKUP(ROUND(AG180-(ROUNDDOWN(AG180,0)),1),_Esperanzas!$R$5:$S$18,2,TRUE),0),0),12) -> 163 | AI180: 91.08333349
H181: 77.6 | I181: =I180+(I185-I175)/10 -> 12.58333321 | J181: =IFERROR(ROUND((ROUNDDOWN(I181,0)*12)+IFERROR(VLOOKUP(ROUND(I181-(ROUNDDOWN(I181,0)),1),_Esperanzas!$R$5:$S$18,2,TRUE),0),0),12) -> 151 | K181: 90.18333321 | L181: =L180+(L185-L175)/10 -> 15.44999981 | M181: =IFERROR(ROUND((ROUNDDOWN(L181,0)*12)+IFERROR(VLOOKUP(ROUND(L181-(ROUNDDOWN(L181,0)),1),_Esperanzas!$R$5:$S$18,2,TRUE),0),0),12) -> 184 | N181: 93.04999981 | AC181: 77.6 | AD181: =AD180+(AD185-AD175)/10 -> 10.6666666 | AE181: =IFERROR(ROUND((ROUNDDOWN(AD181,0)*12)+IFERROR(VLOOKUP(ROUND(AD181-(ROUNDDOWN(AD181,0)),1),_Esperanzas!$R$5:$S$18,2,TRUE),0),0),12) -> 128 | AF181: 88.2666666 | AG181: =AG180+(AG185-AG175)/10 -> 13.50000019 | AH181: =IFERROR(ROUND((ROUNDDOWN(AG181,0)*12)+IFERROR(VLOOKUP(ROUND(AG181-(ROUNDDOWN(AG181,0)),1),_Esperanzas!$R$5:$S$18,2,TRUE),0),0),12) -> 162 | AI181: 91.10000019
H182: 77.7 | I182: =I181+(I185-I175)/10 -> 12.4999999 | J182: =IFERROR(ROUND((ROUNDDOWN(I182,0)*12)+IFERROR(VLOOKUP(ROUND(I182-(ROUNDDOWN(I182,0)),1),_Esperanzas!$R$5:$S$18,2,TRUE),0),0),12) -> 150 | K182: 90.1999999 | L182: =L181+(L185-L175)/10 -> 15.35833311 | M182: =IFERROR(ROUND((ROUNDDOWN(L182,0)*12)+IFERROR(VLOOKUP(ROUND(L182-(ROUNDDOWN(L182,0)),1),_Esperanzas!$R$5:$S$18,2,TRUE),0),0),12) -> 184 | N182: 93.05833311 | AC182: 77.7 | AD182: =AD181+(AD185-AD175)/10 -> 10.58333321 | AE182: =IFERROR(ROUND((ROUNDDOWN(AD182,0)*12)+IFERROR(VLOOKUP(ROUND(AD182-(ROUNDDOWN(AD182,0)),1),_Esperanzas!$R$5:$S$18,2,TRUE),0),0),12) -> 127 | AF182: 88.28333321 | AG182: =AG181+(AG185-AG175)/10 -> 13.41666689 | AH182: =IFERROR(ROUND((ROUNDDOWN(AG182,0)*12)+IFERROR(VLOOKUP(ROUND(AG182-(ROUNDDOWN(AG182,0)),1),_Esperanzas!$R$5:$S$18,2,TRUE),0),0),12) -> 160 | AI182: 91.11666689
H183: 77.8 | I183: =I182+(I185-I175)/10 -> 12.4166666 | J183: =IFERROR(ROUND((ROUNDDOWN(I183,0)*12)+IFERROR(VLOOKUP(ROUND(I183-(ROUNDDOWN(I183,0)),1),_Esperanzas!$R$5:$S$18,2,TRUE),0),0),12) -> 148 | K183: 90.2166666 | L183: =L182+(L185-L175)/10 -> 15.26666641 | M183: =IFERROR(ROUND((ROUNDDOWN(L183,0)*12)+IFERROR(VLOOKUP(ROUND(L183-(ROUNDDOWN(L183,0)),1),_Esperanzas!$R$5:$S$18,2,TRUE),0),0),12) -> 183 | N183: 93.06666641 | AC183: 77.8 | AD183: =AD182+(AD185-AD175)/10 -> 10.49999981 | AE183: =IFERROR(ROUND((ROUNDDOWN(AD183,0)*12)+IFERROR(VLOOKUP(ROUND(AD183-(ROUNDDOWN(AD183,0)),1),_Esperanzas!$R$5:$S$18,2,TRUE),0),0),12) -> 126 | AF183: 88.29999981 | AG183: =AG182+(AG185-AG175)/10 -> 13.33333359 | AH183: =IFERROR(ROUND((ROUNDDOWN(AG183,0)*12)+IFERROR(VLOOKUP(ROUND(AG183-(ROUNDDOWN(AG183,0)),1),_Esperanzas!$R$5:$S$18,2,TRUE),0),0),12) -> 159 | AI183: 91.13333359
H184: 77.9 | I184: =I183+(I185-I175)/10 -> 12.3333333 | J184: =IFERROR(ROUND((ROUNDDOWN(I184,0)*12)+IFERROR(VLOOKUP(ROUND(I184-(ROUNDDOWN(I184,0)),1),_Esperanzas!$R$5:$S$18,2,TRUE),0),0),12) -> 147 | K184: 90.2333333 | L184: =L183+(L185-L175)/10 -> 15.17499971 | M184: =IFERROR(ROUND((ROUNDDOWN(L184,0)*12)+IFERROR(VLOOKUP(ROUND(L184-(ROUNDDOWN(L184,0)),1),_Esperanzas!$R$5:$S$18,2,TRUE),0),0),12) -> 182 | N184: 93.07499971 | AC184: 77.9 | AD184: =AD183+(AD185-AD175)/10 -> 10.41666641 | AE184: =IFERROR(ROUND((ROUNDDOWN(AD184,0)*12)+IFERROR(VLOOKUP(ROUND(AD184-(ROUNDDOWN(AD184,0)),1),_Esperanzas!$R$5:$S$18,2,TRUE),0),0),12) -> 124 | AF184: 88.31666641 | AG184: =AG183+(AG185-AG175)/10 -> 13.25000029 | AH184: =IFERROR(ROUND((ROUNDDOWN(AG184,0)*12)+IFERROR(VLOOKUP(ROUND(AG184-(ROUNDDOWN(AG184,0)),1),_Esperanzas!$R$5:$S$18,2,TRUE),0),0),12) -> 159 | AI184: 91.15000029
H185: 78 | I185: =VLOOKUP($H185,$B$5:$F$55,2,0) -> 12.25 | J185: =IFERROR(ROUND((ROUNDDOWN(I185,0)*12)+IFERROR(VLOOKUP(ROUND(I185-(ROUNDDOWN(I185,0)),1),_Esperanzas!$R$5:$S$18,2,TRUE),0),0),12) -> 147 | K185: 90.25 | L185: =VLOOKUP($H185,$B$5:$F$55,4,0) -> 15.08333302 | M185: =IFERROR(ROUND((ROUNDDOWN(L185,0)*12)+IFERROR(VLOOKUP(ROUND(L185-(ROUNDDOWN(L185,0)),1),_Esperanzas!$R$5:$S$18,2,TRUE),0),0),12) -> 181 | N185: 93.08333302 | AC185: 78 | AD185: =VLOOKUP($AC185,$W$5:$AA$55,2,0) -> 10.33333302 | AE185: =IFERROR(ROUND((ROUNDDOWN(AD185,0)*12)+IFERROR(VLOOKUP(ROUND(AD185-(ROUNDDOWN(AD185,0)),1),_Esperanzas!$R$5:$S$18,2,TRUE),0),0),12) -> 123 | AF185: 88.33333302 | AG185: =VLOOKUP($AC185,$W$5:$AA$55,4,0) -> 13.16666698 | AH185: =IFERROR(ROUND((ROUNDDOWN(AG185,0)*12)+IFERROR(VLOOKUP(ROUND(AG185-(ROUNDDOWN(AG185,0)),1),_Esperanzas!$R$5:$S$18,2,TRUE),0),0),12) -> 158 | AI185: 91.16666698
H186: 78.1 | I186: =I185+(I195-I185)/10 -> 12.175 | J186: =IFERROR(ROUND((ROUNDDOWN(I186,0)*12)+IFERROR(VLOOKUP(ROUND(I186-(ROUNDDOWN(I186,0)),1),_Esperanzas!$R$5:$S$18,2,TRUE),0),0),12) -> 146 | K186: 90.275 | L186: =L185+(L195-L185)/10 -> 14.99166641 | M186: =IFERROR(ROUND((ROUNDDOWN(L186,0)*12)+IFERROR(VLOOKUP(ROUND(L186-(ROUNDDOWN(L186,0)),1),_Esperanzas!$R$5:$S$18,2,TRUE),0),0),12) -> 180 | N186: 93.09166641 | AC186: 78.1 | AD186: =AD185+(AD195-AD185)/10 -> 10.25833302 | AE186: =IFERROR(ROUND((ROUNDDOWN(AD186,0)*12)+IFERROR(VLOOKUP(ROUND(AD186-(ROUNDDOWN(AD186,0)),1),_Esperanzas!$R$5:$S$18,2,TRUE),0),0),12) -> 123 | AF186: 88.35833302 | AG186: =AG185+(AG195-AG185)/10 -> 13.08333359 | AH186: =IFERROR(ROUND((ROUNDDOWN(AG186,0)*12)+IFERROR(VLOOKUP(ROUND(AG186-(ROUNDDOWN(AG186,0)),1),_Esperanzas!$R$5:$S$18,2,TRUE),0),0),12) -> 157 | AI186: 91.18333359
H187: 78.2 | I187: =I186+(I195-I185)/10 -> 12.1 | J187: =IFERROR(ROUND((ROUNDDOWN(I187,0)*12)+IFERROR(VLOOKUP(ROUND(I187-(ROUNDDOWN(I187,0)),1),_Esperanzas!$R$5:$S$18,2,TRUE),0),0),12) -> 145 | K187: 90.3 | L187: =L186+(L195-L185)/10 -> 14.89999981 | M187: =IFERROR(ROUND((ROUNDDOWN(L187,0)*12)+IFERROR(VLOOKUP(ROUND(L187-(ROUNDDOWN(L187,0)),1),_Esperanzas!$R$5:$S$18,2,TRUE),0),0),12) -> 178 | N187: 93.09999981 | AC187: 78.2 | AD187: =AD186+(AD195-AD185)/10 -> 10.18333302 | AE187: =IFERROR(ROUND((ROUNDDOWN(AD187,0)*12)+IFERROR(VLOOKUP(ROUND(AD187-(ROUNDDOWN(AD187,0)),1),_Esperanzas!$R$5:$S$18,2,TRUE),0),0),12) -> 122 | AF187: 88.38333302 | AG187: =AG186+(AG195-AG185)/10 -> 13.00000019 | AH187: =IFERROR(ROUND((ROUNDDOWN(AG187,0)*12)+IFERROR(VLOOKUP(ROUND(AG187-(ROUNDDOWN(AG187,0)),1),_Esperanzas!$R$5:$S$18,2,TRUE),0),0),12) -> 156 | AI187: 91.20000019
H188: 78.3 | I188: =I187+(I195-I185)/10 -> 12.025 | J188: =IFERROR(ROUND((ROUNDDOWN(I188,0)*12)+IFERROR(VLOOKUP(ROUND(I188-(ROUNDDOWN(I188,0)),1),_Esperanzas!$R$5:$S$18,2,TRUE),0),0),12) -> 144 | K188: 90.325 | L188: =L187+(L195-L185)/10 -> 14.80833321 | M188: =IFERROR(ROUND((ROUNDDOWN(L188,0)*12)+IFERROR(VLOOKUP(ROUND(L188-(ROUNDDOWN(L188,0)),1),_Esperanzas!$R$5:$S$18,2,TRUE),0),0),12) -> 177 | N188: 93.10833321 | AC188: 78.3 | AD188: =AD187+(AD195-AD185)/10 -> 10.10833302 | AE188: =IFERROR(ROUND((ROUNDDOWN(AD188,0)*12)+IFERROR(VLOOKUP(ROUND(AD188-(ROUNDDOWN(AD188,0)),1),_Esperanzas!$R$5:$S$18,2,TRUE),0),0),12) -> 121 | AF188: 88.40833302 | AG188: =AG187+(AG195-AG185)/10 -> 12.91666679 | AH188: =IFERROR(ROUND((ROUNDDOWN(AG188,0)*12)+IFERROR(VLOOKUP(ROUND(AG188-(ROUNDDOWN(AG188,0)),1),_Esperanzas!$R$5:$S$18,2,TRUE),0),0),12) -> 154 | AI188: 91.21666679
H189: 78.4 | I189: =I188+(I195-I185)/10 -> 11.95 | J189: =IFERROR(ROUND((ROUNDDOWN(I189,0)*12)+IFERROR(VLOOKUP(ROUND(I189-(ROUNDDOWN(I189,0)),1),_Esperanzas!$R$5:$S$18,2,TRUE),0),0),12) -> 144 | K189: 90.35 | L189: =L188+(L195-L185)/10 -> 14.7166666 | M189: =IFERROR(ROUND((ROUNDDOWN(L189,0)*12)+IFERROR(VLOOKUP(ROUND(L189-(ROUNDDOWN(L189,0)),1),_Esperanzas!$R$5:$S$18,2,TRUE),0),0),12) -> 176 | N189: 93.1166666 | AC189: 78.4 | AD189: =AD188+(AD195-AD185)/10 -> 10.03333302 | AE189: =IFERROR(ROUND((ROUNDDOWN(AD189,0)*12)+IFERROR(VLOOKUP(ROUND(AD189-(ROUNDDOWN(AD189,0)),1),_Esperanzas!$R$5:$S$18,2,TRUE),0),0),12) -> 120 | AF189: 88.43333302 | AG189: =AG188+(AG195-AG185)/10 -> 12.8333334 | AH189: =IFERROR(ROUND((ROUNDDOWN(AG189,0)*12)+IFERROR(VLOOKUP(ROUND(AG189-(ROUNDDOWN(AG189,0)),1),_Esperanzas!$R$5:$S$18,2,TRUE),0),0),12) -> 153 | AI189: 91.2333334
H190: 78.5 | I190: =I189+(I195-I185)/10 -> 11.875 | J190: =IFERROR(ROUND((ROUNDDOWN(I190,0)*12)+IFERROR(VLOOKUP(ROUND(I190-(ROUNDDOWN(I190,0)),1),_Esperanzas!$R$5:$S$18,2,TRUE),0),0),12) -> 142 | K190: 90.375 | L190: =L189+(L195-L185)/10 -> 14.625 | M190: =IFERROR(ROUND((ROUNDDOWN(L190,0)*12)+IFERROR(VLOOKUP(ROUND(L190-(ROUNDDOWN(L190,0)),1),_Esperanzas!$R$5:$S$18,2,TRUE),0),0),12) -> 175 | N190: 93.125 | AC190: 78.5 | AD190: =AD189+(AD195-AD185)/10 -> 9.958333015 | AE190: =IFERROR(ROUND((ROUNDDOWN(AD190,0)*12)+IFERROR(VLOOKUP(ROUND(AD190-(ROUNDDOWN(AD190,0)),1),_Esperanzas!$R$5:$S$18,2,TRUE),0),0),12) -> 120 | AF190: 88.45833302 | AG190: =AG189+(AG195-AG185)/10 -> 12.75 | AH190: =IFERROR(ROUND((ROUNDDOWN(AG190,0)*12)+IFERROR(VLOOKUP(ROUND(AG190-(ROUNDDOWN(AG190,0)),1),_Esperanzas!$R$5:$S$18,2,TRUE),0),0),12) -> 152 | AI190: 91.25
H191: 78.6 | I191: =I190+(I195-I185)/10 -> 11.8 | J191: =IFERROR(ROUND((ROUNDDOWN(I191,0)*12)+IFERROR(VLOOKUP(ROUND(I191-(ROUNDDOWN(I191,0)),1),_Esperanzas!$R$5:$S$18,2,TRUE),0),0),12) -> 141 | K191: 90.4 | L191: =L190+(L195-L185)/10 -> 14.5333334 | M191: =IFERROR(ROUND((ROUNDDOWN(L191,0)*12)+IFERROR(VLOOKUP(ROUND(L191-(ROUNDDOWN(L191,0)),1),_Esperanzas!$R$5:$S$18,2,TRUE),0),0),12) -> 174 | N191: 93.1333334 | AC191: 78.6 | AD191: =AD190+(AD195-AD185)/10 -> 9.883333015 | AE191: =IFERROR(ROUND((ROUNDDOWN(AD191,0)*12)+IFERROR(VLOOKUP(ROUND(AD191-(ROUNDDOWN(AD191,0)),1),_Esperanzas!$R$5:$S$18,2,TRUE),0),0),12) -> 118 | AF191: 88.48333302 | AG191: =AG190+(AG195-AG185)/10 -> 12.6666666 | AH191: =IFERROR(ROUND((ROUNDDOWN(AG191,0)*12)+IFERROR(VLOOKUP(ROUND(AG191-(ROUNDDOWN(AG191,0)),1),_Esperanzas!$R$5:$S$18,2,TRUE),0),0),12) -> 152 | AI191: 91.2666666
H192: 78.7 | I192: =I191+(I195-I185)/10 -> 11.725 | J192: =IFERROR(ROUND((ROUNDDOWN(I192,0)*12)+IFERROR(VLOOKUP(ROUND(I192-(ROUNDDOWN(I192,0)),1),_Esperanzas!$R$5:$S$18,2,TRUE),0),0),12) -> 140 | K192: 90.425 | L192: =L191+(L195-L185)/10 -> 14.44166679 | M192: =IFERROR(ROUND((ROUNDDOWN(L192,0)*12)+IFERROR(VLOOKUP(ROUND(L192-(ROUNDDOWN(L192,0)),1),_Esperanzas!$R$5:$S$18,2,TRUE),0),0),12) -> 172 | N192: 93.14166679 | AC192: 78.7 | AD192: =AD191+(AD195-AD185)/10 -> 9.808333015 | AE192: =IFERROR(ROUND((ROUNDDOWN(AD192,0)*12)+IFERROR(VLOOKUP(ROUND(AD192-(ROUNDDOWN(AD192,0)),1),_Esperanzas!$R$5:$S$18,2,TRUE),0),0),12) -> 117 | AF192: 88.50833302 | AG192: =AG191+(AG195-AG185)/10 -> 12.58333321 | AH192: =IFERROR(ROUND((ROUNDDOWN(AG192,0)*12)+IFERROR(VLOOKUP(ROUND(AG192-(ROUNDDOWN(AG192,0)),1),_Esperanzas!$R$5:$S$18,2,TRUE),0),0),12) -> 151 | AI192: 91.28333321
H193: 78.8 | I193: =I192+(I195-I185)/10 -> 11.65 | J193: =IFERROR(ROUND((ROUNDDOWN(I193,0)*12)+IFERROR(VLOOKUP(ROUND(I193-(ROUNDDOWN(I193,0)),1),_Esperanzas!$R$5:$S$18,2,TRUE),0),0),12) -> 140 | K193: 90.45 | L193: =L192+(L195-L185)/10 -> 14.35000019 | M193: =IFERROR(ROUND((ROUNDDOWN(L193,0)*12)+IFERROR(VLOOKUP(ROUND(L193-(ROUNDDOWN(L193,0)),1),_Esperanzas!$R$5:$S$18,2,TRUE),0),0),12) -> 172 | N193: 93.15000019 | AC193: 78.8 | AD193: =AD192+(AD195-AD185)/10 -> 9.733333015 | AE193: =IFERROR(ROUND((ROUNDDOWN(AD193,0)*12)+IFERROR(VLOOKUP(ROUND(AD193-(ROUNDDOWN(AD193,0)),1),_Esperanzas!$R$5:$S$18,2,TRUE),0),0),12) -> 116 | AF193: 88.53333302 | AG193: =AG192+(AG195-AG185)/10 -> 12.49999981 | AH193: =IFERROR(ROUND((ROUNDDOWN(AG193,0)*12)+IFERROR(VLOOKUP(ROUND(AG193-(ROUNDDOWN(AG193,0)),1),_Esperanzas!$R$5:$S$18,2,TRUE),0),0),12) -> 150 | AI193: 91.29999981
H194: 78.9 | I194: =I193+(I195-I185)/10 -> 11.575 | J194: =IFERROR(ROUND((ROUNDDOWN(I194,0)*12)+IFERROR(VLOOKUP(ROUND(I194-(ROUNDDOWN(I194,0)),1),_Esperanzas!$R$5:$S$18,2,TRUE),0),0),12) -> 139 | K194: 90.475 | L194: =L193+(L195-L185)/10 -> 14.25833359 | M194: =IFERROR(ROUND((ROUNDDOWN(L194,0)*12)+IFERROR(VLOOKUP(ROUND(L194-(ROUNDDOWN(L194,0)),1),_Esperanzas!$R$5:$S$18,2,TRUE),0),0),12) -> 171 | N194: 93.15833359 | AC194: 78.9 | AD194: =AD193+(AD195-AD185)/10 -> 9.658333015 | AE194: =IFERROR(ROUND((ROUNDDOWN(AD194,0)*12)+IFERROR(VLOOKUP(ROUND(AD194-(ROUNDDOWN(AD194,0)),1),_Esperanzas!$R$5:$S$18,2,TRUE),0),0),12) -> 116 | AF194: 88.55833302 | AG194: =AG193+(AG195-AG185)/10 -> 12.41666641 | AH194: =IFERROR(ROUND((ROUNDDOWN(AG194,0)*12)+IFERROR(VLOOKUP(ROUND(AG194-(ROUNDDOWN(AG194,0)),1),_Esperanzas!$R$5:$S$18,2,TRUE),0),0),12) -> 148 | AI194: 91.31666641
H195: 79 | I195: =VLOOKUP($H195,$B$5:$F$55,2,0) -> 11.5 | J195: =IFERROR(ROUND((ROUNDDOWN(I195,0)*12)+IFERROR(VLOOKUP(ROUND(I195-(ROUNDDOWN(I195,0)),1),_Esperanzas!$R$5:$S$18,2,TRUE),0),0),12) -> 138 | K195: 90.5 | L195: =VLOOKUP($H195,$B$5:$F$55,4,0) -> 14.16666698 | M195: =IFERROR(ROUND((ROUNDDOWN(L195,0)*12)+IFERROR(VLOOKUP(ROUND(L195-(ROUNDDOWN(L195,0)),1),_Esperanzas!$R$5:$S$18,2,TRUE),0),0),12) -> 170 | N195: 93.16666698 | AC195: 79 | AD195: =VLOOKUP($AC195,$W$5:$AA$55,2,0) -> 9.583333015 | AE195: =IFERROR(ROUND((ROUNDDOWN(AD195,0)*12)+IFERROR(VLOOKUP(ROUND(AD195-(ROUNDDOWN(AD195,0)),1),_Esperanzas!$R$5:$S$18,2,TRUE),0),0),12) -> 115 | AF195: 88.58333302 | AG195: =VLOOKUP($AC195,$W$5:$AA$55,4,0) -> 12.33333302 | AH195: =IFERROR(ROUND((ROUNDDOWN(AG195,0)*12)+IFERROR(VLOOKUP(ROUND(AG195-(ROUNDDOWN(AG195,0)),1),_Esperanzas!$R$5:$S$18,2,TRUE),0),0),12) -> 147 | AI195: 91.33333302
H196: 79.1 | I196: =I195+(I205-I195)/10 -> 11.425 | J196: =IFERROR(ROUND((ROUNDDOWN(I196,0)*12)+IFERROR(VLOOKUP(ROUND(I196-(ROUNDDOWN(I196,0)),1),_Esperanzas!$R$5:$S$18,2,TRUE),0),0),12) -> 136 | K196: 90.525 | L196: =L195+(L205-L195)/10 -> 14.08333359 | M196: =IFERROR(ROUND((ROUNDDOWN(L196,0)*12)+IFERROR(VLOOKUP(ROUND(L196-(ROUNDDOWN(L196,0)),1),_Esperanzas!$R$5:$S$18,2,TRUE),0),0),12) -> 169 | N196: 93.18333359 | AC196: 79.1 | AD196: =AD195+(AD205-AD195)/10 -> 9.516666412 | AE196: =IFERROR(ROUND((ROUNDDOWN(AD196,0)*12)+IFERROR(VLOOKUP(ROUND(AD196-(ROUNDDOWN(AD196,0)),1),_Esperanzas!$R$5:$S$18,2,TRUE),0),0),12) -> 114 | AF196: 88.61666641 | AG196: =AG195+(AG205-AG195)/10 -> 12.24999971 | AH196: =IFERROR(ROUND((ROUNDDOWN(AG196,0)*12)+IFERROR(VLOOKUP(ROUND(AG196-(ROUNDDOWN(AG196,0)),1),_Esperanzas!$R$5:$S$18,2,TRUE),0),0),12) -> 146 | AI196: 91.34999971
H197: 79.2 | I197: =I196+(I205-I195)/10 -> 11.35 | J197: =IFERROR(ROUND((ROUNDDOWN(I197,0)*12)+IFERROR(VLOOKUP(ROUND(I197-(ROUNDDOWN(I197,0)),1),_Esperanzas!$R$5:$S$18,2,TRUE),0),0),12) -> 136 | K197: 90.55 | L197: =L196+(L205-L195)/10 -> 14.00000019 | M197: =IFERROR(ROUND((ROUNDDOWN(L197,0)*12)+IFERROR(VLOOKUP(ROUND(L197-(ROUNDDOWN(L197,0)),1),_Esperanzas!$R$5:$S$18,2,TRUE),0),0),12) -> 168 | N197: 93.20000019 | AC197: 79.2 | AD197: =AD196+(AD205-AD195)/10 -> 9.449999809 | AE197: =IFERROR(ROUND((ROUNDDOWN(AD197,0)*12)+IFERROR(VLOOKUP(ROUND(AD197-(ROUNDDOWN(AD197,0)),1),_Esperanzas!$R$5:$S$18,2,TRUE),0),0),12) -> 112 | AF197: 88.64999981 | AG197: =AG196+(AG205-AG195)/10 -> 12.16666641 | AH197: =IFERROR(ROUND((ROUNDDOWN(AG197,0)*12)+IFERROR(VLOOKUP(ROUND(AG197-(ROUNDDOWN(AG197,0)),1),_Esperanzas!$R$5:$S$18,2,TRUE),0),0),12) -> 146 | AI197: 91.36666641
H198: 79.3 | I198: =I197+(I205-I195)/10 -> 11.275 | J198: =IFERROR(ROUND((ROUNDDOWN(I198,0)*12)+IFERROR(VLOOKUP(ROUND(I198-(ROUNDDOWN(I198,0)),1),_Esperanzas!$R$5:$S$18,2,TRUE),0),0),12) -> 135 | K198: 90.575 | L198: =L197+(L205-L195)/10 -> 13.91666679 | M198: =IFERROR(ROUND((ROUNDDOWN(L198,0)*12)+IFERROR(VLOOKUP(ROUND(L198-(ROUNDDOWN(L198,0)),1),_Esperanzas!$R$5:$S$18,2,TRUE),0),0),12) -> 166 | N198: 93.21666679 | AC198: 79.3 | AD198: =AD197+(AD205-AD195)/10 -> 9.383333206 | AE198: =IFERROR(ROUND((ROUNDDOWN(AD198,0)*12)+IFERROR(VLOOKUP(ROUND(AD198-(ROUNDDOWN(AD198,0)),1),_Esperanzas!$R$5:$S$18,2,TRUE),0),0),12) -> 112 | AF198: 88.68333321 | AG198: =AG197+(AG205-AG195)/10 -> 12.08333311 | AH198: =IFERROR(ROUND((ROUNDDOWN(AG198,0)*12)+IFERROR(VLOOKUP(ROUND(AG198-(ROUNDDOWN(AG198,0)),1),_Esperanzas!$R$5:$S$18,2,TRUE),0),0),12) -> 145 | AI198: 91.38333311
H199: =ROUND(H198+0.1,1) -> 79.4 | I199: =I198+(I205-I195)/10 -> 11.2 | J199: =IFERROR(ROUND((ROUNDDOWN(I199,0)*12)+IFERROR(VLOOKUP(ROUND(I199-(ROUNDDOWN(I199,0)),1),_Esperanzas!$R$5:$S$18,2,TRUE),0),0),12) -> 134 | K199: 90.6 | L199: =L198+(L205-L195)/10 -> 13.8333334 | M199: =IFERROR(ROUND((ROUNDDOWN(L199,0)*12)+IFERROR(VLOOKUP(ROUND(L199-(ROUNDDOWN(L199,0)),1),_Esperanzas!$R$5:$S$18,2,TRUE),0),0),12) -> 165 | N199: 93.2333334 | AC199: =ROUND(AC198+0.1,1) -> 79.4 | AD199: =AD198+(AD205-AD195)/10 -> 9.316666603 | AE199: =IFERROR(ROUND((ROUNDDOWN(AD199,0)*12)+IFERROR(VLOOKUP(ROUND(AD199-(ROUNDDOWN(AD199,0)),1),_Esperanzas!$R$5:$S$18,2,TRUE),0),0),12) -> 111 | AF199: 88.7166666 | AG199: =AG198+(AG205-AG195)/10 -> 11.99999981 | AH199: =IFERROR(ROUND((ROUNDDOWN(AG199,0)*12)+IFERROR(VLOOKUP(ROUND(AG199-(ROUNDDOWN(AG199,0)),1),_Esperanzas!$R$5:$S$18,2,TRUE),0),0),12) -> 144 | AI199: 91.39999981
H200: 79.5 | I200: =I199+(I205-I195)/10 -> 11.125 | J200: =IFERROR(ROUND((ROUNDDOWN(I200,0)*12)+IFERROR(VLOOKUP(ROUND(I200-(ROUNDDOWN(I200,0)),1),_Esperanzas!$R$5:$S$18,2,TRUE),0),0),12) -> 133 | K200: 90.625 | L200: =L199+(L205-L195)/10 -> 13.75 | M200: =IFERROR(ROUND((ROUNDDOWN(L200,0)*12)+IFERROR(VLOOKUP(ROUND(L200-(ROUNDDOWN(L200,0)),1),_Esperanzas!$R$5:$S$18,2,TRUE),0),0),12) -> 164 | N200: 93.25 | AC200: 79.5 | AD200: =AD199+(AD205-AD195)/10 -> 9.25 | AE200: =IFERROR(ROUND((ROUNDDOWN(AD200,0)*12)+IFERROR(VLOOKUP(ROUND(AD200-(ROUNDDOWN(AD200,0)),1),_Esperanzas!$R$5:$S$18,2,TRUE),0),0),12) -> 111 | AF200: 88.75 | AG200: =AG199+(AG205-AG195)/10 -> 11.91666651 | AH200: =IFERROR(ROUND((ROUNDDOWN(AG200,0)*12)+IFERROR(VLOOKUP(ROUND(AG200-(ROUNDDOWN(AG200,0)),1),_Esperanzas!$R$5:$S$18,2,TRUE),0),0),12) -> 142 | AI200: 91.41666651
H201: 79.6 | I201: =I200+(I205-I195)/10 -> 11.05 | J201: =IFERROR(ROUND((ROUNDDOWN(I201,0)*12)+IFERROR(VLOOKUP(ROUND(I201-(ROUNDDOWN(I201,0)),1),_Esperanzas!$R$5:$S$18,2,TRUE),0),0),12) -> 133 | K201: 90.65 | L201: =L200+(L205-L195)/10 -> 13.6666666 | M201: =IFERROR(ROUND((ROUNDDOWN(L201,0)*12)+IFERROR(VLOOKUP(ROUND(L201-(ROUNDDOWN(L201,0)),1),_Esperanzas!$R$5:$S$18,2,TRUE),0),0),12) -> 164 | N201: =L201+H201 -> 93.2666666 | AC201: 79.6 | AD201: =AD200+(AD205-AD195)/10 -> 9.183333397 | AE201: =IFERROR(ROUND((ROUNDDOWN(AD201,0)*12)+IFERROR(VLOOKUP(ROUND(AD201-(ROUNDDOWN(AD201,0)),1),_Esperanzas!$R$5:$S$18,2,TRUE),0),0),12) -> 110 | AF201: 88.7833334 | AG201: =AG200+(AG205-AG195)/10 -> 11.83333321 | AH201: =IFERROR(ROUND((ROUNDDOWN(AG201,0)*12)+IFERROR(VLOOKUP(ROUND(AG201-(ROUNDDOWN(AG201,0)),1),_Esperanzas!$R$5:$S$18,2,TRUE),0),0),12) -> 141 | AI201: 91.43333321
... 304 more rows

Sheet MODELO
A1: A100 | M1: Activo | Q1: =IF(COLUMNS($Q1:Q1)<=$E$61,1,0) -> 1 | R1: =IF(COLUMNS($Q1:R1)<=$E$61,1,0) -> 1 | S1: =IF(COLUMNS($Q1:S1)<=$E$61,1,0) -> 1 | T1: =IF(COLUMNS($Q1:T1)<=$E$61,1,0) -> 1 | U1: =IF(COLUMNS($Q1:U1)<=$E$61,1,0) -> 1 | V1: =IF(COLUMNS($Q1:V1)<=$E$61,1,0) -> 1 | W1: =IF(COLUMNS($Q1:W1)<=$E$61,1,0) -> 1 | X1: =IF(COLUMNS($Q1:X1)<=$E$61,1,0) -> 1 | Y1: =IF(COLUMNS($Q1:Y1)<=$E$61,1,0) -> 1 | Z1: =IF(COLUMNS($Q1:Z1)<=$E$61,1,0) -> 1 | AA1: =IF(COLUMNS($Q1:AA1)<=$E$61,1,0) -> 1 | AB1: =IF(COLUMNS($Q1:AB1)<=$E$61,1,0) -> 1 | AC1: =IF(COLUMNS($Q1:AC1)<=$E$61,1,0) -> 1 | AD1: =IF(COLUMNS($Q1:AD1)<=$E$61,1,0) -> 1 | AE1: =IF(COLUMNS($Q1:AE1)<=$E$61,1,0) -> 1 | AF1: =IF(COLUMNS($Q1:AF1)<=$E$61,1,0) -> 1 | AG1: =IF(COLUMNS($Q1:AG1)<=$E$61,1,0) -> 1 | AH1: =IF(COLUMNS($Q1:AH1)<=$E$61,1,0) -> 1 | AI1: =IF(COLUMNS($Q1:AI1)<=$E$61,1,0) -> 1 | AJ1: =IF(COLUMNS($Q1:AJ1)<=$E$61,1,0) -> 1 | AK1: =IF(COLUMNS($Q1:AK1)<=$E$61,1,0) -> 1 | AL1: =IF(COLUMNS($Q1:AL1)<=$E$61,1,0) -> 1 | AM1: =IF(COLUMNS($Q1:AM1)<=$E$61,1,0) -> 1 | AN1: =IF(COLUMNS($Q1:AN1)<=$E$61,1,0) -> 1 | AO1: =IF(COLUMNS($Q1:AO1)<=$E$61,1,0) -> 1 | AP1: =IF(COLUMNS($Q1:AP1)<=$E$61,1,0) -> 1 | AQ1: =IF(COLUMNS($Q1:AQ1)<=$E$61,1,0) -> 1 | AR1: =IF(COLUMNS($Q1:AR1)<=$E$61,1,0) -> 1 | AS1: =IF(COLUMNS($Q1:AS1)<=$E$61,1,0) -> 1 | AT1: =IF(COLUMNS($Q1:AT1)<=$E$61,1,0) -> 1 | AU1: =IF(COLUMNS($Q1:AU1)<=$E$61,1,0) -> 1 | AV1: =IF(COLUMNS($Q1:AV1)<=$E$61,1,0) -> 1 | AW1: =IF(COLUMNS($Q1:AW1)<=$E$61,1,0) -> 1 | AX1: =IF(COLUMNS($Q1:AX1)<=$E$61,1,0) -> 1 | AY1: =IF(COLUMNS($Q1:AY1)<=$E$61,1,0) -> 1 | AZ1: =IF(COLUMNS($Q1:AZ1)<=$E$61,1,0) -> 1 | BA1: =IF(COLUMNS($Q1:BA1)<=$E$61,1,0) -> 1 | BB1: =IF(COLUMNS($Q1:BB1)<=$E$61,1,0) -> 1 | BC1: =IF(COLUMNS($Q1:BC1)<=$E$61,1,0) -> 1 | BD1: =IF(COLUMNS($Q1:BD1)<=$E$61,1,0) -> 1 | BE1: =IF(COLUMNS($Q1:BE1)<=$E$61,1,0) -> 1 | BF1: =IF(COLUMNS($Q1:BF1)<=$E$61,1,0) -> 1 | BG1: =IF(COLUMNS($Q1:BG1)<=$E$61,1,0) -> 1 | BH1: =IF(COLUMNS($Q1:BH1)<=$E$61,1,0) -> 1 | BI1: =IF(COLUMNS($Q1:BI1)<=$E$61,1,0) -> 1 | BJ1: =IF(COLUMNS($Q1:BJ1)<=$E$61,1,0) -> 1 | BK1: =IF(COLUMNS($Q1:BK1)<=$E$61,1,0) -> 1 | BL1: =IF(COLUMNS($Q1:BL1)<=$E$61,1,0) -> 1 | BM1: =IF(COLUMNS($Q1:BM1)<=$E$61,1,0) -> 1 | BN1: =IF(COLUMNS($Q1:BN1)<=$E$61,1,0) -> 1 | BO1: =IF(COLUMNS($Q1:BO1)<=$E$61,1,0) -> 1 | BP1: =IF(COLUMNS($Q1:BP1)<=$E$61,1,0) -> 1 | BQ1: =IF(COLUMNS($Q1:BQ1)<=$E$61,1,0) -> 1 | BR1: =IF(COLUMNS($Q1:BR1)<=$E$61,1,0) -> 1 | BS1: =IF(COLUMNS($Q1:BS1)<=$E$61,1,0) -> 1 | BT1: =IF(COLUMNS($Q1:BT1)<=$E$61,1,0) -> 1 | BU1: =IF(COLUMNS($Q1:BU1)<=$E$61,1,0) -> 1 | BV1: =IF(COLUMNS($Q1:BV1)<=$E$61,1,0) -> 1 | BW1: =IF(COLUMNS($Q1:BW1)<=$E$61,1,0) -> 1 | BX1: =IF(COLUMNS($Q1:BX1)<=$E$61,1,0) -> 1 | BY1: =IF(COLUMNS($Q1:BY1)<=$E$61,1,0) -> 0 | BZ1: =IF(COLUMNS($Q1:BZ1)<=$E$61,1,0) -> 0 | CA1: =IF(COLUMNS($Q1:CA1)<=$E$61,1,0) -> 0 | CB1: =IF(COLUMNS($Q1:CB1)<=$E$61,1,0) -> 0 | CC1: =IF(COLUMNS($Q1:CC1)<=$E$61,1,0) -> 0 | CD1: =IF(COLUMNS($Q1:CD1)<=$E$61,1,0) -> 0 | CE1: =IF(COLUMNS($Q1:CE1)<=$E$61,1,0) -> 0 | CF1: =IF(COLUMNS($Q1:CF1)<=$E$61,1,0) -> 0 | CG1: =IF(COLUMNS($Q1:CG1)<=$E$61,1,0) -> 0 | CH1: =IF(COLUMNS($Q1:CH1)<=$E$61,1,0) -> 0 | CI1: =IF(COLUMNS($Q1:CI1)<=$E$61,1,0) -> 0 | CJ1: =IF(COLUMNS($Q1:CJ1)<=$E$61,1,0) -> 0 | CK1: =IF(COLUMNS($Q1:CK1)<=$E$61,1,0) -> 0 | CL1: =IF(COLUMNS($Q1:CL1)<=$E$61,1,0) -> 0 | CM1: =IF(COLUMNS($Q1:CM1)<=$E$61,1,0) -> 0 | CN1: =IF(COLUMNS($Q1:CN1)<=$E$61,1,0) -> 0 | CO1: =IF(COLUMNS($Q1:CO1)<=$E$61,1,0) -> 0 | CP1: =IF(COLUMNS($Q1:CP1)<=$E$61,1,0) -> 0 | CQ1: =IF(COLUMNS($Q1:CQ1)<=$E$61,1,0) -> 0 | CR1: =IF(COLUMNS($Q1:CR1)<=$E$61,1,0) -> 0 | CS1: =IF(COLUMNS($Q1:CS1)<=$E$61,1,0) -> 0 | CT1: =IF(COLUMNS($Q1:CT1)<=$E$61,1,0) -> 0 | CU1: =IF(COLUMNS($Q1:CU1)<=$E$61,1,0) -> 0 | CV1: =IF(COLUMNS($Q1:CV1)<=$E$61,1,0) -> 0 | CW1: =IF(COLUMNS($Q1:CW1)<=$E$61,1,0) -> 0 | CX1: =IF(COLUMNS($Q1:CX1)<=$E$61,1,0) -> 0 | CY1: =IF(COLUMNS($Q1:CY1)<=$E$61,1,0) -> 0 | CZ1: =IF(COLUMNS($Q1:CZ1)<=$E$61,1,0) -> 0 | DA1: =IF(COLUMNS($Q1:DA1)<=$E$61,1,0) -> 0 | DB1: =IF(COLUMNS($Q1:DB1)<=$E$61,1,0) -> 0 | DC1: =IF(COLUMNS($Q1:DC1)<=$E$61,1,0) -> 0 | DD1: =IF(COLUMNS($Q1:DD1)<=$E$61,1,0) -> 0 | DE1: =IF(COLUMNS($Q1:DE1)<=$E$61,1,0) -> 0 | DF1: =IF(COLUMNS($Q1:DF1)<=$E$61,1,0) -> 0 | DG1: =IF(COLUMNS($Q1:DG1)<=$E$61,1,0) -> 0 | DH1: =IF(COLUMNS($Q1:DH1)<=$E$61,1,0) -> 0 | DI1: =IF(COLUMNS($Q1:DI1)<=$E$61,1,0) -> 0 | DJ1: =IF(COLUMNS($Q1:DJ1)<=$E$61,1,0) -> 0 | DK1: =IF(COLUMNS($Q1:DK1)<=$E$61,1,0) -> 0 | DL1: =IF(COLUMNS($Q1:DL1)<=$E$61,1,0) -> 0 | DM1: =IF(COLUMNS($Q1:DM1)<=$E$61,1,0) -> 0 | DN1: =IF(COLUMNS($Q1:DN1)<=$E$61,1,0) -> 0 | DO1: =IF(COLUMNS($Q1:DO1)<=$E$61,1,0) -> 0 | DP1: =IF(COLUMNS($Q1:DP1)<=$E$61,1,0) -> 0 | DQ1: =IF(COLUMNS($Q1:DQ1)<=$E$61,1,0) -> 0 | DR1: =IF(COLUMNS($Q1:DR1)<=$E$61,1,0) -> 0 | DS1: =IF(COLUMNS($Q1:DS1)<=$E$61,1,0) -> 0 | DT1: =IF(COLUMNS($Q1:DT1)<=$E$61,1,0) -> 0 | DU1: =IF(COLUMNS($Q1:DU1)<=$E$61,1,0) -> 0 | DV1: =IF(COLUMNS($Q1:DV1)<=$E$61,1,0) -> 0 | DW1: =IF(COLUMNS($Q1:DW1)<=$E$61,1,0) -> 0 | DX1: =IF(COLUMNS($Q1:DX1)<=$E$61,1,0) -> 0 | DY1: =IF(COLUMNS($Q1:DY1)<=$E$61,1,0) -> 0 | DZ1: =IF(COLUMNS($Q1:DZ1)<=$E$61,1,0) -> 0 | EA1: =IF(COLUMNS($Q1:EA1)<=$E$61,1,0) -> 0 | EB1: =IF(COLUMNS($Q1:EB1)<=$E$61,1,0) -> 0 | EC1: =IF(COLUMNS($Q1:EC1)<=$E$61,1,0) -> 0 | ED1: =IF(COLUMNS($Q1:ED1)<=$E$61,1,0) -> 0 | EE1: =IF(COLUMNS($Q1:EE1)<=$E$61,1,0) -> 0 | EF1: =IF(COLUMNS($Q1:EF1)<=$E$61,1,0) -> 0 | EG1: =IF(COLUMNS($Q1:EG1)<=$E$61,1,0) -> 0 | EH1: =IF(COLUMNS($Q1:EH1)<=$E$61,1,0) -> 0 | EI1: =IF(COLUMNS($Q1:EI1)<=$E$61,1,0) -> 0 | EJ1: =IF(COLUMNS($Q1:EJ1)<=$E$61,1,0) -> 0 | EK1: =IF(COLUMNS($Q1:EK1)<=$E$61,1,0) -> 0 | EL1: =IF(COLUMNS($Q1:EL1)<=$E$61,1,0) -> 0 | EM1: =IF(COLUMNS($Q1:EM1)<=$E$61,1,0) -> 0 | EN1: =IF(COLUMNS($Q1:EN1)<=$E$61,1,0) -> 0 | EO1: =IF(COLUMNS($Q1:EO1)<=$E$61,1,0) -> 0 | EP1: =IF(COLUMNS($Q1:EP1)<=$E$61,1,0) -> 0 | EQ1: =IF(COLUMNS($Q1:EQ1)<=$E$61,1,0) -> 0 | ER1: =IF(COLUMNS($Q1:ER1)<=$E$61,1,0) -> 0 | ES1: =IF(COLUMNS($Q1:ES1)<=$E$61,1,0) -> 0 | ET1: =IF(COLUMNS($Q1:ET1)<=$E$61,1,0) -> 0 | EU1: =IF(COLUMNS($Q1:EU1)<=$E$61,1,0) -> 0 | EV1: =IF(COLUMNS($Q1:EV1)<=$E$61,1,0) -> 0 | EW1: =IF(COLUMNS($Q1:EW1)<=$E$61,1,0) -> 0 | EX1: =IF(COLUMNS($Q1:EX1)<=$E$61,1,0) -> 0 | EY1: =IF(COLUMNS($Q1:EY1)<=$E$61,1,0) -> 0 | EZ1: =IF(COLUMNS($Q1:EZ1)<=$E$61,1,0) -> 0 | FA1: =IF(COLUMNS($Q1:FA1)<=$E$61,1,0) -> 0 | FB1: =IF(COLUMNS($Q1:FB1)<=$E$61,1,0) -> 0 | FC1: =IF(COLUMNS($Q1:FC1)<=$E$61,1,0) -> 0 | FD1: =IF(COLUMNS($Q1:FD1)<=$E$61,1,0) -> 0 | FE1: =IF(COLUMNS($Q1:FE1)<=$E$61,1,0) -> 0 | FF1: =IF(COLUMNS($Q1:FF1)<=$E$61,1,0) -> 0 | FG1: =IF(COLUMNS($Q1:FG1)<=$E$61,1,0) -> 0 | FH1: =IF(COLUMNS($Q1:FH1)<=$E$61,1,0) -> 0 | FI1: =IF(COLUMNS($Q1:FI1)<=$E$61,1,0) -> 0 | FJ1: =IF(COLUMNS($Q1:FJ1)<=$E$61,1,0) -> 0 | FK1: =IF(COLUMNS($Q1:FK1)<=$E$61,1,0) -> 0 | FL1: =IF(COLUMNS($Q1:FL1)<=$E$61,1,0) -> 0 | FM1: =IF(COLUMNS($Q1:FM1)<=$E$61,1,0) -> 0 | FN1: =IF(COLUMNS($Q1:FN1)<=$E$61,1,0) -> 0 | FO1: =IF(COLUMNS($Q1:FO1)<=$E$61,1,0) -> 0 | FP1: =IF(COLUMNS($Q1:FP1)<=$E$61,1,0) -> 0 | FQ1: =IF(COLUMNS($Q1:FQ1)<=$E$61,1,0) -> 0 | FR1: =IF(COLUMNS($Q1:FR1)<=$E$61,1,0) -> 0 | FS1: =IF(COLUMNS($Q1:FS1)<=$E$61,1,0) -> 0 | FT1: =IF(COLUMNS($Q1:FT1)<=$E$61,1,0) -> 0 | FU1: =IF(COLUMNS($Q1:FU1)<=$E$61,1,0) -> 0 | FV1: =IF(COLUMNS($Q1:FV1)<=$E$61,1,0) -> 0 | FW1: =IF(COLUMNS($Q1:FW1)<=$E$61,1,0) -> 0 | FX1: =IF(COLUMNS($Q1:FX1)<=$E$61,1,0) -> 0 | FY1: =IF(COLUMNS($Q1:FY1)<=$E$61,1,0) -> 0 | FZ1: =IF(COLUMNS($Q1:FZ1)<=$E$61,1,0) -> 0 | GA1: =IF(COLUMNS($Q1:GA1)<=$E$61,1,0) -> 0 | GB1: =IF(COLUMNS($Q1:GB1)<=$E$61,1,0) -> 0 | GC1: =IF(COLUMNS($Q1:GC1)<=$E$61,1,0) -> 0 | GD1: =IF(COLUMNS($Q1:GD1)<=$E$61,1,0) -> 0 | GE1: =IF(COLUMNS($Q1:GE1)<=$E$61,1,0) -> 0 | GF1: =IF(COLUMNS($Q1:GF1)<=$E$61,1,0) -> 0 | GG1: =IF(COLUMNS($Q1:GG1)<=$E$61,1,0) -> 0 | GH1: =IF(COLUMNS($Q1:GH1)<=$E$61,1,0) -> 0 | GI1: =IF(COLUMNS($Q1:GI1)<=$E$61,1,0) -> 0 | GJ1: =IF(COLUMNS($Q1:GJ1)<=$E$61,1,0) -> 0 | GK1: =IF(COLUMNS($Q1:GK1)<=$E$61,1,0) -> 0 | GL1: =IF(COLUMNS($Q1:GL1)<=$E$61,1,0) -> 0 | GM1: =IF(COLUMNS($Q1:GM1)<=$E$61,1,0) -> 0 | GN1: =IF(COLUMNS($Q1:GN1)<=$E$61,1,0) -> 0 | GO1: =IF(COLUMNS($Q1:GO1)<=$E$61,1,0) -> 0 | GP1: =IF(COLUMNS($Q1:GP1)<=$E$61,1,0) -> 0 | GQ1: =IF(COLUMNS($Q1:GQ1)<=$E$61,1,0) -> 0 | GR1: =IF(COLUMNS($Q1:GR1)<=$E$61,1,0) -> 0 | GS1: =IF(COLUMNS($Q1:GS1)<=$E$61,1,0) -> 0 | GT1: =IF(COLUMNS($Q1:GT1)<=$E$61,1,0) -> 0 | GU1: =IF(COLUMNS($Q1:GU1)<=$E$61,1,0) -> 0 | GV1: =IF(COLUMNS($Q1:GV1)<=$E$61,1,0) -> 0 | GW1: =IF(COLUMNS($Q1:GW1)<=$E$61,1,0) -> 0 | GX1: =IF(COLUMNS($Q1:GX1)<=$E$61,1,0) -> 0 | GY1: =IF(COLUMNS($Q1:GY1)<=$E$61,1,0) -> 0 | GZ1: =IF(COLUMNS($Q1:GZ1)<=$E$61,1,0) -> 0 | HA1: =IF(COLUMNS($Q1:HA1)<=$E$61,1,0) -> 0 | HB1: =IF(COLUMNS($Q1:HB1)<=$E$61,1,0) -> 0 | HC1: =IF(COLUMNS($Q1:HC1)<=$E$61,1,0) -> 0 | HD1: =IF(COLUMNS($Q1:HD1)<=$E$61,1,0) -> 0 | HE1: =IF(COLUMNS($Q1:HE1)<=$E$61,1,0) -> 0 | HF1: =IF(COLUMNS($Q1:HF1)<=$E$61,1,0) -> 0 | HG1: =IF(COLUMNS($Q1:HG1)<=$E$61,1,0) -> 0 | HH1: =IF(COLUMNS($Q1:HH1)<=$E$61,1,0) -> 0 | HI1: =IF(COLUMNS($Q1:HI1)<=$E$61,1,0) -> 0 | HJ1: =IF(COLUMNS($Q1:HJ1)<=$E$61,1,0) -> 0 | HK1: =IF(COLUMNS($Q1:HK1)<=$E$61,1,0) -> 0 | HL1: =IF(COLUMNS($Q1:HL1)<=$E$61,1,0) -> 0 | HM1: =IF(COLUMNS($Q1:HM1)<=$E$61,1,0) -> 0 | HN1: =IF(COLUMNS($Q1:HN1)<=$E$61,1,0) -> 0 | HO1: =IF(COLUMNS($Q1:HO1)<=$E$61,1,0) -> 0 | HP1: =IF(COLUMNS($Q1:HP1)<=$E$61,1,0) -> 0 | HQ1: =IF(COLUMNS($Q1:HQ1)<=$E$61,1,0) -> 0 | HR1: =IF(COLUMNS($Q1:HR1)<=$E$61,1,0) -> 0 | HS1: =IF(COLUMNS($Q1:HS1)<=$E$61,1,0) -> 0 | HT1: =IF(COLUMNS($Q1:HT1)<=$E$61,1,0) -> 0 | HU1: =IF(COLUMNS($Q1:HU1)<=$E$61,1,0) -> 0 | HV1: =IF(COLUMNS($Q1:HV1)<=$E$61,1,0) -> 0 | HW1: =IF(COLUMNS($Q1:HW1)<=$E$61,1,0) -> 0 | HX1: =IF(COLUMNS($Q1:HX1)<=$E$61,1,0) -> 0 | HY1: =IF(COLUMNS($Q1:HY1)<=$E$61,1,0) -> 0 | HZ1: =IF(COLUMNS($Q1:HZ1)<=$E$61,1,0) -> 0 | IA1: =IF(COLUMNS($Q1:IA1)<=$E$61,1,0) -> 0 | IB1: =IF(COLUMNS($Q1:IB1)<=$E$61,1,0) -> 0 | IC1: =IF(COLUMNS($Q1:IC1)<=$E$61,1,0) -> 0 | ID1: =IF(COLUMNS($Q1:ID1)<=$E$61,1,0) -> 0 | IE1: =IF(COLUMNS($Q1:IE1)<=$E$61,1,0) -> 0 | IF1: =IF(COLUMNS($Q1:IF1)<=$E$61,1,0) -> 0 | IG1: =IF(COLUMNS($Q1:IG1)<=$E$61,1,0) -> 0 | IH1: =IF(COLUMNS($Q1:IH1)<=$E$61,1,0) -> 0 | II1: =IF(COLUMNS($Q1:II1)<=$E$61,1,0) -> 0 | IJ1: =IF(COLUMNS($Q1:IJ1)<=$E$61,1,0) -> 0 | IK1: =IF(COLUMNS($Q1:IK1)<=$E$61,1,0) -> 0 | IL1: =IF(COLUMNS($Q1:IL1)<=$E$61,1,0) -> 0 | IM1: =IF(COLUMNS($Q1:IM1)<=$E$61,1,0) -> 0 | IN1: =IF(COLUMNS($Q1:IN1)<=$E$61,1,0) -> 0 | IO1: =IF(COLUMNS($Q1:IO1)<=$E$61,1,0) -> 0 | IP1: =IF(COLUMNS($Q1:IP1)<=$E$61,1,0) -> 0 | IQ1: =IF(COLUMNS($Q1:IQ1)<=$E$61,1,0) -> 0 | IR1: =IF(COLUMNS($Q1:IR1)<=$E$61,1,0) -> 0 | IS1: =IF(COLUMNS($Q1:IS1)<=$E$61,1,0) -> 0 | IT1: =IF(COLUMNS($Q1:IT1)<=$E$61,1,0) -> 0 | IU1: =IF(COLUMNS($Q1:IU1)<=$E$61,1,0) -> 0 | IV1: =IF(COLUMNS($Q1:IV1)<=$E$61,1,0) -> 0 | IW1: =IF(COLUMNS($Q1:IW1)<=$E$61,1,0) -> 0 | IX1: =IF(COLUMNS($Q1:IX1)<=$E$61,1,0) -> 0 | IY1: =IF(COLUMNS($Q1:IY1)<=$E$61,1,0) -> 0 | IZ1: =IF(COLUMNS($Q1:IZ1)<=$E$61,1,0) -> 0 | JA1: =IF(COLUMNS($Q1:JA1)<=$E$61,1,0) -> 0 | JB1: =IF(COLUMNS($Q1:JB1)<=$E$61,1,0) -> 0 | JC1: =IF(COLUMNS($Q1:JC1)<=$E$61,1,0) -> 0 | JD1: =IF(COLUMNS($Q1:JD1)<=$E$61,1,0) -> 0 | JE1: =IF(COLUMNS($Q1:JE1)<=$E$61,1,0) -> 0 | JF1: =IF(COLUMNS($Q1:JF1)<=$E$61,1,0) -> 0 | JG1: =IF(COLUMNS($Q1:JG1)<=$E$61,1,0) -> 0 | JH1: =IF(COLUMNS($Q1:JH1)<=$E$61,1,0) -> 0 | JI1: =IF(COLUMNS($Q1:JI1)<=$E$61,1,0) -> 0 | JJ1: =IF(COLUMNS($Q1:JJ1)<=$E$61,1,0) -> 0 | JK1: =IF(COLUMNS($Q1:JK1)<=$E$61,1,0) -> 0 | JL1: =IF(COLUMNS($Q1:JL1)<=$E$61,1,0) -> 0 | JM1: =IF(COLUMNS($Q1:JM1)<=$E$61,1,0) -> 0 | JN1: =IF(COLUMNS($Q1:JN1)<=$E$61,1,0) -> 0 | JO1: =IF(COLUMNS($Q1:JO1)<=$E$61,1,0) -> 0 | JP1: =IF(COLUMNS($Q1:JP1)<=$E$61,1,0) -> 0 | JQ1: =IF(COLUMNS($Q1:JQ1)<=$E$61,1,0) -> 0 | JR1: =IF(COLUMNS($Q1:JR1)<=$E$61,1,0) -> 0 | JS1: =IF(COLUMNS($Q1:JS1)<=$E$61,1,0) -> 0 | JT1: =IF(COLUMNS($Q1:JT1)<=$E$61,1,0) -> 0 | JU1: =IF(COLUMNS($Q1:JU1)<=$E$61,1,0) -> 0 | JV1: =IF(COLUMNS($Q1:JV1)<=$E$61,1,0) -> 0 | JW1: =IF(COLUMNS($Q1:JW1)<=$E$61,1,0) -> 0 | JX1: =IF(COLUMNS($Q1:JX1)<=$E$61,1,0) -> 0 | JY1: =IF(COLUMNS($Q1:JY1)<=$E$61,1,0) -> 0 | JZ1: =IF(COLUMNS($Q1:JZ1)<=$E$61,1,0) -> 0 | KA1: =IF(COLUMNS($Q1:KA1)<=$E$61,1,0) -> 0 | KB1: =IF(COLUMNS($Q1:KB1)<=$E$61,1,0) -> 0 | KC1: =IF(COLUMNS($Q1:KC1)<=$E$61,1,0) -> 0 | KD1: =IF(COLUMNS($Q1:KD1)<=$E$61,1,0) -> 0 | KE1: =IF(COLUMNS($Q1:KE1)<=$E$61,1,0) -> 0 | KF1: =IF(COLUMNS($Q1:KF1)<=$E$61,1,0) -> 0 | KG1: =IF(COLUMNS($Q1:KG1)<=$E$61,1,0) -> 0 | KH1: =IF(COLUMNS($Q1:KH1)<=$E$61,1,0) -> 0 | KI1: =IF(COLUMNS($Q1:KI1)<=$E$61,1,0) -> 0 | KJ1: =IF(COLUMNS($Q1:KJ1)<=$E$61,1,0) -> 0 | KK1: =IF(COLUMNS($Q1:KK1)<=$E$61,1,0) -> 0 | KL1: =IF(COLUMNS($Q1:KL1)<=$E$61,1,0) -> 0 | KM1: =IF(COLUMNS($Q1:KM1)<=$E$61,1,0) -> 0 | KN1: =IF(COLUMNS($Q1:KN1)<=$E$61,1,0) -> 0 | KO1: =IF(COLUMNS($Q1:KO1)<=$E$61,1,0) -> 0 | KP1: =IF(COLUMNS($Q1:KP1)<=$E$61,1,0) -> 0 | KQ1: =IF(COLUMNS($Q1:KQ1)<=$E$61,1,0) -> 0 | KR1: =IF(COLUMNS($Q1:KR1)<=$E$61,1,0) -> 0 | KS1: =IF(COLUMNS($Q1:KS1)<=$E$61,1,0) -> 0 | KT1: =IF(COLUMNS($Q1:KT1)<=$E$61,1,0) -> 0 | KU1: =IF(COLUMNS($Q1:KU1)<=$E$61,1,0) -> 0 | KV1: =IF(COLUMNS($Q1:KV1)<=$E$61,1,0) -> 0 | KW1: =IF(COLUMNS($Q1:KW1)<=$E$61,1,0) -> 0 | KX1: =IF(COLUMNS($Q1:KX1)<=$E$61,1,0) -> 0 | KY1: =IF(COLUMNS($Q1:KY1)<=$E$61,1,0) -> 0 | KZ1: =IF(COLUMNS($Q1:KZ1)<=$E$61,1,0) -> 0 | LA1: =IF(COLUMNS($Q1:LA1)<=$E$61,1,0) -> 0 | LB1: =IF(COLUMNS($Q1:LB1)<=$E$61,1,0) -> 0 | LC1: =IF(COLUMNS($Q1:LC1)<=$E$61,1,0) -> 0 | LD1: =IF(COLUMNS($Q1:LD1)<=$E$61,1,0) -> 0 | LE1: =IF(COLUMNS($Q1:LE1)<=$E$61,1,0) -> 0 | LF1: =IF(COLUMNS($Q1:LF1)<=$E$61,1,0) -> 0 | LG1: =IF(COLUMNS($Q1:LG1)<=$E$61,1,0) -> 0 | LH1: =IF(COLUMNS($Q1:LH1)<=$E$61,1,0) -> 0 | LI1: =IF(COLUMNS($Q1:LI1)<=$E$61,1,0) -> 0 | LJ1: =IF(COLUMNS($Q1:LJ1)<=$E$61,1,0) -> 0 | LK1: =IF(COLUMNS($Q1:LK1)<=$E$61,1,0) -> 0 | LL1: =IF(COLUMNS($Q1:LL1)<=$E$61,1,0) -> 0 | LM1: =IF(COLUMNS($Q1:LM1)<=$E$61,1,0) -> 0 | LN1: =IF(COLUMNS($Q1:LN1)<=$E$61,1,0) -> 0 | LO1: =IF(COLUMNS($Q1:LO1)<=$E$61,1,0) -> 0 | LP1: =IF(COLUMNS($Q1:LP1)<=$E$61,1,0) -> 0 | LQ1: =IF(COLUMNS($Q1:LQ1)<=$E$61,1,0) -> 0 | LR1: =IF(COLUMNS($Q1:LR1)<=$E$61,1,0) -> 0 | LS1: =IF(COLUMNS($Q1:LS1)<=$E$61,1,0) -> 0 | LT1: =IF(COLUMNS($Q1:LT1)<=$E$61,1,0) -> 0 | LU1: =IF(COLUMNS($Q1:LU1)<=$E$61,1,0) -> 0 | LV1: =IF(COLUMNS($Q1:LV1)<=$E$61,1,0) -> 0 | LW1: =IF(COLUMNS($Q1:LW1)<=$E$61,1,0) -> 0 | LX1: =IF(COLUMNS($Q1:LX1)<=$E$61,1,0) -> 0 | LY1: =IF(COLUMNS($Q1:LY1)<=$E$61,1,0) -> 0 | LZ1: =IF(COLUMNS($Q1:LZ1)<=$E$61,1,0) -> 0 | MA1: =IF(COLUMNS($Q1:MA1)<=$E$61,1,0) -> 0 | MB1: =IF(COLUMNS($Q1:MB1)<=$E$61,1,0) -> 0 | MC1: =IF(COLUMNS($Q1:MC1)<=$E$61,1,0) -> 0 | MD1: =IF(COLUMNS($Q1:MD1)<=$E$61,1,0) -> 0 | ME1: =IF(COLUMNS($Q1:ME1)<=$E$61,1,0) -> 0 | MF1: =IF(COLUMNS($Q1:MF1)<=$E$61,1,0) -> 0 | MG1: =IF(COLUMNS($Q1:MG1)<=$E$61,1,0) -> 0 | MH1: =IF(COLUMNS($Q1:MH1)<=$E$61,1,0) -> 0 | MI1: =IF(COLUMNS($Q1:MI1)<=$E$61,1,0) -> 0 | MJ1: =IF(COLUMNS($Q1:MJ1)<=$E$61,1,0) -> 0 | MK1: =IF(COLUMNS($Q1:MK1)<=$E$61,1,0) -> 0 | ML1: =IF(COLUMNS($Q1:ML1)<=$E$61,1,0) -> 0 | MM1: =IF(COLUMNS($Q1:MM1)<=$E$61,1,0) -> 0 | MN1: =IF(COLUMNS($Q1:MN1)<=$E$61,1,0) -> 0 | MO1: =IF(COLUMNS($Q1:MO1)<=$E$61,1,0) -> 0 | MP1: =IF(COLUMNS($Q1:MP1)<=$E$61,1,0) -> 0 | MQ1: =IF(COLUMNS($Q1:MQ1)<=$E$61,1,0) -> 0 | MR1: =IF(COLUMNS($Q1:MR1)<=$E$61,1,0) -> 0 | MS1: =IF(COLUMNS($Q1:MS1)<=$E$61,1,0) -> 0 | MT1: =IF(COLUMNS($Q1:MT1)<=$E$61,1,0) -> 0 | MU1: =IF(COLUMNS($Q1:MU1)<=$E$61,1,0) -> 0 | MV1: =IF(COLUMNS($Q1:MV1)<=$E$61,1,0) -> 0 | MW1: =IF(COLUMNS($Q1:MW1)<=$E$61,1,0) -> 0 | MX1: =IF(COLUMNS($Q1:MX1)<=$E$61,1,0) -> 0 | MY1: =IF(COLUMNS($Q1:MY1)<=$E$61,1,0) -> 0 | MZ1: =IF(COLUMNS($Q1:MZ1)<=$E$61,1,0) -> 0 | NA1: =IF(COLUMNS($Q1:NA1)<=$E$61,1,0) -> 0 | NB1: =IF(COLUMNS($Q1:NB1)<=$E$61,1,0) -> 0 | NC1: =IF(COLUMNS($Q1:NC1)<=$E$61,1,0) -> 0 | ND1: =IF(COLUMNS($Q1:ND1)<=$E$61,1,0) -> 0 | NE1: =IF(COLUMNS($Q1:NE1)<=$E$61,1,0) -> 0 | NF1: =IF(COLUMNS($Q1:NF1)<=$E$61,1,0) -> 0 | NG1: =IF(COLUMNS($Q1:NG1)<=$E$61,1,0) -> 0 | NH1: =IF(COLUMNS($Q1:NH1)<=$E$61,1,0) -> 0 | NI1: =IF(COLUMNS($Q1:NI1)<=$E$61,1,0) -> 0 | NJ1: =IF(COLUMNS($Q1:NJ1)<=$E$61,1,0) -> 0 | NK1: =IF(COLUMNS($Q1:NK1)<=$E$61,1,0) -> 0 | NL1: =IF(COLUMNS($Q1:NL1)<=$E$61,1,0) -> 0 | NM1: =IF(COLUMNS($Q1:NM1)<=$E$61,1,0) -> 0 | NN1: =IF(COLUMNS($Q1:NN1)<=$E$61,1,0) -> 0 | NO1: =IF(COLUMNS($Q1:NO1)<=$E$61,1,0) -> 0 | NP1: =IF(COLUMNS($Q1:NP1)<=$E$61,1,0) -> 0 | NQ1: =IF(COLUMNS($Q1:NQ1)<=$E$61,1,0) -> 0 | NR1: =IF(COLUMNS($Q1:NR1)<=$E$61,1,0) -> 0 | NS1: =IF(COLUMNS($Q1:NS1)<=$E$61,1,0) -> 0 | NT1: =IF(COLUMNS($Q1:NT1)<=$E$61,1,0) -> 0 | NU1: =IF(COLUMNS($Q1:NU1)<=$E$61,1,0) -> 0 | NV1: =IF(COLUMNS($Q1:NV1)<=$E$61,1,0) -> 0 | NW1: =IF(COLUMNS($Q1:NW1)<=$E$61,1,0) -> 0 | NX1: =IF(COLUMNS($Q1:NX1)<=$E$61,1,0) -> 0 | NY1: =IF(COLUMNS($Q1:NY1)<=$E$61,1,0) -> 0 | NZ1: =IF(COLUMNS($Q1:NZ1)<=$E$61,1,0) -> 0 | OA1: =IF(COLUMNS($Q1:OA1)<=$E$61,1,0) -> 0 | OB1: =IF(COLUMNS($Q1:OB1)<=$E$61,1,0) -> 0 | OC1: =IF(COLUMNS($Q1:OC1)<=$E$61,1,0) -> 0 | OD1: =IF(COLUMNS($Q1:OD1)<=$E$61,1,0) -> 0 | OE1: =IF(COLUMNS($Q1:OE1)<=$E$61,1,0) -> 0 | OF1: =IF(COLUMNS($Q1:OF1)<=$E$61,1,0) -> 0 | OG1: =IF(COLUMNS($Q1:OG1)<=$E$61,1,0) -> 0 | OH1: =IF(COLUMNS($Q1:OH1)<=$E$61,1,0) -> 0 | OI1: =IF(COLUMNS($Q1:OI1)<=$E$61,1,0) -> 0 | OJ1: =IF(COLUMNS($Q1:OJ1)<=$E$61,1,0) -> 0 | OK1: =IF(COLUMNS($Q1:OK1)<=$E$61,1,0) -> 0 | OL1: =IF(COLUMNS($Q1:OL1)<=$E$61,1,0) -> 0 | OM1: =IF(COLUMNS($Q1:OM1)<=$E$61,1,0) -> 0 | ON1: =IF(COLUMNS($Q1:ON1)<=$E$61,1,0) -> 0 | OO1: =IF(COLUMNS($Q1:OO1)<=$E$61,1,0) -> 0 | OP1: =IF(COLUMNS($Q1:OP1)<=$E$61,1,0) -> 0 | OQ1: =IF(COLUMNS($Q1:OQ1)<=$E$61,1,0) -> 0 | OT1: x
M2: Venta | Q2: =IF(COLUMNS($Q2:Q2)=$E$61,1,0) -> 0 | R2: =IF(COLUMNS($Q2:R2)=$E$61,1,0) -> 0 | S2: =IF(COLUMNS($Q2:S2)=$E$61,1,0) -> 0 | T2: =IF(COLUMNS($Q2:T2)=$E$61,1,0) -> 0 | U2: =IF(COLUMNS($Q2:U2)=$E$61,1,0) -> 0 | V2: =IF(COLUMNS($Q2:V2)=$E$61,1,0) -> 0 | W2: =IF(COLUMNS($Q2:W2)=$E$61,1,0) -> 0 | X2: =IF(COLUMNS($Q2:X2)=$E$61,1,0) -> 0 | Y2: =IF(COLUMNS($Q2:Y2)=$E$61,1,0) -> 0 | Z2: =IF(COLUMNS($Q2:Z2)=$E$61,1,0) -> 0 | AA2: =IF(COLUMNS($Q2:AA2)=$E$61,1,0) -> 0 | AB2: =IF(COLUMNS($Q2:AB2)=$E$61,1,0) -> 0 | AC2: =IF(COLUMNS($Q2:AC2)=$E$61,1,0) -> 0 | AD2: =IF(COLUMNS($Q2:AD2)=$E$61,1,0) -> 0 | AE2: =IF(COLUMNS($Q2:AE2)=$E$61,1,0) -> 0 | AF2: =IF(COLUMNS($Q2:AF2)=$E$61,1,0) -> 0 | AG2: =IF(COLUMNS($Q2:AG2)=$E$61,1,0) -> 0 | AH2: =IF(COLUMNS($Q2:AH2)=$E$61,1,0) -> 0 | AI2: =IF(COLUMNS($Q2:AI2)=$E$61,1,0) -> 0 | AJ2: =IF(COLUMNS($Q2:AJ2)=$E$61,1,0) -> 0 | AK2: =IF(COLUMNS($Q2:AK2)=$E$61,1,0) -> 0 | AL2: =IF(COLUMNS($Q2:AL2)=$E$61,1,0) -> 0 | AM2: =IF(COLUMNS($Q2:AM2)=$E$61,1,0) -> 0 | AN2: =IF(COLUMNS($Q2:AN2)=$E$61,1,0) -> 0 | AO2: =IF(COLUMNS($Q2:AO2)=$E$61,1,0) -> 0 | AP2: =IF(COLUMNS($Q2:AP2)=$E$61,1,0) -> 0 | AQ2: =IF(COLUMNS($Q2:AQ2)=$E$61,1,0) -> 0 | AR2: =IF(COLUMNS($Q2:AR2)=$E$61,1,0) -> 0 | AS2: =IF(COLUMNS($Q2:AS2)=$E$61,1,0) -> 0 | AT2: =IF(COLUMNS($Q2:AT2)=$E$61,1,0) -> 0 | AU2: =IF(COLUMNS($Q2:AU2)=$E$61,1,0) -> 0 | AV2: =IF(COLUMNS($Q2:AV2)=$E$61,1,0) -> 0 | AW2: =IF(COLUMNS($Q2:AW2)=$E$61,1,0) -> 0 | AX2: =IF(COLUMNS($Q2:AX2)=$E$61,1,0) -> 0 | AY2: =IF(COLUMNS($Q2:AY2)=$E$61,1,0) -> 0 | AZ2: =IF(COLUMNS($Q2:AZ2)=$E$61,1,0) -> 0 | BA2: =IF(COLUMNS($Q2:BA2)=$E$61,1,0) -> 0 | BB2: =IF(COLUMNS($Q2:BB2)=$E$61,1,0) -> 0 | BC2: =IF(COLUMNS($Q2:BC2)=$E$61,1,0) -> 0 | BD2: =IF(COLUMNS($Q2:BD2)=$E$61,1,0) -> 0 | BE2: =IF(COLUMNS($Q2:BE2)=$E$61,1,0) -> 0 | BF2: =IF(COLUMNS($Q2:BF2)=$E$61,1,0) -> 0 | BG2: =IF(COLUMNS($Q2:BG2)=$E$61,1,0) -> 0 | BH2: =IF(COLUMNS($Q2:BH2)=$E$61,1,0) -> 0 | BI2: =IF(COLUMNS($Q2:BI2)=$E$61,1,0) -> 0 | BJ2: =IF(COLUMNS($Q2:BJ2)=$E$61,1,0) -> 0 | BK2: =IF(COLUMNS($Q2:BK2)=$E$61,1,0) -> 0 | BL2: =IF(COLUMNS($Q2:BL2)=$E$61,1,0) -> 0 | BM2: =IF(COLUMNS($Q2:BM2)=$E$61,1,0) -> 0 | BN2: =IF(COLUMNS($Q2:BN2)=$E$61,1,0) -> 0 | BO2: =IF(COLUMNS($Q2:BO2)=$E$61,1,0) -> 0 | BP2: =IF(COLUMNS($Q2:BP2)=$E$61,1,0) -> 0 | BQ2: =IF(COLUMNS($Q2:BQ2)=$E$61,1,0) -> 0 | BR2: =IF(COLUMNS($Q2:BR2)=$E$61,1,0) -> 0 | BS2: =IF(COLUMNS($Q2:BS2)=$E$61,1,0) -> 0 | BT2: =IF(COLUMNS($Q2:BT2)=$E$61,1,0) -> 0 | BU2: =IF(COLUMNS($Q2:BU2)=$E$61,1,0) -> 0 | BV2: =IF(COLUMNS($Q2:BV2)=$E$61,1,0) -> 0 | BW2: =IF(COLUMNS($Q2:BW2)=$E$61,1,0) -> 0 | BX2: =IF(COLUMNS($Q2:BX2)=$E$61,1,0) -> 1 | BY2: =IF(COLUMNS($Q2:BY2)=$E$61,1,0) -> 0 | BZ2: =IF(COLUMNS($Q2:BZ2)=$E$61,1,0) -> 0 | CA2: =IF(COLUMNS($Q2:CA2)=$E$61,1,0) -> 0 | CB2: =IF(COLUMNS($Q2:CB2)=$E$61,1,0) -> 0 | CC2: =IF(COLUMNS($Q2:CC2)=$E$61,1,0) -> 0 | CD2: =IF(COLUMNS($Q2:CD2)=$E$61,1,0) -> 0 | CE2: =IF(COLUMNS($Q2:CE2)=$E$61,1,0) -> 0 | CF2: =IF(COLUMNS($Q2:CF2)=$E$61,1,0) -> 0 | CG2: =IF(COLUMNS($Q2:CG2)=$E$61,1,0) -> 0 | CH2: =IF(COLUMNS($Q2:CH2)=$E$61,1,0) -> 0 | CI2: =IF(COLUMNS($Q2:CI2)=$E$61,1,0) -> 0 | CJ2: =IF(COLUMNS($Q2:CJ2)=$E$61,1,0) -> 0 | CK2: =IF(COLUMNS($Q2:CK2)=$E$61,1,0) -> 0 | CL2: =IF(COLUMNS($Q2:CL2)=$E$61,1,0) -> 0 | CM2: =IF(COLUMNS($Q2:CM2)=$E$61,1,0) -> 0 | CN2: =IF(COLUMNS($Q2:CN2)=$E$61,1,0) -> 0 | CO2: =IF(COLUMNS($Q2:CO2)=$E$61,1,0) -> 0 | CP2: =IF(COLUMNS($Q2:CP2)=$E$61,1,0) -> 0 | CQ2: =IF(COLUMNS($Q2:CQ2)=$E$61,1,0) -> 0 | CR2: =IF(COLUMNS($Q2:CR2)=$E$61,1,0) -> 0 | CS2: =IF(COLUMNS($Q2:CS2)=$E$61,1,0) -> 0 | CT2: =IF(COLUMNS($Q2:CT2)=$E$61,1,0) -> 0 | CU2: =IF(COLUMNS($Q2:CU2)=$E$61,1,0) -> 0 | CV2: =IF(COLUMNS($Q2:CV2)=$E$61,1,0) -> 0 | CW2: =IF(COLUMNS($Q2:CW2)=$E$61,1,0) -> 0 | CX2: =IF(COLUMNS($Q2:CX2)=$E$61,1,0) -> 0 | CY2: =IF(COLUMNS($Q2:CY2)=$E$61,1,0) -> 0 | CZ2: =IF(COLUMNS($Q2:CZ2)=$E$61,1,0) -> 0 | DA2: =IF(COLUMNS($Q2:DA2)=$E$61,1,0) -> 0 | DB2: =IF(COLUMNS($Q2:DB2)=$E$61,1,0) -> 0 | DC2: =IF(COLUMNS($Q2:DC2)=$E$61,1,0) -> 0 | DD2: =IF(COLUMNS($Q2:DD2)=$E$61,1,0) -> 0 | DE2: =IF(COLUMNS($Q2:DE2)=$E$61,1,0) -> 0 | DF2: =IF(COLUMNS($Q2:DF2)=$E$61,1,0) -> 0 | DG2: =IF(COLUMNS($Q2:DG2)=$E$61,1,0) -> 0 | DH2: =IF(COLUMNS($Q2:DH2)=$E$61,1,0) -> 0 | DI2: =IF(COLUMNS($Q2:DI2)=$E$61,1,0) -> 0 | DJ2: =IF(COLUMNS($Q2:DJ2)=$E$61,1,0) -> 0 | DK2: =IF(COLUMNS($Q2:DK2)=$E$61,1,0) -> 0 | DL2: =IF(COLUMNS($Q2:DL2)=$E$61,1,0) -> 0 | DM2: =IF(COLUMNS($Q2:DM2)=$E$61,1,0) -> 0 | DN2: =IF(COLUMNS($Q2:DN2)=$E$61,1,0) -> 0 | DO2: =IF(COLUMNS($Q2:DO2)=$E$61,1,0) -> 0 | DP2: =IF(COLUMNS($Q2:DP2)=$E$61,1,0) -> 0 | DQ2: =IF(COLUMNS($Q2:DQ2)=$E$61,1,0) -> 0 | DR2: =IF(COLUMNS($Q2:DR2)=$E$61,1,0) -> 0 | DS2: =IF(COLUMNS($Q2:DS2)=$E$61,1,0) -> 0 | DT2: =IF(COLUMNS($Q2:DT2)=$E$61,1,0) -> 0 | DU2: =IF(COLUMNS($Q2:DU2)=$E$61,1,0) -> 0 | DV2: =IF(COLUMNS($Q2:DV2)=$E$61,1,0) -> 0 | DW2: =IF(COLUMNS($Q2:DW2)=$E$61,1,0) -> 0 | DX2: =IF(COLUMNS($Q2:DX2)=$E$61,1,0) -> 0 | DY2: =IF(COLUMNS($Q2:DY2)=$E$61,1,0) -> 0 | DZ2: =IF(COLUMNS($Q2:DZ2)=$E$61,1,0) -> 0 | EA2: =IF(COLUMNS($Q2:EA2)=$E$61,1,0) -> 0 | EB2: =IF(COLUMNS($Q2:EB2)=$E$61,1,0) -> 0 | EC2: =IF(COLUMNS($Q2:EC2)=$E$61,1,0) -> 0 | ED2: =IF(COLUMNS($Q2:ED2)=$E$61,1,0) -> 0 | EE2: =IF(COLUMNS($Q2:EE2)=$E$61,1,0) -> 0 | EF2: =IF(COLUMNS($Q2:EF2)=$E$61,1,0) -> 0 | EG2: =IF(COLUMNS($Q2:EG2)=$E$61,1,0) -> 0 | EH2: =IF(COLUMNS($Q2:EH2)=$E$61,1,0) -> 0 | EI2: =IF(COLUMNS($Q2:EI2)=$E$61,1,0) -> 0 | EJ2: =IF(COLUMNS($Q2:EJ2)=$E$61,1,0) -> 0 | EK2: =IF(COLUMNS($Q2:EK2)=$E$61,1,0) -> 0 | EL2: =IF(COLUMNS($Q2:EL2)=$E$61,1,0) -> 0 | EM2: =IF(COLUMNS($Q2:EM2)=$E$61,1,0) -> 0 | EN2: =IF(COLUMNS($Q2:EN2)=$E$61,1,0) -> 0 | EO2: =IF(COLUMNS($Q2:EO2)=$E$61,1,0) -> 0 | EP2: =IF(COLUMNS($Q2:EP2)=$E$61,1,0) -> 0 | EQ2: =IF(COLUMNS($Q2:EQ2)=$E$61,1,0) -> 0 | ER2: =IF(COLUMNS($Q2:ER2)=$E$61,1,0) -> 0 | ES2: =IF(COLUMNS($Q2:ES2)=$E$61,1,0) -> 0 | ET2: =IF(COLUMNS($Q2:ET2)=$E$61,1,0) -> 0 | EU2: =IF(COLUMNS($Q2:EU2)=$E$61,1,0) -> 0 | EV2: =IF(COLUMNS($Q2:EV2)=$E$61,1,0) -> 0 | EW2: =IF(COLUMNS($Q2:EW2)=$E$61,1,0) -> 0 | EX2: =IF(COLUMNS($Q2:EX2)=$E$61,1,0) -> 0 | EY2: =IF(COLUMNS($Q2:EY2)=$E$61,1,0) -> 0 | EZ2: =IF(COLUMNS($Q2:EZ2)=$E$61,1,0) -> 0 | FA2: =IF(COLUMNS($Q2:FA2)=$E$61,1,0) -> 0 | FB2: =IF(COLUMNS($Q2:FB2)=$E$61,1,0) -> 0 | FC2: =IF(COLUMNS($Q2:FC2)=$E$61,1,0) -> 0 | FD2: =IF(COLUMNS($Q2:FD2)=$E$61,1,0) -> 0 | FE2: =IF(COLUMNS($Q2:FE2)=$E$61,1,0) -> 0 | FF2: =IF(COLUMNS($Q2:FF2)=$E$61,1,0) -> 0 | FG2: =IF(COLUMNS($Q2:FG2)=$E$61,1,0) -> 0 | FH2: =IF(COLUMNS($Q2:FH2)=$E$61,1,0) -> 0 | FI2: =IF(COLUMNS($Q2:FI2)=$E$61,1,0) -> 0 | FJ2: =IF(COLUMNS($Q2:FJ2)=$E$61,1,0) -> 0 | FK2: =IF(COLUMNS($Q2:FK2)=$E$61,1,0) -> 0 | FL2: =IF(COLUMNS($Q2:FL2)=$E$61,1,0) -> 0 | FM2: =IF(COLUMNS($Q2:FM2)=$E$61,1,0) -> 0 | FN2: =IF(COLUMNS($Q2:FN2)=$E$61,1,0) -> 0 | FO2: =IF(COLUMNS($Q2:FO2)=$E$61,1,0) -> 0 | FP2: =IF(COLUMNS($Q2:FP2)=$E$61,1,0) -> 0 | FQ2: =IF(COLUMNS($Q2:FQ2)=$E$61,1,0) -> 0 | FR2: =IF(COLUMNS($Q2:FR2)=$E$61,1,0) -> 0 | FS2: =IF(COLUMNS($Q2:FS2)=$E$61,1,0) -> 0 | FT2: =IF(COLUMNS($Q2:FT2)=$E$61,1,0) -> 0 | FU2: =IF(COLUMNS($Q2:FU2)=$E$61,1,0) -> 0 | FV2: =IF(COLUMNS($Q2:FV2)=$E$61,1,0) -> 0 | FW2: =IF(COLUMNS($Q2:FW2)=$E$61,1,0) -> 0 | FX2: =IF(COLUMNS($Q2:FX2)=$E$61,1,0) -> 0 | FY2: =IF(COLUMNS($Q2:FY2)=$E$61,1,0) -> 0 | FZ2: =IF(COLUMNS($Q2:FZ2)=$E$61,1,0) -> 0 | GA2: =IF(COLUMNS($Q2:GA2)=$E$61,1,0) -> 0 | GB2: =IF(COLUMNS($Q2:GB2)=$E$61,1,0) -> 0 | GC2: =IF(COLUMNS($Q2:GC2)=$E$61,1,0) -> 0 | GD2: =IF(COLUMNS($Q2:GD2)=$E$61,1,0) -> 0 | GE2: =IF(COLUMNS($Q2:GE2)=$E$61,1,0) -> 0 | GF2: =IF(COLUMNS($Q2:GF2)=$E$61,1,0) -> 0 | GG2: =IF(COLUMNS($Q2:GG2)=$E$61,1,0) -> 0 | GH2: =IF(COLUMNS($Q2:GH2)=$E$61,1,0) -> 0 | GI2: =IF(COLUMNS($Q2:GI2)=$E$61,1,0) -> 0 | GJ2: =IF(COLUMNS($Q2:GJ2)=$E$61,1,0) -> 0 | GK2: =IF(COLUMNS($Q2:GK2)=$E$61,1,0) -> 0 | GL2: =IF(COLUMNS($Q2:GL2)=$E$61,1,0) -> 0 | GM2: =IF(COLUMNS($Q2:GM2)=$E$61,1,0) -> 0 | GN2: =IF(COLUMNS($Q2:GN2)=$E$61,1,0) -> 0 | GO2: =IF(COLUMNS($Q2:GO2)=$E$61,1,0) -> 0 | GP2: =IF(COLUMNS($Q2:GP2)=$E$61,1,0) -> 0 | GQ2: =IF(COLUMNS($Q2:GQ2)=$E$61,1,0) -> 0 | GR2: =IF(COLUMNS($Q2:GR2)=$E$61,1,0) -> 0 | GS2: =IF(COLUMNS($Q2:GS2)=$E$61,1,0) -> 0 | GT2: =IF(COLUMNS($Q2:GT2)=$E$61,1,0) -> 0 | GU2: =IF(COLUMNS($Q2:GU2)=$E$61,1,0) -> 0 | GV2: =IF(COLUMNS($Q2:GV2)=$E$61,1,0) -> 0 | GW2: =IF(COLUMNS($Q2:GW2)=$E$61,1,0) -> 0 | GX2: =IF(COLUMNS($Q2:GX2)=$E$61,1,0) -> 0 | GY2: =IF(COLUMNS($Q2:GY2)=$E$61,1,0) -> 0 | GZ2: =IF(COLUMNS($Q2:GZ2)=$E$61,1,0) -> 0 | HA2: =IF(COLUMNS($Q2:HA2)=$E$61,1,0) -> 0 | HB2: =IF(COLUMNS($Q2:HB2)=$E$61,1,0) -> 0 | HC2: =IF(COLUMNS($Q2:HC2)=$E$61,1,0) -> 0 | HD2: =IF(COLUMNS($Q2:HD2)=$E$61,1,0) -> 0 | HE2: =IF(COLUMNS($Q2:HE2)=$E$61,1,0) -> 0 | HF2: =IF(COLUMNS($Q2:HF2)=$E$61,1,0) -> 0 | HG2: =IF(COLUMNS($Q2:HG2)=$E$61,1,0) -> 0 | HH2: =IF(COLUMNS($Q2:HH2)=$E$61,1,0) -> 0 | HI2: =IF(COLUMNS($Q2:HI2)=$E$61,1,0) -> 0 | HJ2: =IF(COLUMNS($Q2:HJ2)=$E$61,1,0) -> 0 | HK2: =IF(COLUMNS($Q2:HK2)=$E$61,1,0) -> 0 | HL2: =IF(COLUMNS($Q2:HL2)=$E$61,1,0) -> 0 | HM2: =IF(COLUMNS($Q2:HM2)=$E$61,1,0) -> 0 | HN2: =IF(COLUMNS($Q2:HN2)=$E$61,1,0) -> 0 | HO2: =IF(COLUMNS($Q2:HO2)=$E$61,1,0) -> 0 | HP2: =IF(COLUMNS($Q2:HP2)=$E$61,1,0) -> 0 | HQ2: =IF(COLUMNS($Q2:HQ2)=$E$61,1,0) -> 0 | HR2: =IF(COLUMNS($Q2:HR2)=$E$61,1,0) -> 0 | HS2: =IF(COLUMNS($Q2:HS2)=$E$61,1,0) -> 0 | HT2: =IF(COLUMNS($Q2:HT2)=$E$61,1,0) -> 0 | HU2: =IF(COLUMNS($Q2:HU2)=$E$61,1,0) -> 0 | HV2: =IF(COLUMNS($Q2:HV2)=$E$61,1,0) -> 0 | HW2: =IF(COLUMNS($Q2:HW2)=$E$61,1,0) -> 0 | HX2: =IF(COLUMNS($Q2:HX2)=$E$61,1,0) -> 0 | HY2: =IF(COLUMNS($Q2:HY2)=$E$61,1,0) -> 0 | HZ2: =IF(COLUMNS($Q2:HZ2)=$E$61,1,0) -> 0 | IA2: =IF(COLUMNS($Q2:IA2)=$E$61,1,0) -> 0 | IB2: =IF(COLUMNS($Q2:IB2)=$E$61,1,0) -> 0 | IC2: =IF(COLUMNS($Q2:IC2)=$E$61,1,0) -> 0 | ID2: =IF(COLUMNS($Q2:ID2)=$E$61,1,0) -> 0 | IE2: =IF(COLUMNS($Q2:IE2)=$E$61,1,0) -> 0 | IF2: =IF(COLUMNS($Q2:IF2)=$E$61,1,0) -> 0 | IG2: =IF(COLUMNS($Q2:IG2)=$E$61,1,0) -> 0 | IH2: =IF(COLUMNS($Q2:IH2)=$E$61,1,0) -> 0 | II2: =IF(COLUMNS($Q2:II2)=$E$61,1,0) -> 0 | IJ2: =IF(COLUMNS($Q2:IJ2)=$E$61,1,0) -> 0 | IK2: =IF(COLUMNS($Q2:IK2)=$E$61,1,0) -> 0 | IL2: =IF(COLUMNS($Q2:IL2)=$E$61,1,0) -> 0 | IM2: =IF(COLUMNS($Q2:IM2)=$E$61,1,0) -> 0 | IN2: =IF(COLUMNS($Q2:IN2)=$E$61,1,0) -> 0 | IO2: =IF(COLUMNS($Q2:IO2)=$E$61,1,0) -> 0 | IP2: =IF(COLUMNS($Q2:IP2)=$E$61,1,0) -> 0 | IQ2: =IF(COLUMNS($Q2:IQ2)=$E$61,1,0) -> 0 | IR2: =IF(COLUMNS($Q2:IR2)=$E$61,1,0) -> 0 | IS2: =IF(COLUMNS($Q2:IS2)=$E$61,1,0) -> 0 | IT2: =IF(COLUMNS($Q2:IT2)=$E$61,1,0) -> 0 | IU2: =IF(COLUMNS($Q2:IU2)=$E$61,1,0) -> 0 | IV2: =IF(COLUMNS($Q2:IV2)=$E$61,1,0) -> 0 | IW2: =IF(COLUMNS($Q2:IW2)=$E$61,1,0) -> 0 | IX2: =IF(COLUMNS($Q2:IX2)=$E$61,1,0) -> 0 | IY2: =IF(COLUMNS($Q2:IY2)=$E$61,1,0) -> 0 | IZ2: =IF(COLUMNS($Q2:IZ2)=$E$61,1,0) -> 0 | JA2: =IF(COLUMNS($Q2:JA2)=$E$61,1,0) -> 0 | JB2: =IF(COLUMNS($Q2:JB2)=$E$61,1,0) -> 0 | JC2: =IF(COLUMNS($Q2:JC2)=$E$61,1,0) -> 0 | JD2: =IF(COLUMNS($Q2:JD2)=$E$61,1,0) -> 0 | JE2: =IF(COLUMNS($Q2:JE2)=$E$61,1,0) -> 0 | JF2: =IF(COLUMNS($Q2:JF2)=$E$61,1,0) -> 0 | JG2: =IF(COLUMNS($Q2:JG2)=$E$61,1,0) -> 0 | JH2: =IF(COLUMNS($Q2:JH2)=$E$61,1,0) -> 0 | JI2: =IF(COLUMNS($Q2:JI2)=$E$61,1,0) -> 0 | JJ2: =IF(COLUMNS($Q2:JJ2)=$E$61,1,0) -> 0 | JK2: =IF(COLUMNS($Q2:JK2)=$E$61,1,0) -> 0 | JL2: =IF(COLUMNS($Q2:JL2)=$E$61,1,0) -> 0 | JM2: =IF(COLUMNS($Q2:JM2)=$E$61,1,0) -> 0 | JN2: =IF(COLUMNS($Q2:JN2)=$E$61,1,0) -> 0 | JO2: =IF(COLUMNS($Q2:JO2)=$E$61,1,0) -> 0 | JP2: =IF(COLUMNS($Q2:JP2)=$E$61,1,0) -> 0 | JQ2: =IF(COLUMNS($Q2:JQ2)=$E$61,1,0) -> 0 | JR2: =IF(COLUMNS($Q2:JR2)=$E$61,1,0) -> 0 | JS2: =IF(COLUMNS($Q2:JS2)=$E$61,1,0) -> 0 | JT2: =IF(COLUMNS($Q2:JT2)=$E$61,1,0) -> 0 | JU2: =IF(COLUMNS($Q2:JU2)=$E$61,1,0) -> 0 | JV2: =IF(COLUMNS($Q2:JV2)=$E$61,1,0) -> 0 | JW2: =IF(COLUMNS($Q2:JW2)=$E$61,1,0) -> 0 | JX2: =IF(COLUMNS($Q2:JX2)=$E$61,1,0) -> 0 | JY2: =IF(COLUMNS($Q2:JY2)=$E$61,1,0) -> 0 | JZ2: =IF(COLUMNS($Q2:JZ2)=$E$61,1,0) -> 0 | KA2: =IF(COLUMNS($Q2:KA2)=$E$61,1,0) -> 0 | KB2: =IF(COLUMNS($Q2:KB2)=$E$61,1,0) -> 0 | KC2: =IF(COLUMNS($Q2:KC2)=$E$61,1,0) -> 0 | KD2: =IF(COLUMNS($Q2:KD2)=$E$61,1,0) -> 0 | KE2: =IF(COLUMNS($Q2:KE2)=$E$61,1,0) -> 0 | KF2: =IF(COLUMNS($Q2:KF2)=$E$61,1,0) -> 0 | KG2: =IF(COLUMNS($Q2:KG2)=$E$61,1,0) -> 0 | KH2: =IF(COLUMNS($Q2:KH2)=$E$61,1,0) -> 0 | KI2: =IF(COLUMNS($Q2:KI2)=$E$61,1,0) -> 0 | KJ2: =IF(COLUMNS($Q2:KJ2)=$E$61,1,0) -> 0 | KK2: =IF(COLUMNS($Q2:KK2)=$E$61,1,0) -> 0 | KL2: =IF(COLUMNS($Q2:KL2)=$E$61,1,0) -> 0 | KM2: =IF(COLUMNS($Q2:KM2)=$E$61,1,0) -> 0 | KN2: =IF(COLUMNS($Q2:KN2)=$E$61,1,0) -> 0 | KO2: =IF(COLUMNS($Q2:KO2)=$E$61,1,0) -> 0 | KP2: =IF(COLUMNS($Q2:KP2)=$E$61,1,0) -> 0 | KQ2: =IF(COLUMNS($Q2:KQ2)=$E$61,1,0) -> 0 | KR2: =IF(COLUMNS($Q2:KR2)=$E$61,1,0) -> 0 | KS2: =IF(COLUMNS($Q2:KS2)=$E$61,1,0) -> 0 | KT2: =IF(COLUMNS($Q2:KT2)=$E$61,1,0) -> 0 | KU2: =IF(COLUMNS($Q2:KU2)=$E$61,1,0) -> 0 | KV2: =IF(COLUMNS($Q2:KV2)=$E$61,1,0) -> 0 | KW2: =IF(COLUMNS($Q2:KW2)=$E$61,1,0) -> 0 | KX2: =IF(COLUMNS($Q2:KX2)=$E$61,1,0) -> 0 | KY2: =IF(COLUMNS($Q2:KY2)=$E$61,1,0) -> 0 | KZ2: =IF(COLUMNS($Q2:KZ2)=$E$61,1,0) -> 0 | LA2: =IF(COLUMNS($Q2:LA2)=$E$61,1,0) -> 0 | LB2: =IF(COLUMNS($Q2:LB2)=$E$61,1,0) -> 0 | LC2: =IF(COLUMNS($Q2:LC2)=$E$61,1,0) -> 0 | LD2: =IF(COLUMNS($Q2:LD2)=$E$61,1,0) -> 0 | LE2: =IF(COLUMNS($Q2:LE2)=$E$61,1,0) -> 0 | LF2: =IF(COLUMNS($Q2:LF2)=$E$61,1,0) -> 0 | LG2: =IF(COLUMNS($Q2:LG2)=$E$61,1,0) -> 0 | LH2: =IF(COLUMNS($Q2:LH2)=$E$61,1,0) -> 0 | LI2: =IF(COLUMNS($Q2:LI2)=$E$61,1,0) -> 0 | LJ2: =IF(COLUMNS($Q2:LJ2)=$E$61,1,0) -> 0 | LK2: =IF(COLUMNS($Q2:LK2)=$E$61,1,0) -> 0 | LL2: =IF(COLUMNS($Q2:LL2)=$E$61,1,0) -> 0 | LM2: =IF(COLUMNS($Q2:LM2)=$E$61,1,0) -> 0 | LN2: =IF(COLUMNS($Q2:LN2)=$E$61,1,0) -> 0 | LO2: =IF(COLUMNS($Q2:LO2)=$E$61,1,0) -> 0 | LP2: =IF(COLUMNS($Q2:LP2)=$E$61,1,0) -> 0 | LQ2: =IF(COLUMNS($Q2:LQ2)=$E$61,1,0) -> 0 | LR2: =IF(COLUMNS($Q2:LR2)=$E$61,1,0) -> 0 | LS2: =IF(COLUMNS($Q2:LS2)=$E$61,1,0) -> 0 | LT2: =IF(COLUMNS($Q2:LT2)=$E$61,1,0) -> 0 | LU2: =IF(COLUMNS($Q2:LU2)=$E$61,1,0) -> 0 | LV2: =IF(COLUMNS($Q2:LV2)=$E$61,1,0) -> 0 | LW2: =IF(COLUMNS($Q2:LW2)=$E$61,1,0) -> 0 | LX2: =IF(COLUMNS($Q2:LX2)=$E$61,1,0) -> 0 | LY2: =IF(COLUMNS($Q2:LY2)=$E$61,1,0) -> 0 | LZ2: =IF(COLUMNS($Q2:LZ2)=$E$61,1,0) -> 0 | MA2: =IF(COLUMNS($Q2:MA2)=$E$61,1,0) -> 0 | MB2: =IF(COLUMNS($Q2:MB2)=$E$61,1,0) -> 0 | MC2: =IF(COLUMNS($Q2:MC2)=$E$61,1,0) -> 0 | MD2: =IF(COLUMNS($Q2:MD2)=$E$61,1,0) -> 0 | ME2: =IF(COLUMNS($Q2:ME2)=$E$61,1,0) -> 0 | MF2: =IF(COLUMNS($Q2:MF2)=$E$61,1,0) -> 0 | MG2: =IF(COLUMNS($Q2:MG2)=$E$61,1,0) -> 0 | MH2: =IF(COLUMNS($Q2:MH2)=$E$61,1,0) -> 0 | MI2: =IF(COLUMNS($Q2:MI2)=$E$61,1,0) -> 0 | MJ2: =IF(COLUMNS($Q2:MJ2)=$E$61,1,0) -> 0 | MK2: =IF(COLUMNS($Q2:MK2)=$E$61,1,0) -> 0 | ML2: =IF(COLUMNS($Q2:ML2)=$E$61,1,0) -> 0 | MM2: =IF(COLUMNS($Q2:MM2)=$E$61,1,0) -> 0 | MN2: =IF(COLUMNS($Q2:MN2)=$E$61,1,0) -> 0 | MO2: =IF(COLUMNS($Q2:MO2)=$E$61,1,0) -> 0 | MP2: =IF(COLUMNS($Q2:MP2)=$E$61,1,0) -> 0 | MQ2: =IF(COLUMNS($Q2:MQ2)=$E$61,1,0) -> 0 | MR2: =IF(COLUMNS($Q2:MR2)=$E$61,1,0) -> 0 | MS2: =IF(COLUMNS($Q2:MS2)=$E$61,1,0) -> 0 | MT2: =IF(COLUMNS($Q2:MT2)=$E$61,1,0) -> 0 | MU2: =IF(COLUMNS($Q2:MU2)=$E$61,1,0) -> 0 | MV2: =IF(COLUMNS($Q2:MV2)=$E$61,1,0) -> 0 | MW2: =IF(COLUMNS($Q2:MW2)=$E$61,1,0) -> 0 | MX2: =IF(COLUMNS($Q2:MX2)=$E$61,1,0) -> 0 | MY2: =IF(COLUMNS($Q2:MY2)=$E$61,1,0) -> 0 | MZ2: =IF(COLUMNS($Q2:MZ2)=$E$61,1,0) -> 0 | NA2: =IF(COLUMNS($Q2:NA2)=$E$61,1,0) -> 0 | NB2: =IF(COLUMNS($Q2:NB2)=$E$61,1,0) -> 0 | NC2: =IF(COLUMNS($Q2:NC2)=$E$61,1,0) -> 0 | ND2: =IF(COLUMNS($Q2:ND2)=$E$61,1,0) -> 0 | NE2: =IF(COLUMNS($Q2:NE2)=$E$61,1,0) -> 0 | NF2: =IF(COLUMNS($Q2:NF2)=$E$61,1,0) -> 0 | NG2: =IF(COLUMNS($Q2:NG2)=$E$61,1,0) -> 0 | NH2: =IF(COLUMNS($Q2:NH2)=$E$61,1,0) -> 0 | NI2: =IF(COLUMNS($Q2:NI2)=$E$61,1,0) -> 0 | NJ2: =IF(COLUMNS($Q2:NJ2)=$E$61,1,0) -> 0 | NK2: =IF(COLUMNS($Q2:NK2)=$E$61,1,0) -> 0 | NL2: =IF(COLUMNS($Q2:NL2)=$E$61,1,0) -> 0 | NM2: =IF(COLUMNS($Q2:NM2)=$E$61,1,0) -> 0 | NN2: =IF(COLUMNS($Q2:NN2)=$E$61,1,0) -> 0 | NO2: =IF(COLUMNS($Q2:NO2)=$E$61,1,0) -> 0 | NP2: =IF(COLUMNS($Q2:NP2)=$E$61,1,0) -> 0 | NQ2: =IF(COLUMNS($Q2:NQ2)=$E$61,1,0) -> 0 | NR2: =IF(COLUMNS($Q2:NR2)=$E$61,1,0) -> 0 | NS2: =IF(COLUMNS($Q2:NS2)=$E$61,1,0) -> 0 | NT2: =IF(COLUMNS($Q2:NT2)=$E$61,1,0) -> 0 | NU2: =IF(COLUMNS($Q2:NU2)=$E$61,1,0) -> 0 | NV2: =IF(COLUMNS($Q2:NV2)=$E$61,1,0) -> 0 | NW2: =IF(COLUMNS($Q2:NW2)=$E$61,1,0) -> 0 | NX2: =IF(COLUMNS($Q2:NX2)=$E$61,1,0) -> 0 | NY2: =IF(COLUMNS($Q2:NY2)=$E$61,1,0) -> 0 | NZ2: =IF(COLUMNS($Q2:NZ2)=$E$61,1,0) -> 0 | OA2: =IF(COLUMNS($Q2:OA2)=$E$61,1,0) -> 0 | OB2: =IF(COLUMNS($Q2:OB2)=$E$61,1,0) -> 0 | OC2: =IF(COLUMNS($Q2:OC2)=$E$61,1,0) -> 0 | OD2: =IF(COLUMNS($Q2:OD2)=$E$61,1,0) -> 0 | OE2: =IF(COLUMNS($Q2:OE2)=$E$61,1,0) -> 0 | OF2: =IF(COLUMNS($Q2:OF2)=$E$61,1,0) -> 0 | OG2: =IF(COLUMNS($Q2:OG2)=$E$61,1,0) -> 0 | OH2: =IF(COLUMNS($Q2:OH2)=$E$61,1,0) -> 0 | OI2: =IF(COLUMNS($Q2:OI2)=$E$61,1,0) -> 0 | OJ2: =IF(COLUMNS($Q2:OJ2)=$E$61,1,0) -> 0 | OK2: =IF(COLUMNS($Q2:OK2)=$E$61,1,0) -> 0 | OL2: =IF(COLUMNS($Q2:OL2)=$E$61,1,0) -> 0 | OM2: =IF(COLUMNS($Q2:OM2)=$E$61,1,0) -> 0 | ON2: =IF(COLUMNS($Q2:ON2)=$E$61,1,0) -> 0 | OO2: =IF(COLUMNS($Q2:OO2)=$E$61,1,0) -> 0 | OP2: =IF(COLUMNS($Q2:OP2)=$E$61,1,0) -> 0 | OQ2: =IF(COLUMNS($Q2:OQ2)=$E$61,1,0) -> 0 | OT2: x
M3: Año | Q3: =YEAR(Q12) -> 2024 | R3: 2024 | S3: 2024 | T3: 2024 | U3: 2024 | V3: 2024 | W3: 2024 | X3: 2025 | Y3: 2025 | Z3: 2025 | AA3: 2025 | AB3: 2025 | AC3: 2025 | AD3: 2025 | AE3: 2025 | AF3: 2025 | AG3: 2025 | AH3: 2025 | AI3: 2025 | AJ3: 2026 | AK3: 2026 | AL3: 2026 | AM3: 2026 | AN3: 2026 | AO3: 2026 | AP3: 2026 | AQ3: 2026 | AR3: 2026 | AS3: 2026 | AT3: 2026 | AU3: 2026 | AV3: 2027 | AW3: 2027 | AX3: 2027 | AY3: 2027 | AZ3: 2027 | BA3: 2027 | BB3: 2027 | BC3: 2027 | BD3: 2027 | BE3: 2027 | BF3: 2027 | BG3: 2027 | BH3: 2028 | BI3: 2028 | BJ3: 2028 | BK3: 2028 | BL3: 2028 | BM3: 2028 | BN3: 2028 | BO3: 2028 | BP3: 2028 | BQ3: 2028 | BR3: 2028 | BS3: 2028 | BT3: 2029 | BU3: 2029 | BV3: 2029 | BW3: 2029 | BX3: 2029 | BY3: 2029 | BZ3: 2029 | CA3: 2029 | CB3: 2029 | CC3: =YEAR(CC12) -> 2029 | CD3: 2029 | CE3: 2029 | CF3: 2030 | CG3: 2030 | CH3: 2030 | CI3: 2030 | CJ3: 2030 | CK3: 2030 | CL3: 2030 | CM3: 2030 | CN3: 2030 | CO3: 2030 | CP3: 2030 | CQ3: 2030 | CR3: 2031 | CS3: 2031 | CT3: 2031 | CU3: 2031 | CV3: 2031 | CW3: 2031 | CX3: 2031 | CY3: 2031 | CZ3: 2031 | DA3: 2031 | DB3: 2031 | DC3: 2031 | DD3: 2032 | DE3: 2032 | DF3: 2032 | DG3: 2032 | DH3: 2032 | DI3: 2032 | DJ3: 2032 | DK3: 2032 | DL3: 2032 | DM3: 2032 | DN3: 2032 | DO3: 2032 | DP3: 2033 | DQ3: 2033 | DR3: 2033 | DS3: 2033 | DT3: 2033 | DU3: 2033 | DV3: 2033 | DW3: 2033 | DX3: 2033 | DY3: 2033 | DZ3: 2033 | EA3: 2033 | EB3: 2034 | EC3: 2034 | ED3: 2034 | EE3: 2034 | EF3: 2034 | EG3: 2034 | EH3: 2034 | EI3: 2034 | EJ3: 2034 | EK3: 2034 | EL3: 2034 | EM3: 2034 | EN3: 2035 | EO3: =YEAR(EO12) -> 2035 | EP3: 2035 | EQ3: 2035 | ER3: 2035 | ES3: 2035 | ET3: 2035 | EU3: 2035 | EV3: 2035 | EW3: 2035 | EX3: 2035 | EY3: 2035 | EZ3: 2036 | FA3: 2036 | FB3: 2036 | FC3: 2036 | FD3: 2036 | FE3: 2036 | FF3: 2036 | FG3: 2036 | FH3: 2036 | FI3: 2036 | FJ3: 2036 | FK3: 2036 | FL3: 2037 | FM3: 2037 | FN3: 2037 | FO3: 2037 | FP3: 2037 | FQ3: 2037 | FR3: 2037 | FS3: 2037 | FT3: 2037 | FU3: 2037 | FV3: 2037 | FW3: 2037 | FX3: 2038 | FY3: 2038 | FZ3: 2038 | GA3: 2038 | GB3: 2038 | GC3: 2038 | GD3: 2038 | GE3: 2038 | GF3: 2038 | GG3: 2038 | GH3: 2038 | GI3: 2038 | GJ3: 2039 | GK3: 2039 | GL3: 2039 | GM3: 2039 | GN3: 2039 | GO3: 2039 | GP3: 2039 | GQ3: 2039 | GR3: 2039 | GS3: 2039 | GT3: 2039 | GU3: 2039 | GV3: 2040 | GW3: 2040 | GX3: 2040 | GY3: 2040 | GZ3: 2040 | HA3: =YEAR(HA12) -> 2040 | HB3: 2040 | HC3: 2040 | HD3: 2040 | HE3: 2040 | HF3: 2040 | HG3: 2040 | HH3: 2041 | HI3: 2041 | HJ3: 2041 | HK3: 2041 | HL3: 2041 | HM3: 2041 | HN3: 2041 | HO3: 2041 | HP3: 2041 | HQ3: 2041 | HR3: 2041 | HS3: 2041 | HT3: 2042 | HU3: 2042 | HV3: 2042 | HW3: 2042 | HX3: 2042 | HY3: 2042 | HZ3: 2042 | IA3: 2042 | IB3: 2042 | IC3: 2042 | ID3: 2042 | IE3: 2042 | IF3: 2043 | IG3: 2043 | IH3: 2043 | II3: 2043 | IJ3: 2043 | IK3: 2043 | IL3: 2043 | IM3: 2043 | IN3: 2043 | IO3: 2043 | IP3: 2043 | IQ3: 2043 | IR3: 2044 | IS3: 2044 | IT3: 2044 | IU3: 2044 | IV3: 2044 | IW3: 2044 | IX3: 2044 | IY3: 2044 | IZ3: 2044 | JA3: 2044 | JB3: 2044 | JC3: 2044 | JD3: 2045 | JE3: 2045 | JF3: 2045 | JG3: 2045 | JH3: 2045 | JI3: 2045 | JJ3: 2045 | JK3: 2045 | JL3: 2045 | JM3: =YEAR(JM12) -> 2045 | JN3: 2045 | JO3: 2045 | JP3: 2046 | JQ3: 2046 | JR3: 2046 | JS3: 2046 | JT3: 2046 | JU3: 2046 | JV3: 2046 | JW3: 2046 | JX3: 2046 | JY3: 2046 | JZ3: 2046 | KA3: 2046 | KB3: 2047 | KC3: 2047 | KD3: 2047 | KE3: 2047 | KF3: 2047 | KG3: 2047 | KH3: 2047 | KI3: 2047 | KJ3: 2047 | KK3: 2047 | KL3: 2047 | KM3: 2047 | KN3: 2048 | KO3: 2048 | KP3: 2048 | KQ3: 2048 | KR3: 2048 | KS3: 2048 | KT3: 2048 | KU3: 2048 | KV3: 2048 | KW3: 2048 | KX3: 2048 | KY3: 2048 | KZ3: 2049 | LA3: 2049 | LB3: 2049 | LC3: 2049 | LD3: 2049 | LE3: 2049 | LF3: 2049 | LG3: 2049 | LH3: 2049 | LI3: 2049 | LJ3: 2049 | LK3: 2049 | LL3: 2050 | LM3: 2050 | LN3: 2050 | LO3: 2050 | LP3: 2050 | LQ3: 2050 | LR3: 2050 | LS3: 2050 | LT3: 2050 | LU3: 2050 | LV3: 2050 | LW3: 2050 | LX3: 2051 | LY3: =YEAR(LY12) -> 2051 | LZ3: 2051 | MA3: 2051 | MB3: 2051 | MC3: 2051 | MD3: 2051 | ME3: 2051 | MF3: 2051 | MG3: 2051 | MH3: 2051 | MI3: 2051 | MJ3: 2052 | MK3: 2052 | ML3: 2052 | MM3: 2052 | MN3: 2052 | MO3: 2052 | MP3: 2052 | MQ3: 2052 | MR3: 2052 | MS3: 2052 | MT3: 2052 | MU3: 2052 | MV3: 2053 | MW3: 2053 | MX3: 2053 | MY3: 2053 | MZ3: 2053 | NA3: 2053 | NB3: 2053 | NC3: 2053 | ND3: 2053 | NE3: 2053 | NF3: 2053 | NG3: 2053 | NH3: 2054 | NI3: 2054 | NJ3: 2054 | NK3: 2054 | NL3: 2054 | NM3: 2054 | NN3: 2054 | NO3: 2054 | NP3: 2054 | NQ3: 2054 | NR3: 2054 | NS3: 2054 | NT3: 2055 | NU3: 2055 | NV3: 2055 | NW3: 2055 | NX3: 2055 | NY3: 2055 | NZ3: 2055 | OA3: 2055 | OB3: 2055 | OC3: 2055 | OD3: 2055 | OE3: 2055 | OF3: 2056 | OG3: 2056 | OH3: 2056 | OI3: 2056 | OJ3: 2056 | OK3: =YEAR(OK12) -> 2056 | OL3: 2056 | OM3: 2056 | ON3: 2056 | OO3: 2056 | OP3: 2056 | OQ3: 2056 | OT3: x
M4: 12M | Q4: 0 | R4: 0 | S4: 0 | T4: 0 | U4: 0 | V4: 0 | W4: 0 | X4: 0 | Y4: 0 | Z4: 0 | AA4: 0 | AB4: 0 | AC4: =Q4+1 -> 1 | AD4: =IF(SUM($Q1:AD1)<12,0,1) -> 1 | AE4: =IF(SUM($Q1:AE1)<12,0,1) -> 1 | AF4: =T4+1 -> 1 | AG4: 1 | AH4: 1 | AI4: 1 | AJ4: 1 | AK4: 1 | AL4: 1 | AM4: 1 | AN4: 1 | AO4: 2 | AP4: 2 | AQ4: 2 | AR4: 2 | AS4: 2 | AT4: 2 | AU4: 2 | AV4: 2 | AW4: 2 | AX4: 2 | AY4: 2 | AZ4: 2 | BA4: 3 | BB4: 3 | BC4: 3 | BD4: 3 | BE4: 3 | BF4: 3 | BG4: 3 | BH4: 3 | BI4: 3 | BJ4: 3 | BK4: 3 | BL4: 3 | BM4: 4 | BN4: 4 | BO4: 4 | BP4: 4 | BQ4: 4 | BR4: 4 | BS4: 4 | BT4: 4 | BU4: 4 | BV4: 4 | BW4: 4 | BX4: 4 | BY4: 5 | BZ4: 5 | CA4: 5 | CB4: 5 | CC4: 5 | CD4: 5 | CE4: 5 | CF4: 5 | CG4: 5 | CH4: 5 | CI4: 5 | CJ4: 5 | CK4: 6 | CL4: 6 | CM4: 6 | CN4: 6 | CO4: 6 | CP4: 6 | CQ4: 6 | CR4: =CF4+1 -> 6 | CS4: 6 | CT4: 6 | CU4: 6 | CV4: 6 | CW4: 7 | CX4: 7 | CY4: 7 | CZ4: 7 | DA4: 7 | DB4: 7 | DC4: 7 | DD4: 7 | DE4: 7 | DF4: 7 | DG4: 7 | DH4: 7 | DI4: 8 | DJ4: 8 | DK4: 8 | DL4: 8 | DM4: 8 | DN4: 8 | DO4: 8 | DP4: 8 | DQ4: 8 | DR4: 8 | DS4: 8 | DT4: 8 | DU4: 9 | DV4: 9 | DW4: 9 | DX4: 9 | DY4: 9 | DZ4: 9 | EA4: 9 | EB4: 9 | EC4: 9 | ED4: 9 | EE4: 9 | EF4: 9 | EG4: 10 | EH4: 10 | EI4: 10 | EJ4: 10 | EK4: 10 | EL4: 10 | EM4: 10 | EN4: 10 | EO4: 10 | EP4: 10 | EQ4: 10 | ER4: 10 | ES4: 11 | ET4: 11 | EU4: 11 | EV4: 11 | EW4: 11 | EX4: 11 | EY4: 11 | EZ4: 11 | FA4: 11 | FB4: 11 | FC4: 11 | FD4: =ER4+1 -> 11 | FE4: 12 | FF4: 12 | FG4: 12 | FH4: 12 | FI4: 12 | FJ4: 12 | FK4: 12 | FL4: 12 | FM4: 12 | FN4: 12 | FO4: 12 | FP4: 12 | FQ4: 13 | FR4: 13 | FS4: 13 | FT4: 13 | FU4: 13 | FV4: 13 | FW4: 13 | FX4: 13 | FY4: 13 | FZ4: 13 | GA4: 13 | GB4: 13 | GC4: 14 | GD4: 14 | GE4: 14 | GF4: 14 | GG4: 14 | GH4: 14 | GI4: 14 | GJ4: 14 | GK4: 14 | GL4: 14 | GM4: 14 | GN4: 14 | GO4: 15 | GP4: 15 | GQ4: 15 | GR4: 15 | GS4: 15 | GT4: 15 | GU4: 15 | GV4: 15 | GW4: 15 | GX4: 15 | GY4: 15 | GZ4: 15 | HA4: 16 | HB4: 16 | HC4: 16 | HD4: 16 | HE4: 16 | HF4: 16 | HG4: 16 | HH4: 16 | HI4: 16 | HJ4: 16 | HK4: 16 | HL4: 16 | HM4: 17 | HN4: 17 | HO4: 17 | HP4: =HD4+1 -> 17 | HQ4: 17 | HR4: 17 | HS4: 17 | HT4: 17 | HU4: 17 | HV4: 17 | HW4: 17 | HX4: 17 | HY4: 18 | HZ4: 18 | IA4: 18 | IB4: 18 | IC4: 18 | ID4: 18 | IE4: 18 | IF4: 18 | IG4: 18 | IH4: 18 | II4: 18 | IJ4: 18 | IK4: 19 | IL4: 19 | IM4: 19 | IN4: 19 | IO4: 19 | IP4: 19 | IQ4: 19 | IR4: 19 | IS4: 19 | IT4: 19 | IU4: 19 | IV4: 19 | IW4: 20 | IX4: 20 | IY4: 20 | IZ4: 20 | JA4: 20 | JB4: 20 | JC4: 20 | JD4: 20 | JE4: 20 | JF4: 20 | JG4: 20 | JH4: 20 | JI4: 21 | JJ4: 21 | JK4: 21 | JL4: 21 | JM4: 21 | JN4: 21 | JO4: 21 | JP4: 21 | JQ4: 21 | JR4: 21 | JS4: 21 | JT4: 21 | JU4: 22 | JV4: 22 | JW4: 22 | JX4: 22 | JY4: 22 | JZ4: 22 | KA4: 22 | KB4: =JP4+1 -> 22 | KC4: 22 | KD4: 22 | KE4: 22 | KF4: 22 | KG4: 23 | KH4: 23 | KI4: 23 | KJ4: 23 | KK4: 23 | KL4: 23 | KM4: 23 | KN4: 23 | KO4: 23 | KP4: 23 | KQ4: 23 | KR4: 23 | KS4: 24 | KT4: 24 | KU4: 24 | KV4: 24 | KW4: 24 | KX4: 24 | KY4: 24 | KZ4: 24 | LA4: 24 | LB4: 24 | LC4: 24 | LD4: 24 | LE4: 25 | LF4: 25 | LG4: 25 | LH4: 25 | LI4: 25 | LJ4: 25 | LK4: 25 | LL4: 25 | LM4: 25 | LN4: 25 | LO4: 25 | LP4: 25 | LQ4: 26 | LR4: 26 | LS4: 26 | LT4: 26 | LU4: 26 | LV4: 26 | LW4: 26 | LX4: 26 | LY4: 26 | LZ4: 26 | MA4: 26 | MB4: 26 | MC4: 27 | MD4: 27 | ME4: 27 | MF4: 27 | MG4: 27 | MH4: 27 | MI4: 27 | MJ4: 27 | MK4: 27 | ML4: 27 | MM4: 27 | MN4: =MB4+1 -> 27 | MO4: 28 | MP4: 28 | MQ4: 28 | MR4: 28 | MS4: 28 | MT4: 28 | MU4: 28 | MV4: 28 | MW4: 28 | MX4: 28 | MY4: 28 | MZ4: 28 | NA4: 29 | NB4: 29 | NC4: 29 | ND4: 29 | NE4: 29 | NF4: 29 | NG4: 29 | NH4: 29 | NI4: 29 | NJ4: 29 | NK4: 29 | NL4: 29 | NM4: 30 | NN4: 30 | NO4: 30 | NP4: 30 | NQ4: 30 | NR4: 30 | NS4: 30 | NT4: 30 | NU4: 30 | NV4: 30 | NW4: 30 | NX4: 30 | NY4: 31 | NZ4: 31 | OA4: 31 | OB4: 31 | OC4: 31 | OD4: 31 | OE4: 31 | OF4: 31 | OG4: 31 | OH4: 31 | OI4: 31 | OJ4: 31 | OK4: 32 | OL4: 32 | OM4: 32 | ON4: 32 | OO4: 32 | OP4: 32 | OQ4: 32
M5: Rerating (nuevo comprador) | Q5: =IF(COLUMNS($Q$5:Q5)=#REF!,1,IF(P5=0,0,P5+1)) ->  | R5: =IF(COLUMNS($Q$5:R5)=#REF!,1,IF(Q5=0,0,Q5+1)) ->  | S5: =IF(COLUMNS($Q$5:S5)=#REF!,1,IF(R5=0,0,R5+1)) ->  | T5: =IF(COLUMNS($Q$5:T5)=#REF!,1,IF(S5=0,0,S5+1)) ->  | U5: =IF(COLUMNS($Q$5:U5)=#REF!,1,IF(T5=0,0,T5+1)) ->  | V5: =IF(COLUMNS($Q$5:V5)=#REF!,1,IF(U5=0,0,U5+1)) ->  | W5: =IF(COLUMNS($Q$5:W5)=#REF!,1,IF(V5=0,0,V5+1)) ->  | X5: =IF(COLUMNS($Q$5:X5)=#REF!,1,IF(W5=0,0,W5+1)) ->  | Y5: =IF(COLUMNS($Q$5:Y5)=#REF!,1,IF(X5=0,0,X5+1)) ->  | Z5: =IF(COLUMNS($Q$5:Z5)=#REF!,1,IF(Y5=0,0,Y5+1)) ->  | AA5: =IF(COLUMNS($Q$5:AA5)=#REF!,1,IF(Z5=0,0,Z5+1)) ->  | AB5: =IF(COLUMNS($Q$5:AB5)=#REF!,1,IF(AA5=0,0,AA5+1)) ->  | AC5: =IF(COLUMNS($Q$5:AC5)=#REF!,1,IF(AB5=0,0,AB5+1)) ->  | AD5: =IF(COLUMNS($Q$5:AD5)=#REF!,1,IF(AC5=0,0,AC5+1)) ->  | AE5: =IF(COLUMNS($Q$5:AE5)=#REF!,1,IF(AD5=0,0,AD5+1)) ->  | AF5: =IF(COLUMNS($Q$5:AF5)=#REF!,1,IF(AE5=0,0,AE5+1)) ->  | AG5: =IF(COLUMNS($Q$5:AG5)=#REF!,1,IF(AF5=0,0,AF5+1)) ->  | AH5: =IF(COLUMNS($Q$5:AH5)=#REF!,1,IF(AG5=0,0,AG5+1)) ->  | AI5: =IF(COLUMNS($Q$5:AI5)=#REF!,1,IF(AH5=0,0,AH5+1)) ->  | AJ5: =IF(COLUMNS($Q$5:AJ5)=#REF!,1,IF(AI5=0,0,AI5+1)) ->  | AK5: =IF(COLUMNS($Q$5:AK5)=#REF!,1,IF(AJ5=0,0,AJ5+1)) ->  | AL5: =IF(COLUMNS($Q$5:AL5)=#REF!,1,IF(AK5=0,0,AK5+1)) ->  | AM5: =IF(COLUMNS($Q$5:AM5)=#REF!,1,IF(AL5=0,0,AL5+1)) ->  | AN5: =IF(COLUMNS($Q$5:AN5)=#REF!,1,IF(AM5=0,0,AM5+1)) ->  | AO5: =IF(COLUMNS($Q$5:AO5)=#REF!,1,IF(AN5=0,0,AN5+1)) ->  | AP5: =IF(COLUMNS($Q$5:AP5)=#REF!,1,IF(AO5=0,0,AO5+1)) ->  | AQ5: =IF(COLUMNS($Q$5:AQ5)=#REF!,1,IF(AP5=0,0,AP5+1)) ->  | AR5: =IF(COLUMNS($Q$5:AR5)=#REF!,1,IF(AQ5=0,0,AQ5+1)) ->  | AS5: =IF(COLUMNS($Q$5:AS5)=#REF!,1,IF(AR5=0,0,AR5+1)) ->  | AT5: =IF(COLUMNS($Q$5:AT5)=#REF!,1,IF(AS5=0,0,AS5+1)) ->  | AU5: =IF(COLUMNS($Q$5:AU5)=#REF!,1,IF(AT5=0,0,AT5+1)) ->  | AV5: =IF(COLUMNS($Q$5:AV5)=#REF!,1,IF(AU5=0,0,AU5+1)) ->  | AW5: =IF(COLUMNS($Q$5:AW5)=#REF!,1,IF(AV5=0,0,AV5+1)) ->  | AX5: =IF(COLUMNS($Q$5:AX5)=#REF!,1,IF(AW5=0,0,AW5+1)) ->  | AY5: =IF(COLUMNS($Q$5:AY5)=#REF!,1,IF(AX5=0,0,AX5+1)) ->  | AZ5: =IF(COLUMNS($Q$5:AZ5)=#REF!,1,IF(AY5=0,0,AY5+1)) ->  | BA5: =IF(COLUMNS($Q$5:BA5)=#REF!,1,IF(AZ5=0,0,AZ5+1)) ->  | BB5: =IF(COLUMNS($Q$5:BB5)=#REF!,1,IF(BA5=0,0,BA5+1)) ->  | BC5: =IF(COLUMNS($Q$5:BC5)=#REF!,1,IF(BB5=0,0,BB5+1)) ->  | BD5: =IF(COLUMNS($Q$5:BD5)=#REF!,1,IF(BC5=0,0,BC5+1)) ->  | BE5: =IF(COLUMNS($Q$5:BE5)=#REF!,1,IF(BD5=0,0,BD5+1)) ->  | BF5: =IF(COLUMNS($Q$5:BF5)=#REF!,1,IF(BE5=0,0,BE5+1)) ->  | BG5: =IF(COLUMNS($Q$5:BG5)=#REF!,1,IF(BF5=0,0,BF5+1)) ->  | BH5: =IF(COLUMNS($Q$5:BH5)=#REF!,1,IF(BG5=0,0,BG5+1)) ->  | BI5: =IF(COLUMNS($Q$5:BI5)=#REF!,1,IF(BH5=0,0,BH5+1)) ->  | BJ5: =IF(COLUMNS($Q$5:BJ5)=#REF!,1,IF(BI5=0,0,BI5+1)) ->  | BK5: =IF(COLUMNS($Q$5:BK5)=#REF!,1,IF(BJ5=0,0,BJ5+1)) ->  | BL5: =IF(COLUMNS($Q$5:BL5)=#REF!,1,IF(BK5=0,0,BK5+1)) ->  | BM5: =IF(COLUMNS($Q$5:BM5)=#REF!,1,IF(BL5=0,0,BL5+1)) ->  | BN5: =IF(COLUMNS($Q$5:BN5)=#REF!,1,IF(BM5=0,0,BM5+1)) ->  | BO5: =IF(COLUMNS($Q$5:BO5)=#REF!,1,IF(BN5=0,0,BN5+1)) ->  | BP5: =IF(COLUMNS($Q$5:BP5)=#REF!,1,IF(BO5=0,0,BO5+1)) ->  | BQ5: =IF(COLUMNS($Q$5:BQ5)=#REF!,1,IF(BP5=0,0,BP5+1)) ->  | BR5: =IF(COLUMNS($Q$5:BR5)=#REF!,1,IF(BQ5=0,0,BQ5+1)) ->  | BS5: =IF(COLUMNS($Q$5:BS5)=#REF!,1,IF(BR5=0,0,BR5+1)) ->  | BT5: =IF(COLUMNS($Q$5:BT5)=#REF!,1,IF(BS5=0,0,BS5+1)) ->  | BU5: =IF(COLUMNS($Q$5:BU5)=#REF!,1,IF(BT5=0,0,BT5+1)) ->  | BV5: =IF(COLUMNS($Q$5:BV5)=#REF!,1,IF(BU5=0,0,BU5+1)) ->  | BW5: =IF(COLUMNS($Q$5:BW5)=#REF!,1,IF(BV5=0,0,BV5+1)) ->  | BX5: =IF(COLUMNS($Q$5:BX5)=#REF!,1,IF(BW5=0,0,BW5+1)) ->  | BY5: =IF(COLUMNS($Q$5:BY5)=#REF!,1,IF(BX5=0,0,BX5+1)) ->  | BZ5: =IF(COLUMNS($Q$5:BZ5)=#REF!,1,IF(BY5=0,0,BY5+1)) ->  | CA5: =IF(COLUMNS($Q$5:CA5)=#REF!,1,IF(BZ5=0,0,BZ5+1)) ->  | CB5: =IF(COLUMNS($Q$5:CB5)=#REF!,1,IF(CA5=0,0,CA5+1)) ->  | CC5: =IF(COLUMNS($Q$5:CC5)=#REF!,1,IF(CB5=0,0,CB5+1)) ->  | CD5: =IF(COLUMNS($Q$5:CD5)=#REF!,1,IF(CC5=0,0,CC5+1)) ->  | CE5: =IF(COLUMNS($Q$5:CE5)=#REF!,1,IF(CD5=0,0,CD5+1)) ->  | CF5: =IF(COLUMNS($Q$5:CF5)=#REF!,1,IF(CE5=0,0,CE5+1)) ->  | CG5: =IF(COLUMNS($Q$5:CG5)=#REF!,1,IF(CF5=0,0,CF5+1)) ->  | CH5: =IF(COLUMNS($Q$5:CH5)=#REF!,1,IF(CG5=0,0,CG5+1)) ->  | CI5: =IF(COLUMNS($Q$5:CI5)=#REF!,1,IF(CH5=0,0,CH5+1)) ->  | CJ5: =IF(COLUMNS($Q$5:CJ5)=#REF!,1,IF(CI5=0,0,CI5+1)) ->  | CK5: =IF(COLUMNS($Q$5:CK5)=#REF!,1,IF(CJ5=0,0,CJ5+1)) ->  | CL5: =IF(COLUMNS($Q$5:CL5)=#REF!,1,IF(CK5=0,0,CK5+1)) ->  | CM5: =IF(COLUMNS($Q$5:CM5)=#REF!,1,IF(CL5=0,0,CL5+1)) ->  | CN5: =IF(COLUMNS($Q$5:CN5)=#REF!,1,IF(CM5=0,0,CM5+1)) ->  | CO5: =IF(COLUMNS($Q$5:CO5)=#REF!,1,IF(CN5=0,0,CN5+1)) ->  | CP5: =IF(COLUMNS($Q$5:CP5)=#REF!,1,IF(CO5=0,0,CO5+1)) ->  | CQ5: =IF(COLUMNS($Q$5:CQ5)=#REF!,1,IF(CP5=0,0,CP5+1)) ->  | CR5: =IF(COLUMNS($Q$5:CR5)=#REF!,1,IF(CQ5=0,0,CQ5+1)) ->  | CS5: =IF(COLUMNS($Q$5:CS5)=#REF!,1,IF(CR5=0,0,CR5+1)) ->  | CT5: =IF(COLUMNS($Q$5:CT5)=#REF!,1,IF(CS5=0,0,CS5+1)) ->  | CU5: =IF(COLUMNS($Q$5:CU5)=#REF!,1,IF(CT5=0,0,CT5+1)) ->  | CV5: =IF(COLUMNS($Q$5:CV5)=#REF!,1,IF(CU5=0,0,CU5+1)) ->  | CW5: =IF(COLUMNS($Q$5:CW5)=#REF!,1,IF(CV5=0,0,CV5+1)) ->  | CX5: =IF(COLUMNS($Q$5:CX5)=#REF!,1,IF(CW5=0,0,CW5+1)) ->  | CY5: =IF(COLUMNS($Q$5:CY5)=#REF!,1,IF(CX5=0,0,CX5+1)) ->  | CZ5: =IF(COLUMNS($Q$5:CZ5)=#REF!,1,IF(CY5=0,0,CY5+1)) ->  | DA5: =IF(COLUMNS($Q$5:DA5)=#REF!,1,IF(CZ5=0,0,CZ5+1)) ->  | DB5: =IF(COLUMNS($Q$5:DB5)=#REF!,1,IF(DA5=0,0,DA5+1)) ->  | DC5: =IF(COLUMNS($Q$5:DC5)=#REF!,1,IF(DB5=0,0,DB5+1)) ->  | DD5: =IF(COLUMNS($Q$5:DD5)=#REF!,1,IF(DC5=0,0,DC5+1)) ->  | DE5: =IF(COLUMNS($Q$5:DE5)=#REF!,1,IF(DD5=0,0,DD5+1)) ->  | DF5: =IF(COLUMNS($Q$5:DF5)=#REF!,1,IF(DE5=0,0,DE5+1)) ->  | DG5: =IF(COLUMNS($Q$5:DG5)=#REF!,1,IF(DF5=0,0,DF5+1)) ->  | DH5: =IF(COLUMNS($Q$5:DH5)=#REF!,1,IF(DG5=0,0,DG5+1)) ->  | DI5: =IF(COLUMNS($Q$5:DI5)=#REF!,1,IF(DH5=0,0,DH5+1)) ->  | DJ5: =IF(COLUMNS($Q$5:DJ5)=#REF!,1,IF(DI5=0,0,DI5+1)) ->  | DK5: =IF(COLUMNS($Q$5:DK5)=#REF!,1,IF(DJ5=0,0,DJ5+1)) ->  | DL5: =IF(COLUMNS($Q$5:DL5)=#REF!,1,IF(DK5=0,0,DK5+1)) ->  | DM5: =IF(COLUMNS($Q$5:DM5)=#REF!,1,IF(DL5=0,0,DL5+1)) ->  | DN5: =IF(COLUMNS($Q$5:DN5)=#REF!,1,IF(DM5=0,0,DM5+1)) ->  | DO5: =IF(COLUMNS($Q$5:DO5)=#REF!,1,IF(DN5=0,0,DN5+1)) ->  | DP5: =IF(COLUMNS($Q$5:DP5)=#REF!,1,IF(DO5=0,0,DO5+1)) ->  | DQ5: =IF(COLUMNS($Q$5:DQ5)=#REF!,1,IF(DP5=0,0,DP5+1)) ->  | DR5: =IF(COLUMNS($Q$5:DR5)=#REF!,1,IF(DQ5=0,0,DQ5+1)) ->  | DS5: =IF(COLUMNS($Q$5:DS5)=#REF!,1,IF(DR5=0,0,DR5+1)) ->  | DT5: =IF(COLUMNS($Q$5:DT5)=#REF!,1,IF(DS5=0,0,DS5+1)) ->  | DU5: =IF(COLUMNS($Q$5:DU5)=#REF!,1,IF(DT5=0,0,DT5+1)) ->  | DV5: =IF(COLUMNS($Q$5:DV5)=#REF!,1,IF(DU5=0,0,DU5+1)) ->  | DW5: =IF(COLUMNS($Q$5:DW5)=#REF!,1,IF(DV5=0,0,DV5+1)) ->  | DX5: =IF(COLUMNS($Q$5:DX5)=#REF!,1,IF(DW5=0,0,DW5+1)) ->  | DY5: =IF(COLUMNS($Q$5:DY5)=#REF!,1,IF(DX5=0,0,DX5+1)) ->  | DZ5: =IF(COLUMNS($Q$5:DZ5)=#REF!,1,IF(DY5=0,0,DY5+1)) ->  | EA5: =IF(COLUMNS($Q$5:EA5)=#REF!,1,IF(DZ5=0,0,DZ5+1)) ->  | EB5: =IF(COLUMNS($Q$5:EB5)=#REF!,1,IF(EA5=0,0,EA5+1)) ->  | EC5: =IF(COLUMNS($Q$5:EC5)=#REF!,1,IF(EB5=0,0,EB5+1)) ->  | ED5: =IF(COLUMNS($Q$5:ED5)=#REF!,1,IF(EC5=0,0,EC5+1)) ->  | EE5: =IF(COLUMNS($Q$5:EE5)=#REF!,1,IF(ED5=0,0,ED5+1)) ->  | EF5: =IF(COLUMNS($Q$5:EF5)=#REF!,1,IF(EE5=0,0,EE5+1)) ->  | EG5: =IF(COLUMNS($Q$5:EG5)=#REF!,1,IF(EF5=0,0,EF5+1)) ->  | EH5: =IF(COLUMNS($Q$5:EH5)=#REF!,1,IF(EG5=0,0,EG5+1)) ->  | EI5: =IF(COLUMNS($Q$5:EI5)=#REF!,1,IF(EH5=0,0,EH5+1)) ->  | EJ5: =IF(COLUMNS($Q$5:EJ5)=#REF!,1,IF(EI5=0,0,EI5+1)) ->  | EK5: =IF(COLUMNS($Q$5:EK5)=#REF!,1,IF(EJ5=0,0,EJ5+1)) ->  | EL5: =IF(COLUMNS($Q$5:EL5)=#REF!,1,IF(EK5=0,0,EK5+1)) ->  | EM5: =IF(COLUMNS($Q$5:EM5)=#REF!,1,IF(EL5=0,0,EL5+1)) ->  | EN5: =IF(COLUMNS($Q$5:EN5)=#REF!,1,IF(EM5=0,0,EM5+1)) ->  | EO5: =IF(COLUMNS($Q$5:EO5)=#REF!,1,IF(EN5=0,0,EN5+1)) ->  | EP5: =IF(COLUMNS($Q$5:EP5)=#REF!,1,IF(EO5=0,0,EO5+1)) ->  | EQ5: =IF(COLUMNS($Q$5:EQ5)=#REF!,1,IF(EP5=0,0,EP5+1)) ->  | ER5: =IF(COLUMNS($Q$5:ER5)=#REF!,1,IF(EQ5=0,0,EQ5+1)) ->  | ES5: =IF(COLUMNS($Q$5:ES5)=#REF!,1,IF(ER5=0,0,ER5+1)) ->  | ET5: =IF(COLUMNS($Q$5:ET5)=#REF!,1,IF(ES5=0,0,ES5+1)) ->  | EU5: =IF(COLUMNS($Q$5:EU5)=#REF!,1,IF(ET5=0,0,ET5+1)) ->  | EV5: =IF(COLUMNS($Q$5:EV5)=#REF!,1,IF(EU5=0,0,EU5+1)) ->  | EW5: =IF(COLUMNS($Q$5:EW5)=#REF!,1,IF(EV5=0,0,EV5+1)) ->  | EX5: =IF(COLUMNS($Q$5:EX5)=#REF!,1,IF(EW5=0,0,EW5+1)) ->  | EY5: =IF(COLUMNS($Q$5:EY5)=#REF!,1,IF(EX5=0,0,EX5+1)) ->  | EZ5: =IF(COLUMNS($Q$5:EZ5)=#REF!,1,IF(EY5=0,0,EY5+1)) ->  | FA5: =IF(COLUMNS($Q$5:FA5)=#REF!,1,IF(EZ5=0,0,EZ5+1)) ->  | FB5: =IF(COLUMNS($Q$5:FB5)=#REF!,1,IF(FA5=0,0,FA5+1)) ->  | FC5: =IF(COLUMNS($Q$5:FC5)=#REF!,1,IF(FB5=0,0,FB5+1)) ->  | FD5: =IF(COLUMNS($Q$5:FD5)=#REF!,1,IF(FC5=0,0,FC5+1)) ->  | FE5: =IF(COLUMNS($Q$5:FE5)=#REF!,1,IF(FD5=0,0,FD5+1)) ->  | FF5: =IF(COLUMNS($Q$5:FF5)=#REF!,1,IF(FE5=0,0,FE5+1)) ->  | FG5: =IF(COLUMNS($Q$5:FG5)=#REF!,1,IF(FF5=0,0,FF5+1)) ->  | FH5: =IF(COLUMNS($Q$5:FH5)=#REF!,1,IF(FG5=0,0,FG5+1)) ->  | FI5: =IF(COLUMNS($Q$5:FI5)=#REF!,1,IF(FH5=0,0,FH5+1)) ->  | FJ5: =IF(COLUMNS($Q$5:FJ5)=#REF!,1,IF(FI5=0,0,FI5+1)) ->  | FK5: =IF(COLUMNS($Q$5:FK5)=#REF!,1,IF(FJ5=0,0,FJ5+1)) ->  | FL5: =IF(COLUMNS($Q$5:FL5)=#REF!,1,IF(FK5=0,0,FK5+1)) ->  | FM5: =IF(COLUMNS($Q$5:FM5)=#REF!,1,IF(FL5=0,0,FL5+1)) ->  | FN5: =IF(COLUMNS($Q$5:FN5)=#REF!,1,IF(FM5=0,0,FM5+1)) ->  | FO5: =IF(COLUMNS($Q$5:FO5)=#REF!,1,IF(FN5=0,0,FN5+1)) ->  | FP5: =IF(COLUMNS($Q$5:FP5)=#REF!,1,IF(FO5=0,0,FO5+1)) ->  | FQ5: =IF(COLUMNS($Q$5:FQ5)=#REF!,1,IF(FP5=0,0,FP5+1)) ->  | FR5: =IF(COLUMNS($Q$5:FR5)=#REF!,1,IF(FQ5=0,0,FQ5+1)) ->  | FS5: =IF(COLUMNS($Q$5:FS5)=#REF!,1,IF(FR5=0,0,FR5+1)) ->  | FT5: =IF(COLUMNS($Q$5:FT5)=#REF!,1,IF(FS5=0,0,FS5+1)) ->  | FU5: =IF(COLUMNS($Q$5:FU5)=#REF!,1,IF(FT5=0,0,FT5+1)) ->  | FV5: =IF(COLUMNS($Q$5:FV5)=#REF!,1,IF(FU5=0,0,FU5+1)) ->  | FW5: =IF(COLUMNS($Q$5:FW5)=#REF!,1,IF(FV5=0,0,FV5+1)) ->  | FX5: =IF(COLUMNS($Q$5:FX5)=#REF!,1,IF(FW5=0,0,FW5+1)) ->  | FY5: =IF(COLUMNS($Q$5:FY5)=#REF!,1,IF(FX5=0,0,FX5+1)) ->  | FZ5: =IF(COLUMNS($Q$5:FZ5)=#REF!,1,IF(FY5=0,0,FY5+1)) ->  | GA5: =IF(COLUMNS($Q$5:GA5)=#REF!,1,IF(FZ5=0,0,FZ5+1)) ->  | GB5: =IF(COLUMNS($Q$5:GB5)=#REF!,1,IF(GA5=0,0,GA5+1)) ->  | GC5: =IF(COLUMNS($Q$5:GC5)=#REF!,1,IF(GB5=0,0,GB5+1)) ->  | GD5: =IF(COLUMNS($Q$5:GD5)=#REF!,1,IF(GC5=0,0,GC5+1)) ->  | GE5: =IF(COLUMNS($Q$5:GE5)=#REF!,1,IF(GD5=0,0,GD5+1)) ->  | GF5: =IF(COLUMNS($Q$5:GF5)=#REF!,1,IF(GE5=0,0,GE5+1)) ->  | GG5: =IF(COLUMNS($Q$5:GG5)=#REF!,1,IF(GF5=0,0,GF5+1)) ->  | GH5: =IF(COLUMNS($Q$5:GH5)=#REF!,1,IF(GG5=0,0,GG5+1)) ->  | GI5: =IF(COLUMNS($Q$5:GI5)=#REF!,1,IF(GH5=0,0,GH5+1)) ->  | GJ5: =IF(COLUMNS($Q$5:GJ5)=#REF!,1,IF(GI5=0,0,GI5+1)) ->  | GK5: =IF(COLUMNS($Q$5:GK5)=#REF!,1,IF(GJ5=0,0,GJ5+1)) ->  | GL5: =IF(COLUMNS($Q$5:GL5)=#REF!,1,IF(GK5=0,0,GK5+1)) ->  | GM5: =IF(COLUMNS($Q$5:GM5)=#REF!,1,IF(GL5=0,0,GL5+1)) ->  | GN5: =IF(COLUMNS($Q$5:GN5)=#REF!,1,IF(GM5=0,0,GM5+1)) ->  | GO5: =IF(COLUMNS($Q$5:GO5)=#REF!,1,IF(GN5=0,0,GN5+1)) ->  | GP5: =IF(COLUMNS($Q$5:GP5)=#REF!,1,IF(GO5=0,0,GO5+1)) ->  | GQ5: =IF(COLUMNS($Q$5:GQ5)=#REF!,1,IF(GP5=0,0,GP5+1)) ->  | GR5: =IF(COLUMNS($Q$5:GR5)=#REF!,1,IF(GQ5=0,0,GQ5+1)) ->  | GS5: =IF(COLUMNS($Q$5:GS5)=#REF!,1,IF(GR5=0,0,GR5+1)) ->  | GT5: =IF(COLUMNS($Q$5:GT5)=#REF!,1,IF(GS5=0,0,GS5+1)) ->  | GU5: =IF(COLUMNS($Q$5:GU5)=#REF!,1,IF(GT5=0,0,GT5+1)) ->  | GV5: =IF(COLUMNS($Q$5:GV5)=#REF!,1,IF(GU5=0,0,GU5+1)) ->  | GW5: =IF(COLUMNS($Q$5:GW5)=#REF!,1,IF(GV5=0,0,GV5+1)) ->  | GX5: =IF(COLUMNS($Q$5:GX5)=#REF!,1,IF(GW5=0,0,GW5+1)) ->  | GY5: =IF(COLUMNS($Q$5:GY5)=#REF!,1,IF(GX5=0,0,GX5+1)) ->  | GZ5: =IF(COLUMNS($Q$5:GZ5)=#REF!,1,IF(GY5=0,0,GY5+1)) ->  | HA5: =IF(COLUMNS($Q$5:HA5)=#REF!,1,IF(GZ5=0,0,GZ5+1)) ->  | HB5: =IF(COLUMNS($Q$5:HB5)=#REF!,1,IF(HA5=0,0,HA5+1)) ->  | HC5: =IF(COLUMNS($Q$5:HC5)=#REF!,1,IF(HB5=0,0,HB5+1)) ->  | HD5: =IF(COLUMNS($Q$5:HD5)=#REF!,1,IF(HC5=0,0,HC5+1)) ->  | HE5: =IF(COLUMNS($Q$5:HE5)=#REF!,1,IF(HD5=0,0,HD5+1)) ->  | HF5: =IF(COLUMNS($Q$5:HF5)=#REF!,1,IF(HE5=0,0,HE5+1)) ->  | HG5: =IF(COLUMNS($Q$5:HG5)=#REF!,1,IF(HF5=0,0,HF5+1)) ->  | HH5: =IF(COLUMNS($Q$5:HH5)=#REF!,1,IF(HG5=0,0,HG5+1)) ->  | HI5: =IF(COLUMNS($Q$5:HI5)=#REF!,1,IF(HH5=0,0,HH5+1)) ->  | HJ5: =IF(COLUMNS($Q$5:HJ5)=#REF!,1,IF(HI5=0,0,HI5+1)) ->  | HK5: =IF(COLUMNS($Q$5:HK5)=#REF!,1,IF(HJ5=0,0,HJ5+1)) ->  | HL5: =IF(COLUMNS($Q$5:HL5)=#REF!,1,IF(HK5=0,0,HK5+1)) ->  | HM5: =IF(COLUMNS($Q$5:HM5)=#REF!,1,IF(HL5=0,0,HL5+1)) ->  | HN5: =IF(COLUMNS($Q$5:HN5)=#REF!,1,IF(HM5=0,0,HM5+1)) ->  | HO5: =IF(COLUMNS($Q$5:HO5)=#REF!,1,IF(HN5=0,0,HN5+1)) ->  | HP5: =IF(COLUMNS($Q$5:HP5)=#REF!,1,IF(HO5=0,0,HO5+1)) ->  | HQ5: =IF(COLUMNS($Q$5:HQ5)=#REF!,1,IF(HP5=0,0,HP5+1)) ->  | HR5: =IF(COLUMNS($Q$5:HR5)=#REF!,1,IF(HQ5=0,0,HQ5+1)) ->  | HS5: =IF(COLUMNS($Q$5:HS5)=#REF!,1,IF(HR5=0,0,HR5+1)) ->  | HT5: =IF(COLUMNS($Q$5:HT5)=#REF!,1,IF(HS5=0,0,HS5+1)) ->  | HU5: =IF(COLUMNS($Q$5:HU5)=#REF!,1,IF(HT5=0,0,HT5+1)) ->  | HV5: =IF(COLUMNS($Q$5:HV5)=#REF!,1,IF(HU5=0,0,HU5+1)) ->  | HW5: =IF(COLUMNS($Q$5:HW5)=#REF!,1,IF(HV5=0,0,HV5+1)) ->  | HX5: =IF(COLUMNS($Q$5:HX5)=#REF!,1,IF(HW5=0,0,HW5+1)) ->  | HY5: =IF(COLUMNS($Q$5:HY5)=#REF!,1,IF(HX5=0,0,HX5+1)) ->  | HZ5: =IF(COLUMNS($Q$5:HZ5)=#REF!,1,IF(HY5=0,0,HY5+1)) ->  | IA5: =IF(COLUMNS($Q$5:IA5)=#REF!,1,IF(HZ5=0,0,HZ5+1)) ->  | IB5: =IF(COLUMNS($Q$5:IB5)=#REF!,1,IF(IA5=0,0,IA5+1)) ->  | IC5: =IF(COLUMNS($Q$5:IC5)=#REF!,1,IF(IB5=0,0,IB5+1)) ->  | ID5: =IF(COLUMNS($Q$5:ID5)=#REF!,1,IF(IC5=0,0,IC5+1)) ->  | IE5: =IF(COLUMNS($Q$5:IE5)=#REF!,1,IF(ID5=0,0,ID5+1)) ->  | IF5: =IF(COLUMNS($Q$5:IF5)=#REF!,1,IF(IE5=0,0,IE5+1)) ->  | IG5: =IF(COLUMNS($Q$5:IG5)=#REF!,1,IF(IF5=0,0,IF5+1)) ->  | IH5: =IF(COLUMNS($Q$5:IH5)=#REF!,1,IF(IG5=0,0,IG5+1)) ->  | II5: =IF(COLUMNS($Q$5:II5)=#REF!,1,IF(IH5=0,0,IH5+1)) ->  | IJ5: =IF(COLUMNS($Q$5:IJ5)=#REF!,1,IF(II5=0,0,II5+1)) ->  | IK5: =IF(COLUMNS($Q$5:IK5)=#REF!,1,IF(IJ5=0,0,IJ5+1)) ->  | IL5: =IF(COLUMNS($Q$5:IL5)=#REF!,1,IF(IK5=0,0,IK5+1)) ->  | IM5: =IF(COLUMNS($Q$5:IM5)=#REF!,1,IF(IL5=0,0,IL5+1)) ->  | IN5: =IF(COLUMNS($Q$5:IN5)=#REF!,1,IF(IM5=0,0,IM5+1)) ->  | IO5: =IF(COLUMNS($Q$5:IO5)=#REF!,1,IF(IN5=0,0,IN5+1)) ->  | IP5: =IF(COLUMNS($Q$5:IP5)=#REF!,1,IF(IO5=0,0,IO5+1)) ->  | IQ5: =IF(COLUMNS($Q$5:IQ5)=#REF!,1,IF(IP5=0,0,IP5+1)) ->  | IR5: =IF(COLUMNS($Q$5:IR5)=#REF!,1,IF(IQ5=0,0,IQ5+1)) ->  | IS5: =IF(COLUMNS($Q$5:IS5)=#REF!,1,IF(IR5=0,0,IR5+1)) ->  | IT5: =IF(COLUMNS($Q$5:IT5)=#REF!,1,IF(IS5=0,0,IS5+1)) ->  | IU5: =IF(COLUMNS($Q$5:IU5)=#REF!,1,IF(IT5=0,0,IT5+1)) ->  | IV5: =IF(COLUMNS($Q$5:IV5)=#REF!,1,IF(IU5=0,0,IU5+1)) ->  | IW5: =IF(COLUMNS($Q$5:IW5)=#REF!,1,IF(IV5=0,0,IV5+1)) ->  | IX5: =IF(COLUMNS($Q$5:IX5)=#REF!,1,IF(IW5=0,0,IW5+1)) ->  | IY5: =IF(COLUMNS($Q$5:IY5)=#REF!,1,IF(IX5=0,0,IX5+1)) ->  | IZ5: =IF(COLUMNS($Q$5:IZ5)=#REF!,1,IF(IY5=0,0,IY5+1)) ->  | JA5: =IF(COLUMNS($Q$5:JA5)=#REF!,1,IF(IZ5=0,0,IZ5+1)) ->  | JB5: =IF(COLUMNS($Q$5:JB5)=#REF!,1,IF(JA5=0,0,JA5+1)) ->  | JC5: =IF(COLUMNS($Q$5:JC5)=#REF!,1,IF(JB5=0,0,JB5+1)) ->  | JD5: =IF(COLUMNS($Q$5:JD5)=#REF!,1,IF(JC5=0,0,JC5+1)) ->  | JE5: =IF(COLUMNS($Q$5:JE5)=#REF!,1,IF(JD5=0,0,JD5+1)) ->  | JF5: =IF(COLUMNS($Q$5:JF5)=#REF!,1,IF(JE5=0,0,JE5+1)) ->  | JG5: =IF(COLUMNS($Q$5:JG5)=#REF!,1,IF(JF5=0,0,JF5+1)) ->  | JH5: =IF(COLUMNS($Q$5:JH5)=#REF!,1,IF(JG5=0,0,JG5+1)) ->  | JI5: =IF(COLUMNS($Q$5:JI5)=#REF!,1,IF(JH5=0,0,JH5+1)) ->  | JJ5: =IF(COLUMNS($Q$5:JJ5)=#REF!,1,IF(JI5=0,0,JI5+1)) ->  | JK5: =IF(COLUMNS($Q$5:JK5)=#REF!,1,IF(JJ5=0,0,JJ5+1)) ->  | JL5: =IF(COLUMNS($Q$5:JL5)=#REF!,1,IF(JK5=0,0,JK5+1)) ->  | JM5: =IF(COLUMNS($Q$5:JM5)=#REF!,1,IF(JL5=0,0,JL5+1)) ->  | JN5: =IF(COLUMNS($Q$5:JN5)=#REF!,1,IF(JM5=0,0,JM5+1)) ->  | JO5: =IF(COLUMNS($Q$5:JO5)=#REF!,1,IF(JN5=0,0,JN5+1)) ->  | JP5: =IF(COLUMNS($Q$5:JP5)=#REF!,1,IF(JO5=0,0,JO5+1)) ->  | JQ5: =IF(COLUMNS($Q$5:JQ5)=#REF!,1,IF(JP5=0,0,JP5+1)) ->  | JR5: =IF(COLUMNS($Q$5:JR5)=#REF!,1,IF(JQ5=0,0,JQ5+1)) ->  | JS5: =IF(COLUMNS($Q$5:JS5)=#REF!,1,IF(JR5=0,0,JR5+1)) ->  | JT5: =IF(COLUMNS($Q$5:JT5)=#REF!,1,IF(JS5=0,0,JS5+1)) ->  | JU5: =IF(COLUMNS($Q$5:JU5)=#REF!,1,IF(JT5=0,0,JT5+1)) ->  | JV5: =IF(COLUMNS($Q$5:JV5)=#REF!,1,IF(JU5=0,0,JU5+1)) ->  | JW5: =IF(COLUMNS($Q$5:JW5)=#REF!,1,IF(JV5=0,0,JV5+1)) ->  | JX5: =IF(COLUMNS($Q$5:JX5)=#REF!,1,IF(JW5=0,0,JW5+1)) ->  | JY5: =IF(COLUMNS($Q$5:JY5)=#REF!,1,IF(JX5=0,0,JX5+1)) ->  | JZ5: =IF(COLUMNS($Q$5:JZ5)=#REF!,1,IF(JY5=0,0,JY5+1)) ->  | KA5: =IF(COLUMNS($Q$5:KA5)=#REF!,1,IF(JZ5=0,0,JZ5+1)) ->  | KB5: =IF(COLUMNS($Q$5:KB5)=#REF!,1,IF(KA5=0,0,KA5+1)) ->  | KC5: =IF(COLUMNS($Q$5:KC5)=#REF!,1,IF(KB5=0,0,KB5+1)) ->  | KD5: =IF(COLUMNS($Q$5:KD5)=#REF!,1,IF(KC5=0,0,KC5+1)) ->  | KE5: =IF(COLUMNS($Q$5:KE5)=#REF!,1,IF(KD5=0,0,KD5+1)) ->  | KF5: =IF(COLUMNS($Q$5:KF5)=#REF!,1,IF(KE5=0,0,KE5+1)) ->  | KG5: =IF(COLUMNS($Q$5:KG5)=#REF!,1,IF(KF5=0,0,KF5+1)) ->  | KH5: =IF(COLUMNS($Q$5:KH5)=#REF!,1,IF(KG5=0,0,KG5+1)) ->  | KI5: =IF(COLUMNS($Q$5:KI5)=#REF!,1,IF(KH5=0,0,KH5+1)) ->  | KJ5: =IF(COLUMNS($Q$5:KJ5)=#REF!,1,IF(KI5=0,0,KI5+1)) ->  | KK5: =IF(COLUMNS($Q$5:KK5)=#REF!,1,IF(KJ5=0,0,KJ5+1)) ->  | KL5: =IF(COLUMNS($Q$5:KL5)=#REF!,1,IF(KK5=0,0,KK5+1)) ->  | KM5: =IF(COLUMNS($Q$5:KM5)=#REF!,1,IF(KL5=0,0,KL5+1)) ->  | KN5: =IF(COLUMNS($Q$5:KN5)=#REF!,1,IF(KM5=0,0,KM5+1)) ->  | KO5: =IF(COLUMNS($Q$5:KO5)=#REF!,1,IF(KN5=0,0,KN5+1)) ->  | KP5: =IF(COLUMNS($Q$5:KP5)=#REF!,1,IF(KO5=0,0,KO5+1)) ->  | KQ5: =IF(COLUMNS($Q$5:KQ5)=#REF!,1,IF(KP5=0,0,KP5+1)) ->  | KR5: =IF(COLUMNS($Q$5:KR5)=#REF!,1,IF(KQ5=0,0,KQ5+1)) ->  | KS5: =IF(COLUMNS($Q$5:KS5)=#REF!,1,IF(KR5=0,0,KR5+1)) ->  | KT5: =IF(COLUMNS($Q$5:KT5)=#REF!,1,IF(KS5=0,0,KS5+1)) ->  | KU5: =IF(COLUMNS($Q$5:KU5)=#REF!,1,IF(KT5=0,0,KT5+1)) ->  | KV5: =IF(COLUMNS($Q$5:KV5)=#REF!,1,IF(KU5=0,0,KU5+1)) ->  | KW5: =IF(COLUMNS($Q$5:KW5)=#REF!,1,IF(KV5=0,0,KV5+1)) ->  | KX5: =IF(COLUMNS($Q$5:KX5)=#REF!,1,IF(KW5=0,0,KW5+1)) ->  | KY5: =IF(COLUMNS($Q$5:KY5)=#REF!,1,IF(KX5=0,0,KX5+1)) ->  | KZ5: =IF(COLUMNS($Q$5:KZ5)=#REF!,1,IF(KY5=0,0,KY5+1)) ->  | LA5: =IF(COLUMNS($Q$5:LA5)=#REF!,1,IF(KZ5=0,0,KZ5+1)) ->  | LB5: =IF(COLUMNS($Q$5:LB5)=#REF!,1,IF(LA5=0,0,LA5+1)) ->  | LC5: =IF(COLUMNS($Q$5:LC5)=#REF!,1,IF(LB5=0,0,LB5+1)) ->  | LD5: =IF(COLUMNS($Q$5:LD5)=#REF!,1,IF(LC5=0,0,LC5+1)) ->  | LE5: =IF(COLUMNS($Q$5:LE5)=#REF!,1,IF(LD5=0,0,LD5+1)) ->  | LF5: =IF(COLUMNS($Q$5:LF5)=#REF!,1,IF(LE5=0,0,LE5+1)) ->  | LG5: =IF(COLUMNS($Q$5:LG5)=#REF!,1,IF(LF5=0,0,LF5+1)) ->  | LH5: =IF(COLUMNS($Q$5:LH5)=#REF!,1,IF(LG5=0,0,LG5+1)) ->  | LI5: =IF(COLUMNS($Q$5:LI5)=#REF!,1,IF(LH5=0,0,LH5+1)) ->  | LJ5: =IF(COLUMNS($Q$5:LJ5)=#REF!,1,IF(LI5=0,0,LI5+1)) ->  | LK5: =IF(COLUMNS($Q$5:LK5)=#REF!,1,IF(LJ5=0,0,LJ5+1)) ->  | LL5: =IF(COLUMNS($Q$5:LL5)=#REF!,1,IF(LK5=0,0,LK5+1)) ->  | LM5: =IF(COLUMNS($Q$5:LM5)=#REF!,1,IF(LL5=0,0,LL5+1)) ->  | LN5: =IF(COLUMNS($Q$5:LN5)=#REF!,1,IF(LM5=0,0,LM5+1)) ->  | LO5: =IF(COLUMNS($Q$5:LO5)=#REF!,1,IF(LN5=0,0,LN5+1)) ->  | LP5: =IF(COLUMNS($Q$5:LP5)=#REF!,1,IF(LO5=0,0,LO5+1)) ->  | LQ5: =IF(COLUMNS($Q$5:LQ5)=#REF!,1,IF(LP5=0,0,LP5+1)) ->  | LR5: =IF(COLUMNS($Q$5:LR5)=#REF!,1,IF(LQ5=0,0,LQ5+1)) ->  | LS5: =IF(COLUMNS($Q$5:LS5)=#REF!,1,IF(LR5=0,0,LR5+1)) ->  | LT5: =IF(COLUMNS($Q$5:LT5)=#REF!,1,IF(LS5=0,0,LS5+1)) ->  | LU5: =IF(COLUMNS($Q$5:LU5)=#REF!,1,IF(LT5=0,0,LT5+1)) ->  | LV5: =IF(COLUMNS($Q$5:LV5)=#REF!,1,IF(LU5=0,0,LU5+1)) ->  | LW5: =IF(COLUMNS($Q$5:LW5)=#REF!,1,IF(LV5=0,0,LV5+1)) ->  | LX5: =IF(COLUMNS($Q$5:LX5)=#REF!,1,IF(LW5=0,0,LW5+1)) ->  | LY5: =IF(COLUMNS($Q$5:LY5)=#REF!,1,IF(LX5=0,0,LX5+1)) ->  | LZ5: =IF(COLUMNS($Q$5:LZ5)=#REF!,1,IF(LY5=0,0,LY5+1)) ->  | MA5: =IF(COLUMNS($Q$5:MA5)=#REF!,1,IF(LZ5=0,0,LZ5+1)) ->  | MB5: =IF(COLUMNS($Q$5:MB5)=#REF!,1,IF(MA5=0,0,MA5+1)) ->  | MC5: =IF(COLUMNS($Q$5:MC5)=#REF!,1,IF(MB5=0,0,MB5+1)) ->  | MD5: =IF(COLUMNS($Q$5:MD5)=#REF!,1,IF(MC5=0,0,MC5+1)) ->  | ME5: =IF(COLUMNS($Q$5:ME5)=#REF!,1,IF(MD5=0,0,MD5+1)) ->  | MF5: =IF(COLUMNS($Q$5:MF5)=#REF!,1,IF(ME5=0,0,ME5+1)) ->  | MG5: =IF(COLUMNS($Q$5:MG5)=#REF!,1,IF(MF5=0,0,MF5+1)) ->  | MH5: =IF(COLUMNS($Q$5:MH5)=#REF!,1,IF(MG5=0,0,MG5+1)) ->  | MI5: =IF(COLUMNS($Q$5:MI5)=#REF!,1,IF(MH5=0,0,MH5+1)) ->  | MJ5: =IF(COLUMNS($Q$5:MJ5)=#REF!,1,IF(MI5=0,0,MI5+1)) ->  | MK5: =IF(COLUMNS($Q$5:MK5)=#REF!,1,IF(MJ5=0,0,MJ5+1)) ->  | ML5: =IF(COLUMNS($Q$5:ML5)=#REF!,1,IF(MK5=0,0,MK5+1)) ->  | MM5: =IF(COLUMNS($Q$5:MM5)=#REF!,1,IF(ML5=0,0,ML5+1)) ->  | MN5: =IF(COLUMNS($Q$5:MN5)=#REF!,1,IF(MM5=0,0,MM5+1)) ->  | MO5: =IF(COLUMNS($Q$5:MO5)=#REF!,1,IF(MN5=0,0,MN5+1)) ->  | MP5: =IF(COLUMNS($Q$5:MP5)=#REF!,1,IF(MO5=0,0,MO5+1)) ->  | MQ5: =IF(COLUMNS($Q$5:MQ5)=#REF!,1,IF(MP5=0,0,MP5+1)) ->  | MR5: =IF(COLUMNS($Q$5:MR5)=#REF!,1,IF(MQ5=0,0,MQ5+1)) ->  | MS5: =IF(COLUMNS($Q$5:MS5)=#REF!,1,IF(MR5=0,0,MR5+1)) ->  | MT5: =IF(COLUMNS($Q$5:MT5)=#REF!,1,IF(MS5=0,0,MS5+1)) ->  | MU5: =IF(COLUMNS($Q$5:MU5)=#REF!,1,IF(MT5=0,0,MT5+1)) ->  | MV5: =IF(COLUMNS($Q$5:MV5)=#REF!,1,IF(MU5=0,0,MU5+1)) ->  | MW5: =IF(COLUMNS($Q$5:MW5)=#REF!,1,IF(MV5=0,0,MV5+1)) ->  | MX5: =IF(COLUMNS($Q$5:MX5)=#REF!,1,IF(MW5=0,0,MW5+1)) ->  | MY5: =IF(COLUMNS($Q$5:MY5)=#REF!,1,IF(MX5=0,0,MX5+1)) ->  | MZ5: =IF(COLUMNS($Q$5:MZ5)=#REF!,1,IF(MY5=0,0,MY5+1)) ->  | NA5: =IF(COLUMNS($Q$5:NA5)=#REF!,1,IF(MZ5=0,0,MZ5+1)) ->  | NB5: =IF(COLUMNS($Q$5:NB5)=#REF!,1,IF(NA5=0,0,NA5+1)) ->  | NC5: =IF(COLUMNS($Q$5:NC5)=#REF!,1,IF(NB5=0,0,NB5+1)) ->  | ND5: =IF(COLUMNS($Q$5:ND5)=#REF!,1,IF(NC5=0,0,NC5+1)) ->  | NE5: =IF(COLUMNS($Q$5:NE5)=#REF!,1,IF(ND5=0,0,ND5+1)) ->  | NF5: =IF(COLUMNS($Q$5:NF5)=#REF!,1,IF(NE5=0,0,NE5+1)) ->  | NG5: =IF(COLUMNS($Q$5:NG5)=#REF!,1,IF(NF5=0,0,NF5+1)) ->  | NH5: =IF(COLUMNS($Q$5:NH5)=#REF!,1,IF(NG5=0,0,NG5+1)) ->  | NI5: =IF(COLUMNS($Q$5:NI5)=#REF!,1,IF(NH5=0,0,NH5+1)) ->  | NJ5: =IF(COLUMNS($Q$5:NJ5)=#REF!,1,IF(NI5=0,0,NI5+1)) ->  | NK5: =IF(COLUMNS($Q$5:NK5)=#REF!,1,IF(NJ5=0,0,NJ5+1)) ->  | NL5: =IF(COLUMNS($Q$5:NL5)=#REF!,1,IF(NK5=0,0,NK5+1)) ->  | NM5: =IF(COLUMNS($Q$5:NM5)=#REF!,1,IF(NL5=0,0,NL5+1)) ->  | NN5: =IF(COLUMNS($Q$5:NN5)=#REF!,1,IF(NM5=0,0,NM5+1)) ->  | NO5: =IF(COLUMNS($Q$5:NO5)=#REF!,1,IF(NN5=0,0,NN5+1)) ->  | NP5: =IF(COLUMNS($Q$5:NP5)=#REF!,1,IF(NO5=0,0,NO5+1)) ->  | NQ5: =IF(COLUMNS($Q$5:NQ5)=#REF!,1,IF(NP5=0,0,NP5+1)) ->  | NR5: =IF(COLUMNS($Q$5:NR5)=#REF!,1,IF(NQ5=0,0,NQ5+1)) ->  | NS5: =IF(COLUMNS($Q$5:NS5)=#REF!,1,IF(NR5=0,0,NR5+1)) ->  | NT5: =IF(COLUMNS($Q$5:NT5)=#REF!,1,IF(NS5=0,0,NS5+1)) ->  | NU5: =IF(COLUMNS($Q$5:NU5)=#REF!,1,IF(NT5=0,0,NT5+1)) ->  | NV5: =IF(COLUMNS($Q$5:NV5)=#REF!,1,IF(NU5=0,0,NU5+1)) ->  | NW5: =IF(COLUMNS($Q$5:NW5)=#REF!,1,IF(NV5=0,0,NV5+1)) ->  | NX5: =IF(COLUMNS($Q$5:NX5)=#REF!,1,IF(NW5=0,0,NW5+1)) ->  | NY5: =IF(COLUMNS($Q$5:NY5)=#REF!,1,IF(NX5=0,0,NX5+1)) ->  | NZ5: =IF(COLUMNS($Q$5:NZ5)=#REF!,1,IF(NY5=0,0,NY5+1)) ->  | OA5: =IF(COLUMNS($Q$5:OA5)=#REF!,1,IF(NZ5=0,0,NZ5+1)) ->  | OB5: =IF(COLUMNS($Q$5:OB5)=#REF!,1,IF(OA5=0,0,OA5+1)) ->  | OC5: =IF(COLUMNS($Q$5:OC5)=#REF!,1,IF(OB5=0,0,OB5+1)) ->  | OD5: =IF(COLUMNS($Q$5:OD5)=#REF!,1,IF(OC5=0,0,OC5+1)) ->  | OE5: =IF(COLUMNS($Q$5:OE5)=#REF!,1,IF(OD5=0,0,OD5+1)) ->  | OF5: =IF(COLUMNS($Q$5:OF5)=#REF!,1,IF(OE5=0,0,OE5+1)) ->  | OG5: =IF(COLUMNS($Q$5:OG5)=#REF!,1,IF(OF5=0,0,OF5+1)) ->  | OH5: =IF(COLUMNS($Q$5:OH5)=#REF!,1,IF(OG5=0,0,OG5+1)) ->  | OI5: =IF(COLUMNS($Q$5:OI5)=#REF!,1,IF(OH5=0,0,OH5+1)) ->  | OJ5: =IF(COLUMNS($Q$5:OJ5)=#REF!,1,IF(OI5=0,0,OI5+1)) ->  | OK5: =IF(COLUMNS($Q$5:OK5)=#REF!,1,IF(OJ5=0,0,OJ5+1)) ->  | OL5: =IF(COLUMNS($Q$5:OL5)=#REF!,1,IF(OK5=0,0,OK5+1)) ->  | OM5: =IF(COLUMNS($Q$5:OM5)=#REF!,1,IF(OL5=0,0,OL5+1)) ->  | ON5: =IF(COLUMNS($Q$5:ON5)=#REF!,1,IF(OM5=0,0,OM5+1)) ->  | OO5: =IF(COLUMNS($Q$5:OO5)=#REF!,1,IF(ON5=0,0,ON5+1)) ->  | OP5: =IF(COLUMNS($Q$5:OP5)=#REF!,1,IF(OO5=0,0,OO5+1)) ->  | OQ5: =IF(COLUMNS($Q$5:OQ5)=#REF!,1,IF(OP5=0,0,OP5+1)) -> 
M6: Rerating (comprador original) | Q6: =+IF(SUM($Q$7:Q7)=0,1,0) ->  | R6: =+IF(SUM($Q$7:R7)=0,1,0) ->  | S6: =+IF(SUM($Q$7:S7)=0,1,0) ->  | T6: =+IF(SUM($Q$7:T7)=0,1,0) ->  | U6: =+IF(SUM($Q$7:U7)=0,1,0) ->  | V6: =+IF(SUM($Q$7:V7)=0,1,0) ->  | W6: =+IF(SUM($Q$7:W7)=0,1,0) ->  | X6: =+IF(SUM($Q$7:X7)=0,1,0) ->  | Y6: =+IF(SUM($Q$7:Y7)=0,1,0) ->  | Z6: =+IF(SUM($Q$7:Z7)=0,1,0) ->  | AA6: =+IF(SUM($Q$7:AA7)=0,1,0) ->  | AB6: =+IF(SUM($Q$7:AB7)=0,1,0) ->  | AC6: =+IF(SUM($Q$7:AC7)=0,1,0) ->  | AD6: =+IF(SUM($Q$7:AD7)=0,1,0) ->  | AE6: =+IF(SUM($Q$7:AE7)=0,1,0) ->  | AF6: =+IF(SUM($Q$7:AF7)=0,1,0) ->  | AG6: =+IF(SUM($Q$7:AG7)=0,1,0) ->  | AH6: =+IF(SUM($Q$7:AH7)=0,1,0) ->  | AI6: =+IF(SUM($Q$7:AI7)=0,1,0) ->  | AJ6: =+IF(SUM($Q$7:AJ7)=0,1,0) ->  | AK6: =+IF(SUM($Q$7:AK7)=0,1,0) ->  | AL6: =+IF(SUM($Q$7:AL7)=0,1,0) ->  | AM6: =+IF(SUM($Q$7:AM7)=0,1,0) ->  | AN6: =+IF(SUM($Q$7:AN7)=0,1,0) ->  | AO6: =+IF(SUM($Q$7:AO7)=0,1,0) ->  | AP6: =+IF(SUM($Q$7:AP7)=0,1,0) ->  | AQ6: =+IF(SUM($Q$7:AQ7)=0,1,0) ->  | AR6: =+IF(SUM($Q$7:AR7)=0,1,0) ->  | AS6: =+IF(SUM($Q$7:AS7)=0,1,0) ->  | AT6: =+IF(SUM($Q$7:AT7)=0,1,0) ->  | AU6: =+IF(SUM($Q$7:AU7)=0,1,0) ->  | AV6: =+IF(SUM($Q$7:AV7)=0,1,0) ->  | AW6: =+IF(SUM($Q$7:AW7)=0,1,0) ->  | AX6: =+IF(SUM($Q$7:AX7)=0,1,0) ->  | AY6: =+IF(SUM($Q$7:AY7)=0,1,0) ->  | AZ6: =+IF(SUM($Q$7:AZ7)=0,1,0) ->  | BA6: =+IF(SUM($Q$7:BA7)=0,1,0) ->  | BB6: =+IF(SUM($Q$7:BB7)=0,1,0) ->  | BC6: =+IF(SUM($Q$7:BC7)=0,1,0) ->  | BD6: =+IF(SUM($Q$7:BD7)=0,1,0) ->  | BE6: =+IF(SUM($Q$7:BE7)=0,1,0) ->  | BF6: =+IF(SUM($Q$7:BF7)=0,1,0) ->  | BG6: =+IF(SUM($Q$7:BG7)=0,1,0) ->  | BH6: =+IF(SUM($Q$7:BH7)=0,1,0) ->  | BI6: =+IF(SUM($Q$7:BI7)=0,1,0) ->  | BJ6: =+IF(SUM($Q$7:BJ7)=0,1,0) ->  | BK6: =+IF(SUM($Q$7:BK7)=0,1,0) ->  | BL6: =+IF(SUM($Q$7:BL7)=0,1,0) ->  | BM6: =+IF(SUM($Q$7:BM7)=0,1,0) ->  | BN6: =+IF(SUM($Q$7:BN7)=0,1,0) ->  | BO6: =+IF(SUM($Q$7:BO7)=0,1,0) ->  | BP6: =+IF(SUM($Q$7:BP7)=0,1,0) ->  | BQ6: =+IF(SUM($Q$7:BQ7)=0,1,0) ->  | BR6: =+IF(SUM($Q$7:BR7)=0,1,0) ->  | BS6: =+IF(SUM($Q$7:BS7)=0,1,0) ->  | BT6: =+IF(SUM($Q$7:BT7)=0,1,0) ->  | BU6: =+IF(SUM($Q$7:BU7)=0,1,0) ->  | BV6: =+IF(SUM($Q$7:BV7)=0,1,0) ->  | BW6: =+IF(SUM($Q$7:BW7)=0,1,0) ->  | BX6: =+IF(SUM($Q$7:BX7)=0,1,0) ->  | BY6: =+IF(SUM($Q$7:BY7)=0,1,0) ->  | BZ6: =+IF(SUM($Q$7:BZ7)=0,1,0) ->  | CA6: =+IF(SUM($Q$7:CA7)=0,1,0) ->  | CB6: =+IF(SUM($Q$7:CB7)=0,1,0) ->  | CC6: =+IF(SUM($Q$7:CC7)=0,1,0) ->  | CD6: =+IF(SUM($Q$7:CD7)=0,1,0) ->  | CE6: =+IF(SUM($Q$7:CE7)=0,1,0) ->  | CF6: =+IF(SUM($Q$7:CF7)=0,1,0) ->  | CG6: =+IF(SUM($Q$7:CG7)=0,1,0) ->  | CH6: =+IF(SUM($Q$7:CH7)=0,1,0) ->  | CI6: =+IF(SUM($Q$7:CI7)=0,1,0) ->  | CJ6: =+IF(SUM($Q$7:CJ7)=0,1,0) ->  | CK6: =+IF(SUM($Q$7:CK7)=0,1,0) ->  | CL6: =+IF(SUM($Q$7:CL7)=0,1,0) ->  | CM6: =+IF(SUM($Q$7:CM7)=0,1,0) ->  | CN6: =+IF(SUM($Q$7:CN7)=0,1,0) ->  | CO6: =+IF(SUM($Q$7:CO7)=0,1,0) ->  | CP6: =+IF(SUM($Q$7:CP7)=0,1,0) ->  | CQ6: =+IF(SUM($Q$7:CQ7)=0,1,0) ->  | CR6: =+IF(SUM($Q$7:CR7)=0,1,0) ->  | CS6: =+IF(SUM($Q$7:CS7)=0,1,0) ->  | CT6: =+IF(SUM($Q$7:CT7)=0,1,0) ->  | CU6: =+IF(SUM($Q$7:CU7)=0,1,0) ->  | CV6: =+IF(SUM($Q$7:CV7)=0,1,0) ->  | CW6: =+IF(SUM($Q$7:CW7)=0,1,0) ->  | CX6: =+IF(SUM($Q$7:CX7)=0,1,0) ->  | CY6: =+IF(SUM($Q$7:CY7)=0,1,0) ->  | CZ6: =+IF(SUM($Q$7:CZ7)=0,1,0) ->  | DA6: =+IF(SUM($Q$7:DA7)=0,1,0) ->  | DB6: =+IF(SUM($Q$7:DB7)=0,1,0) ->  | DC6: =+IF(SUM($Q$7:DC7)=0,1,0) ->  | DD6: =+IF(SUM($Q$7:DD7)=0,1,0) ->  | DE6: =+IF(SUM($Q$7:DE7)=0,1,0) ->  | DF6: =+IF(SUM($Q$7:DF7)=0,1,0) ->  | DG6: =+IF(SUM($Q$7:DG7)=0,1,0) ->  | DH6: =+IF(SUM($Q$7:DH7)=0,1,0) ->  | DI6: =+IF(SUM($Q$7:DI7)=0,1,0) ->  | DJ6: =+IF(SUM($Q$7:DJ7)=0,1,0) ->  | DK6: =+IF(SUM($Q$7:DK7)=0,1,0) ->  | DL6: =+IF(SUM($Q$7:DL7)=0,1,0) ->  | DM6: =+IF(SUM($Q$7:DM7)=0,1,0) ->  | DN6: =+IF(SUM($Q$7:DN7)=0,1,0) ->  | DO6: =+IF(SUM($Q$7:DO7)=0,1,0) ->  | DP6: =+IF(SUM($Q$7:DP7)=0,1,0) ->  | DQ6: =+IF(SUM($Q$7:DQ7)=0,1,0) ->  | DR6: =+IF(SUM($Q$7:DR7)=0,1,0) ->  | DS6: =+IF(SUM($Q$7:DS7)=0,1,0) ->  | DT6: =+IF(SUM($Q$7:DT7)=0,1,0) ->  | DU6: =+IF(SUM($Q$7:DU7)=0,1,0) ->  | DV6: =+IF(SUM($Q$7:DV7)=0,1,0) ->  | DW6: =+IF(SUM($Q$7:DW7)=0,1,0) ->  | DX6: =+IF(SUM($Q$7:DX7)=0,1,0) ->  | DY6: =+IF(SUM($Q$7:DY7)=0,1,0) ->  | DZ6: =+IF(SUM($Q$7:DZ7)=0,1,0) ->  | EA6: =+IF(SUM($Q$7:EA7)=0,1,0) ->  | EB6: =+IF(SUM($Q$7:EB7)=0,1,0) ->  | EC6: =+IF(SUM($Q$7:EC7)=0,1,0) ->  | ED6: =+IF(SUM($Q$7:ED7)=0,1,0) ->  | EE6: =+IF(SUM($Q$7:EE7)=0,1,0) ->  | EF6: =+IF(SUM($Q$7:EF7)=0,1,0) ->  | EG6: =+IF(SUM($Q$7:EG7)=0,1,0) ->  | EH6: =+IF(SUM($Q$7:EH7)=0,1,0) ->  | EI6: =+IF(SUM($Q$7:EI7)=0,1,0) ->  | EJ6: =+IF(SUM($Q$7:EJ7)=0,1,0) ->  | EK6: =+IF(SUM($Q$7:EK7)=0,1,0) ->  | EL6: =+IF(SUM($Q$7:EL7)=0,1,0) ->  | EM6: =+IF(SUM($Q$7:EM7)=0,1,0) ->  | EN6: =+IF(SUM($Q$7:EN7)=0,1,0) ->  | EO6: =+IF(SUM($Q$7:EO7)=0,1,0) ->  | EP6: =+IF(SUM($Q$7:EP7)=0,1,0) ->  | EQ6: =+IF(SUM($Q$7:EQ7)=0,1,0) ->  | ER6: =+IF(SUM($Q$7:ER7)=0,1,0) ->  | ES6: =+IF(SUM($Q$7:ES7)=0,1,0) ->  | ET6: =+IF(SUM($Q$7:ET7)=0,1,0) ->  | EU6: =+IF(SUM($Q$7:EU7)=0,1,0) ->  | EV6: =+IF(SUM($Q$7:EV7)=0,1,0) ->  | EW6: =+IF(SUM($Q$7:EW7)=0,1,0) ->  | EX6: =+IF(SUM($Q$7:EX7)=0,1,0) ->  | EY6: =+IF(SUM($Q$7:EY7)=0,1,0) ->  | EZ6: =+IF(SUM($Q$7:EZ7)=0,1,0) ->  | FA6: =+IF(SUM($Q$7:FA7)=0,1,0) ->  | FB6: =+IF(SUM($Q$7:FB7)=0,1,0) ->  | FC6: =+IF(SUM($Q$7:FC7)=0,1,0) ->  | FD6: =+IF(SUM($Q$7:FD7)=0,1,0) ->  | FE6: =+IF(SUM($Q$7:FE7)=0,1,0) ->  | FF6: =+IF(SUM($Q$7:FF7)=0,1,0) ->  | FG6: =+IF(SUM($Q$7:FG7)=0,1,0) ->  | FH6: =+IF(SUM($Q$7:FH7)=0,1,0) ->  | FI6: =+IF(SUM($Q$7:FI7)=0,1,0) ->  | FJ6: =+IF(SUM($Q$7:FJ7)=0,1,0) ->  | FK6: =+IF(SUM($Q$7:FK7)=0,1,0) ->  | FL6: =+IF(SUM($Q$7:FL7)=0,1,0) ->  | FM6: =+IF(SUM($Q$7:FM7)=0,1,0) ->  | FN6: =+IF(SUM($Q$7:FN7)=0,1,0) ->  | FO6: =+IF(SUM($Q$7:FO7)=0,1,0) ->  | FP6: =+IF(SUM($Q$7:FP7)=0,1,0) ->  | FQ6: =+IF(SUM($Q$7:FQ7)=0,1,0) ->  | FR6: =+IF(SUM($Q$7:FR7)=0,1,0) ->  | FS6: =+IF(SUM($Q$7:FS7)=0,1,0) ->  | FT6: =+IF(SUM($Q$7:FT7)=0,1,0) ->  | FU6: =+IF(SUM($Q$7:FU7)=0,1,0) ->  | FV6: =+IF(SUM($Q$7:FV7)=0,1,0) ->  | FW6: =+IF(SUM($Q$7:FW7)=0,1,0) ->  | FX6: =+IF(SUM($Q$7:FX7)=0,1,0) ->  | FY6: =+IF(SUM($Q$7:FY7)=0,1,0) ->  | FZ6: =+IF(SUM($Q$7:FZ7)=0,1,0) ->  | GA6: =+IF(SUM($Q$7:GA7)=0,1,0) ->  | GB6: =+IF(SUM($Q$7:GB7)=0,1,0) ->  | GC6: =+IF(SUM($Q$7:GC7)=0,1,0) ->  | GD6: =+IF(SUM($Q$7:GD7)=0,1,0) ->  | GE6: =+IF(SUM($Q$7:GE7)=0,1,0) ->  | GF6: =+IF(SUM($Q$7:GF7)=0,1,0) ->  | GG6: =+IF(SUM($Q$7:GG7)=0,1,0) ->  | GH6: =+IF(SUM($Q$7:GH7)=0,1,0) ->  | GI6: =+IF(SUM($Q$7:GI7)=0,1,0) ->  | GJ6: =+IF(SUM($Q$7:GJ7)=0,1,0) ->  | GK6: =+IF(SUM($Q$7:GK7)=0,1,0) ->  | GL6: =+IF(SUM($Q$7:GL7)=0,1,0) ->  | GM6: =+IF(SUM($Q$7:GM7)=0,1,0) ->  | GN6: =+IF(SUM($Q$7:GN7)=0,1,0) ->  | GO6: =+IF(SUM($Q$7:GO7)=0,1,0) ->  | GP6: =+IF(SUM($Q$7:GP7)=0,1,0) ->  | GQ6: =+IF(SUM($Q$7:GQ7)=0,1,0) ->  | GR6: =+IF(SUM($Q$7:GR7)=0,1,0) ->  | GS6: =+IF(SUM($Q$7:GS7)=0,1,0) ->  | GT6: =+IF(SUM($Q$7:GT7)=0,1,0) ->  | GU6: =+IF(SUM($Q$7:GU7)=0,1,0) ->  | GV6: =+IF(SUM($Q$7:GV7)=0,1,0) ->  | GW6: =+IF(SUM($Q$7:GW7)=0,1,0) ->  | GX6: =+IF(SUM($Q$7:GX7)=0,1,0) ->  | GY6: =+IF(SUM($Q$7:GY7)=0,1,0) ->  | GZ6: =+IF(SUM($Q$7:GZ7)=0,1,0) ->  | HA6: =+IF(SUM($Q$7:HA7)=0,1,0) ->  | HB6: =+IF(SUM($Q$7:HB7)=0,1,0) ->  | HC6: =+IF(SUM($Q$7:HC7)=0,1,0) ->  | HD6: =+IF(SUM($Q$7:HD7)=0,1,0) ->  | HE6: =+IF(SUM($Q$7:HE7)=0,1,0) ->  | HF6: =+IF(SUM($Q$7:HF7)=0,1,0) ->  | HG6: =+IF(SUM($Q$7:HG7)=0,1,0) ->  | HH6: =+IF(SUM($Q$7:HH7)=0,1,0) ->  | HI6: =+IF(SUM($Q$7:HI7)=0,1,0) ->  | HJ6: =+IF(SUM($Q$7:HJ7)=0,1,0) ->  | HK6: =+IF(SUM($Q$7:HK7)=0,1,0) ->  | HL6: =+IF(SUM($Q$7:HL7)=0,1,0) ->  | HM6: =+IF(SUM($Q$7:HM7)=0,1,0) ->  | HN6: =+IF(SUM($Q$7:HN7)=0,1,0) ->  | HO6: =+IF(SUM($Q$7:HO7)=0,1,0) ->  | HP6: =+IF(SUM($Q$7:HP7)=0,1,0) ->  | HQ6: =+IF(SUM($Q$7:HQ7)=0,1,0) ->  | HR6: =+IF(SUM($Q$7:HR7)=0,1,0) ->  | HS6: =+IF(SUM($Q$7:HS7)=0,1,0) ->  | HT6: =+IF(SUM($Q$7:HT7)=0,1,0) ->  | HU6: =+IF(SUM($Q$7:HU7)=0,1,0) ->  | HV6: =+IF(SUM($Q$7:HV7)=0,1,0) ->  | HW6: =+IF(SUM($Q$7:HW7)=0,1,0) ->  | HX6: =+IF(SUM($Q$7:HX7)=0,1,0) ->  | HY6: =+IF(SUM($Q$7:HY7)=0,1,0) ->  | HZ6: =+IF(SUM($Q$7:HZ7)=0,1,0) ->  | IA6: =+IF(SUM($Q$7:IA7)=0,1,0) ->  | IB6: =+IF(SUM($Q$7:IB7)=0,1,0) ->  | IC6: =+IF(SUM($Q$7:IC7)=0,1,0) ->  | ID6: =+IF(SUM($Q$7:ID7)=0,1,0) ->  | IE6: =+IF(SUM($Q$7:IE7)=0,1,0) ->  | IF6: =+IF(SUM($Q$7:IF7)=0,1,0) ->  | IG6: =+IF(SUM($Q$7:IG7)=0,1,0) ->  | IH6: =+IF(SUM($Q$7:IH7)=0,1,0) ->  | II6: =+IF(SUM($Q$7:II7)=0,1,0) ->  | IJ6: =+IF(SUM($Q$7:IJ7)=0,1,0) ->  | IK6: =+IF(SUM($Q$7:IK7)=0,1,0) ->  | IL6: =+IF(SUM($Q$7:IL7)=0,1,0) ->  | IM6: =+IF(SUM($Q$7:IM7)=0,1,0) ->  | IN6: =+IF(SUM($Q$7:IN7)=0,1,0) ->  | IO6: =+IF(SUM($Q$7:IO7)=0,1,0) ->  | IP6: =+IF(SUM($Q$7:IP7)=0,1,0) ->  | IQ6: =+IF(SUM($Q$7:IQ7)=0,1,0) ->  | IR6: =+IF(SUM($Q$7:IR7)=0,1,0) ->  | IS6: =+IF(SUM($Q$7:IS7)=0,1,0) ->  | IT6: =+IF(SUM($Q$7:IT7)=0,1,0) ->  | IU6: =+IF(SUM($Q$7:IU7)=0,1,0) ->  | IV6: =+IF(SUM($Q$7:IV7)=0,1,0) ->  | IW6: =+IF(SUM($Q$7:IW7)=0,1,0) ->  | IX6: =+IF(SUM($Q$7:IX7)=0,1,0) ->  | IY6: =+IF(SUM($Q$7:IY7)=0,1,0) ->  | IZ6: =+IF(SUM($Q$7:IZ7)=0,1,0) ->  | JA6: =+IF(SUM($Q$7:JA7)=0,1,0) ->  | JB6: =+IF(SUM($Q$7:JB7)=0,1,0) ->  | JC6: =+IF(SUM($Q$7:JC7)=0,1,0) ->  | JD6: =+IF(SUM($Q$7:JD7)=0,1,0) ->  | JE6: =+IF(SUM($Q$7:JE7)=0,1,0) ->  | JF6: =+IF(SUM($Q$7:JF7)=0,1,0) ->  | JG6: =+IF(SUM($Q$7:JG7)=0,1,0) ->  | JH6: =+IF(SUM($Q$7:JH7)=0,1,0) ->  | JI6: =+IF(SUM($Q$7:JI7)=0,1,0) ->  | JJ6: =+IF(SUM($Q$7:JJ7)=0,1,0) ->  | JK6: =+IF(SUM($Q$7:JK7)=0,1,0) ->  | JL6: =+IF(SUM($Q$7:JL7)=0,1,0) ->  | JM6: =+IF(SUM($Q$7:JM7)=0,1,0) ->  | JN6: =+IF(SUM($Q$7:JN7)=0,1,0) ->  | JO6: =+IF(SUM($Q$7:JO7)=0,1,0) ->  | JP6: =+IF(SUM($Q$7:JP7)=0,1,0) ->  | JQ6: =+IF(SUM($Q$7:JQ7)=0,1,0) ->  | JR6: =+IF(SUM($Q$7:JR7)=0,1,0) ->  | JS6: =+IF(SUM($Q$7:JS7)=0,1,0) ->  | JT6: =+IF(SUM($Q$7:JT7)=0,1,0) ->  | JU6: =+IF(SUM($Q$7:JU7)=0,1,0) ->  | JV6: =+IF(SUM($Q$7:JV7)=0,1,0) ->  | JW6: =+IF(SUM($Q$7:JW7)=0,1,0) ->  | JX6: =+IF(SUM($Q$7:JX7)=0,1,0) ->  | JY6: =+IF(SUM($Q$7:JY7)=0,1,0) ->  | JZ6: =+IF(SUM($Q$7:JZ7)=0,1,0) ->  | KA6: =+IF(SUM($Q$7:KA7)=0,1,0) ->  | KB6: =+IF(SUM($Q$7:KB7)=0,1,0) ->  | KC6: =+IF(SUM($Q$7:KC7)=0,1,0) ->  | KD6: =+IF(SUM($Q$7:KD7)=0,1,0) ->  | KE6: =+IF(SUM($Q$7:KE7)=0,1,0) ->  | KF6: =+IF(SUM($Q$7:KF7)=0,1,0) ->  | KG6: =+IF(SUM($Q$7:KG7)=0,1,0) ->  | KH6: =+IF(SUM($Q$7:KH7)=0,1,0) ->  | KI6: =+IF(SUM($Q$7:KI7)=0,1,0) ->  | KJ6: =+IF(SUM($Q$7:KJ7)=0,1,0) ->  | KK6: =+IF(SUM($Q$7:KK7)=0,1,0) ->  | KL6: =+IF(SUM($Q$7:KL7)=0,1,0) ->  | KM6: =+IF(SUM($Q$7:KM7)=0,1,0) ->  | KN6: =+IF(SUM($Q$7:KN7)=0,1,0) ->  | KO6: =+IF(SUM($Q$7:KO7)=0,1,0) ->  | KP6: =+IF(SUM($Q$7:KP7)=0,1,0) ->  | KQ6: =+IF(SUM($Q$7:KQ7)=0,1,0) ->  | KR6: =+IF(SUM($Q$7:KR7)=0,1,0) ->  | KS6: =+IF(SUM($Q$7:KS7)=0,1,0) ->  | KT6: =+IF(SUM($Q$7:KT7)=0,1,0) ->  | KU6: =+IF(SUM($Q$7:KU7)=0,1,0) ->  | KV6: =+IF(SUM($Q$7:KV7)=0,1,0) ->  | KW6: =+IF(SUM($Q$7:KW7)=0,1,0) ->  | KX6: =+IF(SUM($Q$7:KX7)=0,1,0) ->  | KY6: =+IF(SUM($Q$7:KY7)=0,1,0) ->  | KZ6: =+IF(SUM($Q$7:KZ7)=0,1,0) ->  | LA6: =+IF(SUM($Q$7:LA7)=0,1,0) ->  | LB6: =+IF(SUM($Q$7:LB7)=0,1,0) ->  | LC6: =+IF(SUM($Q$7:LC7)=0,1,0) ->  | LD6: =+IF(SUM($Q$7:LD7)=0,1,0) ->  | LE6: =+IF(SUM($Q$7:LE7)=0,1,0) ->  | LF6: =+IF(SUM($Q$7:LF7)=0,1,0) ->  | LG6: =+IF(SUM($Q$7:LG7)=0,1,0) ->  | LH6: =+IF(SUM($Q$7:LH7)=0,1,0) ->  | LI6: =+IF(SUM($Q$7:LI7)=0,1,0) ->  | LJ6: =+IF(SUM($Q$7:LJ7)=0,1,0) ->  | LK6: =+IF(SUM($Q$7:LK7)=0,1,0) ->  | LL6: =+IF(SUM($Q$7:LL7)=0,1,0) ->  | LM6: =+IF(SUM($Q$7:LM7)=0,1,0) ->  | LN6: =+IF(SUM($Q$7:LN7)=0,1,0) ->  | LO6: =+IF(SUM($Q$7:LO7)=0,1,0) ->  | LP6: =+IF(SUM($Q$7:LP7)=0,1,0) ->  | LQ6: =+IF(SUM($Q$7:LQ7)=0,1,0) ->  | LR6: =+IF(SUM($Q$7:LR7)=0,1,0) ->  | LS6: =+IF(SUM($Q$7:LS7)=0,1,0) ->  | LT6: =+IF(SUM($Q$7:LT7)=0,1,0) ->  | LU6: =+IF(SUM($Q$7:LU7)=0,1,0) ->  | LV6: =+IF(SUM($Q$7:LV7)=0,1,0) ->  | LW6: =+IF(SUM($Q$7:LW7)=0,1,0) ->  | LX6: =+IF(SUM($Q$7:LX7)=0,1,0) ->  | LY6: =+IF(SUM($Q$7:LY7)=0,1,0) ->  | LZ6: =+IF(SUM($Q$7:LZ7)=0,1,0) ->  | MA6: =+IF(SUM($Q$7:MA7)=0,1,0) ->  | MB6: =+IF(SUM($Q$7:MB7)=0,1,0) ->  | MC6: =+IF(SUM($Q$7:MC7)=0,1,0) ->  | MD6: =+IF(SUM($Q$7:MD7)=0,1,0) ->  | ME6: =+IF(SUM($Q$7:ME7)=0,1,0) ->  | MF6: =+IF(SUM($Q$7:MF7)=0,1,0) ->  | MG6: =+IF(SUM($Q$7:MG7)=0,1,0) ->  | MH6: =+IF(SUM($Q$7:MH7)=0,1,0) ->  | MI6: =+IF(SUM($Q$7:MI7)=0,1,0) ->  | MJ6: =+IF(SUM($Q$7:MJ7)=0,1,0) ->  | MK6: =+IF(SUM($Q$7:MK7)=0,1,0) ->  | ML6: =+IF(SUM($Q$7:ML7)=0,1,0) ->  | MM6: =+IF(SUM($Q$7:MM7)=0,1,0) ->  | MN6: =+IF(SUM($Q$7:MN7)=0,1,0) ->  | MO6: =+IF(SUM($Q$7:MO7)=0,1,0) ->  | MP6: =+IF(SUM($Q$7:MP7)=0,1,0) ->  | MQ6: =+IF(SUM($Q$7:MQ7)=0,1,0) ->  | MR6: =+IF(SUM($Q$7:MR7)=0,1,0) ->  | MS6: =+IF(SUM($Q$7:MS7)=0,1,0) ->  | MT6: =+IF(SUM($Q$7:MT7)=0,1,0) ->  | MU6: =+IF(SUM($Q$7:MU7)=0,1,0) ->  | MV6: =+IF(SUM($Q$7:MV7)=0,1,0) ->  | MW6: =+IF(SUM($Q$7:MW7)=0,1,0) ->  | MX6: =+IF(SUM($Q$7:MX7)=0,1,0) ->  | MY6: =+IF(SUM($Q$7:MY7)=0,1,0) ->  | MZ6: =+IF(SUM($Q$7:MZ7)=0,1,0) ->  | NA6: =+IF(SUM($Q$7:NA7)=0,1,0) ->  | NB6: =+IF(SUM($Q$7:NB7)=0,1,0) ->  | NC6: =+IF(SUM($Q$7:NC7)=0,1,0) ->  | ND6: =+IF(SUM($Q$7:ND7)=0,1,0) ->  | NE6: =+IF(SUM($Q$7:NE7)=0,1,0) ->  | NF6: =+IF(SUM($Q$7:NF7)=0,1,0) ->  | NG6: =+IF(SUM($Q$7:NG7)=0,1,0) ->  | NH6: =+IF(SUM($Q$7:NH7)=0,1,0) ->  | NI6: =+IF(SUM($Q$7:NI7)=0,1,0) ->  | NJ6: =+IF(SUM($Q$7:NJ7)=0,1,0) ->  | NK6: =+IF(SUM($Q$7:NK7)=0,1,0) ->  | NL6: =+IF(SUM($Q$7:NL7)=0,1,0) ->  | NM6: =+IF(SUM($Q$7:NM7)=0,1,0) ->  | NN6: =+IF(SUM($Q$7:NN7)=0,1,0) ->  | NO6: =+IF(SUM($Q$7:NO7)=0,1,0) ->  | NP6: =+IF(SUM($Q$7:NP7)=0,1,0) ->  | NQ6: =+IF(SUM($Q$7:NQ7)=0,1,0) ->  | NR6: =+IF(SUM($Q$7:NR7)=0,1,0) ->  | NS6: =+IF(SUM($Q$7:NS7)=0,1,0) ->  | NT6: =+IF(SUM($Q$7:NT7)=0,1,0) ->  | NU6: =+IF(SUM($Q$7:NU7)=0,1,0) ->  | NV6: =+IF(SUM($Q$7:NV7)=0,1,0) ->  | NW6: =+IF(SUM($Q$7:NW7)=0,1,0) ->  | NX6: =+IF(SUM($Q$7:NX7)=0,1,0) ->  | NY6: =+IF(SUM($Q$7:NY7)=0,1,0) ->  | NZ6: =+IF(SUM($Q$7:NZ7)=0,1,0) ->  | OA6: =+IF(SUM($Q$7:OA7)=0,1,0) ->  | OB6: =+IF(SUM($Q$7:OB7)=0,1,0) ->  | OC6: =+IF(SUM($Q$7:OC7)=0,1,0) ->  | OD6: =+IF(SUM($Q$7:OD7)=0,1,0) ->  | OE6: =+IF(SUM($Q$7:OE7)=0,1,0) ->  | OF6: =+IF(SUM($Q$7:OF7)=0,1,0) ->  | OG6: =+IF(SUM($Q$7:OG7)=0,1,0) ->  | OH6: =+IF(SUM($Q$7:OH7)=0,1,0) ->  | OI6: =+IF(SUM($Q$7:OI7)=0,1,0) ->  | OJ6: =+IF(SUM($Q$7:OJ7)=0,1,0) ->  | OK6: =+IF(SUM($Q$7:OK7)=0,1,0) ->  | OL6: =+IF(SUM($Q$7:OL7)=0,1,0) ->  | OM6: =+IF(SUM($Q$7:OM7)=0,1,0) ->  | ON6: =+IF(SUM($Q$7:ON7)=0,1,0) ->  | OO6: =+IF(SUM($Q$7:OO7)=0,1,0) ->  | OP6: =+IF(SUM($Q$7:OP7)=0,1,0) ->  | OQ6: =+IF(SUM($Q$7:OQ7)=0,1,0) -> 
M7: Salida Rerating | Q7: =IF(COLUMNS($Q7:Q7)=#REF!,1,0) ->  | R7: =IF(COLUMNS($Q7:R7)=#REF!,1,0) ->  | S7: =IF(COLUMNS($Q7:S7)=#REF!,1,0) ->  | T7: =IF(COLUMNS($Q7:T7)=#REF!,1,0) ->  | U7: =IF(COLUMNS($Q7:U7)=#REF!,1,0) ->  | V7: =IF(COLUMNS($Q7:V7)=#REF!,1,0) ->  | W7: =IF(COLUMNS($Q7:W7)=#REF!,1,0) ->  | X7: =IF(COLUMNS($Q7:X7)=#REF!,1,0) ->  | Y7: =IF(COLUMNS($Q7:Y7)=#REF!,1,0) ->  | Z7: =IF(COLUMNS($Q7:Z7)=#REF!,1,0) ->  | AA7: =IF(COLUMNS($Q7:AA7)=#REF!,1,0) ->  | AB7: =IF(COLUMNS($Q7:AB7)=#REF!,1,0) ->  | AC7: =IF(COLUMNS($Q7:AC7)=#REF!,1,0) ->  | AD7: =IF(COLUMNS($Q7:AD7)=#REF!,1,0) ->  | AE7: =IF(COLUMNS($Q7:AE7)=#REF!,1,0) ->  | AF7: =IF(COLUMNS($Q7:AF7)=#REF!,1,0) ->  | AG7: =IF(COLUMNS($Q7:AG7)=#REF!,1,0) ->  | AH7: =IF(COLUMNS($Q7:AH7)=#REF!,1,0) ->  | AI7: =IF(COLUMNS($Q7:AI7)=#REF!,1,0) ->  | AJ7: =IF(COLUMNS($Q7:AJ7)=#REF!,1,0) ->  | AK7: =IF(COLUMNS($Q7:AK7)=#REF!,1,0) ->  | AL7: =IF(COLUMNS($Q7:AL7)=#REF!,1,0) ->  | AM7: =IF(COLUMNS($Q7:AM7)=#REF!,1,0) ->  | AN7: =IF(COLUMNS($Q7:AN7)=#REF!,1,0) ->  | AO7: =IF(COLUMNS($Q7:AO7)=#REF!,1,0) ->  | AP7: =IF(COLUMNS($Q7:AP7)=#REF!,1,0) ->  | AQ7: =IF(COLUMNS($Q7:AQ7)=#REF!,1,0) ->  | AR7: =IF(COLUMNS($Q7:AR7)=#REF!,1,0) ->  | AS7: =IF(COLUMNS($Q7:AS7)=#REF!,1,0) ->  | AT7: =IF(COLUMNS($Q7:AT7)=#REF!,1,0) ->  | AU7: =IF(COLUMNS($Q7:AU7)=#REF!,1,0) ->  | AV7: =IF(COLUMNS($Q7:AV7)=#REF!,1,0) ->  | AW7: =IF(COLUMNS($Q7:AW7)=#REF!,1,0) ->  | AX7: =IF(COLUMNS($Q7:AX7)=#REF!,1,0) ->  | AY7: =IF(COLUMNS($Q7:AY7)=#REF!,1,0) ->  | AZ7: =IF(COLUMNS($Q7:AZ7)=#REF!,1,0) ->  | BA7: =IF(COLUMNS($Q7:BA7)=#REF!,1,0) ->  | BB7: =IF(COLUMNS($Q7:BB7)=#REF!,1,0) ->  | BC7: =IF(COLUMNS($Q7:BC7)=#REF!,1,0) ->  | BD7: =IF(COLUMNS($Q7:BD7)=#REF!,1,0) ->  | BE7: =IF(COLUMNS($Q7:BE7)=#REF!,1,0) ->  | BF7: =IF(COLUMNS($Q7:BF7)=#REF!,1,0) ->  | BG7: =IF(COLUMNS($Q7:BG7)=#REF!,1,0) ->  | BH7: =IF(COLUMNS($Q7:BH7)=#REF!,1,0) ->  | BI7: =IF(COLUMNS($Q7:BI7)=#REF!,1,0) ->  | BJ7: =IF(COLUMNS($Q7:BJ7)=#REF!,1,0) ->  | BK7: =IF(COLUMNS($Q7:BK7)=#REF!,1,0) ->  | BL7: =IF(COLUMNS($Q7:BL7)=#REF!,1,0) ->  | BM7: =IF(COLUMNS($Q7:BM7)=#REF!,1,0) ->  | BN7: =IF(COLUMNS($Q7:BN7)=#REF!,1,0) ->  | BO7: =IF(COLUMNS($Q7:BO7)=#REF!,1,0) ->  | BP7: =IF(COLUMNS($Q7:BP7)=#REF!,1,0) ->  | BQ7: =IF(COLUMNS($Q7:BQ7)=#REF!,1,0) ->  | BR7: =IF(COLUMNS($Q7:BR7)=#REF!,1,0) ->  | BS7: =IF(COLUMNS($Q7:BS7)=#REF!,1,0) ->  | BT7: =IF(COLUMNS($Q7:BT7)=#REF!,1,0) ->  | BU7: =IF(COLUMNS($Q7:BU7)=#REF!,1,0) ->  | BV7: =IF(COLUMNS($Q7:BV7)=#REF!,1,0) ->  | BW7: =IF(COLUMNS($Q7:BW7)=#REF!,1,0) ->  | BX7: =IF(COLUMNS($Q7:BX7)=#REF!,1,0) ->  | BY7: =IF(COLUMNS($Q7:BY7)=#REF!,1,0) ->  | BZ7: =IF(COLUMNS($Q7:BZ7)=#REF!,1,0) ->  | CA7: =IF(COLUMNS($Q7:CA7)=#REF!,1,0) ->  | CB7: =IF(COLUMNS($Q7:CB7)=#REF!,1,0) ->  | CC7: =IF(COLUMNS($Q7:CC7)=#REF!,1,0) ->  | CD7: =IF(COLUMNS($Q7:CD7)=#REF!,1,0) ->  | CE7: =IF(COLUMNS($Q7:CE7)=#REF!,1,0) ->  | CF7: =IF(COLUMNS($Q7:CF7)=#REF!,1,0) ->  | CG7: =IF(COLUMNS($Q7:CG7)=#REF!,1,0) ->  | CH7: =IF(COLUMNS($Q7:CH7)=#REF!,1,0) ->  | CI7: =IF(COLUMNS($Q7:CI7)=#REF!,1,0) ->  | CJ7: =IF(COLUMNS($Q7:CJ7)=#REF!,1,0) ->  | CK7: =IF(COLUMNS($Q7:CK7)=#REF!,1,0) ->  | CL7: =IF(COLUMNS($Q7:CL7)=#REF!,1,0) ->  | CM7: =IF(COLUMNS($Q7:CM7)=#REF!,1,0) ->  | CN7: =IF(COLUMNS($Q7:CN7)=#REF!,1,0) ->  | CO7: =IF(COLUMNS($Q7:CO7)=#REF!,1,0) ->  | CP7: =IF(COLUMNS($Q7:CP7)=#REF!,1,0) ->  | CQ7: =IF(COLUMNS($Q7:CQ7)=#REF!,1,0) ->  | CR7: =IF(COLUMNS($Q7:CR7)=#REF!,1,0) ->  | CS7: =IF(COLUMNS($Q7:CS7)=#REF!,1,0) ->  | CT7: =IF(COLUMNS($Q7:CT7)=#REF!,1,0) ->  | CU7: =IF(COLUMNS($Q7:CU7)=#REF!,1,0) ->  | CV7: =IF(COLUMNS($Q7:CV7)=#REF!,1,0) ->  | CW7: =IF(COLUMNS($Q7:CW7)=#REF!,1,0) ->  | CX7: =IF(COLUMNS($Q7:CX7)=#REF!,1,0) ->  | CY7: =IF(COLUMNS($Q7:CY7)=#REF!,1,0) ->  | CZ7: =IF(COLUMNS($Q7:CZ7)=#REF!,1,0) ->  | DA7: =IF(COLUMNS($Q7:DA7)=#REF!,1,0) ->  | DB7: =IF(COLUMNS($Q7:DB7)=#REF!,1,0) ->  | DC7: =IF(COLUMNS($Q7:DC7)=#REF!,1,0) ->  | DD7: =IF(COLUMNS($Q7:DD7)=#REF!,1,0) ->  | DE7: =IF(COLUMNS($Q7:DE7)=#REF!,1,0) ->  | DF7: =IF(COLUMNS($Q7:DF7)=#REF!,1,0) ->  | DG7: =IF(COLUMNS($Q7:DG7)=#REF!,1,0) ->  | DH7: =IF(COLUMNS($Q7:DH7)=#REF!,1,0) ->  | DI7: =IF(COLUMNS($Q7:DI7)=#REF!,1,0) ->  | DJ7: =IF(COLUMNS($Q7:DJ7)=#REF!,1,0) ->  | DK7: =IF(COLUMNS($Q7:DK7)=#REF!,1,0) ->  | DL7: =IF(COLUMNS($Q7:DL7)=#REF!,1,0) ->  | DM7: =IF(COLUMNS($Q7:DM7)=#REF!,1,0) ->  | DN7: =IF(COLUMNS($Q7:DN7)=#REF!,1,0) ->  | DO7: =IF(COLUMNS($Q7:DO7)=#REF!,1,0) ->  | DP7: =IF(COLUMNS($Q7:DP7)=#REF!,1,0) ->  | DQ7: =IF(COLUMNS($Q7:DQ7)=#REF!,1,0) ->  | DR7: =IF(COLUMNS($Q7:DR7)=#REF!,1,0) ->  | DS7: =IF(COLUMNS($Q7:DS7)=#REF!,1,0) ->  | DT7: =IF(COLUMNS($Q7:DT7)=#REF!,1,0) ->  | DU7: =IF(COLUMNS($Q7:DU7)=#REF!,1,0) ->  | DV7: =IF(COLUMNS($Q7:DV7)=#REF!,1,0) ->  | DW7: =IF(COLUMNS($Q7:DW7)=#REF!,1,0) ->  | DX7: =IF(COLUMNS($Q7:DX7)=#REF!,1,0) ->  | DY7: =IF(COLUMNS($Q7:DY7)=#REF!,1,0) ->  | DZ7: =IF(COLUMNS($Q7:DZ7)=#REF!,1,0) ->  | EA7: =IF(COLUMNS($Q7:EA7)=#REF!,1,0) ->  | EB7: =IF(COLUMNS($Q7:EB7)=#REF!,1,0) ->  | EC7: =IF(COLUMNS($Q7:EC7)=#REF!,1,0) ->  | ED7: =IF(COLUMNS($Q7:ED7)=#REF!,1,0) ->  | EE7: =IF(COLUMNS($Q7:EE7)=#REF!,1,0) ->  | EF7: =IF(COLUMNS($Q7:EF7)=#REF!,1,0) ->  | EG7: =IF(COLUMNS($Q7:EG7)=#REF!,1,0) ->  | EH7: =IF(COLUMNS($Q7:EH7)=#REF!,1,0) ->  | EI7: =IF(COLUMNS($Q7:EI7)=#REF!,1,0) ->  | EJ7: =IF(COLUMNS($Q7:EJ7)=#REF!,1,0) ->  | EK7: =IF(COLUMNS($Q7:EK7)=#REF!,1,0) ->  | EL7: =IF(COLUMNS($Q7:EL7)=#REF!,1,0) ->  | EM7: =IF(COLUMNS($Q7:EM7)=#REF!,1,0) ->  | EN7: =IF(COLUMNS($Q7:EN7)=#REF!,1,0) ->  | EO7: =IF(COLUMNS($Q7:EO7)=#REF!,1,0) ->  | EP7: =IF(COLUMNS($Q7:EP7)=#REF!,1,0) ->  | EQ7: =IF(COLUMNS($Q7:EQ7)=#REF!,1,0) ->  | ER7: =IF(COLUMNS($Q7:ER7)=#REF!,1,0) ->  | ES7: =IF(COLUMNS($Q7:ES7)=#REF!,1,0) ->  | ET7: =IF(COLUMNS($Q7:ET7)=#REF!,1,0) ->  | EU7: =IF(COLUMNS($Q7:EU7)=#REF!,1,0) ->  | EV7: =IF(COLUMNS($Q7:EV7)=#REF!,1,0) ->  | EW7: =IF(COLUMNS($Q7:EW7)=#REF!,1,0) ->  | EX7: =IF(COLUMNS($Q7:EX7)=#REF!,1,0) ->  | EY7: =IF(COLUMNS($Q7:EY7)=#REF!,1,0) ->  | EZ7: =IF(COLUMNS($Q7:EZ7)=#REF!,1,0) ->  | FA7: =IF(COLUMNS($Q7:FA7)=#REF!,1,0) ->  | FB7: =IF(COLUMNS($Q7:FB7)=#REF!,1,0) ->  | FC7: =IF(COLUMNS($Q7:FC7)=#REF!,1,0) ->  | FD7: =IF(COLUMNS($Q7:FD7)=#REF!,1,0) ->  | FE7: =IF(COLUMNS($Q7:FE7)=#REF!,1,0) ->  | FF7: =IF(COLUMNS($Q7:FF7)=#REF!,1,0) ->  | FG7: =IF(COLUMNS($Q7:FG7)=#REF!,1,0) ->  | FH7: =IF(COLUMNS($Q7:FH7)=#REF!,1,0) ->  | FI7: =IF(COLUMNS($Q7:FI7)=#REF!,1,0) ->  | FJ7: =IF(COLUMNS($Q7:FJ7)=#REF!,1,0) ->  | FK7: =IF(COLUMNS($Q7:FK7)=#REF!,1,0) ->  | FL7: =IF(COLUMNS($Q7:FL7)=#REF!,1,0) ->  | FM7: =IF(COLUMNS($Q7:FM7)=#REF!,1,0) ->  | FN7: =IF(COLUMNS($Q7:FN7)=#REF!,1,0) ->  | FO7: =IF(COLUMNS($Q7:FO7)=#REF!,1,0) ->  | FP7: =IF(COLUMNS($Q7:FP7)=#REF!,1,0) ->  | FQ7: =IF(COLUMNS($Q7:FQ7)=#REF!,1,0) ->  | FR7: =IF(COLUMNS($Q7:FR7)=#REF!,1,0) ->  | FS7: =IF(COLUMNS($Q7:FS7)=#REF!,1,0) ->  | FT7: =IF(COLUMNS($Q7:FT7)=#REF!,1,0) ->  | FU7: =IF(COLUMNS($Q7:FU7)=#REF!,1,0) ->  | FV7: =IF(COLUMNS($Q7:FV7)=#REF!,1,0) ->  | FW7: =IF(COLUMNS($Q7:FW7)=#REF!,1,0) ->  | FX7: =IF(COLUMNS($Q7:FX7)=#REF!,1,0) ->  | FY7: =IF(COLUMNS($Q7:FY7)=#REF!,1,0) ->  | FZ7: =IF(COLUMNS($Q7:FZ7)=#REF!,1,0) ->  | GA7: =IF(COLUMNS($Q7:GA7)=#REF!,1,0) ->  | GB7: =IF(COLUMNS($Q7:GB7)=#REF!,1,0) ->  | GC7: =IF(COLUMNS($Q7:GC7)=#REF!,1,0) ->  | GD7: =IF(COLUMNS($Q7:GD7)=#REF!,1,0) ->  | GE7: =IF(COLUMNS($Q7:GE7)=#REF!,1,0) ->  | GF7: =IF(COLUMNS($Q7:GF7)=#REF!,1,0) ->  | GG7: =IF(COLUMNS($Q7:GG7)=#REF!,1,0) ->  | GH7: =IF(COLUMNS($Q7:GH7)=#REF!,1,0) ->  | GI7: =IF(COLUMNS($Q7:GI7)=#REF!,1,0) ->  | GJ7: =IF(COLUMNS($Q7:GJ7)=#REF!,1,0) ->  | GK7: =IF(COLUMNS($Q7:GK7)=#REF!,1,0) ->  | GL7: =IF(COLUMNS($Q7:GL7)=#REF!,1,0) ->  | GM7: =IF(COLUMNS($Q7:GM7)=#REF!,1,0) ->  | GN7: =IF(COLUMNS($Q7:GN7)=#REF!,1,0) ->  | GO7: =IF(COLUMNS($Q7:GO7)=#REF!,1,0) ->  | GP7: =IF(COLUMNS($Q7:GP7)=#REF!,1,0) ->  | GQ7: =IF(COLUMNS($Q7:GQ7)=#REF!,1,0) ->  | GR7: =IF(COLUMNS($Q7:GR7)=#REF!,1,0) ->  | GS7: =IF(COLUMNS($Q7:GS7)=#REF!,1,0) ->  | GT7: =IF(COLUMNS($Q7:GT7)=#REF!,1,0) ->  | GU7: =IF(COLUMNS($Q7:GU7)=#REF!,1,0) ->  | GV7: =IF(COLUMNS($Q7:GV7)=#REF!,1,0) ->  | GW7: =IF(COLUMNS($Q7:GW7)=#REF!,1,0) ->  | GX7: =IF(COLUMNS($Q7:GX7)=#REF!,1,0) ->  | GY7: =IF(COLUMNS($Q7:GY7)=#REF!,1,0) ->  | GZ7: =IF(COLUMNS($Q7:GZ7)=#REF!,1,0) ->  | HA7: =IF(COLUMNS($Q7:HA7)=#REF!,1,0) ->  | HB7: =IF(COLUMNS($Q7:HB7)=#REF!,1,0) ->  | HC7: =IF(COLUMNS($Q7:HC7)=#REF!,1,0) ->  | HD7: =IF(COLUMNS($Q7:HD7)=#REF!,1,0) ->  | HE7: =IF(COLUMNS($Q7:HE7)=#REF!,1,0) ->  | HF7: =IF(COLUMNS($Q7:HF7)=#REF!,1,0) ->  | HG7: =IF(COLUMNS($Q7:HG7)=#REF!,1,0) ->  | HH7: =IF(COLUMNS($Q7:HH7)=#REF!,1,0) ->  | HI7: =IF(COLUMNS($Q7:HI7)=#REF!,1,0) ->  | HJ7: =IF(COLUMNS($Q7:HJ7)=#REF!,1,0) ->  | HK7: =IF(COLUMNS($Q7:HK7)=#REF!,1,0) ->  | HL7: =IF(COLUMNS($Q7:HL7)=#REF!,1,0) ->  | HM7: =IF(COLUMNS($Q7:HM7)=#REF!,1,0) ->  | HN7: =IF(COLUMNS($Q7:HN7)=#REF!,1,0) ->  | HO7: =IF(COLUMNS($Q7:HO7)=#REF!,1,0) ->  | HP7: =IF(COLUMNS($Q7:HP7)=#REF!,1,0) ->  | HQ7: =IF(COLUMNS($Q7:HQ7)=#REF!,1,0) ->  | HR7: =IF(COLUMNS($Q7:HR7)=#REF!,1,0) ->  | HS7: =IF(COLUMNS($Q7:HS7)=#REF!,1,0) ->  | HT7: =IF(COLUMNS($Q7:HT7)=#REF!,1,0) ->  | HU7: =IF(COLUMNS($Q7:HU7)=#REF!,1,0) ->  | HV7: =IF(COLUMNS($Q7:HV7)=#REF!,1,0) ->  | HW7: =IF(COLUMNS($Q7:HW7)=#REF!,1,0) ->  | HX7: =IF(COLUMNS($Q7:HX7)=#REF!,1,0) ->  | HY7: =IF(COLUMNS($Q7:HY7)=#REF!,1,0) ->  | HZ7: =IF(COLUMNS($Q7:HZ7)=#REF!,1,0) ->  | IA7: =IF(COLUMNS($Q7:IA7)=#REF!,1,0) ->  | IB7: =IF(COLUMNS($Q7:IB7)=#REF!,1,0) ->  | IC7: =IF(COLUMNS($Q7:IC7)=#REF!,1,0) ->  | ID7: =IF(COLUMNS($Q7:ID7)=#REF!,1,0) ->  | IE7: =IF(COLUMNS($Q7:IE7)=#REF!,1,0) ->  | IF7: =IF(COLUMNS($Q7:IF7)=#REF!,1,0) ->  | IG7: =IF(COLUMNS($Q7:IG7)=#REF!,1,0) ->  | IH7: =IF(COLUMNS($Q7:IH7)=#REF!,1,0) ->  | II7: =IF(COLUMNS($Q7:II7)=#REF!,1,0) ->  | IJ7: =IF(COLUMNS($Q7:IJ7)=#REF!,1,0) ->  | IK7: =IF(COLUMNS($Q7:IK7)=#REF!,1,0) ->  | IL7: =IF(COLUMNS($Q7:IL7)=#REF!,1,0) ->  | IM7: =IF(COLUMNS($Q7:IM7)=#REF!,1,0) ->  | IN7: =IF(COLUMNS($Q7:IN7)=#REF!,1,0) ->  | IO7: =IF(COLUMNS($Q7:IO7)=#REF!,1,0) ->  | IP7: =IF(COLUMNS($Q7:IP7)=#REF!,1,0) ->  | IQ7: =IF(COLUMNS($Q7:IQ7)=#REF!,1,0) ->  | IR7: =IF(COLUMNS($Q7:IR7)=#REF!,1,0) ->  | IS7: =IF(COLUMNS($Q7:IS7)=#REF!,1,0) ->  | IT7: =IF(COLUMNS($Q7:IT7)=#REF!,1,0) ->  | IU7: =IF(COLUMNS($Q7:IU7)=#REF!,1,0) ->  | IV7: =IF(COLUMNS($Q7:IV7)=#REF!,1,0) ->  | IW7: =IF(COLUMNS($Q7:IW7)=#REF!,1,0) ->  | IX7: =IF(COLUMNS($Q7:IX7)=#REF!,1,0) ->  | IY7: =IF(COLUMNS($Q7:IY7)=#REF!,1,0) ->  | IZ7: =IF(COLUMNS($Q7:IZ7)=#REF!,1,0) ->  | JA7: =IF(COLUMNS($Q7:JA7)=#REF!,1,0) ->  | JB7: =IF(COLUMNS($Q7:JB7)=#REF!,1,0) ->  | JC7: =IF(COLUMNS($Q7:JC7)=#REF!,1,0) ->  | JD7: =IF(COLUMNS($Q7:JD7)=#REF!,1,0) ->  | JE7: =IF(COLUMNS($Q7:JE7)=#REF!,1,0) ->  | JF7: =IF(COLUMNS($Q7:JF7)=#REF!,1,0) ->  | JG7: =IF(COLUMNS($Q7:JG7)=#REF!,1,0) ->  | JH7: =IF(COLUMNS($Q7:JH7)=#REF!,1,0) ->  | JI7: =IF(COLUMNS($Q7:JI7)=#REF!,1,0) ->  | JJ7: =IF(COLUMNS($Q7:JJ7)=#REF!,1,0) ->  | JK7: =IF(COLUMNS($Q7:JK7)=#REF!,1,0) ->  | JL7: =IF(COLUMNS($Q7:JL7)=#REF!,1,0) ->  | JM7: =IF(COLUMNS($Q7:JM7)=#REF!,1,0) ->  | JN7: =IF(COLUMNS($Q7:JN7)=#REF!,1,0) ->  | JO7: =IF(COLUMNS($Q7:JO7)=#REF!,1,0) ->  | JP7: =IF(COLUMNS($Q7:JP7)=#REF!,1,0) ->  | JQ7: =IF(COLUMNS($Q7:JQ7)=#REF!,1,0) ->  | JR7: =IF(COLUMNS($Q7:JR7)=#REF!,1,0) ->  | JS7: =IF(COLUMNS($Q7:JS7)=#REF!,1,0) ->  | JT7: =IF(COLUMNS($Q7:JT7)=#REF!,1,0) ->  | JU7: =IF(COLUMNS($Q7:JU7)=#REF!,1,0) ->  | JV7: =IF(COLUMNS($Q7:JV7)=#REF!,1,0) ->  | JW7: =IF(COLUMNS($Q7:JW7)=#REF!,1,0) ->  | JX7: =IF(COLUMNS($Q7:JX7)=#REF!,1,0) ->  | JY7: =IF(COLUMNS($Q7:JY7)=#REF!,1,0) ->  | JZ7: =IF(COLUMNS($Q7:JZ7)=#REF!,1,0) ->  | KA7: =IF(COLUMNS($Q7:KA7)=#REF!,1,0) ->  | KB7: =IF(COLUMNS($Q7:KB7)=#REF!,1,0) ->  | KC7: =IF(COLUMNS($Q7:KC7)=#REF!,1,0) ->  | KD7: =IF(COLUMNS($Q7:KD7)=#REF!,1,0) ->  | KE7: =IF(COLUMNS($Q7:KE7)=#REF!,1,0) ->  | KF7: =IF(COLUMNS($Q7:KF7)=#REF!,1,0) ->  | KG7: =IF(COLUMNS($Q7:KG7)=#REF!,1,0) ->  | KH7: =IF(COLUMNS($Q7:KH7)=#REF!,1,0) ->  | KI7: =IF(COLUMNS($Q7:KI7)=#REF!,1,0) ->  | KJ7: =IF(COLUMNS($Q7:KJ7)=#REF!,1,0) ->  | KK7: =IF(COLUMNS($Q7:KK7)=#REF!,1,0) ->  | KL7: =IF(COLUMNS($Q7:KL7)=#REF!,1,0) ->  | KM7: =IF(COLUMNS($Q7:KM7)=#REF!,1,0) ->  | KN7: =IF(COLUMNS($Q7:KN7)=#REF!,1,0) ->  | KO7: =IF(COLUMNS($Q7:KO7)=#REF!,1,0) ->  | KP7: =IF(COLUMNS($Q7:KP7)=#REF!,1,0) ->  | KQ7: =IF(COLUMNS($Q7:KQ7)=#REF!,1,0) ->  | KR7: =IF(COLUMNS($Q7:KR7)=#REF!,1,0) ->  | KS7: =IF(COLUMNS($Q7:KS7)=#REF!,1,0) ->  | KT7: =IF(COLUMNS($Q7:KT7)=#REF!,1,0) ->  | KU7: =IF(COLUMNS($Q7:KU7)=#REF!,1,0) ->  | KV7: =IF(COLUMNS($Q7:KV7)=#REF!,1,0) ->  | KW7: =IF(COLUMNS($Q7:KW7)=#REF!,1,0) ->  | KX7: =IF(COLUMNS($Q7:KX7)=#REF!,1,0) ->  | KY7: =IF(COLUMNS($Q7:KY7)=#REF!,1,0) ->  | KZ7: =IF(COLUMNS($Q7:KZ7)=#REF!,1,0) ->  | LA7: =IF(COLUMNS($Q7:LA7)=#REF!,1,0) ->  | LB7: =IF(COLUMNS($Q7:LB7)=#REF!,1,0) ->  | LC7: =IF(COLUMNS($Q7:LC7)=#REF!,1,0) ->  | LD7: =IF(COLUMNS($Q7:LD7)=#REF!,1,0) ->  | LE7: =IF(COLUMNS($Q7:LE7)=#REF!,1,0) ->  | LF7: =IF(COLUMNS($Q7:LF7)=#REF!,1,0) ->  | LG7: =IF(COLUMNS($Q7:LG7)=#REF!,1,0) ->  | LH7: =IF(COLUMNS($Q7:LH7)=#REF!,1,0) ->  | LI7: =IF(COLUMNS($Q7:LI7)=#REF!,1,0) ->  | LJ7: =IF(COLUMNS($Q7:LJ7)=#REF!,1,0) ->  | LK7: =IF(COLUMNS($Q7:LK7)=#REF!,1,0) ->  | LL7: =IF(COLUMNS($Q7:LL7)=#REF!,1,0) ->  | LM7: =IF(COLUMNS($Q7:LM7)=#REF!,1,0) ->  | LN7: =IF(COLUMNS($Q7:LN7)=#REF!,1,0) ->  | LO7: =IF(COLUMNS($Q7:LO7)=#REF!,1,0) ->  | LP7: =IF(COLUMNS($Q7:LP7)=#REF!,1,0) ->  | LQ7: =IF(COLUMNS($Q7:LQ7)=#REF!,1,0) ->  | LR7: =IF(COLUMNS($Q7:LR7)=#REF!,1,0) ->  | LS7: =IF(COLUMNS($Q7:LS7)=#REF!,1,0) ->  | LT7: =IF(COLUMNS($Q7:LT7)=#REF!,1,0) ->  | LU7: =IF(COLUMNS($Q7:LU7)=#REF!,1,0) ->  | LV7: =IF(COLUMNS($Q7:LV7)=#REF!,1,0) ->  | LW7: =IF(COLUMNS($Q7:LW7)=#REF!,1,0) ->  | LX7: =IF(COLUMNS($Q7:LX7)=#REF!,1,0) ->  | LY7: =IF(COLUMNS($Q7:LY7)=#REF!,1,0) ->  | LZ7: =IF(COLUMNS($Q7:LZ7)=#REF!,1,0) ->  | MA7: =IF(COLUMNS($Q7:MA7)=#REF!,1,0) ->  | MB7: =IF(COLUMNS($Q7:MB7)=#REF!,1,0) ->  | MC7: =IF(COLUMNS($Q7:MC7)=#REF!,1,0) ->  | MD7: =IF(COLUMNS($Q7:MD7)=#REF!,1,0) ->  | ME7: =IF(COLUMNS($Q7:ME7)=#REF!,1,0) ->  | MF7: =IF(COLUMNS($Q7:MF7)=#REF!,1,0) ->  | MG7: =IF(COLUMNS($Q7:MG7)=#REF!,1,0) ->  | MH7: =IF(COLUMNS($Q7:MH7)=#REF!,1,0) ->  | MI7: =IF(COLUMNS($Q7:MI7)=#REF!,1,0) ->  | MJ7: =IF(COLUMNS($Q7:MJ7)=#REF!,1,0) ->  | MK7: =IF(COLUMNS($Q7:MK7)=#REF!,1,0) ->  | ML7: =IF(COLUMNS($Q7:ML7)=#REF!,1,0) ->  | MM7: =IF(COLUMNS($Q7:MM7)=#REF!,1,0) ->  | MN7: =IF(COLUMNS($Q7:MN7)=#REF!,1,0) ->  | MO7: =IF(COLUMNS($Q7:MO7)=#REF!,1,0) ->  | MP7: =IF(COLUMNS($Q7:MP7)=#REF!,1,0) ->  | MQ7: =IF(COLUMNS($Q7:MQ7)=#REF!,1,0) ->  | MR7: =IF(COLUMNS($Q7:MR7)=#REF!,1,0) ->  | MS7: =IF(COLUMNS($Q7:MS7)=#REF!,1,0) ->  | MT7: =IF(COLUMNS($Q7:MT7)=#REF!,1,0) ->  | MU7: =IF(COLUMNS($Q7:MU7)=#REF!,1,0) ->  | MV7: =IF(COLUMNS($Q7:MV7)=#REF!,1,0) ->  | MW7: =IF(COLUMNS($Q7:MW7)=#REF!,1,0) ->  | MX7: =IF(COLUMNS($Q7:MX7)=#REF!,1,0) ->  | MY7: =IF(COLUMNS($Q7:MY7)=#REF!,1,0) ->  | MZ7: =IF(COLUMNS($Q7:MZ7)=#REF!,1,0) ->  | NA7: =IF(COLUMNS($Q7:NA7)=#REF!,1,0) ->  | NB7: =IF(COLUMNS($Q7:NB7)=#REF!,1,0) ->  | NC7: =IF(COLUMNS($Q7:NC7)=#REF!,1,0) ->  | ND7: =IF(COLUMNS($Q7:ND7)=#REF!,1,0) ->  | NE7: =IF(COLUMNS($Q7:NE7)=#REF!,1,0) ->  | NF7: =IF(COLUMNS($Q7:NF7)=#REF!,1,0) ->  | NG7: =IF(COLUMNS($Q7:NG7)=#REF!,1,0) ->  | NH7: =IF(COLUMNS($Q7:NH7)=#REF!,1,0) ->  | NI7: =IF(COLUMNS($Q7:NI7)=#REF!,1,0) ->  | NJ7: =IF(COLUMNS($Q7:NJ7)=#REF!,1,0) ->  | NK7: =IF(COLUMNS($Q7:NK7)=#REF!,1,0) ->  | NL7: =IF(COLUMNS($Q7:NL7)=#REF!,1,0) ->  | NM7: =IF(COLUMNS($Q7:NM7)=#REF!,1,0) ->  | NN7: =IF(COLUMNS($Q7:NN7)=#REF!,1,0) ->  | NO7: =IF(COLUMNS($Q7:NO7)=#REF!,1,0) ->  | NP7: =IF(COLUMNS($Q7:NP7)=#REF!,1,0) ->  | NQ7: =IF(COLUMNS($Q7:NQ7)=#REF!,1,0) ->  | NR7: =IF(COLUMNS($Q7:NR7)=#REF!,1,0) ->  | NS7: =IF(COLUMNS($Q7:NS7)=#REF!,1,0) ->  | NT7: =IF(COLUMNS($Q7:NT7)=#REF!,1,0) ->  | NU7: =IF(COLUMNS($Q7:NU7)=#REF!,1,0) ->  | NV7: =IF(COLUMNS($Q7:NV7)=#REF!,1,0) ->  | NW7: =IF(COLUMNS($Q7:NW7)=#REF!,1,0) ->  | NX7: =IF(COLUMNS($Q7:NX7)=#REF!,1,0) ->  | NY7: =IF(COLUMNS($Q7:NY7)=#REF!,1,0) ->  | NZ7: =IF(COLUMNS($Q7:NZ7)=#REF!,1,0) ->  | OA7: =IF(COLUMNS($Q7:OA7)=#REF!,1,0) ->  | OB7: =IF(COLUMNS($Q7:OB7)=#REF!,1,0) ->  | OC7: =IF(COLUMNS($Q7:OC7)=#REF!,1,0) ->  | OD7: =IF(COLUMNS($Q7:OD7)=#REF!,1,0) ->  | OE7: =IF(COLUMNS($Q7:OE7)=#REF!,1,0) ->  | OF7: =IF(COLUMNS($Q7:OF7)=#REF!,1,0) ->  | OG7: =IF(COLUMNS($Q7:OG7)=#REF!,1,0) ->  | OH7: =IF(COLUMNS($Q7:OH7)=#REF!,1,0) ->  | OI7: =IF(COLUMNS($Q7:OI7)=#REF!,1,0) ->  | OJ7: =IF(COLUMNS($Q7:OJ7)=#REF!,1,0) ->  | OK7: =IF(COLUMNS($Q7:OK7)=#REF!,1,0) ->  | OL7: =IF(COLUMNS($Q7:OL7)=#REF!,1,0) ->  | OM7: =IF(COLUMNS($Q7:OM7)=#REF!,1,0) ->  | ON7: =IF(COLUMNS($Q7:ON7)=#REF!,1,0) ->  | OO7: =IF(COLUMNS($Q7:OO7)=#REF!,1,0) ->  | OP7: =IF(COLUMNS($Q7:OP7)=#REF!,1,0) ->  | OQ7: =IF(COLUMNS($Q7:OQ7)=#REF!,1,0) -> 
K8: 44531 | M8: Amortización Caixa | Q8: =+VLOOKUP(Q12,#REF!,2,1) ->  | R8: =+VLOOKUP(R12,#REF!,2,1) ->  | S8: =+VLOOKUP(S12,#REF!,2,1) ->  | T8: =+VLOOKUP(T12,#REF!,2,1) ->  | U8: =+VLOOKUP(U12,#REF!,2,1) ->  | V8: =+VLOOKUP(V12,#REF!,2,1) ->  | W8: =+VLOOKUP(W12,#REF!,2,1) ->  | X8: =+VLOOKUP(X12,#REF!,2,1) ->  | Y8: =+VLOOKUP(Y12,#REF!,2,1) ->  | Z8: =+VLOOKUP(Z12,#REF!,2,1) ->  | AA8: =+VLOOKUP(AA12,#REF!,2,1) ->  | AB8: =+VLOOKUP(AB12,#REF!,2,1) ->  | AC8: =+VLOOKUP(AC12,#REF!,2,1) ->  | AD8: =+VLOOKUP(AD12,#REF!,2,1) ->  | AE8: =+VLOOKUP(AE12,#REF!,2,1) ->  | AF8: =+VLOOKUP(AF12,#REF!,2,1) ->  | AG8: =+VLOOKUP(AG12,#REF!,2,1) ->  | AH8: =+VLOOKUP(AH12,#REF!,2,1) ->  | AI8: =+VLOOKUP(AI12,#REF!,2,1) ->  | AJ8: =+VLOOKUP(AJ12,#REF!,2,1) ->  | AK8: =+VLOOKUP(AK12,#REF!,2,1) ->  | AL8: =+VLOOKUP(AL12,#REF!,2,1) ->  | AM8: =+VLOOKUP(AM12,#REF!,2,1) ->  | AN8: =+VLOOKUP(AN12,#REF!,2,1) ->  | AO8: =+VLOOKUP(AO12,#REF!,2,1) ->  | AP8: =+VLOOKUP(AP12,#REF!,2,1) ->  | AQ8: =+VLOOKUP(AQ12,#REF!,2,1) ->  | AR8: =+VLOOKUP(AR12,#REF!,2,1) ->  | AS8: =+VLOOKUP(AS12,#REF!,2,1) ->  | AT8: =+VLOOKUP(AT12,#REF!,2,1) ->  | AU8: =+VLOOKUP(AU12,#REF!,2,1) ->  | AV8: =+VLOOKUP(AV12,#REF!,2,1) ->  | AW8: =+VLOOKUP(AW12,#REF!,2,1) ->  | AX8: =+VLOOKUP(AX12,#REF!,2,1) ->  | AY8: =+VLOOKUP(AY12,#REF!,2,1) ->  | AZ8: =+VLOOKUP(AZ12,#REF!,2,1) ->  | BA8: =+VLOOKUP(BA12,#REF!,2,1) ->  | BB8: =+VLOOKUP(BB12,#REF!,2,1) ->  | BC8: =+VLOOKUP(BC12,#REF!,2,1) ->  | BD8: =+VLOOKUP(BD12,#REF!,2,1) ->  | BE8: =+VLOOKUP(BE12,#REF!,2,1) ->  | BF8: =+VLOOKUP(BF12,#REF!,2,1) ->  | BG8: =+VLOOKUP(BG12,#REF!,2,1) ->  | BH8: =+VLOOKUP(BH12,#REF!,2,1) ->  | BI8: =+VLOOKUP(BI12,#REF!,2,1) ->  | BJ8: =+VLOOKUP(BJ12,#REF!,2,1) ->  | BK8: =+VLOOKUP(BK12,#REF!,2,1) ->  | BL8: =+VLOOKUP(BL12,#REF!,2,1) ->  | BM8: =+VLOOKUP(BM12,#REF!,2,1) ->  | BN8: =+VLOOKUP(BN12,#REF!,2,1) ->  | BO8: =+VLOOKUP(BO12,#REF!,2,1) ->  | BP8: =+VLOOKUP(BP12,#REF!,2,1) ->  | BQ8: =+VLOOKUP(BQ12,#REF!,2,1) ->  | BR8: =+VLOOKUP(BR12,#REF!,2,1) ->  | BS8: =+VLOOKUP(BS12,#REF!,2,1) ->  | BT8: =+VLOOKUP(BT12,#REF!,2,1) ->  | BU8: =+VLOOKUP(BU12,#REF!,2,1) ->  | BV8: =+VLOOKUP(BV12,#REF!,2,1) ->  | BW8: =+VLOOKUP(BW12,#REF!,2,1) ->  | BX8: =+VLOOKUP(BX12,#REF!,2,1) ->  | BY8: =+VLOOKUP(BY12,#REF!,2,1) ->  | BZ8: =+VLOOKUP(BZ12,#REF!,2,1) ->  | CA8: =+VLOOKUP(CA12,#REF!,2,1) ->  | CB8: =+VLOOKUP(CB12,#REF!,2,1) ->  | CC8: =+VLOOKUP(CC12,#REF!,2,1) ->  | CD8: =+VLOOKUP(CD12,#REF!,2,1) ->  | CE8: =+VLOOKUP(CE12,#REF!,2,1) ->  | CF8: =+VLOOKUP(CF12,#REF!,2,1) ->  | CG8: =+VLOOKUP(CG12,#REF!,2,1) ->  | CH8: =+VLOOKUP(CH12,#REF!,2,1) ->  | CI8: =+VLOOKUP(CI12,#REF!,2,1) ->  | CJ8: =+VLOOKUP(CJ12,#REF!,2,1) ->  | CK8: =+VLOOKUP(CK12,#REF!,2,1) ->  | CL8: =+VLOOKUP(CL12,#REF!,2,1) ->  | CM8: =+VLOOKUP(CM12,#REF!,2,1) ->  | CN8: =+VLOOKUP(CN12,#REF!,2,1) ->  | CO8: =+VLOOKUP(CO12,#REF!,2,1) ->  | CP8: =+VLOOKUP(CP12,#REF!,2,1) ->  | CQ8: =+VLOOKUP(CQ12,#REF!,2,1) ->  | CR8: =+VLOOKUP(CR12,#REF!,2,1) ->  | CS8: =+VLOOKUP(CS12,#REF!,2,1) ->  | CT8: =+VLOOKUP(CT12,#REF!,2,1) ->  | CU8: =+VLOOKUP(CU12,#REF!,2,1) ->  | CV8: =+VLOOKUP(CV12,#REF!,2,1) ->  | CW8: =+VLOOKUP(CW12,#REF!,2,1) ->  | CX8: =+VLOOKUP(CX12,#REF!,2,1) ->  | CY8: =+VLOOKUP(CY12,#REF!,2,1) ->  | CZ8: =+VLOOKUP(CZ12,#REF!,2,1) ->  | DA8: =+VLOOKUP(DA12,#REF!,2,1) ->  | DB8: =+VLOOKUP(DB12,#REF!,2,1) ->  | DC8: =+VLOOKUP(DC12,#REF!,2,1) ->  | DD8: =+VLOOKUP(DD12,#REF!,2,1) ->  | DE8: =+VLOOKUP(DE12,#REF!,2,1) ->  | DF8: =+VLOOKUP(DF12,#REF!,2,1) ->  | DG8: =+VLOOKUP(DG12,#REF!,2,1) ->  | DH8: =+VLOOKUP(DH12,#REF!,2,1) ->  | DI8: =+VLOOKUP(DI12,#REF!,2,1) ->  | DJ8: =+VLOOKUP(DJ12,#REF!,2,1) ->  | DK8: =+VLOOKUP(DK12,#REF!,2,1) ->  | DL8: =+VLOOKUP(DL12,#REF!,2,1) ->  | DM8: =+VLOOKUP(DM12,#REF!,2,1) ->  | DN8: =+VLOOKUP(DN12,#REF!,2,1) ->  | DO8: =+VLOOKUP(DO12,#REF!,2,1) ->  | DP8: =+VLOOKUP(DP12,#REF!,2,1) ->  | DQ8: =+VLOOKUP(DQ12,#REF!,2,1) ->  | DR8: =+VLOOKUP(DR12,#REF!,2,1) ->  | DS8: =+VLOOKUP(DS12,#REF!,2,1) ->  | DT8: =+VLOOKUP(DT12,#REF!,2,1) ->  | DU8: =+VLOOKUP(DU12,#REF!,2,1) ->  | DV8: =+VLOOKUP(DV12,#REF!,2,1) ->  | DW8: =+VLOOKUP(DW12,#REF!,2,1) ->  | DX8: =+VLOOKUP(DX12,#REF!,2,1) ->  | DY8: =+VLOOKUP(DY12,#REF!,2,1) ->  | DZ8: =+VLOOKUP(DZ12,#REF!,2,1) ->  | EA8: =+VLOOKUP(EA12,#REF!,2,1) ->  | EB8: =+VLOOKUP(EB12,#REF!,2,1) ->  | EC8: =+VLOOKUP(EC12,#REF!,2,1) ->  | ED8: =+VLOOKUP(ED12,#REF!,2,1) ->  | EE8: =+VLOOKUP(EE12,#REF!,2,1) ->  | EF8: =+VLOOKUP(EF12,#REF!,2,1) ->  | EG8: =+VLOOKUP(EG12,#REF!,2,1) ->  | EH8: =+VLOOKUP(EH12,#REF!,2,1) ->  | EI8: =+VLOOKUP(EI12,#REF!,2,1) ->  | EJ8: =+VLOOKUP(EJ12,#REF!,2,1) ->  | EK8: =+VLOOKUP(EK12,#REF!,2,1) ->  | EL8: =+VLOOKUP(EL12,#REF!,2,1) ->  | EM8: =+VLOOKUP(EM12,#REF!,2,1) ->  | EN8: =+VLOOKUP(EN12,#REF!,2,1) ->  | EO8: =+VLOOKUP(EO12,#REF!,2,1) ->  | EP8: =+VLOOKUP(EP12,#REF!,2,1) ->  | EQ8: =+VLOOKUP(EQ12,#REF!,2,1) ->  | ER8: =+VLOOKUP(ER12,#REF!,2,1) ->  | ES8: =+VLOOKUP(ES12,#REF!,2,1) ->  | ET8: =+VLOOKUP(ET12,#REF!,2,1) ->  | EU8: =+VLOOKUP(EU12,#REF!,2,1) ->  | EV8: =+VLOOKUP(EV12,#REF!,2,1) ->  | EW8: =+VLOOKUP(EW12,#REF!,2,1) ->  | EX8: =+VLOOKUP(EX12,#REF!,2,1) ->  | EY8: =+VLOOKUP(EY12,#REF!,2,1) ->  | EZ8: =+VLOOKUP(EZ12,#REF!,2,1) ->  | FA8: =+VLOOKUP(FA12,#REF!,2,1) ->  | FB8: =+VLOOKUP(FB12,#REF!,2,1) ->  | FC8: =+VLOOKUP(FC12,#REF!,2,1) ->  | FD8: =+VLOOKUP(FD12,#REF!,2,1) ->  | FE8: =+VLOOKUP(FE12,#REF!,2,1) ->  | FF8: =+VLOOKUP(FF12,#REF!,2,1) ->  | FG8: =+VLOOKUP(FG12,#REF!,2,1) ->  | FH8: =+VLOOKUP(FH12,#REF!,2,1) ->  | FI8: =+VLOOKUP(FI12,#REF!,2,1) ->  | FJ8: =+VLOOKUP(FJ12,#REF!,2,1) ->  | FK8: =+VLOOKUP(FK12,#REF!,2,1) ->  | FL8: =+VLOOKUP(FL12,#REF!,2,1) ->  | FM8: =+VLOOKUP(FM12,#REF!,2,1) ->  | FN8: =+VLOOKUP(FN12,#REF!,2,1) ->  | FO8: =+VLOOKUP(FO12,#REF!,2,1) ->  | FP8: =+VLOOKUP(FP12,#REF!,2,1) ->  | FQ8: =+VLOOKUP(FQ12,#REF!,2,1) ->  | FR8: =+VLOOKUP(FR12,#REF!,2,1) ->  | FS8: =+VLOOKUP(FS12,#REF!,2,1) ->  | FT8: =+VLOOKUP(FT12,#REF!,2,1) ->  | FU8: =+VLOOKUP(FU12,#REF!,2,1) ->  | FV8: =+VLOOKUP(FV12,#REF!,2,1) ->  | FW8: =+VLOOKUP(FW12,#REF!,2,1) ->  | FX8: =+VLOOKUP(FX12,#REF!,2,1) ->  | FY8: =+VLOOKUP(FY12,#REF!,2,1) ->  | FZ8: =+VLOOKUP(FZ12,#REF!,2,1) ->  | GA8: =+VLOOKUP(GA12,#REF!,2,1) ->  | GB8: =+VLOOKUP(GB12,#REF!,2,1) ->  | GC8: =+VLOOKUP(GC12,#REF!,2,1) ->  | GD8: =+VLOOKUP(GD12,#REF!,2,1) ->  | GE8: =+VLOOKUP(GE12,#REF!,2,1) ->  | GF8: =+VLOOKUP(GF12,#REF!,2,1) ->  | GG8: =+VLOOKUP(GG12,#REF!,2,1) ->  | GH8: =+VLOOKUP(GH12,#REF!,2,1) ->  | GI8: =+VLOOKUP(GI12,#REF!,2,1) ->  | GJ8: =+VLOOKUP(GJ12,#REF!,2,1) ->  | GK8: =+VLOOKUP(GK12,#REF!,2,1) ->  | GL8: =+VLOOKUP(GL12,#REF!,2,1) ->  | GM8: =+VLOOKUP(GM12,#REF!,2,1) ->  | GN8: =+VLOOKUP(GN12,#REF!,2,1) ->  | GO8: =+VLOOKUP(GO12,#REF!,2,1) ->  | GP8: =+VLOOKUP(GP12,#REF!,2,1) ->  | GQ8: =+VLOOKUP(GQ12,#REF!,2,1) ->  | GR8: =+VLOOKUP(GR12,#REF!,2,1) ->  | GS8: =+VLOOKUP(GS12,#REF!,2,1) ->  | GT8: =+VLOOKUP(GT12,#REF!,2,1) ->  | GU8: =+VLOOKUP(GU12,#REF!,2,1) ->  | GV8: =+VLOOKUP(GV12,#REF!,2,1) ->  | GW8: =+VLOOKUP(GW12,#REF!,2,1) ->  | GX8: =+VLOOKUP(GX12,#REF!,2,1) ->  | GY8: =+VLOOKUP(GY12,#REF!,2,1) ->  | GZ8: =+VLOOKUP(GZ12,#REF!,2,1) ->  | HA8: =+VLOOKUP(HA12,#REF!,2,1) ->  | HB8: =+VLOOKUP(HB12,#REF!,2,1) ->  | HC8: =+VLOOKUP(HC12,#REF!,2,1) ->  | HD8: =+VLOOKUP(HD12,#REF!,2,1) ->  | HE8: =+VLOOKUP(HE12,#REF!,2,1) ->  | HF8: =+VLOOKUP(HF12,#REF!,2,1) ->  | HG8: =+VLOOKUP(HG12,#REF!,2,1) ->  | HH8: =+VLOOKUP(HH12,#REF!,2,1) ->  | HI8: =+VLOOKUP(HI12,#REF!,2,1) ->  | HJ8: =+VLOOKUP(HJ12,#REF!,2,1) ->  | HK8: =+VLOOKUP(HK12,#REF!,2,1) ->  | HL8: =+VLOOKUP(HL12,#REF!,2,1) ->  | HM8: =+VLOOKUP(HM12,#REF!,2,1) ->  | HN8: =+VLOOKUP(HN12,#REF!,2,1) ->  | HO8: =+VLOOKUP(HO12,#REF!,2,1) ->  | HP8: =+VLOOKUP(HP12,#REF!,2,1) ->  | HQ8: =+VLOOKUP(HQ12,#REF!,2,1) ->  | HR8: =+VLOOKUP(HR12,#REF!,2,1) ->  | HS8: =+VLOOKUP(HS12,#REF!,2,1) ->  | HT8: =+VLOOKUP(HT12,#REF!,2,1) ->  | HU8: =+VLOOKUP(HU12,#REF!,2,1) ->  | HV8: =+VLOOKUP(HV12,#REF!,2,1) ->  | HW8: =+VLOOKUP(HW12,#REF!,2,1) ->  | HX8: =+VLOOKUP(HX12,#REF!,2,1) ->  | HY8: =+VLOOKUP(HY12,#REF!,2,1) ->  | HZ8: =+VLOOKUP(HZ12,#REF!,2,1) ->  | IA8: =+VLOOKUP(IA12,#REF!,2,1) ->  | IB8: =+VLOOKUP(IB12,#REF!,2,1) ->  | IC8: =+VLOOKUP(IC12,#REF!,2,1) ->  | ID8: =+VLOOKUP(ID12,#REF!,2,1) ->  | IE8: =+VLOOKUP(IE12,#REF!,2,1) ->  | IF8: =+VLOOKUP(IF12,#REF!,2,1) ->  | IG8: =+VLOOKUP(IG12,#REF!,2,1) ->  | IH8: =+VLOOKUP(IH12,#REF!,2,1) ->  | II8: =+VLOOKUP(II12,#REF!,2,1) ->  | IJ8: =+VLOOKUP(IJ12,#REF!,2,1) ->  | IK8: =+VLOOKUP(IK12,#REF!,2,1) ->  | IL8: =+VLOOKUP(IL12,#REF!,2,1) ->  | IM8: =+VLOOKUP(IM12,#REF!,2,1) ->  | IN8: =+VLOOKUP(IN12,#REF!,2,1) ->  | IO8: =+VLOOKUP(IO12,#REF!,2,1) ->  | IP8: =+VLOOKUP(IP12,#REF!,2,1) ->  | IQ8: =+VLOOKUP(IQ12,#REF!,2,1) ->  | IR8: =+VLOOKUP(IR12,#REF!,2,1) ->  | IS8: =+VLOOKUP(IS12,#REF!,2,1) ->  | IT8: =+VLOOKUP(IT12,#REF!,2,1) ->  | IU8: =+VLOOKUP(IU12,#REF!,2,1) ->  | IV8: =+VLOOKUP(IV12,#REF!,2,1) ->  | IW8: =+VLOOKUP(IW12,#REF!,2,1) ->  | IX8: =+VLOOKUP(IX12,#REF!,2,1) ->  | IY8: =+VLOOKUP(IY12,#REF!,2,1) ->  | IZ8: =+VLOOKUP(IZ12,#REF!,2,1) ->  | JA8: =+VLOOKUP(JA12,#REF!,2,1) ->  | JB8: =+VLOOKUP(JB12,#REF!,2,1) ->  | JC8: =+VLOOKUP(JC12,#REF!,2,1) ->  | JD8: =+VLOOKUP(JD12,#REF!,2,1) ->  | JE8: =+VLOOKUP(JE12,#REF!,2,1) ->  | JF8: =+VLOOKUP(JF12,#REF!,2,1) ->  | JG8: =+VLOOKUP(JG12,#REF!,2,1) ->  | JH8: =+VLOOKUP(JH12,#REF!,2,1) ->  | JI8: =+VLOOKUP(JI12,#REF!,2,1) ->  | JJ8: =+VLOOKUP(JJ12,#REF!,2,1) ->  | JK8: =+VLOOKUP(JK12,#REF!,2,1) ->  | JL8: =+VLOOKUP(JL12,#REF!,2,1) ->  | JM8: =+VLOOKUP(JM12,#REF!,2,1) ->  | JN8: =+VLOOKUP(JN12,#REF!,2,1) ->  | JO8: =+VLOOKUP(JO12,#REF!,2,1) ->  | JP8: =+VLOOKUP(JP12,#REF!,2,1) ->  | JQ8: =+VLOOKUP(JQ12,#REF!,2,1) ->  | JR8: =+VLOOKUP(JR12,#REF!,2,1) ->  | JS8: =+VLOOKUP(JS12,#REF!,2,1) ->  | JT8: =+VLOOKUP(JT12,#REF!,2,1) ->  | JU8: =+VLOOKUP(JU12,#REF!,2,1) ->  | JV8: =+VLOOKUP(JV12,#REF!,2,1) ->  | JW8: =+VLOOKUP(JW12,#REF!,2,1) ->  | JX8: =+VLOOKUP(JX12,#REF!,2,1) ->  | JY8: =+VLOOKUP(JY12,#REF!,2,1) ->  | JZ8: =+VLOOKUP(JZ12,#REF!,2,1) ->  | KA8: =+VLOOKUP(KA12,#REF!,2,1) ->  | KB8: =+VLOOKUP(KB12,#REF!,2,1) ->  | KC8: =+VLOOKUP(KC12,#REF!,2,1) ->  | KD8: =+VLOOKUP(KD12,#REF!,2,1) ->  | KE8: =+VLOOKUP(KE12,#REF!,2,1) ->  | KF8: =+VLOOKUP(KF12,#REF!,2,1) ->  | KG8: =+VLOOKUP(KG12,#REF!,2,1) ->  | KH8: =+VLOOKUP(KH12,#REF!,2,1) ->  | KI8: =+VLOOKUP(KI12,#REF!,2,1) ->  | KJ8: =+VLOOKUP(KJ12,#REF!,2,1) ->  | KK8: =+VLOOKUP(KK12,#REF!,2,1) ->  | KL8: =+VLOOKUP(KL12,#REF!,2,1) ->  | KM8: =+VLOOKUP(KM12,#REF!,2,1) ->  | KN8: =+VLOOKUP(KN12,#REF!,2,1) ->  | KO8: =+VLOOKUP(KO12,#REF!,2,1) ->  | KP8: =+VLOOKUP(KP12,#REF!,2,1) ->  | KQ8: =+VLOOKUP(KQ12,#REF!,2,1) ->  | KR8: =+VLOOKUP(KR12,#REF!,2,1) ->  | KS8: =+VLOOKUP(KS12,#REF!,2,1) ->  | KT8: =+VLOOKUP(KT12,#REF!,2,1) ->  | KU8: =+VLOOKUP(KU12,#REF!,2,1) ->  | KV8: =+VLOOKUP(KV12,#REF!,2,1) ->  | KW8: =+VLOOKUP(KW12,#REF!,2,1) ->  | KX8: =+VLOOKUP(KX12,#REF!,2,1) ->  | KY8: =+VLOOKUP(KY12,#REF!,2,1) ->  | KZ8: =+VLOOKUP(KZ12,#REF!,2,1) ->  | LA8: =+VLOOKUP(LA12,#REF!,2,1) ->  | LB8: =+VLOOKUP(LB12,#REF!,2,1) ->  | LC8: =+VLOOKUP(LC12,#REF!,2,1) ->  | LD8: =+VLOOKUP(LD12,#REF!,2,1) ->  | LE8: =+VLOOKUP(LE12,#REF!,2,1) ->  | LF8: =+VLOOKUP(LF12,#REF!,2,1) ->  | LG8: =+VLOOKUP(LG12,#REF!,2,1) ->  | LH8: =+VLOOKUP(LH12,#REF!,2,1) ->  | LI8: =+VLOOKUP(LI12,#REF!,2,1) ->  | LJ8: =+VLOOKUP(LJ12,#REF!,2,1) ->  | LK8: =+VLOOKUP(LK12,#REF!,2,1) ->  | LL8: =+VLOOKUP(LL12,#REF!,2,1) ->  | LM8: =+VLOOKUP(LM12,#REF!,2,1) ->  | LN8: =+VLOOKUP(LN12,#REF!,2,1) ->  | LO8: =+VLOOKUP(LO12,#REF!,2,1) ->  | LP8: =+VLOOKUP(LP12,#REF!,2,1) ->  | LQ8: =+VLOOKUP(LQ12,#REF!,2,1) ->  | LR8: =+VLOOKUP(LR12,#REF!,2,1) ->  | LS8: =+VLOOKUP(LS12,#REF!,2,1) ->  | LT8: =+VLOOKUP(LT12,#REF!,2,1) ->  | LU8: =+VLOOKUP(LU12,#REF!,2,1) ->  | LV8: =+VLOOKUP(LV12,#REF!,2,1) ->  | LW8: =+VLOOKUP(LW12,#REF!,2,1) ->  | LX8: =+VLOOKUP(LX12,#REF!,2,1) ->  | LY8: =+VLOOKUP(LY12,#REF!,2,1) ->  | LZ8: =+VLOOKUP(LZ12,#REF!,2,1) ->  | MA8: =+VLOOKUP(MA12,#REF!,2,1) ->  | MB8: =+VLOOKUP(MB12,#REF!,2,1) ->  | MC8: =+VLOOKUP(MC12,#REF!,2,1) ->  | MD8: =+VLOOKUP(MD12,#REF!,2,1) ->  | ME8: =+VLOOKUP(ME12,#REF!,2,1) ->  | MF8: =+VLOOKUP(MF12,#REF!,2,1) ->  | MG8: =+VLOOKUP(MG12,#REF!,2,1) ->  | MH8: =+VLOOKUP(MH12,#REF!,2,1) ->  | MI8: =+VLOOKUP(MI12,#REF!,2,1) ->  | MJ8: =+VLOOKUP(MJ12,#REF!,2,1) ->  | MK8: =+VLOOKUP(MK12,#REF!,2,1) ->  | ML8: =+VLOOKUP(ML12,#REF!,2,1) ->  | MM8: =+VLOOKUP(MM12,#REF!,2,1) ->  | MN8: =+VLOOKUP(MN12,#REF!,2,1) ->  | MO8: =+VLOOKUP(MO12,#REF!,2,1) ->  | MP8: =+VLOOKUP(MP12,#REF!,2,1) ->  | MQ8: =+VLOOKUP(MQ12,#REF!,2,1) ->  | MR8: =+VLOOKUP(MR12,#REF!,2,1) ->  | MS8: =+VLOOKUP(MS12,#REF!,2,1) ->  | MT8: =+VLOOKUP(MT12,#REF!,2,1) ->  | MU8: =+VLOOKUP(MU12,#REF!,2,1) ->  | MV8: =+VLOOKUP(MV12,#REF!,2,1) ->  | MW8: =+VLOOKUP(MW12,#REF!,2,1) ->  | MX8: =+VLOOKUP(MX12,#REF!,2,1) ->  | MY8: =+VLOOKUP(MY12,#REF!,2,1) ->  | MZ8: =+VLOOKUP(MZ12,#REF!,2,1) ->  | NA8: =+VLOOKUP(NA12,#REF!,2,1) ->  | NB8: =+VLOOKUP(NB12,#REF!,2,1) ->  | NC8: =+VLOOKUP(NC12,#REF!,2,1) ->  | ND8: =+VLOOKUP(ND12,#REF!,2,1) ->  | NE8: =+VLOOKUP(NE12,#REF!,2,1) ->  | NF8: =+VLOOKUP(NF12,#REF!,2,1) ->  | NG8: =+VLOOKUP(NG12,#REF!,2,1) ->  | NH8: =+VLOOKUP(NH12,#REF!,2,1) ->  | NI8: =+VLOOKUP(NI12,#REF!,2,1) ->  | NJ8: =+VLOOKUP(NJ12,#REF!,2,1) ->  | NK8: =+VLOOKUP(NK12,#REF!,2,1) ->  | NL8: =+VLOOKUP(NL12,#REF!,2,1) ->  | NM8: =+VLOOKUP(NM12,#REF!,2,1) ->  | NN8: =+VLOOKUP(NN12,#REF!,2,1) ->  | NO8: =+VLOOKUP(NO12,#REF!,2,1) ->  | NP8: =+VLOOKUP(NP12,#REF!,2,1) ->  | NQ8: =+VLOOKUP(NQ12,#REF!,2,1) ->  | NR8: =+VLOOKUP(NR12,#REF!,2,1) ->  | NS8: =+VLOOKUP(NS12,#REF!,2,1) ->  | NT8: =+VLOOKUP(NT12,#REF!,2,1) ->  | NU8: =+VLOOKUP(NU12,#REF!,2,1) ->  | NV8: =+VLOOKUP(NV12,#REF!,2,1) ->  | NW8: =+VLOOKUP(NW12,#REF!,2,1) ->  | NX8: =+VLOOKUP(NX12,#REF!,2,1) ->  | NY8: =+VLOOKUP(NY12,#REF!,2,1) ->  | NZ8: =+VLOOKUP(NZ12,#REF!,2,1) ->  | OA8: =+VLOOKUP(OA12,#REF!,2,1) ->  | OB8: =+VLOOKUP(OB12,#REF!,2,1) ->  | OC8: =+VLOOKUP(OC12,#REF!,2,1) ->  | OD8: =+VLOOKUP(OD12,#REF!,2,1) ->  | OE8: =+VLOOKUP(OE12,#REF!,2,1) ->  | OF8: =+VLOOKUP(OF12,#REF!,2,1) ->  | OG8: =+VLOOKUP(OG12,#REF!,2,1) ->  | OH8: =+VLOOKUP(OH12,#REF!,2,1) ->  | OI8: =+VLOOKUP(OI12,#REF!,2,1) ->  | OJ8: =+VLOOKUP(OJ12,#REF!,2,1) ->  | OK8: =+VLOOKUP(OK12,#REF!,2,1) ->  | OL8: =+VLOOKUP(OL12,#REF!,2,1) ->  | OM8: =+VLOOKUP(OM12,#REF!,2,1) ->  | ON8: =+VLOOKUP(ON12,#REF!,2,1) ->  | OO8: =+VLOOKUP(OO12,#REF!,2,1) ->  | OP8: =+VLOOKUP(OP12,#REF!,2,1) ->  | OQ8: =+VLOOKUP(OQ12,#REF!,2,1) -> 
